Workbook

Sheet list
B2: الاصناف | H2: الموردين | M2: مكان الصرف
B4: م | C4: الكود | D4: الصنف | E4: مخزن | F4: الوحدة | H4: الكود | I4: اسم المورد | J4: التليفون | K4: العنوان | M4: اسم المشروع | N4: الاعمال | O4: المكان
C5: =+'COST_ITEM _BILL'!B4 -> 10001 | D5: =+'COST_ITEM _BILL'!C4 -> حديد _ 12مم | E5: =+'COST_ITEM _BILL'!D4 -> مواد البناء | F5: =+'COST_ITEM _BILL'!E4 -> طن | H5: 2001 | I5: نقدا | J5: 0120254585 | K5: الموقع | M5: الثلاجات | N5: كهرباء | O5: B1
C6: =+'COST_ITEM _BILL'!B5 -> 20001 | D6: =+'COST_ITEM _BILL'!C5 -> ماسورة 4بوصة pvc | E6: =+'COST_ITEM _BILL'!D5 -> السباكة والصرف | F6: =+'COST_ITEM _BILL'!E5 -> بالمتر | M6: مصنع لبطاطس | N6: سباكة | O6: B2
C7: =+'COST_ITEM _BILL'!B6 -> 30001 | D7: =+'COST_ITEM _BILL'!C6 -> كابل 3*4 ترموبلاست | E7: =+'COST_ITEM _BILL'!D6 -> كهرباء | F7: =+'COST_ITEM _BILL'!E6 -> بالمتر | M7: المبانى الادارية | N7: دهانات | O7: B3
C8: =+'COST_ITEM _BILL'!B7 -> 40001 | D8: =+'COST_ITEM _BILL'!C7 -> بوية صفراء | E8: =+'COST_ITEM _BILL'!D7 -> الدهانات | F8: =+'COST_ITEM _BILL'!E7 -> 5لتر | N8: نجارة
C9: =+'COST_ITEM _BILL'!B8 -> 50001 | D9: =+'COST_ITEM _BILL'!C8 -> قوائم ستالنس | E9: =+'COST_ITEM _BILL'!D8 -> جمالونات | F9: =+'COST_ITEM _BILL'!E8 -> كيلو | N9: بلاطات
C10: =+'COST_ITEM _BILL'!B9 -> 0 | D10: =+'COST_ITEM _BILL'!C9 -> 0 | E10: =+'COST_ITEM _BILL'!D9 -> 0 | F10: =+'COST_ITEM _BILL'!E9 -> 0
C11: =+'COST_ITEM _BILL'!B10 -> 0 | D11: =+'COST_ITEM _BILL'!C10 -> 0 | E11: =+'COST_ITEM _BILL'!D10 -> 0 | F11: =+'COST_ITEM _BILL'!E10 -> 0
C12: =+'COST_ITEM _BILL'!B11 -> 0 | D12: =+'COST_ITEM _BILL'!C11 -> 0 | E12: =+'COST_ITEM _BILL'!D11 -> 0 | F12: =+'COST_ITEM _BILL'!E11 -> 0
C13: =+'COST_ITEM _BILL'!B12 -> 0 | D13: =+'COST_ITEM _BILL'!C12 -> 0 | E13: =+'COST_ITEM _BILL'!D12 -> 0 | F13: =+'COST_ITEM _BILL'!E12 -> 0
C14: =+'COST_ITEM _BILL'!B13 -> 0 | D14: =+'COST_ITEM _BILL'!C13 -> 0 | E14: =+'COST_ITEM _BILL'!D13 -> 0 | F14: =+'COST_ITEM _BILL'!E13 -> 0
C15: =+'COST_ITEM _BILL'!B14 -> 0 | D15: =+'COST_ITEM _BILL'!C14 -> 0 | E15: =+'COST_ITEM _BILL'!D14 -> 0 | F15: =+'COST_ITEM _BILL'!E14 -> 0
C16: =+'COST_ITEM _BILL'!B15 -> 0 | D16: =+'COST_ITEM _BILL'!C15 -> 0 | E16: =+'COST_ITEM _BILL'!D15 -> 0 | F16: =+'COST_ITEM _BILL'!E15 -> 0
C17: =+'COST_ITEM _BILL'!B16 -> 0 | D17: =+'COST_ITEM _BILL'!C16 -> 0 | E17: =+'COST_ITEM _BILL'!D16 -> 0 | F17: =+'COST_ITEM _BILL'!E16 -> 0
C18: =+'COST_ITEM _BILL'!B17 -> 0 | D18: =+'COST_ITEM _BILL'!C17 -> 0 | E18: =+'COST_ITEM _BILL'!D17 -> 0 | F18: =+'COST_ITEM _BILL'!E17 -> 0
C19: =+'COST_ITEM _BILL'!B18 -> 0 | D19: =+'COST_ITEM _BILL'!C18 -> 0 | E19: =+'COST_ITEM _BILL'!D18 -> 0 | F19: =+'COST_ITEM _BILL'!E18 -> 0
C20: =+'COST_ITEM _BILL'!B19 -> 0 | D20: =+'COST_ITEM _BILL'!C19 -> 0 | E20: =+'COST_ITEM _BILL'!D19 -> 0 | F20: =+'COST_ITEM _BILL'!E19 -> 0
C21: =+'COST_ITEM _BILL'!B20 -> 0 | D21: =+'COST_ITEM _BILL'!C20 -> 0 | E21: =+'COST_ITEM _BILL'!D20 -> 0 | F21: =+'COST_ITEM _BILL'!E20 -> 0
C22: =+'COST_ITEM _BILL'!B21 -> 0 | D22: =+'COST_ITEM _BILL'!C21 -> 0 | E22: =+'COST_ITEM _BILL'!D21 -> 0 | F22: =+'COST_ITEM _BILL'!E21 -> 0
C23: =+'COST_ITEM _BILL'!B22 -> 0 | D23: =+'COST_ITEM _BILL'!C22 -> 0 | E23: =+'COST_ITEM _BILL'!D22 -> 0 | F23: =+'COST_ITEM _BILL'!E22 -> 0
C24: =+'COST_ITEM _BILL'!B23 -> 0 | D24: =+'COST_ITEM _BILL'!C23 -> 0 | E24: =+'COST_ITEM _BILL'!D23 -> 0 | F24: =+'COST_ITEM _BILL'!E23 -> 0
C25: =+'COST_ITEM _BILL'!B24 -> 0 | D25: =+'COST_ITEM _BILL'!C24 -> 0 | E25: =+'COST_ITEM _BILL'!D24 -> 0 | F25: =+'COST_ITEM _BILL'!E24 -> 0
C26: =+'COST_ITEM _BILL'!B25 -> 0 | D26: =+'COST_ITEM _BILL'!C25 -> 0 | E26: =+'COST_ITEM _BILL'!D25 -> 0 | F26: =+'COST_ITEM _BILL'!E25 -> 0
C27: =+'COST_ITEM _BILL'!B26 -> 0 | D27: =+'COST_ITEM _BILL'!C26 -> 0 | E27: =+'COST_ITEM _BILL'!D26 -> 0 | F27: =+'COST_ITEM _BILL'!E26 -> 0
C28: =+'COST_ITEM _BILL'!B27 -> 0 | D28: =+'COST_ITEM _BILL'!C27 -> 0 | E28: =+'COST_ITEM _BILL'!D27 -> 0 | F28: =+'COST_ITEM _BILL'!E27 -> 0
C29: =+'COST_ITEM _BILL'!B28 -> 0 | D29: =+'COST_ITEM _BILL'!C28 -> 0 | E29: =+'COST_ITEM _BILL'!D28 -> 0 | F29: =+'COST_ITEM _BILL'!E28 -> 0
C30: =+'COST_ITEM _BILL'!B29 -> 0 | D30: =+'COST_ITEM _BILL'!C29 -> 0 | E30: =+'COST_ITEM _BILL'!D29 -> 0 | F30: =+'COST_ITEM _BILL'!E29 -> 0
C31: =+'COST_ITEM _BILL'!B30 -> 0 | D31: =+'COST_ITEM _BILL'!C30 -> 0 | E31: =+'COST_ITEM _BILL'!D30 -> 0 | F31: =+'COST_ITEM _BILL'!E30 -> 0
C32: =+'COST_ITEM _BILL'!B31 -> 0 | D32: =+'COST_ITEM _BILL'!C31 -> 0 | E32: =+'COST_ITEM _BILL'!D31 -> 0 | F32: =+'COST_ITEM _BILL'!E31 -> 0
C33: =+'COST_ITEM _BILL'!B32 -> 0 | D33: =+'COST_ITEM _BILL'!C32 -> 0 | E33: =+'COST_ITEM _BILL'!D32 -> 0 | F33: =+'COST_ITEM _BILL'!E32 -> 0
C34: =+'COST_ITEM _BILL'!B33 -> 0 | D34: =+'COST_ITEM _BILL'!C33 -> 0 | E34: =+'COST_ITEM _BILL'!D33 -> 0 | F34: =+'COST_ITEM _BILL'!E33 -> 0
C35: =+'COST_ITEM _BILL'!B34 -> 0 | D35: =+'COST_ITEM _BILL'!C34 -> 0 | E35: =+'COST_ITEM _BILL'!D34 -> 0 | F35: =+'COST_ITEM _BILL'!E34 -> 0
C36: =+'COST_ITEM _BILL'!B35 -> 0 | D36: =+'COST_ITEM _BILL'!C35 -> 0 | E36: =+'COST_ITEM _BILL'!D35 -> 0 | F36: =+'COST_ITEM _BILL'!E35 -> 0
C37: =+'COST_ITEM _BILL'!B36 -> 0 | D37: =+'COST_ITEM _BILL'!C36 -> 0 | E37: =+'COST_ITEM _BILL'!D36 -> 0 | F37: =+'COST_ITEM _BILL'!E36 -> 0
C38: =+'COST_ITEM _BILL'!B37 -> 0 | D38: =+'COST_ITEM _BILL'!C37 -> 0 | E38: =+'COST_ITEM _BILL'!D37 -> 0 | F38: =+'COST_ITEM _BILL'!E37 -> 0
C39: =+'COST_ITEM _BILL'!B38 -> 0 | D39: =+'COST_ITEM _BILL'!C38 -> 0 | E39: =+'COST_ITEM _BILL'!D38 -> 0 | F39: =+'COST_ITEM _BILL'!E38 -> 0
C40: =+'COST_ITEM _BILL'!B39 -> 0 | D40: =+'COST_ITEM _BILL'!C39 -> 0 | E40: =+'COST_ITEM _BILL'!D39 -> 0 | F40: =+'COST_ITEM _BILL'!E39 -> 0
C41: =+'COST_ITEM _BILL'!B40 -> 0 | D41: =+'COST_ITEM _BILL'!C40 -> 0 | E41: =+'COST_ITEM _BILL'!D40 -> 0 | F41: =+'COST_ITEM _BILL'!E40 -> 0
C42: =+'COST_ITEM _BILL'!B41 -> 0 | D42: =+'COST_ITEM _BILL'!C41 -> 0 | E42: =+'COST_ITEM _BILL'!D41 -> 0 | F42: =+'COST_ITEM _BILL'!E41 -> 0
C43: =+'COST_ITEM _BILL'!B42 -> 0 | D43: =+'COST_ITEM _BILL'!C42 -> 0 | E43: =+'COST_ITEM _BILL'!D42 -> 0 | F43: =+'COST_ITEM _BILL'!E42 -> 0
C44: =+'COST_ITEM _BILL'!B43 -> 0 | D44: =+'COST_ITEM _BILL'!C43 -> 0 | E44: =+'COST_ITEM _BILL'!D43 -> 0 | F44: =+'COST_ITEM _BILL'!E43 -> 0
C45: =+'COST_ITEM _BILL'!B44 -> 0 | D45: =+'COST_ITEM _BILL'!C44 -> 0 | E45: =+'COST_ITEM _BILL'!D44 -> 0 | F45: =+'COST_ITEM _BILL'!E44 -> 0
C46: =+'COST_ITEM _BILL'!B45 -> 0 | D46: =+'COST_ITEM _BILL'!C45 -> 0 | E46: =+'COST_ITEM _BILL'!D45 -> 0 | F46: =+'COST_ITEM _BILL'!E45 -> 0
C47: =+'COST_ITEM _BILL'!B46 -> 0 | D47: =+'COST_ITEM _BILL'!C46 -> 0 | E47: =+'COST_ITEM _BILL'!D46 -> 0 | F47: =+'COST_ITEM _BILL'!E46 -> 0
C48: =+'COST_ITEM _BILL'!B47 -> 0 | D48: =+'COST_ITEM _BILL'!C47 -> 0 | E48: =+'COST_ITEM _BILL'!D47 -> 0 | F48: =+'COST_ITEM _BILL'!E47 -> 0
C49: =+'COST_ITEM _BILL'!B48 -> 0 | D49: =+'COST_ITEM _BILL'!C48 -> 0 | E49: =+'COST_ITEM _BILL'!D48 -> 0 | F49: =+'COST_ITEM _BILL'!E48 -> 0
C50: =+'COST_ITEM _BILL'!B49 -> 0 | D50: =+'COST_ITEM _BILL'!C49 -> 0 | E50: =+'COST_ITEM _BILL'!D49 -> 0 | F50: =+'COST_ITEM _BILL'!E49 -> 0
C51: =+'COST_ITEM _BILL'!B50 -> 0 | D51: =+'COST_ITEM _BILL'!C50 -> 0 | E51: =+'COST_ITEM _BILL'!D50 -> 0 | F51: =+'COST_ITEM _BILL'!E50 -> 0
C52: =+'COST_ITEM _BILL'!B51 -> 0 | D52: =+'COST_ITEM _BILL'!C51 -> 0 | E52: =+'COST_ITEM _BILL'!D51 -> 0 | F52: =+'COST_ITEM _BILL'!E51 -> 0
C53: =+'COST_ITEM _BILL'!B52 -> 0 | D53: =+'COST_ITEM _BILL'!C52 -> 0 | E53: =+'COST_ITEM _BILL'!D52 -> 0 | F53: =+'COST_ITEM _BILL'!E52 -> 0
C54: =+'COST_ITEM _BILL'!B53 -> 0 | D54: =+'COST_ITEM _BILL'!C53 -> 0 | E54: =+'COST_ITEM _BILL'!D53 -> 0 | F54: =+'COST_ITEM _BILL'!E53 -> 0
C55: =+'COST_ITEM _BILL'!B54 -> 0 | D55: =+'COST_ITEM _BILL'!C54 -> 0 | E55: =+'COST_ITEM _BILL'!D54 -> 0 | F55: =+'COST_ITEM _BILL'!E54 -> 0
C56: =+'COST_ITEM _BILL'!B55 -> 0 | D56: =+'COST_ITEM _BILL'!C55 -> 0 | E56: =+'COST_ITEM _BILL'!D55 -> 0 | F56: =+'COST_ITEM _BILL'!E55 -> 0
C57: =+'COST_ITEM _BILL'!B56 -> 0 | D57: =+'COST_ITEM _BILL'!C56 -> 0 | E57: =+'COST_ITEM _BILL'!D56 -> 0 | F57: =+'COST_ITEM _BILL'!E56 -> 0
C58: =+'COST_ITEM _BILL'!B57 -> 0 | D58: =+'COST_ITEM _BILL'!C57 -> 0 | E58: =+'COST_ITEM _BILL'!D57 -> 0 | F58: =+'COST_ITEM _BILL'!E57 -> 0
C59: =+'COST_ITEM _BILL'!B58 -> 0 | D59: =+'COST_ITEM _BILL'!C58 -> 0 | E59: =+'COST_ITEM _BILL'!D58 -> 0 | F59: =+'COST_ITEM _BILL'!E58 -> 0
C60: =+'COST_ITEM _BILL'!B59 -> 0 | D60: =+'COST_ITEM _BILL'!C59 -> 0 | E60: =+'COST_ITEM _BILL'!D59 -> 0 | F60: =+'COST_ITEM _BILL'!E59 -> 0
C61: =+'COST_ITEM _BILL'!B60 -> 0 | D61: =+'COST_ITEM _BILL'!C60 -> 0 | E61: =+'COST_ITEM _BILL'!D60 -> 0 | F61: =+'COST_ITEM _BILL'!E60 -> 0
C62: =+'COST_ITEM _BILL'!B61 -> 0 | D62: =+'COST_ITEM _BILL'!C61 -> 0 | E62: =+'COST_ITEM _BILL'!D61 -> 0 | F62: =+'COST_ITEM _BILL'!E61 -> 0
C63: =+'COST_ITEM _BILL'!B62 -> 0 | D63: =+'COST_ITEM _BILL'!C62 -> 0 | E63: =+'COST_ITEM _BILL'!D62 -> 0 | F63: =+'COST_ITEM _BILL'!E62 -> 0
C64: =+'COST_ITEM _BILL'!B63 -> 0 | D64: =+'COST_ITEM _BILL'!C63 -> 0 | E64: =+'COST_ITEM _BILL'!D63 -> 0 | F64: =+'COST_ITEM _BILL'!E63 -> 0
C65: =+'COST_ITEM _BILL'!B64 -> 0 | D65: =+'COST_ITEM _BILL'!C64 -> 0 | E65: =+'COST_ITEM _BILL'!D64 -> 0 | F65: =+'COST_ITEM _BILL'!E64 -> 0
C66: =+'COST_ITEM _BILL'!B65 -> 0 | D66: =+'COST_ITEM _BILL'!C65 -> 0 | E66: =+'COST_ITEM _BILL'!D65 -> 0 | F66: =+'COST_ITEM _BILL'!E65 -> 0
C67: =+'COST_ITEM _BILL'!B66 -> 0 | D67: =+'COST_ITEM _BILL'!C66 -> 0 | E67: =+'COST_ITEM _BILL'!D66 -> 0 | F67: =+'COST_ITEM _BILL'!E66 -> 0
C68: =+'COST_ITEM _BILL'!B67 -> 0 | D68: =+'COST_ITEM _BILL'!C67 -> 0 | E68: =+'COST_ITEM _BILL'!D67 -> 0 | F68: =+'COST_ITEM _BILL'!E67 -> 0
C69: =+'COST_ITEM _BILL'!B68 -> 0 | D69: =+'COST_ITEM _BILL'!C68 -> 0 | E69: =+'COST_ITEM _BILL'!D68 -> 0 | F69: =+'COST_ITEM _BILL'!E68 -> 0
C70: =+'COST_ITEM _BILL'!B69 -> 0 | D70: =+'COST_ITEM _BILL'!C69 -> 0 | E70: =+'COST_ITEM _BILL'!D69 -> 0 | F70: =+'COST_ITEM _BILL'!E69 -> 0
C71: =+'COST_ITEM _BILL'!B70 -> 0 | D71: =+'COST_ITEM _BILL'!C70 -> 0 | E71: =+'COST_ITEM _BILL'!D70 -> 0 | F71: =+'COST_ITEM _BILL'!E70 -> 0
C72: =+'COST_ITEM _BILL'!B71 -> 0 | D72: =+'COST_ITEM _BILL'!C71 -> 0 | E72: =+'COST_ITEM _BILL'!D71 -> 0 | F72: =+'COST_ITEM _BILL'!E71 -> 0
C73: =+'COST_ITEM _BILL'!B72 -> 0 | D73: =+'COST_ITEM _BILL'!C72 -> 0 | E73: =+'COST_ITEM _BILL'!D72 -> 0 | F73: =+'COST_ITEM _BILL'!E72 -> 0
C74: =+'COST_ITEM _BILL'!B73 -> 0 | D74: =+'COST_ITEM _BILL'!C73 -> 0 | E74: =+'COST_ITEM _BILL'!D73 -> 0 | F74: =+'COST_ITEM _BILL'!E73 -> 0
C75: =+'COST_ITEM _BILL'!B74 -> 0 | D75: =+'COST_ITEM _BILL'!C74 -> 0 | E75: =+'COST_ITEM _BILL'!D74 -> 0 | F75: =+'COST_ITEM _BILL'!E74 -> 0
C76: =+'COST_ITEM _BILL'!B75 -> 0 | D76: =+'COST_ITEM _BILL'!C75 -> 0 | E76: =+'COST_ITEM _BILL'!D75 -> 0 | F76: =+'COST_ITEM _BILL'!E75 -> 0
C77: =+'COST_ITEM _BILL'!B76 -> 0 | D77: =+'COST_ITEM _BILL'!C76 -> 0 | E77: =+'COST_ITEM _BILL'!D76 -> 0 | F77: =+'COST_ITEM _BILL'!E76 -> 0
C78: =+'COST_ITEM _BILL'!B77 -> 0 | D78: =+'COST_ITEM _BILL'!C77 -> 0 | E78: =+'COST_ITEM _BILL'!D77 -> 0 | F78: =+'COST_ITEM _BILL'!E77 -> 0
C79: =+'COST_ITEM _BILL'!B78 -> 0 | D79: =+'COST_ITEM _BILL'!C78 -> 0 | E79: =+'COST_ITEM _BILL'!D78 -> 0 | F79: =+'COST_ITEM _BILL'!E78 -> 0
C80: =+'COST_ITEM _BILL'!B79 -> 0 | D80: =+'COST_ITEM _BILL'!C79 -> 0 | E80: =+'COST_ITEM _BILL'!D79 -> 0 | F80: =+'COST_ITEM _BILL'!E79 -> 0
C81: =+'COST_ITEM _BILL'!B80 -> 0 | D81: =+'COST_ITEM _BILL'!C80 -> 0 | E81: =+'COST_ITEM _BILL'!D80 -> 0 | F81: =+'COST_ITEM _BILL'!E80 -> 0
C82: =+'COST_ITEM _BILL'!B81 -> 0 | D82: =+'COST_ITEM _BILL'!C81 -> 0 | E82: =+'COST_ITEM _BILL'!D81 -> 0 | F82: =+'COST_ITEM _BILL'!E81 -> 0
C83: =+'COST_ITEM _BILL'!B82 -> 0 | D83: =+'COST_ITEM _BILL'!C82 -> 0 | E83: =+'COST_ITEM _BILL'!D82 -> 0 | F83: =+'COST_ITEM _BILL'!E82 -> 0
C84: =+'COST_ITEM _BILL'!B83 -> 0 | D84: =+'COST_ITEM _BILL'!C83 -> 0 | E84: =+'COST_ITEM _BILL'!D83 -> 0 | F84: =+'COST_ITEM _BILL'!E83 -> 0
C85: =+'COST_ITEM _BILL'!B84 -> 0 | D85: =+'COST_ITEM _BILL'!C84 -> 0 | E85: =+'COST_ITEM _BILL'!D84 -> 0 | F85: =+'COST_ITEM _BILL'!E84 -> 0
C86: =+'COST_ITEM _BILL'!B85 -> 0 | D86: =+'COST_ITEM _BILL'!C85 -> 0 | E86: =+'COST_ITEM _BILL'!D85 -> 0 | F86: =+'COST_ITEM _BILL'!E85 -> 0
C87: =+'COST_ITEM _BILL'!B86 -> 0 | D87: =+'COST_ITEM _BILL'!C86 -> 0 | E87: =+'COST_ITEM _BILL'!D86 -> 0 | F87: =+'COST_ITEM _BILL'!E86 -> 0
C88: =+'COST_ITEM _BILL'!B87 -> 0 | D88: =+'COST_ITEM _BILL'!C87 -> 0 | E88: =+'COST_ITEM _BILL'!D87 -> 0 | F88: =+'COST_ITEM _BILL'!E87 -> 0
C89: =+'COST_ITEM _BILL'!B88 -> 0 | D89: =+'COST_ITEM _BILL'!C88 -> 0 | E89: =+'COST_ITEM _BILL'!D88 -> 0 | F89: =+'COST_ITEM _BILL'!E88 -> 0
C90: =+'COST_ITEM _BILL'!B89 -> 0 | D90: =+'COST_ITEM _BILL'!C89 -> 0 | E90: =+'COST_ITEM _BILL'!D89 -> 0 | F90: =+'COST_ITEM _BILL'!E89 -> 0
C91: =+'COST_ITEM _BILL'!B90 -> 0 | D91: =+'COST_ITEM _BILL'!C90 -> 0 | E91: =+'COST_ITEM _BILL'!D90 -> 0 | F91: =+'COST_ITEM _BILL'!E90 -> 0
C92: =+'COST_ITEM _BILL'!B91 -> 0 | D92: =+'COST_ITEM _BILL'!C91 -> 0 | E92: =+'COST_ITEM _BILL'!D91 -> 0 | F92: =+'COST_ITEM _BILL'!E91 -> 0
C93: =+'COST_ITEM _BILL'!B92 -> 0 | D93: =+'COST_ITEM _BILL'!C92 -> 0 | E93: =+'COST_ITEM _BILL'!D92 -> 0 | F93: =+'COST_ITEM _BILL'!E92 -> 0
C94: =+'COST_ITEM _BILL'!B93 -> 0 | D94: =+'COST_ITEM _BILL'!C93 -> 0 | E94: =+'COST_ITEM _BILL'!D93 -> 0 | F94: =+'COST_ITEM _BILL'!E93 -> 0
C95: =+'COST_ITEM _BILL'!B94 -> 0 | D95: =+'COST_ITEM _BILL'!C94 -> 0 | E95: =+'COST_ITEM _BILL'!D94 -> 0 | F95: =+'COST_ITEM _BILL'!E94 -> 0
C96: =+'COST_ITEM _BILL'!B95 -> 0 | D96: =+'COST_ITEM _BILL'!C95 -> 0 | E96: =+'COST_ITEM _BILL'!D95 -> 0 | F96: =+'COST_ITEM _BILL'!E95 -> 0
C97: =+'COST_ITEM _BILL'!B96 -> 0 | D97: =+'COST_ITEM _BILL'!C96 -> 0 | E97: =+'COST_ITEM _BILL'!D96 -> 0 | F97: =+'COST_ITEM _BILL'!E96 -> 0
C98: =+'COST_ITEM _BILL'!B97 -> 0 | D98: =+'COST_ITEM _BILL'!C97 -> 0 | E98: =+'COST_ITEM _BILL'!D97 -> 0 | F98: =+'COST_ITEM _BILL'!E97 -> 0
C99: =+'COST_ITEM _BILL'!B98 -> 0 | D99: =+'COST_ITEM _BILL'!C98 -> 0 | E99: =+'COST_ITEM _BILL'!D98 -> 0 | F99: =+'COST_ITEM _BILL'!E98 -> 0
C100: =+'COST_ITEM _BILL'!B99 -> 0 | D100: =+'COST_ITEM _BILL'!C99 -> 0 | E100: =+'COST_ITEM _BILL'!D99 -> 0 | F100: =+'COST_ITEM _BILL'!E99 -> 0
C101: =+'COST_ITEM _BILL'!B100 -> 0 | D101: =+'COST_ITEM _BILL'!C100 -> 0 | E101: =+'COST_ITEM _BILL'!D100 -> 0 | F101: =+'COST_ITEM _BILL'!E100 -> 0
C102: =+'COST_ITEM _BILL'!B101 -> 0 | D102: =+'COST_ITEM _BILL'!C101 -> 0 | E102: =+'COST_ITEM _BILL'!D101 -> 0 | F102: =+'COST_ITEM _BILL'!E101 -> 0
C103: =+'COST_ITEM _BILL'!B102 -> 0 | D103: =+'COST_ITEM _BILL'!C102 -> 0 | E103: =+'COST_ITEM _BILL'!D102 -> 0 | F103: =+'COST_ITEM _BILL'!E102 -> 0
C104: =+'COST_ITEM _BILL'!B103 -> 0 | D104: =+'COST_ITEM _BILL'!C103 -> 0 | E104: =+'COST_ITEM _BILL'!D103 -> 0 | F104: =+'COST_ITEM _BILL'!E103 -> 0
C105: =+'COST_ITEM _BILL'!B104 -> 0 | D105: =+'COST_ITEM _BILL'!C104 -> 0 | E105: =+'COST_ITEM _BILL'!D104 -> 0 | F105: =+'COST_ITEM _BILL'!E104 -> 0
C106: =+'COST_ITEM _BILL'!B105 -> 0 | D106: =+'COST_ITEM _BILL'!C105 -> 0 | E106: =+'COST_ITEM _BILL'!D105 -> 0 | F106: =+'COST_ITEM _BILL'!E105 -> 0
C107: =+'COST_ITEM _BILL'!B106 -> 0 | D107: =+'COST_ITEM _BILL'!C106 -> 0 | E107: =+'COST_ITEM _BILL'!D106 -> 0 | F107: =+'COST_ITEM _BILL'!E106 -> 0
C108: =+'COST_ITEM _BILL'!B107 -> 0 | D108: =+'COST_ITEM _BILL'!C107 -> 0 | E108: =+'COST_ITEM _BILL'!D107 -> 0 | F108: =+'COST_ITEM _BILL'!E107 -> 0
C109: =+'COST_ITEM _BILL'!B108 -> 0 | D109: =+'COST_ITEM _BILL'!C108 -> 0 | E109: =+'COST_ITEM _BILL'!D108 -> 0 | F109: =+'COST_ITEM _BILL'!E108 -> 0
C110: =+'COST_ITEM _BILL'!B109 -> 0 | D110: =+'COST_ITEM _BILL'!C109 -> 0 | E110: =+'COST_ITEM _BILL'!D109 -> 0 | F110: =+'COST_ITEM _BILL'!E109 -> 0
C111: =+'COST_ITEM _BILL'!B110 -> 0 | D111: =+'COST_ITEM _BILL'!C110 -> 0 | E111: =+'COST_ITEM _BILL'!D110 -> 0 | F111: =+'COST_ITEM _BILL'!E110 -> 0
C112: =+'COST_ITEM _BILL'!B111 -> 0 | D112: =+'COST_ITEM _BILL'!C111 -> 0 | E112: =+'COST_ITEM _BILL'!D111 -> 0 | F112: =+'COST_ITEM _BILL'!E111 -> 0
C113: =+'COST_ITEM _BILL'!B112 -> 0 | D113: =+'COST_ITEM _BILL'!C112 -> 0 | E113: =+'COST_ITEM _BILL'!D112 -> 0 | F113: =+'COST_ITEM _BILL'!E112 -> 0
C114: =+'COST_ITEM _BILL'!B113 -> 0 | D114: =+'COST_ITEM _BILL'!C113 -> 0 | E114: =+'COST_ITEM _BILL'!D113 -> 0 | F114: =+'COST_ITEM _BILL'!E113 -> 0
C115: =+'COST_ITEM _BILL'!B114 -> 0 | D115: =+'COST_ITEM _BILL'!C114 -> 0 | E115: =+'COST_ITEM _BILL'!D114 -> 0 | F115: =+'COST_ITEM _BILL'!E114 -> 0
C116: =+'COST_ITEM _BILL'!B115 -> 0 | D116: =+'COST_ITEM _BILL'!C115 -> 0 | E116: =+'COST_ITEM _BILL'!D115 -> 0 | F116: =+'COST_ITEM _BILL'!E115 -> 0
C117: =+'COST_ITEM _BILL'!B116 -> 0 | D117: =+'COST_ITEM _BILL'!C116 -> 0 | E117: =+'COST_ITEM _BILL'!D116 -> 0 | F117: =+'COST_ITEM _BILL'!E116 -> 0
C118: =+'COST_ITEM _BILL'!B117 -> 0 | D118: =+'COST_ITEM _BILL'!C117 -> 0 | E118: =+'COST_ITEM _BILL'!D117 -> 0 | F118: =+'COST_ITEM _BILL'!E117 -> 0
C119: =+'COST_ITEM _BILL'!B118 -> 0 | D119: =+'COST_ITEM _BILL'!C118 -> 0 | E119: =+'COST_ITEM _BILL'!D118 -> 0 | F119: =+'COST_ITEM _BILL'!E118 -> 0
C120: =+'COST_ITEM _BILL'!B119 -> 0 | D120: =+'COST_ITEM _BILL'!C119 -> 0 | E120: =+'COST_ITEM _BILL'!D119 -> 0 | F120: =+'COST_ITEM _BILL'!E119 -> 0
C121: =+'COST_ITEM _BILL'!B120 -> 0 | D121: =+'COST_ITEM _BILL'!C120 -> 0 | E121: =+'COST_ITEM _BILL'!D120 -> 0 | F121: =+'COST_ITEM _BILL'!E120 -> 0
C122: =+'COST_ITEM _BILL'!B121 -> 0 | D122: =+'COST_ITEM _BILL'!C121 -> 0 | E122: =+'COST_ITEM _BILL'!D121 -> 0 | F122: =+'COST_ITEM _BILL'!E121 -> 0
C123: =+'COST_ITEM _BILL'!B122 -> 0 | D123: =+'COST_ITEM _BILL'!C122 -> 0 | E123: =+'COST_ITEM _BILL'!D122 -> 0 | F123: =+'COST_ITEM _BILL'!E122 -> 0
C124: =+'COST_ITEM _BILL'!B123 -> 0 | D124: =+'COST_ITEM _BILL'!C123 -> 0 | E124: =+'COST_ITEM _BILL'!D123 -> 0 | F124: =+'COST_ITEM _BILL'!E123 -> 0
C125: =+'COST_ITEM _BILL'!B124 -> 0 | D125: =+'COST_ITEM _BILL'!C124 -> 0 | E125: =+'COST_ITEM _BILL'!D124 -> 0 | F125: =+'COST_ITEM _BILL'!E124 -> 0
C126: =+'COST_ITEM _BILL'!B125 -> 0 | D126: =+'COST_ITEM _BILL'!C125 -> 0 | E126: =+'COST_ITEM _BILL'!D125 -> 0 | F126: =+'COST_ITEM _BILL'!E125 -> 0
C127: =+'COST_ITEM _BILL'!B126 -> 0 | D127: =+'COST_ITEM _BILL'!C126 -> 0 | E127: =+'COST_ITEM _BILL'!D126 -> 0 | F127: =+'COST_ITEM _BILL'!E126 -> 0
C128: =+'COST_ITEM _BILL'!B127 -> 0 | D128: =+'COST_ITEM _BILL'!C127 -> 0 | E128: =+'COST_ITEM _BILL'!D127 -> 0 | F128: =+'COST_ITEM _BILL'!E127 -> 0
C129: =+'COST_ITEM _BILL'!B128 -> 0 | D129: =+'COST_ITEM _BILL'!C128 -> 0 | E129: =+'COST_ITEM _BILL'!D128 -> 0 | F129: =+'COST_ITEM _BILL'!E128 -> 0
C130: =+'COST_ITEM _BILL'!B129 -> 0 | D130: =+'COST_ITEM _BILL'!C129 -> 0 | E130: =+'COST_ITEM _BILL'!D129 -> 0 | F130: =+'COST_ITEM _BILL'!E129 -> 0
C131: =+'COST_ITEM _BILL'!B130 -> 0 | D131: =+'COST_ITEM _BILL'!C130 -> 0 | E131: =+'COST_ITEM _BILL'!D130 -> 0 | F131: =+'COST_ITEM _BILL'!E130 -> 0
C132: =+'COST_ITEM _BILL'!B131 -> 0 | D132: =+'COST_ITEM _BILL'!C131 -> 0 | E132: =+'COST_ITEM _BILL'!D131 -> 0 | F132: =+'COST_ITEM _BILL'!E131 -> 0
C133: =+'COST_ITEM _BILL'!B132 -> 0 | D133: =+'COST_ITEM _BILL'!C132 -> 0 | E133: =+'COST_ITEM _BILL'!D132 -> 0 | F133: =+'COST_ITEM _BILL'!E132 -> 0
C134: =+'COST_ITEM _BILL'!B133 -> 0 | D134: =+'COST_ITEM _BILL'!C133 -> 0 | E134: =+'COST_ITEM _BILL'!D133 -> 0 | F134: =+'COST_ITEM _BILL'!E133 -> 0
C135: =+'COST_ITEM _BILL'!B134 -> 0 | D135: =+'COST_ITEM _BILL'!C134 -> 0 | E135: =+'COST_ITEM _BILL'!D134 -> 0 | F135: =+'COST_ITEM _BILL'!E134 -> 0
C136: =+'COST_ITEM _BILL'!B135 -> 0 | D136: =+'COST_ITEM _BILL'!C135 -> 0 | E136: =+'COST_ITEM _BILL'!D135 -> 0 | F136: =+'COST_ITEM _BILL'!E135 -> 0
C137: =+'COST_ITEM _BILL'!B136 -> 0 | D137: =+'COST_ITEM _BILL'!C136 -> 0 | E137: =+'COST_ITEM _BILL'!D136 -> 0 | F137: =+'COST_ITEM _BILL'!E136 -> 0
C138: =+'COST_ITEM _BILL'!B137 -> 0 | D138: =+'COST_ITEM _BILL'!C137 -> 0 | E138: =+'COST_ITEM _BILL'!D137 -> 0 | F138: =+'COST_ITEM _BILL'!E137 -> 0
C139: =+'COST_ITEM _BILL'!B138 -> 0 | D139: =+'COST_ITEM _BILL'!C138 -> 0 | E139: =+'COST_ITEM _BILL'!D138 -> 0 | F139: =+'COST_ITEM _BILL'!E138 -> 0
C140: =+'COST_ITEM _BILL'!B139 -> 0 | D140: =+'COST_ITEM _BILL'!C139 -> 0 | E140: =+'COST_ITEM _BILL'!D139 -> 0 | F140: =+'COST_ITEM _BILL'!E139 -> 0
C141: =+'COST_ITEM _BILL'!B140 -> 0 | D141: =+'COST_ITEM _BILL'!C140 -> 0 | E141: =+'COST_ITEM _BILL'!D140 -> 0 | F141: =+'COST_ITEM _BILL'!E140 -> 0
C142: =+'COST_ITEM _BILL'!B141 -> 0 | D142: =+'COST_ITEM _BILL'!C141 -> 0 | E142: =+'COST_ITEM _BILL'!D141 -> 0 | F142: =+'COST_ITEM _BILL'!E141 -> 0
C143: =+'COST_ITEM _BILL'!B142 -> 0 | D143: =+'COST_ITEM _BILL'!C142 -> 0 | E143: =+'COST_ITEM _BILL'!D142 -> 0 | F143: =+'COST_ITEM _BILL'!E142 -> 0
C144: =+'COST_ITEM _BILL'!B143 -> 0 | D144: =+'COST_ITEM _BILL'!C143 -> 0 | E144: =+'COST_ITEM _BILL'!D143 -> 0 | F144: =+'COST_ITEM _BILL'!E143 -> 0
C145: =+'COST_ITEM _BILL'!B144 -> 0 | D145: =+'COST_ITEM _BILL'!C144 -> 0 | E145: =+'COST_ITEM _BILL'!D144 -> 0 | F145: =+'COST_ITEM _BILL'!E144 -> 0
C146: =+'COST_ITEM _BILL'!B145 -> 0 | D146: =+'COST_ITEM _BILL'!C145 -> 0 | E146: =+'COST_ITEM _BILL'!D145 -> 0 | F146: =+'COST_ITEM _BILL'!E145 -> 0
C147: =+'COST_ITEM _BILL'!B146 -> 0 | D147: =+'COST_ITEM _BILL'!C146 -> 0 | E147: =+'COST_ITEM _BILL'!D146 -> 0 | F147: =+'COST_ITEM _BILL'!E146 -> 0
C148: =+'COST_ITEM _BILL'!B147 -> 0 | D148: =+'COST_ITEM _BILL'!C147 -> 0 | E148: =+'COST_ITEM _BILL'!D147 -> 0 | F148: =+'COST_ITEM _BILL'!E147 -> 0
C149: =+'COST_ITEM _BILL'!B148 -> 0 | D149: =+'COST_ITEM _BILL'!C148 -> 0 | E149: =+'COST_ITEM _BILL'!D148 -> 0 | F149: =+'COST_ITEM _BILL'!E148 -> 0
C150: =+'COST_ITEM _BILL'!B149 -> 0 | D150: =+'COST_ITEM _BILL'!C149 -> 0 | E150: =+'COST_ITEM _BILL'!D149 -> 0 | F150: =+'COST_ITEM _BILL'!E149 -> 0
C151: =+'COST_ITEM _BILL'!B150 -> 0 | D151: =+'COST_ITEM _BILL'!C150 -> 0 | E151: =+'COST_ITEM _BILL'!D150 -> 0 | F151: =+'COST_ITEM _BILL'!E150 -> 0
C152: =+'COST_ITEM _BILL'!B151 -> 0 | D152: =+'COST_ITEM _BILL'!C151 -> 0 | E152: =+'COST_ITEM _BILL'!D151 -> 0 | F152: =+'COST_ITEM _BILL'!E151 -> 0
C153: =+'COST_ITEM _BILL'!B152 -> 0 | D153: =+'COST_ITEM _BILL'!C152 -> 0 | E153: =+'COST_ITEM _BILL'!D152 -> 0 | F153: =+'COST_ITEM _BILL'!E152 -> 0
C154: =+'COST_ITEM _BILL'!B153 -> 0 | D154: =+'COST_ITEM _BILL'!C153 -> 0 | E154: =+'COST_ITEM _BILL'!D153 -> 0 | F154: =+'COST_ITEM _BILL'!E153 -> 0
C155: =+'COST_ITEM _BILL'!B154 -> 0 | D155: =+'COST_ITEM _BILL'!C154 -> 0 | E155: =+'COST_ITEM _BILL'!D154 -> 0 | F155: =+'COST_ITEM _BILL'!E154 -> 0
C156: =+'COST_ITEM _BILL'!B155 -> 0 | D156: =+'COST_ITEM _BILL'!C155 -> 0 | E156: =+'COST_ITEM _BILL'!D155 -> 0 | F156: =+'COST_ITEM _BILL'!E155 -> 0
C157: =+'COST_ITEM _BILL'!B156 -> 0 | D157: =+'COST_ITEM _BILL'!C156 -> 0 | E157: =+'COST_ITEM _BILL'!D156 -> 0 | F157: =+'COST_ITEM _BILL'!E156 -> 0
C158: =+'COST_ITEM _BILL'!B157 -> 0 | D158: =+'COST_ITEM _BILL'!C157 -> 0 | E158: =+'COST_ITEM _BILL'!D157 -> 0 | F158: =+'COST_ITEM _BILL'!E157 -> 0
C159: =+'COST_ITEM _BILL'!B158 -> 0 | D159: =+'COST_ITEM _BILL'!C158 -> 0 | E159: =+'COST_ITEM _BILL'!D158 -> 0 | F159: =+'COST_ITEM _BILL'!E158 -> 0
C160: =+'COST_ITEM _BILL'!B159 -> 0 | D160: =+'COST_ITEM _BILL'!C159 -> 0 | E160: =+'COST_ITEM _BILL'!D159 -> 0 | F160: =+'COST_ITEM _BILL'!E159 -> 0
C161: =+'COST_ITEM _BILL'!B160 -> 0 | D161: =+'COST_ITEM _BILL'!C160 -> 0 | E161: =+'COST_ITEM _BILL'!D160 -> 0 | F161: =+'COST_ITEM _BILL'!E160 -> 0
C162: =+'COST_ITEM _BILL'!B161 -> 0 | D162: =+'COST_ITEM _BILL'!C161 -> 0 | E162: =+'COST_ITEM _BILL'!D161 -> 0 | F162: =+'COST_ITEM _BILL'!E161 -> 0
C163: =+'COST_ITEM _BILL'!B162 -> 0 | D163: =+'COST_ITEM _BILL'!C162 -> 0 | E163: =+'COST_ITEM _BILL'!D162 -> 0 | F163: =+'COST_ITEM _BILL'!E162 -> 0
C164: =+'COST_ITEM _BILL'!B163 -> 0 | D164: =+'COST_ITEM _BILL'!C163 -> 0 | E164: =+'COST_ITEM _BILL'!D163 -> 0 | F164: =+'COST_ITEM _BILL'!E163 -> 0
C165: =+'COST_ITEM _BILL'!B164 -> 0 | D165: =+'COST_ITEM _BILL'!C164 -> 0 | E165: =+'COST_ITEM _BILL'!D164 -> 0 | F165: =+'COST_ITEM _BILL'!E164 -> 0
C166: =+'COST_ITEM _BILL'!B165 -> 0 | D166: =+'COST_ITEM _BILL'!C165 -> 0 | E166: =+'COST_ITEM _BILL'!D165 -> 0 | F166: =+'COST_ITEM _BILL'!E165 -> 0
C167: =+'COST_ITEM _BILL'!B166 -> 0 | D167: =+'COST_ITEM _BILL'!C166 -> 0 | E167: =+'COST_ITEM _BILL'!D166 -> 0 | F167: =+'COST_ITEM _BILL'!E166 -> 0
C168: =+'COST_ITEM _BILL'!B167 -> 0 | D168: =+'COST_ITEM _BILL'!C167 -> 0 | E168: =+'COST_ITEM _BILL'!D167 -> 0 | F168: =+'COST_ITEM _BILL'!E167 -> 0
C169: =+'COST_ITEM _BILL'!B168 -> 0 | D169: =+'COST_ITEM _BILL'!C168 -> 0 | E169: =+'COST_ITEM _BILL'!D168 -> 0 | F169: =+'COST_ITEM _BILL'!E168 -> 0
C170: =+'COST_ITEM _BILL'!B169 -> 0 | D170: =+'COST_ITEM _BILL'!C169 -> 0 | E170: =+'COST_ITEM _BILL'!D169 -> 0 | F170: =+'COST_ITEM _BILL'!E169 -> 0
C171: =+'COST_ITEM _BILL'!B170 -> 0 | D171: =+'COST_ITEM _BILL'!C170 -> 0 | E171: =+'COST_ITEM _BILL'!D170 -> 0 | F171: =+'COST_ITEM _BILL'!E170 -> 0
C172: =+'COST_ITEM _BILL'!B171 -> 0 | D172: =+'COST_ITEM _BILL'!C171 -> 0 | E172: =+'COST_ITEM _BILL'!D171 -> 0 | F172: =+'COST_ITEM _BILL'!E171 -> 0
C173: =+'COST_ITEM _BILL'!B172 -> 0 | D173: =+'COST_ITEM _BILL'!C172 -> 0 | E173: =+'COST_ITEM _BILL'!D172 -> 0 | F173: =+'COST_ITEM _BILL'!E172 -> 0
C174: =+'COST_ITEM _BILL'!B173 -> 0 | D174: =+'COST_ITEM _BILL'!C173 -> 0 | E174: =+'COST_ITEM _BILL'!D173 -> 0 | F174: =+'COST_ITEM _BILL'!E173 -> 0
C175: =+'COST_ITEM _BILL'!B174 -> 0 | D175: =+'COST_ITEM _BILL'!C174 -> 0 | E175: =+'COST_ITEM _BILL'!D174 -> 0 | F175: =+'COST_ITEM _BILL'!E174 -> 0
C176: =+'COST_ITEM _BILL'!B175 -> 0 | D176: =+'COST_ITEM _BILL'!C175 -> 0 | E176: =+'COST_ITEM _BILL'!D175 -> 0 | F176: =+'COST_ITEM _BILL'!E175 -> 0
C177: =+'COST_ITEM _BILL'!B176 -> 0 | D177: =+'COST_ITEM _BILL'!C176 -> 0 | E177: =+'COST_ITEM _BILL'!D176 -> 0 | F177: =+'COST_ITEM _BILL'!E176 -> 0
C178: =+'COST_ITEM _BILL'!B177 -> 0 | D178: =+'COST_ITEM _BILL'!C177 -> 0 | E178: =+'COST_ITEM _BILL'!D177 -> 0 | F178: =+'COST_ITEM _BILL'!E177 -> 0
C179: =+'COST_ITEM _BILL'!B178 -> 0 | D179: =+'COST_ITEM _BILL'!C178 -> 0 | E179: =+'COST_ITEM _BILL'!D178 -> 0 | F179: =+'COST_ITEM _BILL'!E178 -> 0
C180: =+'COST_ITEM _BILL'!B179 -> 0 | D180: =+'COST_ITEM _BILL'!C179 -> 0 | E180: =+'COST_ITEM _BILL'!D179 -> 0 | F180: =+'COST_ITEM _BILL'!E179 -> 0
C181: =+'COST_ITEM _BILL'!B180 -> 0 | D181: =+'COST_ITEM _BILL'!C180 -> 0 | E181: =+'COST_ITEM _BILL'!D180 -> 0 | F181: =+'COST_ITEM _BILL'!E180 -> 0
C182: =+'COST_ITEM _BILL'!B181 -> 0 | D182: =+'COST_ITEM _BILL'!C181 -> 0 | E182: =+'COST_ITEM _BILL'!D181 -> 0 | F182: =+'COST_ITEM _BILL'!E181 -> 0
C183: =+'COST_ITEM _BILL'!B182 -> 0 | D183: =+'COST_ITEM _BILL'!C182 -> 0 | E183: =+'COST_ITEM _BILL'!D182 -> 0 | F183: =+'COST_ITEM _BILL'!E182 -> 0
C184: =+'COST_ITEM _BILL'!B183 -> 0 | D184: =+'COST_ITEM _BILL'!C183 -> 0 | E184: =+'COST_ITEM _BILL'!D183 -> 0 | F184: =+'COST_ITEM _BILL'!E183 -> 0
C185: =+'COST_ITEM _BILL'!B184 -> 0 | D185: =+'COST_ITEM _BILL'!C184 -> 0 | E185: =+'COST_ITEM _BILL'!D184 -> 0 | F185: =+'COST_ITEM _BILL'!E184 -> 0
C186: =+'COST_ITEM _BILL'!B185 -> 0 | D186: =+'COST_ITEM _BILL'!C185 -> 0 | E186: =+'COST_ITEM _BILL'!D185 -> 0 | F186: =+'COST_ITEM _BILL'!E185 -> 0
C187: =+'COST_ITEM _BILL'!B186 -> 0 | D187: =+'COST_ITEM _BILL'!C186 -> 0 | E187: =+'COST_ITEM _BILL'!D186 -> 0 | F187: =+'COST_ITEM _BILL'!E186 -> 0
C188: =+'COST_ITEM _BILL'!B187 -> 0 | D188: =+'COST_ITEM _BILL'!C187 -> 0 | E188: =+'COST_ITEM _BILL'!D187 -> 0 | F188: =+'COST_ITEM _BILL'!E187 -> 0
C189: =+'COST_ITEM _BILL'!B188 -> 0 | D189: =+'COST_ITEM _BILL'!C188 -> 0 | E189: =+'COST_ITEM _BILL'!D188 -> 0 | F189: =+'COST_ITEM _BILL'!E188 -> 0
C190: =+'COST_ITEM _BILL'!B189 -> 0 | D190: =+'COST_ITEM _BILL'!C189 -> 0 | E190: =+'COST_ITEM _BILL'!D189 -> 0 | F190: =+'COST_ITEM _BILL'!E189 -> 0
C191: =+'COST_ITEM _BILL'!B190 -> 0 | D191: =+'COST_ITEM _BILL'!C190 -> 0 | E191: =+'COST_ITEM _BILL'!D190 -> 0 | F191: =+'COST_ITEM _BILL'!E190 -> 0
C192: =+'COST_ITEM _BILL'!B191 -> 0 | D192: =+'COST_ITEM _BILL'!C191 -> 0 | E192: =+'COST_ITEM _BILL'!D191 -> 0 | F192: =+'COST_ITEM _BILL'!E191 -> 0
C193: =+'COST_ITEM _BILL'!B192 -> 0 | D193: =+'COST_ITEM _BILL'!C192 -> 0 | E193: =+'COST_ITEM _BILL'!D192 -> 0 | F193: =+'COST_ITEM _BILL'!E192 -> 0
C194: =+'COST_ITEM _BILL'!B193 -> 0 | D194: =+'COST_ITEM _BILL'!C193 -> 0 | E194: =+'COST_ITEM _BILL'!D193 -> 0 | F194: =+'COST_ITEM _BILL'!E193 -> 0
C195: =+'COST_ITEM _BILL'!B194 -> 0 | D195: =+'COST_ITEM _BILL'!C194 -> 0 | E195: =+'COST_ITEM _BILL'!D194 -> 0 | F195: =+'COST_ITEM _BILL'!E194 -> 0
C196: =+'COST_ITEM _BILL'!B195 -> 0 | D196: =+'COST_ITEM _BILL'!C195 -> 0 | E196: =+'COST_ITEM _BILL'!D195 -> 0 | F196: =+'COST_ITEM _BILL'!E195 -> 0
C197: =+'COST_ITEM _BILL'!B196 -> 0 | D197: =+'COST_ITEM _BILL'!C196 -> 0 | E197: =+'COST_ITEM _BILL'!D196 -> 0 | F197: =+'COST_ITEM _BILL'!E196 -> 0
C198: =+'COST_ITEM _BILL'!B197 -> 0 | D198: =+'COST_ITEM _BILL'!C197 -> 0 | E198: =+'COST_ITEM _BILL'!D197 -> 0 | F198: =+'COST_ITEM _BILL'!E197 -> 0
C199: =+'COST_ITEM _BILL'!B198 -> 0 | D199: =+'COST_ITEM _BILL'!C198 -> 0 | E199: =+'COST_ITEM _BILL'!D198 -> 0 | F199: =+'COST_ITEM _BILL'!E198 -> 0
C200: =+'COST_ITEM _BILL'!B199 -> 0 | D200: =+'COST_ITEM _BILL'!C199 -> 0 | E200: =+'COST_ITEM _BILL'!D199 -> 0 | F200: =+'COST_ITEM _BILL'!E199 -> 0
C201: =+'COST_ITEM _BILL'!B200 -> 0 | D201: =+'COST_ITEM _BILL'!C200 -> 0 | E201: =+'COST_ITEM _BILL'!D200 -> 0 | F201: =+'COST_ITEM _BILL'!E200 -> 0
C202: =+'COST_ITEM _BILL'!B201 -> 0 | D202: =+'COST_ITEM _BILL'!C201 -> 0 | E202: =+'COST_ITEM _BILL'!D201 -> 0 | F202: =+'COST_ITEM _BILL'!E201 -> 0
... 492 more rows

Sheet bill
D2: بيان بالتوريدات اليومية
A4: الشهر | B4: م | C4: التاريخ | D4: اذن الإضافة | E4: كود المورد | F4: المورد | G4: الكود | H4: الصنف | I4: المخزن | J4: الوحدة | K4: الكمية | L4: السعر | M4: القيمة
A5: =IF($E5<>"",TEXT($C5,"MMMM"),"") -> يناير | B5: =IF(C5<>"",1,"") -> 1 | C5: 2025-01-01 | D5: 251 | E5: 2001 | F5: =IFERROR(VLOOKUP($E5,list!$H$4:$K$8000,2,0),"") -> نقدا | G5: 10001 | H5: =IFERROR(VLOOKUP($G5,list!$C$4:$F$11000,2,0),"") -> حديد _ 12مم | I5: =IFERROR(VLOOKUP($G5,list!$C$4:$F$11000,3,0),"") -> مواد البناء | J5: =IFERROR(VLOOKUP($G5,list!$C$4:$F$11000,4,0),"") -> طن | K5: 500 | L5: 50 | M5: =+K5*L5 -> 25000
A6: =IF($E6<>"",TEXT($C6,"MMMM"),"") -> مارس | B6: =IF(C6<>"",1+B5,"") -> 2 | C6: 2025-03-01 | D6: 252 | E6: 2001 | F6: =IFERROR(VLOOKUP($E6,list!$H$4:$K$8000,2,0),"") -> نقدا | G6: 20001 | H6: =IFERROR(VLOOKUP($G6,list!$C$4:$F$11000,2,0),"") -> ماسورة 4بوصة pvc | I6: =IFERROR(VLOOKUP($G6,list!$C$4:$F$11000,3,0),"") -> السباكة والصرف | J6: =IFERROR(VLOOKUP($G6,list!$C$4:$F$11000,4,0),"") -> بالمتر | K6: 600 | L6: 60 | M6: =+K6*L6 -> 36000
A7: فبراير | B7: =IF(C7<>"",1+B6,"") -> 3 | C7: 2025-02-01 | D7: 253 | E7: 2001 | F7: =IFERROR(VLOOKUP($E7,list!$H$4:$K$8000,2,0),"") -> نقدا | G7: 30001 | H7: =IFERROR(VLOOKUP($G7,list!$C$4:$F$11000,2,0),"") -> كابل 3*4 ترموبلاست | I7: =IFERROR(VLOOKUP($G7,list!$C$4:$F$11000,3,0),"") -> كهرباء | J7: =IFERROR(VLOOKUP($G7,list!$C$4:$F$11000,4,0),"") -> بالمتر | K7: 100 | L7: 120 | M7: 12000
A8: أبريل | B8: 4 | C8: 2025-04-01 | D8: 254 | E8: 2001 | F8: =IFERROR(VLOOKUP($E8,list!$H$4:$K$8000,2,0),"") -> نقدا | G8: 40001 | H8: =IFERROR(VLOOKUP($G8,list!$C$4:$F$11000,2,0),"") -> بوية صفراء | I8: =IFERROR(VLOOKUP($G8,list!$C$4:$F$11000,3,0),"") -> الدهانات | J8: =IFERROR(VLOOKUP($G8,list!$C$4:$F$11000,4,0),"") -> 5لتر | K8: 300 | L8: 60 | M8: 18000
F9: =IFERROR(VLOOKUP($E9,list!$H$4:$K$8000,2,0),"") ->  | H9: =IFERROR(VLOOKUP($G9,list!$C$4:$F$11000,2,0),"") -> 0 | I9: =IFERROR(VLOOKUP($G9,list!$C$4:$F$11000,3,0),"") -> 0 | J9: =IFERROR(VLOOKUP($G9,list!$C$4:$F$11000,4,0),"") -> 0 | M9: 0
F10: =IFERROR(VLOOKUP($E10,list!$H$4:$K$8000,2,0),"") ->  | H10: =IFERROR(VLOOKUP($G10,list!$C$4:$F$11000,2,0),"") -> 0 | I10: =IFERROR(VLOOKUP($G10,list!$C$4:$F$11000,3,0),"") -> 0 | J10: =IFERROR(VLOOKUP($G10,list!$C$4:$F$11000,4,0),"") -> 0 | M10: 0
F11: =IFERROR(VLOOKUP($E11,list!$H$4:$K$8000,2,0),"") ->  | H11: =IFERROR(VLOOKUP($G11,list!$C$4:$F$11000,2,0),"") -> 0 | I11: =IFERROR(VLOOKUP($G11,list!$C$4:$F$11000,3,0),"") -> 0 | J11: =IFERROR(VLOOKUP($G11,list!$C$4:$F$11000,4,0),"") -> 0 | M11: 0
F12: =IFERROR(VLOOKUP($E12,list!$H$4:$K$8000,2,0),"") ->  | H12: =IFERROR(VLOOKUP($G12,list!$C$4:$F$11000,2,0),"") -> 0 | I12: =IFERROR(VLOOKUP($G12,list!$C$4:$F$11000,3,0),"") -> 0 | J12: =IFERROR(VLOOKUP($G12,list!$C$4:$F$11000,4,0),"") -> 0 | M12: 0
F13: =IFERROR(VLOOKUP($E13,list!$H$4:$K$8000,2,0),"") ->  | H13: =IFERROR(VLOOKUP($G13,list!$C$4:$F$11000,2,0),"") -> 0 | I13: =IFERROR(VLOOKUP($G13,list!$C$4:$F$11000,3,0),"") -> 0 | J13: =IFERROR(VLOOKUP($G13,list!$C$4:$F$11000,4,0),"") -> 0 | M13: 0
F14: =IFERROR(VLOOKUP($E14,list!$H$4:$K$8000,2,0),"") ->  | H14: =IFERROR(VLOOKUP($G14,list!$C$4:$F$11000,2,0),"") -> 0 | I14: =IFERROR(VLOOKUP($G14,list!$C$4:$F$11000,3,0),"") -> 0 | J14: =IFERROR(VLOOKUP($G14,list!$C$4:$F$11000,4,0),"") -> 0 | M14: 0
F15: =IFERROR(VLOOKUP($E15,list!$H$4:$K$8000,2,0),"") ->  | H15: =IFERROR(VLOOKUP($G15,list!$C$4:$F$11000,2,0),"") -> 0 | I15: =IFERROR(VLOOKUP($G15,list!$C$4:$F$11000,3,0),"") -> 0 | J15: =IFERROR(VLOOKUP($G15,list!$C$4:$F$11000,4,0),"") -> 0 | M15: 0
F16: =IFERROR(VLOOKUP($E16,list!$H$4:$K$8000,2,0),"") ->  | H16: =IFERROR(VLOOKUP($G16,list!$C$4:$F$11000,2,0),"") -> 0 | I16: =IFERROR(VLOOKUP($G16,list!$C$4:$F$11000,3,0),"") -> 0 | J16: =IFERROR(VLOOKUP($G16,list!$C$4:$F$11000,4,0),"") -> 0 | M16: 0
F17: =IFERROR(VLOOKUP($E17,list!$H$4:$K$8000,2,0),"") ->  | H17: =IFERROR(VLOOKUP($G17,list!$C$4:$F$11000,2,0),"") -> 0 | I17: =IFERROR(VLOOKUP($G17,list!$C$4:$F$11000,3,0),"") -> 0 | J17: =IFERROR(VLOOKUP($G17,list!$C$4:$F$11000,4,0),"") -> 0 | M17: 0
F18: =IFERROR(VLOOKUP($E18,list!$H$4:$K$8000,2,0),"") ->  | H18: =IFERROR(VLOOKUP($G18,list!$C$4:$F$11000,2,0),"") -> 0 | I18: =IFERROR(VLOOKUP($G18,list!$C$4:$F$11000,3,0),"") -> 0 | J18: =IFERROR(VLOOKUP($G18,list!$C$4:$F$11000,4,0),"") -> 0 | M18: 0
F19: =IFERROR(VLOOKUP($E19,list!$H$4:$K$8000,2,0),"") ->  | H19: =IFERROR(VLOOKUP($G19,list!$C$4:$F$11000,2,0),"") -> 0 | I19: =IFERROR(VLOOKUP($G19,list!$C$4:$F$11000,3,0),"") -> 0 | J19: =IFERROR(VLOOKUP($G19,list!$C$4:$F$11000,4,0),"") -> 0 | M19: 0
F20: =IFERROR(VLOOKUP($E20,list!$H$4:$K$8000,2,0),"") ->  | H20: =IFERROR(VLOOKUP($G20,list!$C$4:$F$11000,2,0),"") -> 0 | I20: =IFERROR(VLOOKUP($G20,list!$C$4:$F$11000,3,0),"") -> 0 | J20: =IFERROR(VLOOKUP($G20,list!$C$4:$F$11000,4,0),"") -> 0 | M20: 0
F21: =IFERROR(VLOOKUP($E21,list!$H$4:$K$8000,2,0),"") ->  | H21: =IFERROR(VLOOKUP($G21,list!$C$4:$F$11000,2,0),"") -> 0 | I21: =IFERROR(VLOOKUP($G21,list!$C$4:$F$11000,3,0),"") -> 0 | J21: =IFERROR(VLOOKUP($G21,list!$C$4:$F$11000,4,0),"") -> 0 | M21: 0
F22: =IFERROR(VLOOKUP($E22,list!$H$4:$K$8000,2,0),"") ->  | H22: =IFERROR(VLOOKUP($G22,list!$C$4:$F$11000,2,0),"") -> 0 | I22: =IFERROR(VLOOKUP($G22,list!$C$4:$F$11000,3,0),"") -> 0 | J22: =IFERROR(VLOOKUP($G22,list!$C$4:$F$11000,4,0),"") -> 0 | M22: 0
F23: =IFERROR(VLOOKUP($E23,list!$H$4:$K$8000,2,0),"") ->  | H23: =IFERROR(VLOOKUP($G23,list!$C$4:$F$11000,2,0),"") -> 0 | I23: =IFERROR(VLOOKUP($G23,list!$C$4:$F$11000,3,0),"") -> 0 | J23: =IFERROR(VLOOKUP($G23,list!$C$4:$F$11000,4,0),"") -> 0 | M23: 0
F24: =IFERROR(VLOOKUP($E24,list!$H$4:$K$8000,2,0),"") ->  | H24: =IFERROR(VLOOKUP($G24,list!$C$4:$F$11000,2,0),"") -> 0 | I24: =IFERROR(VLOOKUP($G24,list!$C$4:$F$11000,3,0),"") -> 0 | J24: =IFERROR(VLOOKUP($G24,list!$C$4:$F$11000,4,0),"") -> 0 | M24: 0
F25: =IFERROR(VLOOKUP($E25,list!$H$4:$K$8000,2,0),"") ->  | H25: =IFERROR(VLOOKUP($G25,list!$C$4:$F$11000,2,0),"") -> 0 | I25: =IFERROR(VLOOKUP($G25,list!$C$4:$F$11000,3,0),"") -> 0 | J25: =IFERROR(VLOOKUP($G25,list!$C$4:$F$11000,4,0),"") -> 0 | M25: 0
F26: =IFERROR(VLOOKUP($E26,list!$H$4:$K$8000,2,0),"") ->  | H26: =IFERROR(VLOOKUP($G26,list!$C$4:$F$11000,2,0),"") -> 0 | I26: =IFERROR(VLOOKUP($G26,list!$C$4:$F$11000,3,0),"") -> 0 | J26: =IFERROR(VLOOKUP($G26,list!$C$4:$F$11000,4,0),"") -> 0 | M26: 0
F27: =IFERROR(VLOOKUP($E27,list!$H$4:$K$8000,2,0),"") ->  | H27: =IFERROR(VLOOKUP($G27,list!$C$4:$F$11000,2,0),"") -> 0 | I27: =IFERROR(VLOOKUP($G27,list!$C$4:$F$11000,3,0),"") -> 0 | J27: =IFERROR(VLOOKUP($G27,list!$C$4:$F$11000,4,0),"") -> 0 | M27: 0
F28: =IFERROR(VLOOKUP($E28,list!$H$4:$K$8000,2,0),"") ->  | H28: =IFERROR(VLOOKUP($G28,list!$C$4:$F$11000,2,0),"") -> 0 | I28: =IFERROR(VLOOKUP($G28,list!$C$4:$F$11000,3,0),"") -> 0 | J28: =IFERROR(VLOOKUP($G28,list!$C$4:$F$11000,4,0),"") -> 0 | M28: 0
F29: =IFERROR(VLOOKUP($E29,list!$H$4:$K$8000,2,0),"") ->  | H29: =IFERROR(VLOOKUP($G29,list!$C$4:$F$11000,2,0),"") -> 0 | I29: =IFERROR(VLOOKUP($G29,list!$C$4:$F$11000,3,0),"") -> 0 | J29: =IFERROR(VLOOKUP($G29,list!$C$4:$F$11000,4,0),"") -> 0 | M29: 0
F30: =IFERROR(VLOOKUP($E30,list!$H$4:$K$8000,2,0),"") ->  | H30: =IFERROR(VLOOKUP($G30,list!$C$4:$F$11000,2,0),"") -> 0 | I30: =IFERROR(VLOOKUP($G30,list!$C$4:$F$11000,3,0),"") -> 0 | J30: =IFERROR(VLOOKUP($G30,list!$C$4:$F$11000,4,0),"") -> 0 | M30: 0
F31: =IFERROR(VLOOKUP($E31,list!$H$4:$K$8000,2,0),"") ->  | H31: =IFERROR(VLOOKUP($G31,list!$C$4:$F$11000,2,0),"") -> 0 | I31: =IFERROR(VLOOKUP($G31,list!$C$4:$F$11000,3,0),"") -> 0 | J31: =IFERROR(VLOOKUP($G31,list!$C$4:$F$11000,4,0),"") -> 0 | M31: 0
F32: =IFERROR(VLOOKUP($E32,list!$H$4:$K$8000,2,0),"") ->  | H32: =IFERROR(VLOOKUP($G32,list!$C$4:$F$11000,2,0),"") -> 0 | I32: =IFERROR(VLOOKUP($G32,list!$C$4:$F$11000,3,0),"") -> 0 | J32: =IFERROR(VLOOKUP($G32,list!$C$4:$F$11000,4,0),"") -> 0 | M32: 0
F33: =IFERROR(VLOOKUP($E33,list!$H$4:$K$8000,2,0),"") ->  | H33: =IFERROR(VLOOKUP($G33,list!$C$4:$F$11000,2,0),"") -> 0 | I33: =IFERROR(VLOOKUP($G33,list!$C$4:$F$11000,3,0),"") -> 0 | J33: =IFERROR(VLOOKUP($G33,list!$C$4:$F$11000,4,0),"") -> 0 | M33: 0
F34: =IFERROR(VLOOKUP($E34,list!$H$4:$K$8000,2,0),"") ->  | H34: =IFERROR(VLOOKUP($G34,list!$C$4:$F$11000,2,0),"") -> 0 | I34: =IFERROR(VLOOKUP($G34,list!$C$4:$F$11000,3,0),"") -> 0 | J34: =IFERROR(VLOOKUP($G34,list!$C$4:$F$11000,4,0),"") -> 0 | M34: 0
F35: =IFERROR(VLOOKUP($E35,list!$H$4:$K$8000,2,0),"") ->  | H35: =IFERROR(VLOOKUP($G35,list!$C$4:$F$11000,2,0),"") -> 0 | I35: =IFERROR(VLOOKUP($G35,list!$C$4:$F$11000,3,0),"") -> 0 | J35: =IFERROR(VLOOKUP($G35,list!$C$4:$F$11000,4,0),"") -> 0 | M35: 0
F36: =IFERROR(VLOOKUP($E36,list!$H$4:$K$8000,2,0),"") ->  | H36: =IFERROR(VLOOKUP($G36,list!$C$4:$F$11000,2,0),"") -> 0 | I36: =IFERROR(VLOOKUP($G36,list!$C$4:$F$11000,3,0),"") -> 0 | J36: =IFERROR(VLOOKUP($G36,list!$C$4:$F$11000,4,0),"") -> 0 | M36: 0
F37: =IFERROR(VLOOKUP($E37,list!$H$4:$K$8000,2,0),"") ->  | H37: =IFERROR(VLOOKUP($G37,list!$C$4:$F$11000,2,0),"") -> 0 | I37: =IFERROR(VLOOKUP($G37,list!$C$4:$F$11000,3,0),"") -> 0 | J37: =IFERROR(VLOOKUP($G37,list!$C$4:$F$11000,4,0),"") -> 0 | M37: 0
F38: =IFERROR(VLOOKUP($E38,list!$H$4:$K$8000,2,0),"") ->  | H38: =IFERROR(VLOOKUP($G38,list!$C$4:$F$11000,2,0),"") -> 0 | I38: =IFERROR(VLOOKUP($G38,list!$C$4:$F$11000,3,0),"") -> 0 | J38: =IFERROR(VLOOKUP($G38,list!$C$4:$F$11000,4,0),"") -> 0 | M38: 0
F39: =IFERROR(VLOOKUP($E39,list!$H$4:$K$8000,2,0),"") ->  | H39: =IFERROR(VLOOKUP($G39,list!$C$4:$F$11000,2,0),"") -> 0 | I39: =IFERROR(VLOOKUP($G39,list!$C$4:$F$11000,3,0),"") -> 0 | J39: =IFERROR(VLOOKUP($G39,list!$C$4:$F$11000,4,0),"") -> 0 | M39: 0
F40: =IFERROR(VLOOKUP($E40,list!$H$4:$K$8000,2,0),"") ->  | H40: =IFERROR(VLOOKUP($G40,list!$C$4:$F$11000,2,0),"") -> 0 | I40: =IFERROR(VLOOKUP($G40,list!$C$4:$F$11000,3,0),"") -> 0 | J40: =IFERROR(VLOOKUP($G40,list!$C$4:$F$11000,4,0),"") -> 0 | M40: 0
F41: =IFERROR(VLOOKUP($E41,list!$H$4:$K$8000,2,0),"") ->  | H41: =IFERROR(VLOOKUP($G41,list!$C$4:$F$11000,2,0),"") -> 0 | I41: =IFERROR(VLOOKUP($G41,list!$C$4:$F$11000,3,0),"") -> 0 | J41: =IFERROR(VLOOKUP($G41,list!$C$4:$F$11000,4,0),"") -> 0 | M41: 0
F42: =IFERROR(VLOOKUP($E42,list!$H$4:$K$8000,2,0),"") ->  | H42: =IFERROR(VLOOKUP($G42,list!$C$4:$F$11000,2,0),"") -> 0 | I42: =IFERROR(VLOOKUP($G42,list!$C$4:$F$11000,3,0),"") -> 0 | J42: =IFERROR(VLOOKUP($G42,list!$C$4:$F$11000,4,0),"") -> 0 | M42: 0
F43: =IFERROR(VLOOKUP($E43,list!$H$4:$K$8000,2,0),"") ->  | H43: =IFERROR(VLOOKUP($G43,list!$C$4:$F$11000,2,0),"") -> 0 | I43: =IFERROR(VLOOKUP($G43,list!$C$4:$F$11000,3,0),"") -> 0 | J43: =IFERROR(VLOOKUP($G43,list!$C$4:$F$11000,4,0),"") -> 0 | M43: 0
F44: =IFERROR(VLOOKUP($E44,list!$H$4:$K$8000,2,0),"") ->  | H44: =IFERROR(VLOOKUP($G44,list!$C$4:$F$11000,2,0),"") -> 0 | I44: =IFERROR(VLOOKUP($G44,list!$C$4:$F$11000,3,0),"") -> 0 | J44: =IFERROR(VLOOKUP($G44,list!$C$4:$F$11000,4,0),"") -> 0 | M44: 0
F45: =IFERROR(VLOOKUP($E45,list!$H$4:$K$8000,2,0),"") ->  | H45: =IFERROR(VLOOKUP($G45,list!$C$4:$F$11000,2,0),"") -> 0 | I45: =IFERROR(VLOOKUP($G45,list!$C$4:$F$11000,3,0),"") -> 0 | J45: =IFERROR(VLOOKUP($G45,list!$C$4:$F$11000,4,0),"") -> 0 | M45: 0
F46: =IFERROR(VLOOKUP($E46,list!$H$4:$K$8000,2,0),"") ->  | H46: =IFERROR(VLOOKUP($G46,list!$C$4:$F$11000,2,0),"") -> 0 | I46: =IFERROR(VLOOKUP($G46,list!$C$4:$F$11000,3,0),"") -> 0 | J46: =IFERROR(VLOOKUP($G46,list!$C$4:$F$11000,4,0),"") -> 0 | M46: 0
F47: =IFERROR(VLOOKUP($E47,list!$H$4:$K$8000,2,0),"") ->  | H47: =IFERROR(VLOOKUP($G47,list!$C$4:$F$11000,2,0),"") -> 0 | I47: =IFERROR(VLOOKUP($G47,list!$C$4:$F$11000,3,0),"") -> 0 | J47: =IFERROR(VLOOKUP($G47,list!$C$4:$F$11000,4,0),"") -> 0 | M47: 0
F48: =IFERROR(VLOOKUP($E48,list!$H$4:$K$8000,2,0),"") ->  | H48: =IFERROR(VLOOKUP($G48,list!$C$4:$F$11000,2,0),"") -> 0 | I48: =IFERROR(VLOOKUP($G48,list!$C$4:$F$11000,3,0),"") -> 0 | J48: =IFERROR(VLOOKUP($G48,list!$C$4:$F$11000,4,0),"") -> 0 | M48: 0
F49: =IFERROR(VLOOKUP($E49,list!$H$4:$K$8000,2,0),"") ->  | H49: =IFERROR(VLOOKUP($G49,list!$C$4:$F$11000,2,0),"") -> 0 | I49: =IFERROR(VLOOKUP($G49,list!$C$4:$F$11000,3,0),"") -> 0 | J49: =IFERROR(VLOOKUP($G49,list!$C$4:$F$11000,4,0),"") -> 0 | M49: 0
F50: =IFERROR(VLOOKUP($E50,list!$H$4:$K$8000,2,0),"") ->  | H50: =IFERROR(VLOOKUP($G50,list!$C$4:$F$11000,2,0),"") -> 0 | I50: =IFERROR(VLOOKUP($G50,list!$C$4:$F$11000,3,0),"") -> 0 | J50: =IFERROR(VLOOKUP($G50,list!$C$4:$F$11000,4,0),"") -> 0 | M50: 0
F51: =IFERROR(VLOOKUP($E51,list!$H$4:$K$8000,2,0),"") ->  | H51: =IFERROR(VLOOKUP($G51,list!$C$4:$F$11000,2,0),"") -> 0 | I51: =IFERROR(VLOOKUP($G51,list!$C$4:$F$11000,3,0),"") -> 0 | J51: =IFERROR(VLOOKUP($G51,list!$C$4:$F$11000,4,0),"") -> 0 | M51: 0
F52: =IFERROR(VLOOKUP($E52,list!$H$4:$K$8000,2,0),"") ->  | H52: =IFERROR(VLOOKUP($G52,list!$C$4:$F$11000,2,0),"") -> 0 | I52: =IFERROR(VLOOKUP($G52,list!$C$4:$F$11000,3,0),"") -> 0 | J52: =IFERROR(VLOOKUP($G52,list!$C$4:$F$11000,4,0),"") -> 0 | M52: 0
F53: =IFERROR(VLOOKUP($E53,list!$H$4:$K$8000,2,0),"") ->  | H53: =IFERROR(VLOOKUP($G53,list!$C$4:$F$11000,2,0),"") -> 0 | I53: =IFERROR(VLOOKUP($G53,list!$C$4:$F$11000,3,0),"") -> 0 | J53: =IFERROR(VLOOKUP($G53,list!$C$4:$F$11000,4,0),"") -> 0 | M53: 0
F54: =IFERROR(VLOOKUP($E54,list!$H$4:$K$8000,2,0),"") ->  | H54: =IFERROR(VLOOKUP($G54,list!$C$4:$F$11000,2,0),"") -> 0 | I54: =IFERROR(VLOOKUP($G54,list!$C$4:$F$11000,3,0),"") -> 0 | J54: =IFERROR(VLOOKUP($G54,list!$C$4:$F$11000,4,0),"") -> 0 | M54: 0
F55: =IFERROR(VLOOKUP($E55,list!$H$4:$K$8000,2,0),"") ->  | H55: =IFERROR(VLOOKUP($G55,list!$C$4:$F$11000,2,0),"") -> 0 | I55: =IFERROR(VLOOKUP($G55,list!$C$4:$F$11000,3,0),"") -> 0 | J55: =IFERROR(VLOOKUP($G55,list!$C$4:$F$11000,4,0),"") -> 0 | M55: 0
F56: =IFERROR(VLOOKUP($E56,list!$H$4:$K$8000,2,0),"") ->  | H56: =IFERROR(VLOOKUP($G56,list!$C$4:$F$11000,2,0),"") -> 0 | I56: =IFERROR(VLOOKUP($G56,list!$C$4:$F$11000,3,0),"") -> 0 | J56: =IFERROR(VLOOKUP($G56,list!$C$4:$F$11000,4,0),"") -> 0 | M56: 0
F57: =IFERROR(VLOOKUP($E57,list!$H$4:$K$8000,2,0),"") ->  | H57: =IFERROR(VLOOKUP($G57,list!$C$4:$F$11000,2,0),"") -> 0 | I57: =IFERROR(VLOOKUP($G57,list!$C$4:$F$11000,3,0),"") -> 0 | J57: =IFERROR(VLOOKUP($G57,list!$C$4:$F$11000,4,0),"") -> 0 | M57: 0
F58: =IFERROR(VLOOKUP($E58,list!$H$4:$K$8000,2,0),"") ->  | H58: =IFERROR(VLOOKUP($G58,list!$C$4:$F$11000,2,0),"") -> 0 | I58: =IFERROR(VLOOKUP($G58,list!$C$4:$F$11000,3,0),"") -> 0 | J58: =IFERROR(VLOOKUP($G58,list!$C$4:$F$11000,4,0),"") -> 0 | M58: 0
F59: =IFERROR(VLOOKUP($E59,list!$H$4:$K$8000,2,0),"") ->  | H59: =IFERROR(VLOOKUP($G59,list!$C$4:$F$11000,2,0),"") -> 0 | I59: =IFERROR(VLOOKUP($G59,list!$C$4:$F$11000,3,0),"") -> 0 | J59: =IFERROR(VLOOKUP($G59,list!$C$4:$F$11000,4,0),"") -> 0 | M59: 0
F60: =IFERROR(VLOOKUP($E60,list!$H$4:$K$8000,2,0),"") ->  | H60: =IFERROR(VLOOKUP($G60,list!$C$4:$F$11000,2,0),"") -> 0 | I60: =IFERROR(VLOOKUP($G60,list!$C$4:$F$11000,3,0),"") -> 0 | J60: =IFERROR(VLOOKUP($G60,list!$C$4:$F$11000,4,0),"") -> 0 | M60: 0
F61: =IFERROR(VLOOKUP($E61,list!$H$4:$K$8000,2,0),"") ->  | H61: =IFERROR(VLOOKUP($G61,list!$C$4:$F$11000,2,0),"") -> 0 | I61: =IFERROR(VLOOKUP($G61,list!$C$4:$F$11000,3,0),"") -> 0 | J61: =IFERROR(VLOOKUP($G61,list!$C$4:$F$11000,4,0),"") -> 0 | M61: 0
F62: =IFERROR(VLOOKUP($E62,list!$H$4:$K$8000,2,0),"") ->  | H62: =IFERROR(VLOOKUP($G62,list!$C$4:$F$11000,2,0),"") -> 0 | I62: =IFERROR(VLOOKUP($G62,list!$C$4:$F$11000,3,0),"") -> 0 | J62: =IFERROR(VLOOKUP($G62,list!$C$4:$F$11000,4,0),"") -> 0 | M62: 0
F63: =IFERROR(VLOOKUP($E63,list!$H$4:$K$8000,2,0),"") ->  | H63: =IFERROR(VLOOKUP($G63,list!$C$4:$F$11000,2,0),"") -> 0 | I63: =IFERROR(VLOOKUP($G63,list!$C$4:$F$11000,3,0),"") -> 0 | J63: =IFERROR(VLOOKUP($G63,list!$C$4:$F$11000,4,0),"") -> 0 | M63: 0
F64: =IFERROR(VLOOKUP($E64,list!$H$4:$K$8000,2,0),"") ->  | H64: =IFERROR(VLOOKUP($G64,list!$C$4:$F$11000,2,0),"") -> 0 | I64: =IFERROR(VLOOKUP($G64,list!$C$4:$F$11000,3,0),"") -> 0 | J64: =IFERROR(VLOOKUP($G64,list!$C$4:$F$11000,4,0),"") -> 0 | M64: 0
F65: =IFERROR(VLOOKUP($E65,list!$H$4:$K$8000,2,0),"") ->  | H65: =IFERROR(VLOOKUP($G65,list!$C$4:$F$11000,2,0),"") -> 0 | I65: =IFERROR(VLOOKUP($G65,list!$C$4:$F$11000,3,0),"") -> 0 | J65: =IFERROR(VLOOKUP($G65,list!$C$4:$F$11000,4,0),"") -> 0 | M65: 0
F66: =IFERROR(VLOOKUP($E66,list!$H$4:$K$8000,2,0),"") ->  | H66: =IFERROR(VLOOKUP($G66,list!$C$4:$F$11000,2,0),"") -> 0 | I66: =IFERROR(VLOOKUP($G66,list!$C$4:$F$11000,3,0),"") -> 0 | J66: =IFERROR(VLOOKUP($G66,list!$C$4:$F$11000,4,0),"") -> 0 | M66: 0
F67: =IFERROR(VLOOKUP($E67,list!$H$4:$K$8000,2,0),"") ->  | H67: =IFERROR(VLOOKUP($G67,list!$C$4:$F$11000,2,0),"") -> 0 | I67: =IFERROR(VLOOKUP($G67,list!$C$4:$F$11000,3,0),"") -> 0 | J67: =IFERROR(VLOOKUP($G67,list!$C$4:$F$11000,4,0),"") -> 0 | M67: 0
F68: =IFERROR(VLOOKUP($E68,list!$H$4:$K$8000,2,0),"") ->  | H68: =IFERROR(VLOOKUP($G68,list!$C$4:$F$11000,2,0),"") -> 0 | I68: =IFERROR(VLOOKUP($G68,list!$C$4:$F$11000,3,0),"") -> 0 | J68: =IFERROR(VLOOKUP($G68,list!$C$4:$F$11000,4,0),"") -> 0 | M68: 0
F69: =IFERROR(VLOOKUP($E69,list!$H$4:$K$8000,2,0),"") ->  | H69: =IFERROR(VLOOKUP($G69,list!$C$4:$F$11000,2,0),"") -> 0 | I69: =IFERROR(VLOOKUP($G69,list!$C$4:$F$11000,3,0),"") -> 0 | J69: =IFERROR(VLOOKUP($G69,list!$C$4:$F$11000,4,0),"") -> 0 | M69: 0
A70: =IF($E70<>"",TEXT($C70,"MMMM"),"") ->  | F70: =IFERROR(VLOOKUP($E70,list!$H$4:$K$8000,2,0),"") ->  | H70: =IFERROR(VLOOKUP($G70,list!$C$4:$F$11000,2,0),"") -> 0 | I70: =IFERROR(VLOOKUP($G70,list!$C$4:$F$11000,3,0),"") -> 0 | J70: =IFERROR(VLOOKUP($G70,list!$C$4:$F$11000,4,0),"") -> 0 | M70: =+K70*L70 -> 0
B71: =IF(C71<>"",1+B70,"") ->  | F71: =IFERROR(VLOOKUP($E71,list!$H$4:$K$8000,2,0),"") ->  | H71: =IFERROR(VLOOKUP($G71,list!$C$4:$F$11000,2,0),"") -> 0 | I71: =IFERROR(VLOOKUP($G71,list!$C$4:$F$11000,3,0),"") -> 0 | J71: =IFERROR(VLOOKUP($G71,list!$C$4:$F$11000,4,0),"") -> 0 | M71: 0
F72: =IFERROR(VLOOKUP($E72,list!$H$4:$K$8000,2,0),"") ->  | H72: =IFERROR(VLOOKUP($G72,list!$C$4:$F$11000,2,0),"") -> 0 | I72: =IFERROR(VLOOKUP($G72,list!$C$4:$F$11000,3,0),"") -> 0 | J72: =IFERROR(VLOOKUP($G72,list!$C$4:$F$11000,4,0),"") -> 0 | M72: 0
F73: =IFERROR(VLOOKUP($E73,list!$H$4:$K$8000,2,0),"") ->  | H73: =IFERROR(VLOOKUP($G73,list!$C$4:$F$11000,2,0),"") -> 0 | I73: =IFERROR(VLOOKUP($G73,list!$C$4:$F$11000,3,0),"") -> 0 | J73: =IFERROR(VLOOKUP($G73,list!$C$4:$F$11000,4,0),"") -> 0 | M73: 0
F74: =IFERROR(VLOOKUP($E74,list!$H$4:$K$8000,2,0),"") ->  | H74: =IFERROR(VLOOKUP($G74,list!$C$4:$F$11000,2,0),"") -> 0 | I74: =IFERROR(VLOOKUP($G74,list!$C$4:$F$11000,3,0),"") -> 0 | J74: =IFERROR(VLOOKUP($G74,list!$C$4:$F$11000,4,0),"") -> 0 | M74: 0
F75: =IFERROR(VLOOKUP($E75,list!$H$4:$K$8000,2,0),"") ->  | H75: =IFERROR(VLOOKUP($G75,list!$C$4:$F$11000,2,0),"") -> 0 | I75: =IFERROR(VLOOKUP($G75,list!$C$4:$F$11000,3,0),"") -> 0 | J75: =IFERROR(VLOOKUP($G75,list!$C$4:$F$11000,4,0),"") -> 0 | M75: 0
F76: =IFERROR(VLOOKUP($E76,list!$H$4:$K$8000,2,0),"") ->  | H76: =IFERROR(VLOOKUP($G76,list!$C$4:$F$11000,2,0),"") -> 0 | I76: =IFERROR(VLOOKUP($G76,list!$C$4:$F$11000,3,0),"") -> 0 | J76: =IFERROR(VLOOKUP($G76,list!$C$4:$F$11000,4,0),"") -> 0 | M76: 0
F77: =IFERROR(VLOOKUP($E77,list!$H$4:$K$8000,2,0),"") ->  | H77: =IFERROR(VLOOKUP($G77,list!$C$4:$F$11000,2,0),"") -> 0 | I77: =IFERROR(VLOOKUP($G77,list!$C$4:$F$11000,3,0),"") -> 0 | J77: =IFERROR(VLOOKUP($G77,list!$C$4:$F$11000,4,0),"") -> 0 | M77: 0
F78: =IFERROR(VLOOKUP($E78,list!$H$4:$K$8000,2,0),"") ->  | H78: =IFERROR(VLOOKUP($G78,list!$C$4:$F$11000,2,0),"") -> 0 | I78: =IFERROR(VLOOKUP($G78,list!$C$4:$F$11000,3,0),"") -> 0 | J78: =IFERROR(VLOOKUP($G78,list!$C$4:$F$11000,4,0),"") -> 0 | M78: 0
F79: =IFERROR(VLOOKUP($E79,list!$H$4:$K$8000,2,0),"") ->  | H79: =IFERROR(VLOOKUP($G79,list!$C$4:$F$11000,2,0),"") -> 0 | I79: =IFERROR(VLOOKUP($G79,list!$C$4:$F$11000,3,0),"") -> 0 | J79: =IFERROR(VLOOKUP($G79,list!$C$4:$F$11000,4,0),"") -> 0 | M79: 0
F80: =IFERROR(VLOOKUP($E80,list!$H$4:$K$8000,2,0),"") ->  | H80: =IFERROR(VLOOKUP($G80,list!$C$4:$F$11000,2,0),"") -> 0 | I80: =IFERROR(VLOOKUP($G80,list!$C$4:$F$11000,3,0),"") -> 0 | J80: =IFERROR(VLOOKUP($G80,list!$C$4:$F$11000,4,0),"") -> 0 | M80: 0
F81: =IFERROR(VLOOKUP($E81,list!$H$4:$K$8000,2,0),"") ->  | H81: =IFERROR(VLOOKUP($G81,list!$C$4:$F$11000,2,0),"") -> 0 | I81: =IFERROR(VLOOKUP($G81,list!$C$4:$F$11000,3,0),"") -> 0 | J81: =IFERROR(VLOOKUP($G81,list!$C$4:$F$11000,4,0),"") -> 0 | M81: 0
F82: =IFERROR(VLOOKUP($E82,list!$H$4:$K$8000,2,0),"") ->  | H82: =IFERROR(VLOOKUP($G82,list!$C$4:$F$11000,2,0),"") -> 0 | I82: =IFERROR(VLOOKUP($G82,list!$C$4:$F$11000,3,0),"") -> 0 | J82: =IFERROR(VLOOKUP($G82,list!$C$4:$F$11000,4,0),"") -> 0 | M82: 0
F83: =IFERROR(VLOOKUP($E83,list!$H$4:$K$8000,2,0),"") ->  | H83: =IFERROR(VLOOKUP($G83,list!$C$4:$F$11000,2,0),"") -> 0 | I83: =IFERROR(VLOOKUP($G83,list!$C$4:$F$11000,3,0),"") -> 0 | J83: =IFERROR(VLOOKUP($G83,list!$C$4:$F$11000,4,0),"") -> 0 | M83: 0
F84: =IFERROR(VLOOKUP($E84,list!$H$4:$K$8000,2,0),"") ->  | H84: =IFERROR(VLOOKUP($G84,list!$C$4:$F$11000,2,0),"") -> 0 | I84: =IFERROR(VLOOKUP($G84,list!$C$4:$F$11000,3,0),"") -> 0 | J84: =IFERROR(VLOOKUP($G84,list!$C$4:$F$11000,4,0),"") -> 0 | M84: 0
F85: =IFERROR(VLOOKUP($E85,list!$H$4:$K$8000,2,0),"") ->  | H85: =IFERROR(VLOOKUP($G85,list!$C$4:$F$11000,2,0),"") -> 0 | I85: =IFERROR(VLOOKUP($G85,list!$C$4:$F$11000,3,0),"") -> 0 | J85: =IFERROR(VLOOKUP($G85,list!$C$4:$F$11000,4,0),"") -> 0 | M85: 0
F86: =IFERROR(VLOOKUP($E86,list!$H$4:$K$8000,2,0),"") ->  | H86: =IFERROR(VLOOKUP($G86,list!$C$4:$F$11000,2,0),"") -> 0 | I86: =IFERROR(VLOOKUP($G86,list!$C$4:$F$11000,3,0),"") -> 0 | J86: =IFERROR(VLOOKUP($G86,list!$C$4:$F$11000,4,0),"") -> 0 | M86: 0
F87: =IFERROR(VLOOKUP($E87,list!$H$4:$K$8000,2,0),"") ->  | H87: =IFERROR(VLOOKUP($G87,list!$C$4:$F$11000,2,0),"") -> 0 | I87: =IFERROR(VLOOKUP($G87,list!$C$4:$F$11000,3,0),"") -> 0 | J87: =IFERROR(VLOOKUP($G87,list!$C$4:$F$11000,4,0),"") -> 0 | M87: 0
F88: =IFERROR(VLOOKUP($E88,list!$H$4:$K$8000,2,0),"") ->  | H88: =IFERROR(VLOOKUP($G88,list!$C$4:$F$11000,2,0),"") -> 0 | I88: =IFERROR(VLOOKUP($G88,list!$C$4:$F$11000,3,0),"") -> 0 | J88: =IFERROR(VLOOKUP($G88,list!$C$4:$F$11000,4,0),"") -> 0 | M88: 0
F89: =IFERROR(VLOOKUP($E89,list!$H$4:$K$8000,2,0),"") ->  | H89: =IFERROR(VLOOKUP($G89,list!$C$4:$F$11000,2,0),"") -> 0 | I89: =IFERROR(VLOOKUP($G89,list!$C$4:$F$11000,3,0),"") -> 0 | J89: =IFERROR(VLOOKUP($G89,list!$C$4:$F$11000,4,0),"") -> 0 | M89: 0
F90: =IFERROR(VLOOKUP($E90,list!$H$4:$K$8000,2,0),"") ->  | H90: =IFERROR(VLOOKUP($G90,list!$C$4:$F$11000,2,0),"") -> 0 | I90: =IFERROR(VLOOKUP($G90,list!$C$4:$F$11000,3,0),"") -> 0 | J90: =IFERROR(VLOOKUP($G90,list!$C$4:$F$11000,4,0),"") -> 0 | M90: 0
F91: =IFERROR(VLOOKUP($E91,list!$H$4:$K$8000,2,0),"") ->  | H91: =IFERROR(VLOOKUP($G91,list!$C$4:$F$11000,2,0),"") -> 0 | I91: =IFERROR(VLOOKUP($G91,list!$C$4:$F$11000,3,0),"") -> 0 | J91: =IFERROR(VLOOKUP($G91,list!$C$4:$F$11000,4,0),"") -> 0 | M91: 0
F92: =IFERROR(VLOOKUP($E92,list!$H$4:$K$8000,2,0),"") ->  | H92: =IFERROR(VLOOKUP($G92,list!$C$4:$F$11000,2,0),"") -> 0 | I92: =IFERROR(VLOOKUP($G92,list!$C$4:$F$11000,3,0),"") -> 0 | J92: =IFERROR(VLOOKUP($G92,list!$C$4:$F$11000,4,0),"") -> 0 | M92: 0
F93: =IFERROR(VLOOKUP($E93,list!$H$4:$K$8000,2,0),"") ->  | H93: =IFERROR(VLOOKUP($G93,list!$C$4:$F$11000,2,0),"") -> 0 | I93: =IFERROR(VLOOKUP($G93,list!$C$4:$F$11000,3,0),"") -> 0 | J93: =IFERROR(VLOOKUP($G93,list!$C$4:$F$11000,4,0),"") -> 0 | M93: 0
F94: =IFERROR(VLOOKUP($E94,list!$H$4:$K$8000,2,0),"") ->  | H94: =IFERROR(VLOOKUP($G94,list!$C$4:$F$11000,2,0),"") -> 0 | I94: =IFERROR(VLOOKUP($G94,list!$C$4:$F$11000,3,0),"") -> 0 | J94: =IFERROR(VLOOKUP($G94,list!$C$4:$F$11000,4,0),"") -> 0 | M94: 0
F95: =IFERROR(VLOOKUP($E95,list!$H$4:$K$8000,2,0),"") ->  | H95: =IFERROR(VLOOKUP($G95,list!$C$4:$F$11000,2,0),"") -> 0 | I95: =IFERROR(VLOOKUP($G95,list!$C$4:$F$11000,3,0),"") -> 0 | J95: =IFERROR(VLOOKUP($G95,list!$C$4:$F$11000,4,0),"") -> 0 | M95: 0
F96: =IFERROR(VLOOKUP($E96,list!$H$4:$K$8000,2,0),"") ->  | H96: =IFERROR(VLOOKUP($G96,list!$C$4:$F$11000,2,0),"") -> 0 | I96: =IFERROR(VLOOKUP($G96,list!$C$4:$F$11000,3,0),"") -> 0 | J96: =IFERROR(VLOOKUP($G96,list!$C$4:$F$11000,4,0),"") -> 0 | M96: 0
F97: =IFERROR(VLOOKUP($E97,list!$H$4:$K$8000,2,0),"") ->  | H97: =IFERROR(VLOOKUP($G97,list!$C$4:$F$11000,2,0),"") -> 0 | I97: =IFERROR(VLOOKUP($G97,list!$C$4:$F$11000,3,0),"") -> 0 | J97: =IFERROR(VLOOKUP($G97,list!$C$4:$F$11000,4,0),"") -> 0 | M97: 0
F98: =IFERROR(VLOOKUP($E98,list!$H$4:$K$8000,2,0),"") ->  | H98: =IFERROR(VLOOKUP($G98,list!$C$4:$F$11000,2,0),"") -> 0 | I98: =IFERROR(VLOOKUP($G98,list!$C$4:$F$11000,3,0),"") -> 0 | J98: =IFERROR(VLOOKUP($G98,list!$C$4:$F$11000,4,0),"") -> 0 | M98: 0
F99: =IFERROR(VLOOKUP($E99,list!$H$4:$K$8000,2,0),"") ->  | H99: =IFERROR(VLOOKUP($G99,list!$C$4:$F$11000,2,0),"") -> 0 | I99: =IFERROR(VLOOKUP($G99,list!$C$4:$F$11000,3,0),"") -> 0 | J99: =IFERROR(VLOOKUP($G99,list!$C$4:$F$11000,4,0),"") -> 0 | M99: 0
F100: =IFERROR(VLOOKUP($E100,list!$H$4:$K$8000,2,0),"") ->  | H100: =IFERROR(VLOOKUP($G100,list!$C$4:$F$11000,2,0),"") -> 0 | I100: =IFERROR(VLOOKUP($G100,list!$C$4:$F$11000,3,0),"") -> 0 | J100: =IFERROR(VLOOKUP($G100,list!$C$4:$F$11000,4,0),"") -> 0 | M100: 0
F101: =IFERROR(VLOOKUP($E101,list!$H$4:$K$8000,2,0),"") ->  | H101: =IFERROR(VLOOKUP($G101,list!$C$4:$F$11000,2,0),"") -> 0 | I101: =IFERROR(VLOOKUP($G101,list!$C$4:$F$11000,3,0),"") -> 0 | J101: =IFERROR(VLOOKUP($G101,list!$C$4:$F$11000,4,0),"") -> 0 | M101: 0
F102: =IFERROR(VLOOKUP($E102,list!$H$4:$K$8000,2,0),"") ->  | H102: =IFERROR(VLOOKUP($G102,list!$C$4:$F$11000,2,0),"") -> 0 | I102: =IFERROR(VLOOKUP($G102,list!$C$4:$F$11000,3,0),"") -> 0 | J102: =IFERROR(VLOOKUP($G102,list!$C$4:$F$11000,4,0),"") -> 0 | M102: 0
F103: =IFERROR(VLOOKUP($E103,list!$H$4:$K$8000,2,0),"") ->  | H103: =IFERROR(VLOOKUP($G103,list!$C$4:$F$11000,2,0),"") -> 0 | I103: =IFERROR(VLOOKUP($G103,list!$C$4:$F$11000,3,0),"") -> 0 | J103: =IFERROR(VLOOKUP($G103,list!$C$4:$F$11000,4,0),"") -> 0 | M103: 0
F104: =IFERROR(VLOOKUP($E104,list!$H$4:$K$8000,2,0),"") ->  | H104: =IFERROR(VLOOKUP($G104,list!$C$4:$F$11000,2,0),"") -> 0 | I104: =IFERROR(VLOOKUP($G104,list!$C$4:$F$11000,3,0),"") -> 0 | J104: =IFERROR(VLOOKUP($G104,list!$C$4:$F$11000,4,0),"") -> 0 | M104: 0
F105: =IFERROR(VLOOKUP($E105,list!$H$4:$K$8000,2,0),"") ->  | H105: =IFERROR(VLOOKUP($G105,list!$C$4:$F$11000,2,0),"") -> 0 | I105: =IFERROR(VLOOKUP($G105,list!$C$4:$F$11000,3,0),"") -> 0 | J105: =IFERROR(VLOOKUP($G105,list!$C$4:$F$11000,4,0),"") -> 0 | M105: 0
F106: =IFERROR(VLOOKUP($E106,list!$H$4:$K$8000,2,0),"") ->  | H106: =IFERROR(VLOOKUP($G106,list!$C$4:$F$11000,2,0),"") -> 0 | I106: =IFERROR(VLOOKUP($G106,list!$C$4:$F$11000,3,0),"") -> 0 | J106: =IFERROR(VLOOKUP($G106,list!$C$4:$F$11000,4,0),"") -> 0 | M106: 0
F107: =IFERROR(VLOOKUP($E107,list!$H$4:$K$8000,2,0),"") ->  | H107: =IFERROR(VLOOKUP($G107,list!$C$4:$F$11000,2,0),"") -> 0 | I107: =IFERROR(VLOOKUP($G107,list!$C$4:$F$11000,3,0),"") -> 0 | J107: =IFERROR(VLOOKUP($G107,list!$C$4:$F$11000,4,0),"") -> 0 | M107: 0
F108: =IFERROR(VLOOKUP($E108,list!$H$4:$K$8000,2,0),"") ->  | H108: =IFERROR(VLOOKUP($G108,list!$C$4:$F$11000,2,0),"") -> 0 | I108: =IFERROR(VLOOKUP($G108,list!$C$4:$F$11000,3,0),"") -> 0 | J108: =IFERROR(VLOOKUP($G108,list!$C$4:$F$11000,4,0),"") -> 0 | M108: 0
F109: =IFERROR(VLOOKUP($E109,list!$H$4:$K$8000,2,0),"") ->  | H109: =IFERROR(VLOOKUP($G109,list!$C$4:$F$11000,2,0),"") -> 0 | I109: =IFERROR(VLOOKUP($G109,list!$C$4:$F$11000,3,0),"") -> 0 | J109: =IFERROR(VLOOKUP($G109,list!$C$4:$F$11000,4,0),"") -> 0 | M109: 0
F110: =IFERROR(VLOOKUP($E110,list!$H$4:$K$8000,2,0),"") ->  | H110: =IFERROR(VLOOKUP($G110,list!$C$4:$F$11000,2,0),"") -> 0 | I110: =IFERROR(VLOOKUP($G110,list!$C$4:$F$11000,3,0),"") -> 0 | J110: =IFERROR(VLOOKUP($G110,list!$C$4:$F$11000,4,0),"") -> 0 | M110: 0
F111: =IFERROR(VLOOKUP($E111,list!$H$4:$K$8000,2,0),"") ->  | H111: =IFERROR(VLOOKUP($G111,list!$C$4:$F$11000,2,0),"") -> 0 | I111: =IFERROR(VLOOKUP($G111,list!$C$4:$F$11000,3,0),"") -> 0 | J111: =IFERROR(VLOOKUP($G111,list!$C$4:$F$11000,4,0),"") -> 0 | M111: 0
F112: =IFERROR(VLOOKUP($E112,list!$H$4:$K$8000,2,0),"") ->  | H112: =IFERROR(VLOOKUP($G112,list!$C$4:$F$11000,2,0),"") -> 0 | I112: =IFERROR(VLOOKUP($G112,list!$C$4:$F$11000,3,0),"") -> 0 | J112: =IFERROR(VLOOKUP($G112,list!$C$4:$F$11000,4,0),"") -> 0 | M112: 0
F113: =IFERROR(VLOOKUP($E113,list!$H$4:$K$8000,2,0),"") ->  | H113: =IFERROR(VLOOKUP($G113,list!$C$4:$F$11000,2,0),"") -> 0 | I113: =IFERROR(VLOOKUP($G113,list!$C$4:$F$11000,3,0),"") -> 0 | J113: =IFERROR(VLOOKUP($G113,list!$C$4:$F$11000,4,0),"") -> 0 | M113: 0
F114: =IFERROR(VLOOKUP($E114,list!$H$4:$K$8000,2,0),"") ->  | H114: =IFERROR(VLOOKUP($G114,list!$C$4:$F$11000,2,0),"") -> 0 | I114: =IFERROR(VLOOKUP($G114,list!$C$4:$F$11000,3,0),"") -> 0 | J114: =IFERROR(VLOOKUP($G114,list!$C$4:$F$11000,4,0),"") -> 0 | M114: 0
F115: =IFERROR(VLOOKUP($E115,list!$H$4:$K$8000,2,0),"") ->  | H115: =IFERROR(VLOOKUP($G115,list!$C$4:$F$11000,2,0),"") -> 0 | I115: =IFERROR(VLOOKUP($G115,list!$C$4:$F$11000,3,0),"") -> 0 | J115: =IFERROR(VLOOKUP($G115,list!$C$4:$F$11000,4,0),"") -> 0 | M115: 0
F116: =IFERROR(VLOOKUP($E116,list!$H$4:$K$8000,2,0),"") ->  | H116: =IFERROR(VLOOKUP($G116,list!$C$4:$F$11000,2,0),"") -> 0 | I116: =IFERROR(VLOOKUP($G116,list!$C$4:$F$11000,3,0),"") -> 0 | J116: =IFERROR(VLOOKUP($G116,list!$C$4:$F$11000,4,0),"") -> 0 | M116: 0
F117: =IFERROR(VLOOKUP($E117,list!$H$4:$K$8000,2,0),"") ->  | H117: =IFERROR(VLOOKUP($G117,list!$C$4:$F$11000,2,0),"") -> 0 | I117: =IFERROR(VLOOKUP($G117,list!$C$4:$F$11000,3,0),"") -> 0 | J117: =IFERROR(VLOOKUP($G117,list!$C$4:$F$11000,4,0),"") -> 0 | M117: 0
F118: =IFERROR(VLOOKUP($E118,list!$H$4:$K$8000,2,0),"") ->  | H118: =IFERROR(VLOOKUP($G118,list!$C$4:$F$11000,2,0),"") -> 0 | I118: =IFERROR(VLOOKUP($G118,list!$C$4:$F$11000,3,0),"") -> 0 | J118: =IFERROR(VLOOKUP($G118,list!$C$4:$F$11000,4,0),"") -> 0 | M118: 0
F119: =IFERROR(VLOOKUP($E119,list!$H$4:$K$8000,2,0),"") ->  | H119: =IFERROR(VLOOKUP($G119,list!$C$4:$F$11000,2,0),"") -> 0 | I119: =IFERROR(VLOOKUP($G119,list!$C$4:$F$11000,3,0),"") -> 0 | J119: =IFERROR(VLOOKUP($G119,list!$C$4:$F$11000,4,0),"") -> 0 | M119: 0
F120: =IFERROR(VLOOKUP($E120,list!$H$4:$K$8000,2,0),"") ->  | H120: =IFERROR(VLOOKUP($G120,list!$C$4:$F$11000,2,0),"") -> 0 | I120: =IFERROR(VLOOKUP($G120,list!$C$4:$F$11000,3,0),"") -> 0 | J120: =IFERROR(VLOOKUP($G120,list!$C$4:$F$11000,4,0),"") -> 0 | M120: 0
F121: =IFERROR(VLOOKUP($E121,list!$H$4:$K$8000,2,0),"") ->  | H121: =IFERROR(VLOOKUP($G121,list!$C$4:$F$11000,2,0),"") -> 0 | I121: =IFERROR(VLOOKUP($G121,list!$C$4:$F$11000,3,0),"") -> 0 | J121: =IFERROR(VLOOKUP($G121,list!$C$4:$F$11000,4,0),"") -> 0 | M121: 0
F122: =IFERROR(VLOOKUP($E122,list!$H$4:$K$8000,2,0),"") ->  | H122: =IFERROR(VLOOKUP($G122,list!$C$4:$F$11000,2,0),"") -> 0 | I122: =IFERROR(VLOOKUP($G122,list!$C$4:$F$11000,3,0),"") -> 0 | J122: =IFERROR(VLOOKUP($G122,list!$C$4:$F$11000,4,0),"") -> 0 | M122: 0
F123: =IFERROR(VLOOKUP($E123,list!$H$4:$K$8000,2,0),"") ->  | H123: =IFERROR(VLOOKUP($G123,list!$C$4:$F$11000,2,0),"") -> 0 | I123: =IFERROR(VLOOKUP($G123,list!$C$4:$F$11000,3,0),"") -> 0 | J123: =IFERROR(VLOOKUP($G123,list!$C$4:$F$11000,4,0),"") -> 0 | M123: 0
F124: =IFERROR(VLOOKUP($E124,list!$H$4:$K$8000,2,0),"") ->  | H124: =IFERROR(VLOOKUP($G124,list!$C$4:$F$11000,2,0),"") -> 0 | I124: =IFERROR(VLOOKUP($G124,list!$C$4:$F$11000,3,0),"") -> 0 | J124: =IFERROR(VLOOKUP($G124,list!$C$4:$F$11000,4,0),"") -> 0 | M124: 0
F125: =IFERROR(VLOOKUP($E125,list!$H$4:$K$8000,2,0),"") ->  | H125: =IFERROR(VLOOKUP($G125,list!$C$4:$F$11000,2,0),"") -> 0 | I125: =IFERROR(VLOOKUP($G125,list!$C$4:$F$11000,3,0),"") -> 0 | J125: =IFERROR(VLOOKUP($G125,list!$C$4:$F$11000,4,0),"") -> 0 | M125: 0
F126: =IFERROR(VLOOKUP($E126,list!$H$4:$K$8000,2,0),"") ->  | H126: =IFERROR(VLOOKUP($G126,list!$C$4:$F$11000,2,0),"") -> 0 | I126: =IFERROR(VLOOKUP($G126,list!$C$4:$F$11000,3,0),"") -> 0 | J126: =IFERROR(VLOOKUP($G126,list!$C$4:$F$11000,4,0),"") -> 0 | M126: 0
F127: =IFERROR(VLOOKUP($E127,list!$H$4:$K$8000,2,0),"") ->  | H127: =IFERROR(VLOOKUP($G127,list!$C$4:$F$11000,2,0),"") -> 0 | I127: =IFERROR(VLOOKUP($G127,list!$C$4:$F$11000,3,0),"") -> 0 | J127: =IFERROR(VLOOKUP($G127,list!$C$4:$F$11000,4,0),"") -> 0 | M127: 0
F128: =IFERROR(VLOOKUP($E128,list!$H$4:$K$8000,2,0),"") ->  | H128: =IFERROR(VLOOKUP($G128,list!$C$4:$F$11000,2,0),"") -> 0 | I128: =IFERROR(VLOOKUP($G128,list!$C$4:$F$11000,3,0),"") -> 0 | J128: =IFERROR(VLOOKUP($G128,list!$C$4:$F$11000,4,0),"") -> 0 | M128: 0
F129: =IFERROR(VLOOKUP($E129,list!$H$4:$K$8000,2,0),"") ->  | H129: =IFERROR(VLOOKUP($G129,list!$C$4:$F$11000,2,0),"") -> 0 | I129: =IFERROR(VLOOKUP($G129,list!$C$4:$F$11000,3,0),"") -> 0 | J129: =IFERROR(VLOOKUP($G129,list!$C$4:$F$11000,4,0),"") -> 0 | M129: 0
F130: =IFERROR(VLOOKUP($E130,list!$H$4:$K$8000,2,0),"") ->  | H130: =IFERROR(VLOOKUP($G130,list!$C$4:$F$11000,2,0),"") -> 0 | I130: =IFERROR(VLOOKUP($G130,list!$C$4:$F$11000,3,0),"") -> 0 | J130: =IFERROR(VLOOKUP($G130,list!$C$4:$F$11000,4,0),"") -> 0 | M130: 0
F131: =IFERROR(VLOOKUP($E131,list!$H$4:$K$8000,2,0),"") ->  | H131: =IFERROR(VLOOKUP($G131,list!$C$4:$F$11000,2,0),"") -> 0 | I131: =IFERROR(VLOOKUP($G131,list!$C$4:$F$11000,3,0),"") -> 0 | J131: =IFERROR(VLOOKUP($G131,list!$C$4:$F$11000,4,0),"") -> 0 | M131: 0
F132: =IFERROR(VLOOKUP($E132,list!$H$4:$K$8000,2,0),"") ->  | H132: =IFERROR(VLOOKUP($G132,list!$C$4:$F$11000,2,0),"") -> 0 | I132: =IFERROR(VLOOKUP($G132,list!$C$4:$F$11000,3,0),"") -> 0 | J132: =IFERROR(VLOOKUP($G132,list!$C$4:$F$11000,4,0),"") -> 0 | M132: 0
F133: =IFERROR(VLOOKUP($E133,list!$H$4:$K$8000,2,0),"") ->  | H133: =IFERROR(VLOOKUP($G133,list!$C$4:$F$11000,2,0),"") -> 0 | I133: =IFERROR(VLOOKUP($G133,list!$C$4:$F$11000,3,0),"") -> 0 | J133: =IFERROR(VLOOKUP($G133,list!$C$4:$F$11000,4,0),"") -> 0 | M133: 0
A134: =IF($E134<>"",TEXT($C134,"MMMM"),"") ->  | F134: =IFERROR(VLOOKUP($E134,list!$H$4:$K$8000,2,0),"") ->  | H134: =IFERROR(VLOOKUP($G134,list!$C$4:$F$11000,2,0),"") -> 0 | I134: =IFERROR(VLOOKUP($G134,list!$C$4:$F$11000,3,0),"") -> 0 | J134: =IFERROR(VLOOKUP($G134,list!$C$4:$F$11000,4,0),"") -> 0 | M134: =+K134*L134 -> 0
B135: =IF(C135<>"",1+B134,"") ->  | F135: =IFERROR(VLOOKUP($E135,list!$H$4:$K$8000,2,0),"") ->  | H135: =IFERROR(VLOOKUP($G135,list!$C$4:$F$11000,2,0),"") -> 0 | I135: =IFERROR(VLOOKUP($G135,list!$C$4:$F$11000,3,0),"") -> 0 | J135: =IFERROR(VLOOKUP($G135,list!$C$4:$F$11000,4,0),"") -> 0 | M135: 0
F136: =IFERROR(VLOOKUP($E136,list!$H$4:$K$8000,2,0),"") ->  | H136: =IFERROR(VLOOKUP($G136,list!$C$4:$F$11000,2,0),"") -> 0 | I136: =IFERROR(VLOOKUP($G136,list!$C$4:$F$11000,3,0),"") -> 0 | J136: =IFERROR(VLOOKUP($G136,list!$C$4:$F$11000,4,0),"") -> 0 | M136: 0
F137: =IFERROR(VLOOKUP($E137,list!$H$4:$K$8000,2,0),"") ->  | H137: =IFERROR(VLOOKUP($G137,list!$C$4:$F$11000,2,0),"") -> 0 | I137: =IFERROR(VLOOKUP($G137,list!$C$4:$F$11000,3,0),"") -> 0 | J137: =IFERROR(VLOOKUP($G137,list!$C$4:$F$11000,4,0),"") -> 0 | M137: 0
F138: =IFERROR(VLOOKUP($E138,list!$H$4:$K$8000,2,0),"") ->  | H138: =IFERROR(VLOOKUP($G138,list!$C$4:$F$11000,2,0),"") -> 0 | I138: =IFERROR(VLOOKUP($G138,list!$C$4:$F$11000,3,0),"") -> 0 | J138: =IFERROR(VLOOKUP($G138,list!$C$4:$F$11000,4,0),"") -> 0 | M138: 0
F139: =IFERROR(VLOOKUP($E139,list!$H$4:$K$8000,2,0),"") ->  | H139: =IFERROR(VLOOKUP($G139,list!$C$4:$F$11000,2,0),"") -> 0 | I139: =IFERROR(VLOOKUP($G139,list!$C$4:$F$11000,3,0),"") -> 0 | J139: =IFERROR(VLOOKUP($G139,list!$C$4:$F$11000,4,0),"") -> 0 | M139: 0
F140: =IFERROR(VLOOKUP($E140,list!$H$4:$K$8000,2,0),"") ->  | H140: =IFERROR(VLOOKUP($G140,list!$C$4:$F$11000,2,0),"") -> 0 | I140: =IFERROR(VLOOKUP($G140,list!$C$4:$F$11000,3,0),"") -> 0 | J140: =IFERROR(VLOOKUP($G140,list!$C$4:$F$11000,4,0),"") -> 0 | M140: 0
F141: =IFERROR(VLOOKUP($E141,list!$H$4:$K$8000,2,0),"") ->  | H141: =IFERROR(VLOOKUP($G141,list!$C$4:$F$11000,2,0),"") -> 0 | I141: =IFERROR(VLOOKUP($G141,list!$C$4:$F$11000,3,0),"") -> 0 | J141: =IFERROR(VLOOKUP($G141,list!$C$4:$F$11000,4,0),"") -> 0 | M141: 0
F142: =IFERROR(VLOOKUP($E142,list!$H$4:$K$8000,2,0),"") ->  | H142: =IFERROR(VLOOKUP($G142,list!$C$4:$F$11000,2,0),"") -> 0 | I142: =IFERROR(VLOOKUP($G142,list!$C$4:$F$11000,3,0),"") -> 0 | J142: =IFERROR(VLOOKUP($G142,list!$C$4:$F$11000,4,0),"") -> 0 | M142: 0
F143: =IFERROR(VLOOKUP($E143,list!$H$4:$K$8000,2,0),"") ->  | H143: =IFERROR(VLOOKUP($G143,list!$C$4:$F$11000,2,0),"") -> 0 | I143: =IFERROR(VLOOKUP($G143,list!$C$4:$F$11000,3,0),"") -> 0 | J143: =IFERROR(VLOOKUP($G143,list!$C$4:$F$11000,4,0),"") -> 0 | M143: 0
F144: =IFERROR(VLOOKUP($E144,list!$H$4:$K$8000,2,0),"") ->  | H144: =IFERROR(VLOOKUP($G144,list!$C$4:$F$11000,2,0),"") -> 0 | I144: =IFERROR(VLOOKUP($G144,list!$C$4:$F$11000,3,0),"") -> 0 | J144: =IFERROR(VLOOKUP($G144,list!$C$4:$F$11000,4,0),"") -> 0 | M144: 0
F145: =IFERROR(VLOOKUP($E145,list!$H$4:$K$8000,2,0),"") ->  | H145: =IFERROR(VLOOKUP($G145,list!$C$4:$F$11000,2,0),"") -> 0 | I145: =IFERROR(VLOOKUP($G145,list!$C$4:$F$11000,3,0),"") -> 0 | J145: =IFERROR(VLOOKUP($G145,list!$C$4:$F$11000,4,0),"") -> 0 | M145: 0
F146: =IFERROR(VLOOKUP($E146,list!$H$4:$K$8000,2,0),"") ->  | H146: =IFERROR(VLOOKUP($G146,list!$C$4:$F$11000,2,0),"") -> 0 | I146: =IFERROR(VLOOKUP($G146,list!$C$4:$F$11000,3,0),"") -> 0 | J146: =IFERROR(VLOOKUP($G146,list!$C$4:$F$11000,4,0),"") -> 0 | M146: 0
F147: =IFERROR(VLOOKUP($E147,list!$H$4:$K$8000,2,0),"") ->  | H147: =IFERROR(VLOOKUP($G147,list!$C$4:$F$11000,2,0),"") -> 0 | I147: =IFERROR(VLOOKUP($G147,list!$C$4:$F$11000,3,0),"") -> 0 | J147: =IFERROR(VLOOKUP($G147,list!$C$4:$F$11000,4,0),"") -> 0 | M147: 0
F148: =IFERROR(VLOOKUP($E148,list!$H$4:$K$8000,2,0),"") ->  | H148: =IFERROR(VLOOKUP($G148,list!$C$4:$F$11000,2,0),"") -> 0 | I148: =IFERROR(VLOOKUP($G148,list!$C$4:$F$11000,3,0),"") -> 0 | J148: =IFERROR(VLOOKUP($G148,list!$C$4:$F$11000,4,0),"") -> 0 | M148: 0
F149: =IFERROR(VLOOKUP($E149,list!$H$4:$K$8000,2,0),"") ->  | H149: =IFERROR(VLOOKUP($G149,list!$C$4:$F$11000,2,0),"") -> 0 | I149: =IFERROR(VLOOKUP($G149,list!$C$4:$F$11000,3,0),"") -> 0 | J149: =IFERROR(VLOOKUP($G149,list!$C$4:$F$11000,4,0),"") -> 0 | M149: 0
F150: =IFERROR(VLOOKUP($E150,list!$H$4:$K$8000,2,0),"") ->  | H150: =IFERROR(VLOOKUP($G150,list!$C$4:$F$11000,2,0),"") -> 0 | I150: =IFERROR(VLOOKUP($G150,list!$C$4:$F$11000,3,0),"") -> 0 | J150: =IFERROR(VLOOKUP($G150,list!$C$4:$F$11000,4,0),"") -> 0 | M150: 0
F151: =IFERROR(VLOOKUP($E151,list!$H$4:$K$8000,2,0),"") ->  | H151: =IFERROR(VLOOKUP($G151,list!$C$4:$F$11000,2,0),"") -> 0 | I151: =IFERROR(VLOOKUP($G151,list!$C$4:$F$11000,3,0),"") -> 0 | J151: =IFERROR(VLOOKUP($G151,list!$C$4:$F$11000,4,0),"") -> 0 | M151: 0
F152: =IFERROR(VLOOKUP($E152,list!$H$4:$K$8000,2,0),"") ->  | H152: =IFERROR(VLOOKUP($G152,list!$C$4:$F$11000,2,0),"") -> 0 | I152: =IFERROR(VLOOKUP($G152,list!$C$4:$F$11000,3,0),"") -> 0 | J152: =IFERROR(VLOOKUP($G152,list!$C$4:$F$11000,4,0),"") -> 0 | M152: 0
F153: =IFERROR(VLOOKUP($E153,list!$H$4:$K$8000,2,0),"") ->  | H153: =IFERROR(VLOOKUP($G153,list!$C$4:$F$11000,2,0),"") -> 0 | I153: =IFERROR(VLOOKUP($G153,list!$C$4:$F$11000,3,0),"") -> 0 | J153: =IFERROR(VLOOKUP($G153,list!$C$4:$F$11000,4,0),"") -> 0 | M153: 0
F154: =IFERROR(VLOOKUP($E154,list!$H$4:$K$8000,2,0),"") ->  | H154: =IFERROR(VLOOKUP($G154,list!$C$4:$F$11000,2,0),"") -> 0 | I154: =IFERROR(VLOOKUP($G154,list!$C$4:$F$11000,3,0),"") -> 0 | J154: =IFERROR(VLOOKUP($G154,list!$C$4:$F$11000,4,0),"") -> 0 | M154: 0
F155: =IFERROR(VLOOKUP($E155,list!$H$4:$K$8000,2,0),"") ->  | H155: =IFERROR(VLOOKUP($G155,list!$C$4:$F$11000,2,0),"") -> 0 | I155: =IFERROR(VLOOKUP($G155,list!$C$4:$F$11000,3,0),"") -> 0 | J155: =IFERROR(VLOOKUP($G155,list!$C$4:$F$11000,4,0),"") -> 0 | M155: 0
F156: =IFERROR(VLOOKUP($E156,list!$H$4:$K$8000,2,0),"") ->  | H156: =IFERROR(VLOOKUP($G156,list!$C$4:$F$11000,2,0),"") -> 0 | I156: =IFERROR(VLOOKUP($G156,list!$C$4:$F$11000,3,0),"") -> 0 | J156: =IFERROR(VLOOKUP($G156,list!$C$4:$F$11000,4,0),"") -> 0 | M156: 0
F157: =IFERROR(VLOOKUP($E157,list!$H$4:$K$8000,2,0),"") ->  | H157: =IFERROR(VLOOKUP($G157,list!$C$4:$F$11000,2,0),"") -> 0 | I157: =IFERROR(VLOOKUP($G157,list!$C$4:$F$11000,3,0),"") -> 0 | J157: =IFERROR(VLOOKUP($G157,list!$C$4:$F$11000,4,0),"") -> 0 | M157: 0
F158: =IFERROR(VLOOKUP($E158,list!$H$4:$K$8000,2,0),"") ->  | H158: =IFERROR(VLOOKUP($G158,list!$C$4:$F$11000,2,0),"") -> 0 | I158: =IFERROR(VLOOKUP($G158,list!$C$4:$F$11000,3,0),"") -> 0 | J158: =IFERROR(VLOOKUP($G158,list!$C$4:$F$11000,4,0),"") -> 0 | M158: 0
F159: =IFERROR(VLOOKUP($E159,list!$H$4:$K$8000,2,0),"") ->  | H159: =IFERROR(VLOOKUP($G159,list!$C$4:$F$11000,2,0),"") -> 0 | I159: =IFERROR(VLOOKUP($G159,list!$C$4:$F$11000,3,0),"") -> 0 | J159: =IFERROR(VLOOKUP($G159,list!$C$4:$F$11000,4,0),"") -> 0 | M159: 0
F160: =IFERROR(VLOOKUP($E160,list!$H$4:$K$8000,2,0),"") ->  | H160: =IFERROR(VLOOKUP($G160,list!$C$4:$F$11000,2,0),"") -> 0 | I160: =IFERROR(VLOOKUP($G160,list!$C$4:$F$11000,3,0),"") -> 0 | J160: =IFERROR(VLOOKUP($G160,list!$C$4:$F$11000,4,0),"") -> 0 | M160: 0
F161: =IFERROR(VLOOKUP($E161,list!$H$4:$K$8000,2,0),"") ->  | H161: =IFERROR(VLOOKUP($G161,list!$C$4:$F$11000,2,0),"") -> 0 | I161: =IFERROR(VLOOKUP($G161,list!$C$4:$F$11000,3,0),"") -> 0 | J161: =IFERROR(VLOOKUP($G161,list!$C$4:$F$11000,4,0),"") -> 0 | M161: 0
F162: =IFERROR(VLOOKUP($E162,list!$H$4:$K$8000,2,0),"") ->  | H162: =IFERROR(VLOOKUP($G162,list!$C$4:$F$11000,2,0),"") -> 0 | I162: =IFERROR(VLOOKUP($G162,list!$C$4:$F$11000,3,0),"") -> 0 | J162: =IFERROR(VLOOKUP($G162,list!$C$4:$F$11000,4,0),"") -> 0 | M162: 0
F163: =IFERROR(VLOOKUP($E163,list!$H$4:$K$8000,2,0),"") ->  | H163: =IFERROR(VLOOKUP($G163,list!$C$4:$F$11000,2,0),"") -> 0 | I163: =IFERROR(VLOOKUP($G163,list!$C$4:$F$11000,3,0),"") -> 0 | J163: =IFERROR(VLOOKUP($G163,list!$C$4:$F$11000,4,0),"") -> 0 | M163: 0
F164: =IFERROR(VLOOKUP($E164,list!$H$4:$K$8000,2,0),"") ->  | H164: =IFERROR(VLOOKUP($G164,list!$C$4:$F$11000,2,0),"") -> 0 | I164: =IFERROR(VLOOKUP($G164,list!$C$4:$F$11000,3,0),"") -> 0 | J164: =IFERROR(VLOOKUP($G164,list!$C$4:$F$11000,4,0),"") -> 0 | M164: 0
F165: =IFERROR(VLOOKUP($E165,list!$H$4:$K$8000,2,0),"") ->  | H165: =IFERROR(VLOOKUP($G165,list!$C$4:$F$11000,2,0),"") -> 0 | I165: =IFERROR(VLOOKUP($G165,list!$C$4:$F$11000,3,0),"") -> 0 | J165: =IFERROR(VLOOKUP($G165,list!$C$4:$F$11000,4,0),"") -> 0 | M165: 0
F166: =IFERROR(VLOOKUP($E166,list!$H$4:$K$8000,2,0),"") ->  | H166: =IFERROR(VLOOKUP($G166,list!$C$4:$F$11000,2,0),"") -> 0 | I166: =IFERROR(VLOOKUP($G166,list!$C$4:$F$11000,3,0),"") -> 0 | J166: =IFERROR(VLOOKUP($G166,list!$C$4:$F$11000,4,0),"") -> 0 | M166: 0
F167: =IFERROR(VLOOKUP($E167,list!$H$4:$K$8000,2,0),"") ->  | H167: =IFERROR(VLOOKUP($G167,list!$C$4:$F$11000,2,0),"") -> 0 | I167: =IFERROR(VLOOKUP($G167,list!$C$4:$F$11000,3,0),"") -> 0 | J167: =IFERROR(VLOOKUP($G167,list!$C$4:$F$11000,4,0),"") -> 0 | M167: 0
F168: =IFERROR(VLOOKUP($E168,list!$H$4:$K$8000,2,0),"") ->  | H168: =IFERROR(VLOOKUP($G168,list!$C$4:$F$11000,2,0),"") -> 0 | I168: =IFERROR(VLOOKUP($G168,list!$C$4:$F$11000,3,0),"") -> 0 | J168: =IFERROR(VLOOKUP($G168,list!$C$4:$F$11000,4,0),"") -> 0 | M168: 0
F169: =IFERROR(VLOOKUP($E169,list!$H$4:$K$8000,2,0),"") ->  | H169: =IFERROR(VLOOKUP($G169,list!$C$4:$F$11000,2,0),"") -> 0 | I169: =IFERROR(VLOOKUP($G169,list!$C$4:$F$11000,3,0),"") -> 0 | J169: =IFERROR(VLOOKUP($G169,list!$C$4:$F$11000,4,0),"") -> 0 | M169: 0
F170: =IFERROR(VLOOKUP($E170,list!$H$4:$K$8000,2,0),"") ->  | H170: =IFERROR(VLOOKUP($G170,list!$C$4:$F$11000,2,0),"") -> 0 | I170: =IFERROR(VLOOKUP($G170,list!$C$4:$F$11000,3,0),"") -> 0 | J170: =IFERROR(VLOOKUP($G170,list!$C$4:$F$11000,4,0),"") -> 0 | M170: 0
F171: =IFERROR(VLOOKUP($E171,list!$H$4:$K$8000,2,0),"") ->  | H171: =IFERROR(VLOOKUP($G171,list!$C$4:$F$11000,2,0),"") -> 0 | I171: =IFERROR(VLOOKUP($G171,list!$C$4:$F$11000,3,0),"") -> 0 | J171: =IFERROR(VLOOKUP($G171,list!$C$4:$F$11000,4,0),"") -> 0 | M171: 0
F172: =IFERROR(VLOOKUP($E172,list!$H$4:$K$8000,2,0),"") ->  | H172: =IFERROR(VLOOKUP($G172,list!$C$4:$F$11000,2,0),"") -> 0 | I172: =IFERROR(VLOOKUP($G172,list!$C$4:$F$11000,3,0),"") -> 0 | J172: =IFERROR(VLOOKUP($G172,list!$C$4:$F$11000,4,0),"") -> 0 | M172: 0
F173: =IFERROR(VLOOKUP($E173,list!$H$4:$K$8000,2,0),"") ->  | H173: =IFERROR(VLOOKUP($G173,list!$C$4:$F$11000,2,0),"") -> 0 | I173: =IFERROR(VLOOKUP($G173,list!$C$4:$F$11000,3,0),"") -> 0 | J173: =IFERROR(VLOOKUP($G173,list!$C$4:$F$11000,4,0),"") -> 0 | M173: 0
F174: =IFERROR(VLOOKUP($E174,list!$H$4:$K$8000,2,0),"") ->  | H174: =IFERROR(VLOOKUP($G174,list!$C$4:$F$11000,2,0),"") -> 0 | I174: =IFERROR(VLOOKUP($G174,list!$C$4:$F$11000,3,0),"") -> 0 | J174: =IFERROR(VLOOKUP($G174,list!$C$4:$F$11000,4,0),"") -> 0 | M174: 0
F175: =IFERROR(VLOOKUP($E175,list!$H$4:$K$8000,2,0),"") ->  | H175: =IFERROR(VLOOKUP($G175,list!$C$4:$F$11000,2,0),"") -> 0 | I175: =IFERROR(VLOOKUP($G175,list!$C$4:$F$11000,3,0),"") -> 0 | J175: =IFERROR(VLOOKUP($G175,list!$C$4:$F$11000,4,0),"") -> 0 | M175: 0
F176: =IFERROR(VLOOKUP($E176,list!$H$4:$K$8000,2,0),"") ->  | H176: =IFERROR(VLOOKUP($G176,list!$C$4:$F$11000,2,0),"") -> 0 | I176: =IFERROR(VLOOKUP($G176,list!$C$4:$F$11000,3,0),"") -> 0 | J176: =IFERROR(VLOOKUP($G176,list!$C$4:$F$11000,4,0),"") -> 0 | M176: 0
F177: =IFERROR(VLOOKUP($E177,list!$H$4:$K$8000,2,0),"") ->  | H177: =IFERROR(VLOOKUP($G177,list!$C$4:$F$11000,2,0),"") -> 0 | I177: =IFERROR(VLOOKUP($G177,list!$C$4:$F$11000,3,0),"") -> 0 | J177: =IFERROR(VLOOKUP($G177,list!$C$4:$F$11000,4,0),"") -> 0 | M177: 0
F178: =IFERROR(VLOOKUP($E178,list!$H$4:$K$8000,2,0),"") ->  | H178: =IFERROR(VLOOKUP($G178,list!$C$4:$F$11000,2,0),"") -> 0 | I178: =IFERROR(VLOOKUP($G178,list!$C$4:$F$11000,3,0),"") -> 0 | J178: =IFERROR(VLOOKUP($G178,list!$C$4:$F$11000,4,0),"") -> 0 | M178: 0
F179: =IFERROR(VLOOKUP($E179,list!$H$4:$K$8000,2,0),"") ->  | H179: =IFERROR(VLOOKUP($G179,list!$C$4:$F$11000,2,0),"") -> 0 | I179: =IFERROR(VLOOKUP($G179,list!$C$4:$F$11000,3,0),"") -> 0 | J179: =IFERROR(VLOOKUP($G179,list!$C$4:$F$11000,4,0),"") -> 0 | M179: 0
F180: =IFERROR(VLOOKUP($E180,list!$H$4:$K$8000,2,0),"") ->  | H180: =IFERROR(VLOOKUP($G180,list!$C$4:$F$11000,2,0),"") -> 0 | I180: =IFERROR(VLOOKUP($G180,list!$C$4:$F$11000,3,0),"") -> 0 | J180: =IFERROR(VLOOKUP($G180,list!$C$4:$F$11000,4,0),"") -> 0 | M180: 0
F181: =IFERROR(VLOOKUP($E181,list!$H$4:$K$8000,2,0),"") ->  | H181: =IFERROR(VLOOKUP($G181,list!$C$4:$F$11000,2,0),"") -> 0 | I181: =IFERROR(VLOOKUP($G181,list!$C$4:$F$11000,3,0),"") -> 0 | J181: =IFERROR(VLOOKUP($G181,list!$C$4:$F$11000,4,0),"") -> 0 | M181: 0
F182: =IFERROR(VLOOKUP($E182,list!$H$4:$K$8000,2,0),"") ->  | H182: =IFERROR(VLOOKUP($G182,list!$C$4:$F$11000,2,0),"") -> 0 | I182: =IFERROR(VLOOKUP($G182,list!$C$4:$F$11000,3,0),"") -> 0 | J182: =IFERROR(VLOOKUP($G182,list!$C$4:$F$11000,4,0),"") -> 0 | M182: 0
F183: =IFERROR(VLOOKUP($E183,list!$H$4:$K$8000,2,0),"") ->  | H183: =IFERROR(VLOOKUP($G183,list!$C$4:$F$11000,2,0),"") -> 0 | I183: =IFERROR(VLOOKUP($G183,list!$C$4:$F$11000,3,0),"") -> 0 | J183: =IFERROR(VLOOKUP($G183,list!$C$4:$F$11000,4,0),"") -> 0 | M183: 0
F184: =IFERROR(VLOOKUP($E184,list!$H$4:$K$8000,2,0),"") ->  | H184: =IFERROR(VLOOKUP($G184,list!$C$4:$F$11000,2,0),"") -> 0 | I184: =IFERROR(VLOOKUP($G184,list!$C$4:$F$11000,3,0),"") -> 0 | J184: =IFERROR(VLOOKUP($G184,list!$C$4:$F$11000,4,0),"") -> 0 | M184: 0
F185: =IFERROR(VLOOKUP($E185,list!$H$4:$K$8000,2,0),"") ->  | H185: =IFERROR(VLOOKUP($G185,list!$C$4:$F$11000,2,0),"") -> 0 | I185: =IFERROR(VLOOKUP($G185,list!$C$4:$F$11000,3,0),"") -> 0 | J185: =IFERROR(VLOOKUP($G185,list!$C$4:$F$11000,4,0),"") -> 0 | M185: 0
F186: =IFERROR(VLOOKUP($E186,list!$H$4:$K$8000,2,0),"") ->  | H186: =IFERROR(VLOOKUP($G186,list!$C$4:$F$11000,2,0),"") -> 0 | I186: =IFERROR(VLOOKUP($G186,list!$C$4:$F$11000,3,0),"") -> 0 | J186: =IFERROR(VLOOKUP($G186,list!$C$4:$F$11000,4,0),"") -> 0 | M186: 0
F187: =IFERROR(VLOOKUP($E187,list!$H$4:$K$8000,2,0),"") ->  | H187: =IFERROR(VLOOKUP($G187,list!$C$4:$F$11000,2,0),"") -> 0 | I187: =IFERROR(VLOOKUP($G187,list!$C$4:$F$11000,3,0),"") -> 0 | J187: =IFERROR(VLOOKUP($G187,list!$C$4:$F$11000,4,0),"") -> 0 | M187: 0
F188: =IFERROR(VLOOKUP($E188,list!$H$4:$K$8000,2,0),"") ->  | H188: =IFERROR(VLOOKUP($G188,list!$C$4:$F$11000,2,0),"") -> 0 | I188: =IFERROR(VLOOKUP($G188,list!$C$4:$F$11000,3,0),"") -> 0 | J188: =IFERROR(VLOOKUP($G188,list!$C$4:$F$11000,4,0),"") -> 0 | M188: 0
F189: =IFERROR(VLOOKUP($E189,list!$H$4:$K$8000,2,0),"") ->  | H189: =IFERROR(VLOOKUP($G189,list!$C$4:$F$11000,2,0),"") -> 0 | I189: =IFERROR(VLOOKUP($G189,list!$C$4:$F$11000,3,0),"") -> 0 | J189: =IFERROR(VLOOKUP($G189,list!$C$4:$F$11000,4,0),"") -> 0 | M189: 0
F190: =IFERROR(VLOOKUP($E190,list!$H$4:$K$8000,2,0),"") ->  | H190: =IFERROR(VLOOKUP($G190,list!$C$4:$F$11000,2,0),"") -> 0 | I190: =IFERROR(VLOOKUP($G190,list!$C$4:$F$11000,3,0),"") -> 0 | J190: =IFERROR(VLOOKUP($G190,list!$C$4:$F$11000,4,0),"") -> 0 | M190: 0
F191: =IFERROR(VLOOKUP($E191,list!$H$4:$K$8000,2,0),"") ->  | H191: =IFERROR(VLOOKUP($G191,list!$C$4:$F$11000,2,0),"") -> 0 | I191: =IFERROR(VLOOKUP($G191,list!$C$4:$F$11000,3,0),"") -> 0 | J191: =IFERROR(VLOOKUP($G191,list!$C$4:$F$11000,4,0),"") -> 0 | M191: 0
F192: =IFERROR(VLOOKUP($E192,list!$H$4:$K$8000,2,0),"") ->  | H192: =IFERROR(VLOOKUP($G192,list!$C$4:$F$11000,2,0),"") -> 0 | I192: =IFERROR(VLOOKUP($G192,list!$C$4:$F$11000,3,0),"") -> 0 | J192: =IFERROR(VLOOKUP($G192,list!$C$4:$F$11000,4,0),"") -> 0 | M192: 0
F193: =IFERROR(VLOOKUP($E193,list!$H$4:$K$8000,2,0),"") ->  | H193: =IFERROR(VLOOKUP($G193,list!$C$4:$F$11000,2,0),"") -> 0 | I193: =IFERROR(VLOOKUP($G193,list!$C$4:$F$11000,3,0),"") -> 0 | J193: =IFERROR(VLOOKUP($G193,list!$C$4:$F$11000,4,0),"") -> 0 | M193: 0
F194: =IFERROR(VLOOKUP($E194,list!$H$4:$K$8000,2,0),"") ->  | H194: =IFERROR(VLOOKUP($G194,list!$C$4:$F$11000,2,0),"") -> 0 | I194: =IFERROR(VLOOKUP($G194,list!$C$4:$F$11000,3,0),"") -> 0 | J194: =IFERROR(VLOOKUP($G194,list!$C$4:$F$11000,4,0),"") -> 0 | M194: 0
F195: =IFERROR(VLOOKUP($E195,list!$H$4:$K$8000,2,0),"") ->  | H195: =IFERROR(VLOOKUP($G195,list!$C$4:$F$11000,2,0),"") -> 0 | I195: =IFERROR(VLOOKUP($G195,list!$C$4:$F$11000,3,0),"") -> 0 | J195: =IFERROR(VLOOKUP($G195,list!$C$4:$F$11000,4,0),"") -> 0 | M195: 0
F196: =IFERROR(VLOOKUP($E196,list!$H$4:$K$8000,2,0),"") ->  | H196: =IFERROR(VLOOKUP($G196,list!$C$4:$F$11000,2,0),"") -> 0 | I196: =IFERROR(VLOOKUP($G196,list!$C$4:$F$11000,3,0),"") -> 0 | J196: =IFERROR(VLOOKUP($G196,list!$C$4:$F$11000,4,0),"") -> 0 | M196: 0
F197: =IFERROR(VLOOKUP($E197,list!$H$4:$K$8000,2,0),"") ->  | H197: =IFERROR(VLOOKUP($G197,list!$C$4:$F$11000,2,0),"") -> 0 | I197: =IFERROR(VLOOKUP($G197,list!$C$4:$F$11000,3,0),"") -> 0 | J197: =IFERROR(VLOOKUP($G197,list!$C$4:$F$11000,4,0),"") -> 0 | M197: 0
A198: =IF($E198<>"",TEXT($C198,"MMMM"),"") ->  | F198: =IFERROR(VLOOKUP($E198,list!$H$4:$K$8000,2,0),"") ->  | H198: =IFERROR(VLOOKUP($G198,list!$C$4:$F$11000,2,0),"") -> 0 | I198: =IFERROR(VLOOKUP($G198,list!$C$4:$F$11000,3,0),"") -> 0 | J198: =IFERROR(VLOOKUP($G198,list!$C$4:$F$11000,4,0),"") -> 0 | M198: =+K198*L198 -> 0
B199: =IF(C199<>"",1+B198,"") ->  | F199: =IFERROR(VLOOKUP($E199,list!$H$4:$K$8000,2,0),"") ->  | H199: =IFERROR(VLOOKUP($G199,list!$C$4:$F$11000,2,0),"") -> 0 | I199: =IFERROR(VLOOKUP($G199,list!$C$4:$F$11000,3,0),"") -> 0 | J199: =IFERROR(VLOOKUP($G199,list!$C$4:$F$11000,4,0),"") -> 0 | M199: 0
F200: =IFERROR(VLOOKUP($E200,list!$H$4:$K$8000,2,0),"") ->  | H200: =IFERROR(VLOOKUP($G200,list!$C$4:$F$11000,2,0),"") -> 0 | I200: =IFERROR(VLOOKUP($G200,list!$C$4:$F$11000,3,0),"") -> 0 | J200: =IFERROR(VLOOKUP($G200,list!$C$4:$F$11000,4,0),"") -> 0 | M200: 0
F201: =IFERROR(VLOOKUP($E201,list!$H$4:$K$8000,2,0),"") ->  | H201: =IFERROR(VLOOKUP($G201,list!$C$4:$F$11000,2,0),"") -> 0 | I201: =IFERROR(VLOOKUP($G201,list!$C$4:$F$11000,3,0),"") -> 0 | J201: =IFERROR(VLOOKUP($G201,list!$C$4:$F$11000,4,0),"") -> 0 | M201: 0
F202: =IFERROR(VLOOKUP($E202,list!$H$4:$K$8000,2,0),"") ->  | H202: =IFERROR(VLOOKUP($G202,list!$C$4:$F$11000,2,0),"") -> 0 | I202: =IFERROR(VLOOKUP($G202,list!$C$4:$F$11000,3,0),"") -> 0 | J202: =IFERROR(VLOOKUP($G202,list!$C$4:$F$11000,4,0),"") -> 0 | M202: 0
... 57 more rows

Sheet inv
F2: بيان بالصرف اليومى
B4: اليوم | C4: الشهر | D4: م | E4: التاريخ | F4: الاذن | G4: اسم المشروع | H4: الاعمال | I4: المكان | J4: الكود | K4: الصنف | L4: المخزن | M4: الوحدة | N4: الكمية | O4: السعر | P4: القيمة
B5: =IF($E5<>"",TEXT($E5,"DDDD"),"") -> الأربعاء | C5: =IF($E5<>"",TEXT($E5,"MMMM"),"") -> يناير | D5: =IF(E5<>"",1,"") -> 1 | E5: 2025-01-01 | F5: 0250 | G5: الثلاجات | H5: دهانات | I5: B1 | J5: 10001 | K5: =IFERROR(VLOOKUP($J5,'COST_ITEM _BILL'!$B$4:$H$25000,2,0),"") -> حديد _ 12مم | L5: =IFERROR(VLOOKUP($J5,'COST_ITEM _BILL'!$B$4:$H$25000,3,0),"") -> مواد البناء | M5: =IFERROR(VLOOKUP($J5,'COST_ITEM _BILL'!$B$4:$H$25000,4,0),"") -> طن | N5: 50 | O5: =IFERROR(VLOOKUP($K5,'COST_ITEM _BILL'!$C$3:$G$220000,5,0),"") -> 50 | P5: =IFERROR(+N5*O5,"") -> 2500
B6: =IF($E6<>"",TEXT($E6,"DDDD"),"") -> السبت | C6: =IF(E6<>"",TEXT(E6,"MMMM"),"") -> فبراير | D6: =IF(E6<>"",1+D5,"") -> 2 | E6: 2025-02-01 | F6: 0251 | G6: مصنع لبطاطس | H6: سباكة | I6: B1 | J6: 20001 | K6: =IFERROR(VLOOKUP($J6,'COST_ITEM _BILL'!$B$4:$H$25000,2,0),"") -> ماسورة 4بوصة pvc | L6: =IFERROR(VLOOKUP($J6,'COST_ITEM _BILL'!$B$4:$H$25000,3,0),"") -> السباكة والصرف | M6: =IFERROR(VLOOKUP($J6,'COST_ITEM _BILL'!$B$4:$H$25000,4,0),"") -> بالمتر | N6: 50 | O6: =IFERROR(VLOOKUP($K6,'COST_ITEM _BILL'!$C$3:$G$220000,5,0),"") -> 60 | P6: =IFERROR(+N6*O6,"") -> 3000
B7: السبت | C7: مارس | D7: =IF(E7<>"",1+D6,"") -> 3 | E7: 2025-03-01 | F7: 0253 | G7: المبانى الادارية | H7: كهرباء | I7: B2 | J7: 30001 | K7: =IFERROR(VLOOKUP($J7,'COST_ITEM _BILL'!$B$4:$H$25000,2,0),"") -> كابل 3*4 ترموبلاست | L7: =IFERROR(VLOOKUP($J7,'COST_ITEM _BILL'!$B$4:$H$25000,3,0),"") -> كهرباء | M7: =IFERROR(VLOOKUP($J7,'COST_ITEM _BILL'!$B$4:$H$25000,4,0),"") -> بالمتر | N7: 50 | O7: =IFERROR(VLOOKUP($K7,'COST_ITEM _BILL'!$C$3:$G$220000,5,0),"") -> 120 | P7: 6000
B8: الثلاثاء | C8: أبريل | D8: 4 | E8: 2025-04-01 | F8: 0254 | G8: الثلاجات | H8: نجارة | I8: B3 | J8: 10001 | K8: =IFERROR(VLOOKUP($J8,'COST_ITEM _BILL'!$B$4:$H$25000,2,0),"") -> حديد _ 12مم | L8: =IFERROR(VLOOKUP($J8,'COST_ITEM _BILL'!$B$4:$H$25000,3,0),"") -> مواد البناء | M8: =IFERROR(VLOOKUP($J8,'COST_ITEM _BILL'!$B$4:$H$25000,4,0),"") -> طن | N8: 120 | O8: =IFERROR(VLOOKUP($K8,'COST_ITEM _BILL'!$C$3:$G$220000,5,0),"") -> 50 | P8: 6000
B9: الخميس | C9: مايو | D9: 5 | E9: 2025-05-01 | F9: 0250 | G9: مصنع لبطاطس | H9: بلاطات | I9: B1 | J9: 10001 | K9: =IFERROR(VLOOKUP($J9,'COST_ITEM _BILL'!$B$4:$H$25000,2,0),"") -> حديد _ 12مم | L9: =IFERROR(VLOOKUP($J9,'COST_ITEM _BILL'!$B$4:$H$25000,3,0),"") -> مواد البناء | M9: =IFERROR(VLOOKUP($J9,'COST_ITEM _BILL'!$B$4:$H$25000,4,0),"") -> طن | N9: 100 | O9: =IFERROR(VLOOKUP($K9,'COST_ITEM _BILL'!$C$3:$G$220000,5,0),"") -> 50 | P9: 5000
B10: الأحد | C10: يونيو | D10: 6 | E10: 2025-06-01 | F10: 0251 | G10: المبانى الادارية | H10: دهانات | I10: B1 | J10: 20001 | K10: =IFERROR(VLOOKUP($J10,'COST_ITEM _BILL'!$B$4:$H$25000,2,0),"") -> ماسورة 4بوصة pvc | L10: =IFERROR(VLOOKUP($J10,'COST_ITEM _BILL'!$B$4:$H$25000,3,0),"") -> السباكة والصرف | M10: =IFERROR(VLOOKUP($J10,'COST_ITEM _BILL'!$B$4:$H$25000,4,0),"") -> بالمتر | N10: 20 | O10: =IFERROR(VLOOKUP($K10,'COST_ITEM _BILL'!$C$3:$G$220000,5,0),"") -> 60 | P10: 1200
B11: الثلاثاء | C11: يوليو | D11: 7 | E11: 2025-07-01 | F11: 0253 | G11: الثلاجات | H11: سباكة | I11: B2 | J11: 30001 | K11: =IFERROR(VLOOKUP($J11,'COST_ITEM _BILL'!$B$4:$H$25000,2,0),"") -> كابل 3*4 ترموبلاست | L11: =IFERROR(VLOOKUP($J11,'COST_ITEM _BILL'!$B$4:$H$25000,3,0),"") -> كهرباء | M11: =IFERROR(VLOOKUP($J11,'COST_ITEM _BILL'!$B$4:$H$25000,4,0),"") -> بالمتر | N11: 30 | O11: =IFERROR(VLOOKUP($K11,'COST_ITEM _BILL'!$C$3:$G$220000,5,0),"") -> 120 | P11: 3600
B12: الجمعة | C12: أغسطس | D12: 8 | E12: 2025-08-01 | F12: 0254 | G12: مصنع لبطاطس | H12: كهرباء | I12: B3 | J12: 10001 | K12: =IFERROR(VLOOKUP($J12,'COST_ITEM _BILL'!$B$4:$H$25000,2,0),"") -> حديد _ 12مم | L12: =IFERROR(VLOOKUP($J12,'COST_ITEM _BILL'!$B$4:$H$25000,3,0),"") -> مواد البناء | M12: =IFERROR(VLOOKUP($J12,'COST_ITEM _BILL'!$B$4:$H$25000,4,0),"") -> طن | N12: 50 | O12: =IFERROR(VLOOKUP($K12,'COST_ITEM _BILL'!$C$3:$G$220000,5,0),"") -> 50 | P12: 2500
B13: الإثنين | C13: سبتمبر | D13: 9 | E13: 2025-09-01 | F13: 0250 | G13: المبانى الادارية | H13: نجارة | I13: B1 | J13: 10001 | K13: =IFERROR(VLOOKUP($J13,'COST_ITEM _BILL'!$B$4:$H$25000,2,0),"") -> حديد _ 12مم | L13: =IFERROR(VLOOKUP($J13,'COST_ITEM _BILL'!$B$4:$H$25000,3,0),"") -> مواد البناء | M13: =IFERROR(VLOOKUP($J13,'COST_ITEM _BILL'!$B$4:$H$25000,4,0),"") -> طن | N13: 60 | O13: =IFERROR(VLOOKUP($K13,'COST_ITEM _BILL'!$C$3:$G$220000,5,0),"") -> 50 | P13: 3000
B14: الأربعاء | C14: أكتوبر | D14: 10 | E14: 2025-10-01 | F14: 0251 | G14: الثلاجات | H14: بلاطات | I14: B1 | J14: 20001 | K14: =IFERROR(VLOOKUP($J14,'COST_ITEM _BILL'!$B$4:$H$25000,2,0),"") -> ماسورة 4بوصة pvc | L14: =IFERROR(VLOOKUP($J14,'COST_ITEM _BILL'!$B$4:$H$25000,3,0),"") -> السباكة والصرف | M14: =IFERROR(VLOOKUP($J14,'COST_ITEM _BILL'!$B$4:$H$25000,4,0),"") -> بالمتر | N14: 70 | O14: =IFERROR(VLOOKUP($K14,'COST_ITEM _BILL'!$C$3:$G$220000,5,0),"") -> 60 | P14: 4200
B15: السبت | C15: نوفمبر | D15: 11 | E15: 2025-11-01 | F15: 0253 | G15: مصنع لبطاطس | H15: دهانات | I15: B2 | J15: 30001 | K15: =IFERROR(VLOOKUP($J15,'COST_ITEM _BILL'!$B$4:$H$25000,2,0),"") -> كابل 3*4 ترموبلاست | L15: =IFERROR(VLOOKUP($J15,'COST_ITEM _BILL'!$B$4:$H$25000,3,0),"") -> كهرباء | M15: =IFERROR(VLOOKUP($J15,'COST_ITEM _BILL'!$B$4:$H$25000,4,0),"") -> بالمتر | N15: 90 | O15: =IFERROR(VLOOKUP($K15,'COST_ITEM _BILL'!$C$3:$G$220000,5,0),"") -> 120 | P15: 10800
B16: الإثنين | C16: ديسمبر | D16: 12 | E16: 2025-12-01 | F16: 0254 | G16: المبانى الادارية | H16: سباكة | I16: B3 | J16: 10001 | K16: =IFERROR(VLOOKUP($J16,'COST_ITEM _BILL'!$B$4:$H$25000,2,0),"") -> حديد _ 12مم | L16: =IFERROR(VLOOKUP($J16,'COST_ITEM _BILL'!$B$4:$H$25000,3,0),"") -> مواد البناء | M16: =IFERROR(VLOOKUP($J16,'COST_ITEM _BILL'!$B$4:$H$25000,4,0),"") -> طن | N16: 20 | O16: =IFERROR(VLOOKUP($K16,'COST_ITEM _BILL'!$C$3:$G$220000,5,0),"") -> 50 | P16: 1000
B17: الثلاثاء | C17: أبريل | D17: 13 | E17: 2025-04-01 | F17: 0250 | G17: الثلاجات | H17: كهرباء | I17: B1 | J17: 10001 | K17: =IFERROR(VLOOKUP($J17,'COST_ITEM _BILL'!$B$4:$H$25000,2,0),"") -> حديد _ 12مم | L17: =IFERROR(VLOOKUP($J17,'COST_ITEM _BILL'!$B$4:$H$25000,3,0),"") -> مواد البناء | M17: =IFERROR(VLOOKUP($J17,'COST_ITEM _BILL'!$B$4:$H$25000,4,0),"") -> طن | N17: 30 | O17: =IFERROR(VLOOKUP($K17,'COST_ITEM _BILL'!$C$3:$G$220000,5,0),"") -> 50 | P17: 1500
B18: الخميس | C18: مايو | D18: 14 | E18: 2025-05-01 | F18: 0251 | G18: مصنع لبطاطس | H18: نجارة | I18: B1 | J18: 20001 | K18: =IFERROR(VLOOKUP($J18,'COST_ITEM _BILL'!$B$4:$H$25000,2,0),"") -> ماسورة 4بوصة pvc | L18: =IFERROR(VLOOKUP($J18,'COST_ITEM _BILL'!$B$4:$H$25000,3,0),"") -> السباكة والصرف | M18: =IFERROR(VLOOKUP($J18,'COST_ITEM _BILL'!$B$4:$H$25000,4,0),"") -> بالمتر | N18: 50 | O18: =IFERROR(VLOOKUP($K18,'COST_ITEM _BILL'!$C$3:$G$220000,5,0),"") -> 60 | P18: 3000
B19: الأحد | C19: يونيو | D19: 15 | E19: 2025-06-01 | F19: 0253 | G19: المبانى الادارية | H19: بلاطات | I19: B2 | J19: 30001 | K19: =IFERROR(VLOOKUP($J19,'COST_ITEM _BILL'!$B$4:$H$25000,2,0),"") -> كابل 3*4 ترموبلاست | L19: =IFERROR(VLOOKUP($J19,'COST_ITEM _BILL'!$B$4:$H$25000,3,0),"") -> كهرباء | M19: =IFERROR(VLOOKUP($J19,'COST_ITEM _BILL'!$B$4:$H$25000,4,0),"") -> بالمتر | N19: 40 | O19: =IFERROR(VLOOKUP($K19,'COST_ITEM _BILL'!$C$3:$G$220000,5,0),"") -> 120 | P19: 4800
B20: الثلاثاء | C20: يوليو | D20: 16 | E20: 2025-07-01 | F20: 0254 | G20: الثلاجات | H20: بلاطات | I20: B3 | J20: 10001 | K20: =IFERROR(VLOOKUP($J20,'COST_ITEM _BILL'!$B$4:$H$25000,2,0),"") -> حديد _ 12مم | L20: =IFERROR(VLOOKUP($J20,'COST_ITEM _BILL'!$B$4:$H$25000,3,0),"") -> مواد البناء | M20: =IFERROR(VLOOKUP($J20,'COST_ITEM _BILL'!$B$4:$H$25000,4,0),"") -> طن | N20: 50 | O20: =IFERROR(VLOOKUP($K20,'COST_ITEM _BILL'!$C$3:$G$220000,5,0),"") -> 50 | P20: 2500
K21: =IFERROR(VLOOKUP($J21,'COST_ITEM _BILL'!$B$4:$H$25000,2,0),"") -> 0 | L21: =IFERROR(VLOOKUP($J21,'COST_ITEM _BILL'!$B$4:$H$25000,3,0),"") -> 0 | M21: =IFERROR(VLOOKUP($J21,'COST_ITEM _BILL'!$B$4:$H$25000,4,0),"") -> 0 | O21: =IFERROR(VLOOKUP($K21,'COST_ITEM _BILL'!$C$3:$G$220000,5,0),"") -> 
K22: =IFERROR(VLOOKUP($J22,'COST_ITEM _BILL'!$B$4:$H$25000,2,0),"") -> 0 | L22: =IFERROR(VLOOKUP($J22,'COST_ITEM _BILL'!$B$4:$H$25000,3,0),"") -> 0 | M22: =IFERROR(VLOOKUP($J22,'COST_ITEM _BILL'!$B$4:$H$25000,4,0),"") -> 0 | O22: =IFERROR(VLOOKUP($K22,'COST_ITEM _BILL'!$C$3:$G$220000,5,0),"") -> 
K23: =IFERROR(VLOOKUP($J23,'COST_ITEM _BILL'!$B$4:$H$25000,2,0),"") -> 0 | L23: =IFERROR(VLOOKUP($J23,'COST_ITEM _BILL'!$B$4:$H$25000,3,0),"") -> 0 | M23: =IFERROR(VLOOKUP($J23,'COST_ITEM _BILL'!$B$4:$H$25000,4,0),"") -> 0 | O23: =IFERROR(VLOOKUP($K23,'COST_ITEM _BILL'!$C$3:$G$220000,5,0),"") -> 
K24: =IFERROR(VLOOKUP($J24,'COST_ITEM _BILL'!$B$4:$H$25000,2,0),"") -> 0 | L24: =IFERROR(VLOOKUP($J24,'COST_ITEM _BILL'!$B$4:$H$25000,3,0),"") -> 0 | M24: =IFERROR(VLOOKUP($J24,'COST_ITEM _BILL'!$B$4:$H$25000,4,0),"") -> 0 | O24: =IFERROR(VLOOKUP($K24,'COST_ITEM _BILL'!$C$3:$G$220000,5,0),"") -> 
K25: =IFERROR(VLOOKUP($J25,'COST_ITEM _BILL'!$B$4:$H$25000,2,0),"") -> 0 | L25: =IFERROR(VLOOKUP($J25,'COST_ITEM _BILL'!$B$4:$H$25000,3,0),"") -> 0 | M25: =IFERROR(VLOOKUP($J25,'COST_ITEM _BILL'!$B$4:$H$25000,4,0),"") -> 0 | O25: =IFERROR(VLOOKUP($K25,'COST_ITEM _BILL'!$C$3:$G$220000,5,0),"") -> 
K26: =IFERROR(VLOOKUP($J26,'COST_ITEM _BILL'!$B$4:$H$25000,2,0),"") -> 0 | L26: =IFERROR(VLOOKUP($J26,'COST_ITEM _BILL'!$B$4:$H$25000,3,0),"") -> 0 | M26: =IFERROR(VLOOKUP($J26,'COST_ITEM _BILL'!$B$4:$H$25000,4,0),"") -> 0 | O26: =IFERROR(VLOOKUP($K26,'COST_ITEM _BILL'!$C$3:$G$220000,5,0),"") -> 
K27: =IFERROR(VLOOKUP($J27,'COST_ITEM _BILL'!$B$4:$H$25000,2,0),"") -> 0 | L27: =IFERROR(VLOOKUP($J27,'COST_ITEM _BILL'!$B$4:$H$25000,3,0),"") -> 0 | M27: =IFERROR(VLOOKUP($J27,'COST_ITEM _BILL'!$B$4:$H$25000,4,0),"") -> 0 | O27: =IFERROR(VLOOKUP($K27,'COST_ITEM _BILL'!$C$3:$G$220000,5,0),"") -> 
K28: =IFERROR(VLOOKUP($J28,'COST_ITEM _BILL'!$B$4:$H$25000,2,0),"") -> 0 | L28: =IFERROR(VLOOKUP($J28,'COST_ITEM _BILL'!$B$4:$H$25000,3,0),"") -> 0 | M28: =IFERROR(VLOOKUP($J28,'COST_ITEM _BILL'!$B$4:$H$25000,4,0),"") -> 0 | O28: =IFERROR(VLOOKUP($K28,'COST_ITEM _BILL'!$C$3:$G$220000,5,0),"") -> 
K29: =IFERROR(VLOOKUP($J29,'COST_ITEM _BILL'!$B$4:$H$25000,2,0),"") -> 0 | L29: =IFERROR(VLOOKUP($J29,'COST_ITEM _BILL'!$B$4:$H$25000,3,0),"") -> 0 | M29: =IFERROR(VLOOKUP($J29,'COST_ITEM _BILL'!$B$4:$H$25000,4,0),"") -> 0 | O29: =IFERROR(VLOOKUP($K29,'COST_ITEM _BILL'!$C$3:$G$220000,5,0),"") -> 
K30: =IFERROR(VLOOKUP($J30,'COST_ITEM _BILL'!$B$4:$H$25000,2,0),"") -> 0 | L30: =IFERROR(VLOOKUP($J30,'COST_ITEM _BILL'!$B$4:$H$25000,3,0),"") -> 0 | M30: =IFERROR(VLOOKUP($J30,'COST_ITEM _BILL'!$B$4:$H$25000,4,0),"") -> 0 | O30: =IFERROR(VLOOKUP($K30,'COST_ITEM _BILL'!$C$3:$G$220000,5,0),"") -> 
K31: =IFERROR(VLOOKUP($J31,'COST_ITEM _BILL'!$B$4:$H$25000,2,0),"") -> 0 | L31: =IFERROR(VLOOKUP($J31,'COST_ITEM _BILL'!$B$4:$H$25000,3,0),"") -> 0 | M31: =IFERROR(VLOOKUP($J31,'COST_ITEM _BILL'!$B$4:$H$25000,4,0),"") -> 0 | O31: =IFERROR(VLOOKUP($K31,'COST_ITEM _BILL'!$C$3:$G$220000,5,0),"") -> 
K32: =IFERROR(VLOOKUP($J32,'COST_ITEM _BILL'!$B$4:$H$25000,2,0),"") -> 0 | L32: =IFERROR(VLOOKUP($J32,'COST_ITEM _BILL'!$B$4:$H$25000,3,0),"") -> 0 | M32: =IFERROR(VLOOKUP($J32,'COST_ITEM _BILL'!$B$4:$H$25000,4,0),"") -> 0 | O32: =IFERROR(VLOOKUP($K32,'COST_ITEM _BILL'!$C$3:$G$220000,5,0),"") -> 
K33: =IFERROR(VLOOKUP($J33,'COST_ITEM _BILL'!$B$4:$H$25000,2,0),"") -> 0 | L33: =IFERROR(VLOOKUP($J33,'COST_ITEM _BILL'!$B$4:$H$25000,3,0),"") -> 0 | M33: =IFERROR(VLOOKUP($J33,'COST_ITEM _BILL'!$B$4:$H$25000,4,0),"") -> 0 | O33: =IFERROR(VLOOKUP($K33,'COST_ITEM _BILL'!$C$3:$G$220000,5,0),"") -> 
K34: =IFERROR(VLOOKUP($J34,'COST_ITEM _BILL'!$B$4:$H$25000,2,0),"") -> 0 | L34: =IFERROR(VLOOKUP($J34,'COST_ITEM _BILL'!$B$4:$H$25000,3,0),"") -> 0 | M34: =IFERROR(VLOOKUP($J34,'COST_ITEM _BILL'!$B$4:$H$25000,4,0),"") -> 0 | O34: =IFERROR(VLOOKUP($K34,'COST_ITEM _BILL'!$C$3:$G$220000,5,0),"") -> 
K35: =IFERROR(VLOOKUP($J35,'COST_ITEM _BILL'!$B$4:$H$25000,2,0),"") -> 0 | L35: =IFERROR(VLOOKUP($J35,'COST_ITEM _BILL'!$B$4:$H$25000,3,0),"") -> 0 | M35: =IFERROR(VLOOKUP($J35,'COST_ITEM _BILL'!$B$4:$H$25000,4,0),"") -> 0 | O35: =IFERROR(VLOOKUP($K35,'COST_ITEM _BILL'!$C$3:$G$220000,5,0),"") -> 
K36: =IFERROR(VLOOKUP($J36,'COST_ITEM _BILL'!$B$4:$H$25000,2,0),"") -> 0 | L36: =IFERROR(VLOOKUP($J36,'COST_ITEM _BILL'!$B$4:$H$25000,3,0),"") -> 0 | M36: =IFERROR(VLOOKUP($J36,'COST_ITEM _BILL'!$B$4:$H$25000,4,0),"") -> 0 | O36: =IFERROR(VLOOKUP($K36,'COST_ITEM _BILL'!$C$3:$G$220000,5,0),"") -> 
K37: =IFERROR(VLOOKUP($J37,'COST_ITEM _BILL'!$B$4:$H$25000,2,0),"") -> 0 | L37: =IFERROR(VLOOKUP($J37,'COST_ITEM _BILL'!$B$4:$H$25000,3,0),"") -> 0 | M37: =IFERROR(VLOOKUP($J37,'COST_ITEM _BILL'!$B$4:$H$25000,4,0),"") -> 0 | O37: =IFERROR(VLOOKUP($K37,'COST_ITEM _BILL'!$C$3:$G$220000,5,0),"") -> 
K38: =IFERROR(VLOOKUP($J38,'COST_ITEM _BILL'!$B$4:$H$25000,2,0),"") -> 0 | L38: =IFERROR(VLOOKUP($J38,'COST_ITEM _BILL'!$B$4:$H$25000,3,0),"") -> 0 | M38: =IFERROR(VLOOKUP($J38,'COST_ITEM _BILL'!$B$4:$H$25000,4,0),"") -> 0 | O38: =IFERROR(VLOOKUP($K38,'COST_ITEM _BILL'!$C$3:$G$220000,5,0),"") -> 
K39: =IFERROR(VLOOKUP($J39,'COST_ITEM _BILL'!$B$4:$H$25000,2,0),"") -> 0 | L39: =IFERROR(VLOOKUP($J39,'COST_ITEM _BILL'!$B$4:$H$25000,3,0),"") -> 0 | M39: =IFERROR(VLOOKUP($J39,'COST_ITEM _BILL'!$B$4:$H$25000,4,0),"") -> 0 | O39: =IFERROR(VLOOKUP($K39,'COST_ITEM _BILL'!$C$3:$G$220000,5,0),"") -> 
K40: =IFERROR(VLOOKUP($J40,'COST_ITEM _BILL'!$B$4:$H$25000,2,0),"") -> 0 | L40: =IFERROR(VLOOKUP($J40,'COST_ITEM _BILL'!$B$4:$H$25000,3,0),"") -> 0 | M40: =IFERROR(VLOOKUP($J40,'COST_ITEM _BILL'!$B$4:$H$25000,4,0),"") -> 0 | O40: =IFERROR(VLOOKUP($K40,'COST_ITEM _BILL'!$C$3:$G$220000,5,0),"") -> 
K41: =IFERROR(VLOOKUP($J41,'COST_ITEM _BILL'!$B$4:$H$25000,2,0),"") -> 0 | L41: =IFERROR(VLOOKUP($J41,'COST_ITEM _BILL'!$B$4:$H$25000,3,0),"") -> 0 | M41: =IFERROR(VLOOKUP($J41,'COST_ITEM _BILL'!$B$4:$H$25000,4,0),"") -> 0 | O41: =IFERROR(VLOOKUP($K41,'COST_ITEM _BILL'!$C$3:$G$220000,5,0),"") -> 
K42: =IFERROR(VLOOKUP($J42,'COST_ITEM _BILL'!$B$4:$H$25000,2,0),"") -> 0 | L42: =IFERROR(VLOOKUP($J42,'COST_ITEM _BILL'!$B$4:$H$25000,3,0),"") -> 0 | M42: =IFERROR(VLOOKUP($J42,'COST_ITEM _BILL'!$B$4:$H$25000,4,0),"") -> 0 | O42: =IFERROR(VLOOKUP($K42,'COST_ITEM _BILL'!$C$3:$G$220000,5,0),"") -> 
K43: =IFERROR(VLOOKUP($J43,'COST_ITEM _BILL'!$B$4:$H$25000,2,0),"") -> 0 | L43: =IFERROR(VLOOKUP($J43,'COST_ITEM _BILL'!$B$4:$H$25000,3,0),"") -> 0 | M43: =IFERROR(VLOOKUP($J43,'COST_ITEM _BILL'!$B$4:$H$25000,4,0),"") -> 0 | O43: =IFERROR(VLOOKUP($K43,'COST_ITEM _BILL'!$C$3:$G$220000,5,0),"") -> 
K44: =IFERROR(VLOOKUP($J44,'COST_ITEM _BILL'!$B$4:$H$25000,2,0),"") -> 0 | L44: =IFERROR(VLOOKUP($J44,'COST_ITEM _BILL'!$B$4:$H$25000,3,0),"") -> 0 | M44: =IFERROR(VLOOKUP($J44,'COST_ITEM _BILL'!$B$4:$H$25000,4,0),"") -> 0 | O44: =IFERROR(VLOOKUP($K44,'COST_ITEM _BILL'!$C$3:$G$220000,5,0),"") -> 
K45: =IFERROR(VLOOKUP($J45,'COST_ITEM _BILL'!$B$4:$H$25000,2,0),"") -> 0 | L45: =IFERROR(VLOOKUP($J45,'COST_ITEM _BILL'!$B$4:$H$25000,3,0),"") -> 0 | M45: =IFERROR(VLOOKUP($J45,'COST_ITEM _BILL'!$B$4:$H$25000,4,0),"") -> 0 | O45: =IFERROR(VLOOKUP($K45,'COST_ITEM _BILL'!$C$3:$G$220000,5,0),"") -> 
K46: =IFERROR(VLOOKUP($J46,'COST_ITEM _BILL'!$B$4:$H$25000,2,0),"") -> 0 | L46: =IFERROR(VLOOKUP($J46,'COST_ITEM _BILL'!$B$4:$H$25000,3,0),"") -> 0 | M46: =IFERROR(VLOOKUP($J46,'COST_ITEM _BILL'!$B$4:$H$25000,4,0),"") -> 0 | O46: =IFERROR(VLOOKUP($K46,'COST_ITEM _BILL'!$C$3:$G$220000,5,0),"") -> 
K47: =IFERROR(VLOOKUP($J47,'COST_ITEM _BILL'!$B$4:$H$25000,2,0),"") -> 0 | L47: =IFERROR(VLOOKUP($J47,'COST_ITEM _BILL'!$B$4:$H$25000,3,0),"") -> 0 | M47: =IFERROR(VLOOKUP($J47,'COST_ITEM _BILL'!$B$4:$H$25000,4,0),"") -> 0 | O47: =IFERROR(VLOOKUP($K47,'COST_ITEM _BILL'!$C$3:$G$220000,5,0),"") -> 
K48: =IFERROR(VLOOKUP($J48,'COST_ITEM _BILL'!$B$4:$H$25000,2,0),"") -> 0 | L48: =IFERROR(VLOOKUP($J48,'COST_ITEM _BILL'!$B$4:$H$25000,3,0),"") -> 0 | M48: =IFERROR(VLOOKUP($J48,'COST_ITEM _BILL'!$B$4:$H$25000,4,0),"") -> 0 | O48: =IFERROR(VLOOKUP($K48,'COST_ITEM _BILL'!$C$3:$G$220000,5,0),"") -> 
K49: =IFERROR(VLOOKUP($J49,'COST_ITEM _BILL'!$B$4:$H$25000,2,0),"") -> 0 | L49: =IFERROR(VLOOKUP($J49,'COST_ITEM _BILL'!$B$4:$H$25000,3,0),"") -> 0 | M49: =IFERROR(VLOOKUP($J49,'COST_ITEM _BILL'!$B$4:$H$25000,4,0),"") -> 0 | O49: =IFERROR(VLOOKUP($K49,'COST_ITEM _BILL'!$C$3:$G$220000,5,0),"") -> 
K50: =IFERROR(VLOOKUP($J50,'COST_ITEM _BILL'!$B$4:$H$25000,2,0),"") -> 0 | L50: =IFERROR(VLOOKUP($J50,'COST_ITEM _BILL'!$B$4:$H$25000,3,0),"") -> 0 | M50: =IFERROR(VLOOKUP($J50,'COST_ITEM _BILL'!$B$4:$H$25000,4,0),"") -> 0 | O50: =IFERROR(VLOOKUP($K50,'COST_ITEM _BILL'!$C$3:$G$220000,5,0),"") -> 
K51: =IFERROR(VLOOKUP($J51,'COST_ITEM _BILL'!$B$4:$H$25000,2,0),"") -> 0 | L51: =IFERROR(VLOOKUP($J51,'COST_ITEM _BILL'!$B$4:$H$25000,3,0),"") -> 0 | M51: =IFERROR(VLOOKUP($J51,'COST_ITEM _BILL'!$B$4:$H$25000,4,0),"") -> 0 | O51: =IFERROR(VLOOKUP($K51,'COST_ITEM _BILL'!$C$3:$G$220000,5,0),"") -> 
K52: =IFERROR(VLOOKUP($J52,'COST_ITEM _BILL'!$B$4:$H$25000,2,0),"") -> 0 | L52: =IFERROR(VLOOKUP($J52,'COST_ITEM _BILL'!$B$4:$H$25000,3,0),"") -> 0 | M52: =IFERROR(VLOOKUP($J52,'COST_ITEM _BILL'!$B$4:$H$25000,4,0),"") -> 0 | O52: =IFERROR(VLOOKUP($K52,'COST_ITEM _BILL'!$C$3:$G$220000,5,0),"") -> 
K53: =IFERROR(VLOOKUP($J53,'COST_ITEM _BILL'!$B$4:$H$25000,2,0),"") -> 0 | L53: =IFERROR(VLOOKUP($J53,'COST_ITEM _BILL'!$B$4:$H$25000,3,0),"") -> 0 | M53: =IFERROR(VLOOKUP($J53,'COST_ITEM _BILL'!$B$4:$H$25000,4,0),"") -> 0 | O53: =IFERROR(VLOOKUP($K53,'COST_ITEM _BILL'!$C$3:$G$220000,5,0),"") -> 
K54: =IFERROR(VLOOKUP($J54,'COST_ITEM _BILL'!$B$4:$H$25000,2,0),"") -> 0 | L54: =IFERROR(VLOOKUP($J54,'COST_ITEM _BILL'!$B$4:$H$25000,3,0),"") -> 0 | M54: =IFERROR(VLOOKUP($J54,'COST_ITEM _BILL'!$B$4:$H$25000,4,0),"") -> 0 | O54: =IFERROR(VLOOKUP($K54,'COST_ITEM _BILL'!$C$3:$G$220000,5,0),"") -> 
K55: =IFERROR(VLOOKUP($J55,'COST_ITEM _BILL'!$B$4:$H$25000,2,0),"") -> 0 | L55: =IFERROR(VLOOKUP($J55,'COST_ITEM _BILL'!$B$4:$H$25000,3,0),"") -> 0 | M55: =IFERROR(VLOOKUP($J55,'COST_ITEM _BILL'!$B$4:$H$25000,4,0),"") -> 0 | O55: =IFERROR(VLOOKUP($K55,'COST_ITEM _BILL'!$C$3:$G$220000,5,0),"") -> 
K56: =IFERROR(VLOOKUP($J56,'COST_ITEM _BILL'!$B$4:$H$25000,2,0),"") -> 0 | L56: =IFERROR(VLOOKUP($J56,'COST_ITEM _BILL'!$B$4:$H$25000,3,0),"") -> 0 | M56: =IFERROR(VLOOKUP($J56,'COST_ITEM _BILL'!$B$4:$H$25000,4,0),"") -> 0 | O56: =IFERROR(VLOOKUP($K56,'COST_ITEM _BILL'!$C$3:$G$220000,5,0),"") -> 
K57: =IFERROR(VLOOKUP($J57,'COST_ITEM _BILL'!$B$4:$H$25000,2,0),"") -> 0 | L57: =IFERROR(VLOOKUP($J57,'COST_ITEM _BILL'!$B$4:$H$25000,3,0),"") -> 0 | M57: =IFERROR(VLOOKUP($J57,'COST_ITEM _BILL'!$B$4:$H$25000,4,0),"") -> 0 | O57: =IFERROR(VLOOKUP($K57,'COST_ITEM _BILL'!$C$3:$G$220000,5,0),"") -> 
K58: =IFERROR(VLOOKUP($J58,'COST_ITEM _BILL'!$B$4:$H$25000,2,0),"") -> 0 | L58: =IFERROR(VLOOKUP($J58,'COST_ITEM _BILL'!$B$4:$H$25000,3,0),"") -> 0 | M58: =IFERROR(VLOOKUP($J58,'COST_ITEM _BILL'!$B$4:$H$25000,4,0),"") -> 0 | O58: =IFERROR(VLOOKUP($K58,'COST_ITEM _BILL'!$C$3:$G$220000,5,0),"") -> 
K59: =IFERROR(VLOOKUP($J59,'COST_ITEM _BILL'!$B$4:$H$25000,2,0),"") -> 0 | L59: =IFERROR(VLOOKUP($J59,'COST_ITEM _BILL'!$B$4:$H$25000,3,0),"") -> 0 | M59: =IFERROR(VLOOKUP($J59,'COST_ITEM _BILL'!$B$4:$H$25000,4,0),"") -> 0 | O59: =IFERROR(VLOOKUP($K59,'COST_ITEM _BILL'!$C$3:$G$220000,5,0),"") -> 
K60: =IFERROR(VLOOKUP($J60,'COST_ITEM _BILL'!$B$4:$H$25000,2,0),"") -> 0 | L60: =IFERROR(VLOOKUP($J60,'COST_ITEM _BILL'!$B$4:$H$25000,3,0),"") -> 0 | M60: =IFERROR(VLOOKUP($J60,'COST_ITEM _BILL'!$B$4:$H$25000,4,0),"") -> 0 | O60: =IFERROR(VLOOKUP($K60,'COST_ITEM _BILL'!$C$3:$G$220000,5,0),"") -> 
K61: =IFERROR(VLOOKUP($J61,'COST_ITEM _BILL'!$B$4:$H$25000,2,0),"") -> 0 | L61: =IFERROR(VLOOKUP($J61,'COST_ITEM _BILL'!$B$4:$H$25000,3,0),"") -> 0 | M61: =IFERROR(VLOOKUP($J61,'COST_ITEM _BILL'!$B$4:$H$25000,4,0),"") -> 0 | O61: =IFERROR(VLOOKUP($K61,'COST_ITEM _BILL'!$C$3:$G$220000,5,0),"") -> 
K62: =IFERROR(VLOOKUP($J62,'COST_ITEM _BILL'!$B$4:$H$25000,2,0),"") -> 0 | L62: =IFERROR(VLOOKUP($J62,'COST_ITEM _BILL'!$B$4:$H$25000,3,0),"") -> 0 | M62: =IFERROR(VLOOKUP($J62,'COST_ITEM _BILL'!$B$4:$H$25000,4,0),"") -> 0 | O62: =IFERROR(VLOOKUP($K62,'COST_ITEM _BILL'!$C$3:$G$220000,5,0),"") -> 
K63: =IFERROR(VLOOKUP($J63,'COST_ITEM _BILL'!$B$4:$H$25000,2,0),"") -> 0 | L63: =IFERROR(VLOOKUP($J63,'COST_ITEM _BILL'!$B$4:$H$25000,3,0),"") -> 0 | M63: =IFERROR(VLOOKUP($J63,'COST_ITEM _BILL'!$B$4:$H$25000,4,0),"") -> 0 | O63: =IFERROR(VLOOKUP($K63,'COST_ITEM _BILL'!$C$3:$G$220000,5,0),"") -> 
K64: =IFERROR(VLOOKUP($J64,'COST_ITEM _BILL'!$B$4:$H$25000,2,0),"") -> 0 | L64: =IFERROR(VLOOKUP($J64,'COST_ITEM _BILL'!$B$4:$H$25000,3,0),"") -> 0 | M64: =IFERROR(VLOOKUP($J64,'COST_ITEM _BILL'!$B$4:$H$25000,4,0),"") -> 0 | O64: =IFERROR(VLOOKUP($K64,'COST_ITEM _BILL'!$C$3:$G$220000,5,0),"") -> 
K65: =IFERROR(VLOOKUP($J65,'COST_ITEM _BILL'!$B$4:$H$25000,2,0),"") -> 0 | L65: =IFERROR(VLOOKUP($J65,'COST_ITEM _BILL'!$B$4:$H$25000,3,0),"") -> 0 | M65: =IFERROR(VLOOKUP($J65,'COST_ITEM _BILL'!$B$4:$H$25000,4,0),"") -> 0 | O65: =IFERROR(VLOOKUP($K65,'COST_ITEM _BILL'!$C$3:$G$220000,5,0),"") -> 
K66: =IFERROR(VLOOKUP($J66,'COST_ITEM _BILL'!$B$4:$H$25000,2,0),"") -> 0 | L66: =IFERROR(VLOOKUP($J66,'COST_ITEM _BILL'!$B$4:$H$25000,3,0),"") -> 0 | M66: =IFERROR(VLOOKUP($J66,'COST_ITEM _BILL'!$B$4:$H$25000,4,0),"") -> 0 | O66: =IFERROR(VLOOKUP($K66,'COST_ITEM _BILL'!$C$3:$G$220000,5,0),"") -> 
K67: =IFERROR(VLOOKUP($J67,'COST_ITEM _BILL'!$B$4:$H$25000,2,0),"") -> 0 | L67: =IFERROR(VLOOKUP($J67,'COST_ITEM _BILL'!$B$4:$H$25000,3,0),"") -> 0 | M67: =IFERROR(VLOOKUP($J67,'COST_ITEM _BILL'!$B$4:$H$25000,4,0),"") -> 0 | O67: =IFERROR(VLOOKUP($K67,'COST_ITEM _BILL'!$C$3:$G$220000,5,0),"") -> 
K68: =IFERROR(VLOOKUP($J68,'COST_ITEM _BILL'!$B$4:$H$25000,2,0),"") -> 0 | L68: =IFERROR(VLOOKUP($J68,'COST_ITEM _BILL'!$B$4:$H$25000,3,0),"") -> 0 | M68: =IFERROR(VLOOKUP($J68,'COST_ITEM _BILL'!$B$4:$H$25000,4,0),"") -> 0 | O68: =IFERROR(VLOOKUP($K68,'COST_ITEM _BILL'!$C$3:$G$220000,5,0),"") -> 
K69: =IFERROR(VLOOKUP($J69,'COST_ITEM _BILL'!$B$4:$H$25000,2,0),"") -> 0 | L69: =IFERROR(VLOOKUP($J69,'COST_ITEM _BILL'!$B$4:$H$25000,3,0),"") -> 0 | M69: =IFERROR(VLOOKUP($J69,'COST_ITEM _BILL'!$B$4:$H$25000,4,0),"") -> 0 | O69: =IFERROR(VLOOKUP($K69,'COST_ITEM _BILL'!$C$3:$G$220000,5,0),"") -> 
B70: =IF($E70<>"",TEXT($E70,"DDDD"),"") ->  | C70: =IF(E70<>"",TEXT(E70,"MMMM"),"") ->  | K70: =IFERROR(VLOOKUP($J70,'COST_ITEM _BILL'!$B$4:$H$25000,2,0),"") -> 0 | L70: =IFERROR(VLOOKUP($J70,'COST_ITEM _BILL'!$B$4:$H$25000,3,0),"") -> 0 | M70: =IFERROR(VLOOKUP($J70,'COST_ITEM _BILL'!$B$4:$H$25000,4,0),"") -> 0 | O70: =IFERROR(VLOOKUP($K70,'COST_ITEM _BILL'!$C$3:$G$220000,5,0),"") ->  | P70: =IFERROR(+N70*O70,"") -> 
D71: =IF(E71<>"",1+D70,"") ->  | K71: =IFERROR(VLOOKUP($J71,'COST_ITEM _BILL'!$B$4:$H$25000,2,0),"") -> 0 | L71: =IFERROR(VLOOKUP($J71,'COST_ITEM _BILL'!$B$4:$H$25000,3,0),"") -> 0 | M71: =IFERROR(VLOOKUP($J71,'COST_ITEM _BILL'!$B$4:$H$25000,4,0),"") -> 0 | O71: =IFERROR(VLOOKUP($K71,'COST_ITEM _BILL'!$C$3:$G$220000,5,0),"") -> 
K72: =IFERROR(VLOOKUP($J72,'COST_ITEM _BILL'!$B$4:$H$25000,2,0),"") -> 0 | L72: =IFERROR(VLOOKUP($J72,'COST_ITEM _BILL'!$B$4:$H$25000,3,0),"") -> 0 | M72: =IFERROR(VLOOKUP($J72,'COST_ITEM _BILL'!$B$4:$H$25000,4,0),"") -> 0 | O72: =IFERROR(VLOOKUP($K72,'COST_ITEM _BILL'!$C$3:$G$220000,5,0),"") -> 
K73: =IFERROR(VLOOKUP($J73,'COST_ITEM _BILL'!$B$4:$H$25000,2,0),"") -> 0 | L73: =IFERROR(VLOOKUP($J73,'COST_ITEM _BILL'!$B$4:$H$25000,3,0),"") -> 0 | M73: =IFERROR(VLOOKUP($J73,'COST_ITEM _BILL'!$B$4:$H$25000,4,0),"") -> 0 | O73: =IFERROR(VLOOKUP($K73,'COST_ITEM _BILL'!$C$3:$G$220000,5,0),"") -> 
K74: =IFERROR(VLOOKUP($J74,'COST_ITEM _BILL'!$B$4:$H$25000,2,0),"") -> 0 | L74: =IFERROR(VLOOKUP($J74,'COST_ITEM _BILL'!$B$4:$H$25000,3,0),"") -> 0 | M74: =IFERROR(VLOOKUP($J74,'COST_ITEM _BILL'!$B$4:$H$25000,4,0),"") -> 0 | O74: =IFERROR(VLOOKUP($K74,'COST_ITEM _BILL'!$C$3:$G$220000,5,0),"") -> 
K75: =IFERROR(VLOOKUP($J75,'COST_ITEM _BILL'!$B$4:$H$25000,2,0),"") -> 0 | L75: =IFERROR(VLOOKUP($J75,'COST_ITEM _BILL'!$B$4:$H$25000,3,0),"") -> 0 | M75: =IFERROR(VLOOKUP($J75,'COST_ITEM _BILL'!$B$4:$H$25000,4,0),"") -> 0 | O75: =IFERROR(VLOOKUP($K75,'COST_ITEM _BILL'!$C$3:$G$220000,5,0),"") -> 
K76: =IFERROR(VLOOKUP($J76,'COST_ITEM _BILL'!$B$4:$H$25000,2,0),"") -> 0 | L76: =IFERROR(VLOOKUP($J76,'COST_ITEM _BILL'!$B$4:$H$25000,3,0),"") -> 0 | M76: =IFERROR(VLOOKUP($J76,'COST_ITEM _BILL'!$B$4:$H$25000,4,0),"") -> 0 | O76: =IFERROR(VLOOKUP($K76,'COST_ITEM _BILL'!$C$3:$G$220000,5,0),"") -> 
K77: =IFERROR(VLOOKUP($J77,'COST_ITEM _BILL'!$B$4:$H$25000,2,0),"") -> 0 | L77: =IFERROR(VLOOKUP($J77,'COST_ITEM _BILL'!$B$4:$H$25000,3,0),"") -> 0 | M77: =IFERROR(VLOOKUP($J77,'COST_ITEM _BILL'!$B$4:$H$25000,4,0),"") -> 0 | O77: =IFERROR(VLOOKUP($K77,'COST_ITEM _BILL'!$C$3:$G$220000,5,0),"") -> 
K78: =IFERROR(VLOOKUP($J78,'COST_ITEM _BILL'!$B$4:$H$25000,2,0),"") -> 0 | L78: =IFERROR(VLOOKUP($J78,'COST_ITEM _BILL'!$B$4:$H$25000,3,0),"") -> 0 | M78: =IFERROR(VLOOKUP($J78,'COST_ITEM _BILL'!$B$4:$H$25000,4,0),"") -> 0 | O78: =IFERROR(VLOOKUP($K78,'COST_ITEM _BILL'!$C$3:$G$220000,5,0),"") -> 
K79: =IFERROR(VLOOKUP($J79,'COST_ITEM _BILL'!$B$4:$H$25000,2,0),"") -> 0 | L79: =IFERROR(VLOOKUP($J79,'COST_ITEM _BILL'!$B$4:$H$25000,3,0),"") -> 0 | M79: =IFERROR(VLOOKUP($J79,'COST_ITEM _BILL'!$B$4:$H$25000,4,0),"") -> 0 | O79: =IFERROR(VLOOKUP($K79,'COST_ITEM _BILL'!$C$3:$G$220000,5,0),"") -> 
K80: =IFERROR(VLOOKUP($J80,'COST_ITEM _BILL'!$B$4:$H$25000,2,0),"") -> 0 | L80: =IFERROR(VLOOKUP($J80,'COST_ITEM _BILL'!$B$4:$H$25000,3,0),"") -> 0 | M80: =IFERROR(VLOOKUP($J80,'COST_ITEM _BILL'!$B$4:$H$25000,4,0),"") -> 0 | O80: =IFERROR(VLOOKUP($K80,'COST_ITEM _BILL'!$C$3:$G$220000,5,0),"") -> 
K81: =IFERROR(VLOOKUP($J81,'COST_ITEM _BILL'!$B$4:$H$25000,2,0),"") -> 0 | L81: =IFERROR(VLOOKUP($J81,'COST_ITEM _BILL'!$B$4:$H$25000,3,0),"") -> 0 | M81: =IFERROR(VLOOKUP($J81,'COST_ITEM _BILL'!$B$4:$H$25000,4,0),"") -> 0 | O81: =IFERROR(VLOOKUP($K81,'COST_ITEM _BILL'!$C$3:$G$220000,5,0),"") -> 
K82: =IFERROR(VLOOKUP($J82,'COST_ITEM _BILL'!$B$4:$H$25000,2,0),"") -> 0 | L82: =IFERROR(VLOOKUP($J82,'COST_ITEM _BILL'!$B$4:$H$25000,3,0),"") -> 0 | M82: =IFERROR(VLOOKUP($J82,'COST_ITEM _BILL'!$B$4:$H$25000,4,0),"") -> 0 | O82: =IFERROR(VLOOKUP($K82,'COST_ITEM _BILL'!$C$3:$G$220000,5,0),"") -> 
K83: =IFERROR(VLOOKUP($J83,'COST_ITEM _BILL'!$B$4:$H$25000,2,0),"") -> 0 | L83: =IFERROR(VLOOKUP($J83,'COST_ITEM _BILL'!$B$4:$H$25000,3,0),"") -> 0 | M83: =IFERROR(VLOOKUP($J83,'COST_ITEM _BILL'!$B$4:$H$25000,4,0),"") -> 0 | O83: =IFERROR(VLOOKUP($K83,'COST_ITEM _BILL'!$C$3:$G$220000,5,0),"") -> 
K84: =IFERROR(VLOOKUP($J84,'COST_ITEM _BILL'!$B$4:$H$25000,2,0),"") -> 0 | L84: =IFERROR(VLOOKUP($J84,'COST_ITEM _BILL'!$B$4:$H$25000,3,0),"") -> 0 | M84: =IFERROR(VLOOKUP($J84,'COST_ITEM _BILL'!$B$4:$H$25000,4,0),"") -> 0 | O84: =IFERROR(VLOOKUP($K84,'COST_ITEM _BILL'!$C$3:$G$220000,5,0),"") -> 
K85: =IFERROR(VLOOKUP($J85,'COST_ITEM _BILL'!$B$4:$H$25000,2,0),"") -> 0 | L85: =IFERROR(VLOOKUP($J85,'COST_ITEM _BILL'!$B$4:$H$25000,3,0),"") -> 0 | M85: =IFERROR(VLOOKUP($J85,'COST_ITEM _BILL'!$B$4:$H$25000,4,0),"") -> 0 | O85: =IFERROR(VLOOKUP($K85,'COST_ITEM _BILL'!$C$3:$G$220000,5,0),"") -> 
K86: =IFERROR(VLOOKUP($J86,'COST_ITEM _BILL'!$B$4:$H$25000,2,0),"") -> 0 | L86: =IFERROR(VLOOKUP($J86,'COST_ITEM _BILL'!$B$4:$H$25000,3,0),"") -> 0 | M86: =IFERROR(VLOOKUP($J86,'COST_ITEM _BILL'!$B$4:$H$25000,4,0),"") -> 0 | O86: =IFERROR(VLOOKUP($K86,'COST_ITEM _BILL'!$C$3:$G$220000,5,0),"") -> 
K87: =IFERROR(VLOOKUP($J87,'COST_ITEM _BILL'!$B$4:$H$25000,2,0),"") -> 0 | L87: =IFERROR(VLOOKUP($J87,'COST_ITEM _BILL'!$B$4:$H$25000,3,0),"") -> 0 | M87: =IFERROR(VLOOKUP($J87,'COST_ITEM _BILL'!$B$4:$H$25000,4,0),"") -> 0 | O87: =IFERROR(VLOOKUP($K87,'COST_ITEM _BILL'!$C$3:$G$220000,5,0),"") -> 
K88: =IFERROR(VLOOKUP($J88,'COST_ITEM _BILL'!$B$4:$H$25000,2,0),"") -> 0 | L88: =IFERROR(VLOOKUP($J88,'COST_ITEM _BILL'!$B$4:$H$25000,3,0),"") -> 0 | M88: =IFERROR(VLOOKUP($J88,'COST_ITEM _BILL'!$B$4:$H$25000,4,0),"") -> 0 | O88: =IFERROR(VLOOKUP($K88,'COST_ITEM _BILL'!$C$3:$G$220000,5,0),"") -> 
K89: =IFERROR(VLOOKUP($J89,'COST_ITEM _BILL'!$B$4:$H$25000,2,0),"") -> 0 | L89: =IFERROR(VLOOKUP($J89,'COST_ITEM _BILL'!$B$4:$H$25000,3,0),"") -> 0 | M89: =IFERROR(VLOOKUP($J89,'COST_ITEM _BILL'!$B$4:$H$25000,4,0),"") -> 0 | O89: =IFERROR(VLOOKUP($K89,'COST_ITEM _BILL'!$C$3:$G$220000,5,0),"") -> 
K90: =IFERROR(VLOOKUP($J90,'COST_ITEM _BILL'!$B$4:$H$25000,2,0),"") -> 0 | L90: =IFERROR(VLOOKUP($J90,'COST_ITEM _BILL'!$B$4:$H$25000,3,0),"") -> 0 | M90: =IFERROR(VLOOKUP($J90,'COST_ITEM _BILL'!$B$4:$H$25000,4,0),"") -> 0 | O90: =IFERROR(VLOOKUP($K90,'COST_ITEM _BILL'!$C$3:$G$220000,5,0),"") -> 
K91: =IFERROR(VLOOKUP($J91,'COST_ITEM _BILL'!$B$4:$H$25000,2,0),"") -> 0 | L91: =IFERROR(VLOOKUP($J91,'COST_ITEM _BILL'!$B$4:$H$25000,3,0),"") -> 0 | M91: =IFERROR(VLOOKUP($J91,'COST_ITEM _BILL'!$B$4:$H$25000,4,0),"") -> 0 | O91: =IFERROR(VLOOKUP($K91,'COST_ITEM _BILL'!$C$3:$G$220000,5,0),"") -> 
K92: =IFERROR(VLOOKUP($J92,'COST_ITEM _BILL'!$B$4:$H$25000,2,0),"") -> 0 | L92: =IFERROR(VLOOKUP($J92,'COST_ITEM _BILL'!$B$4:$H$25000,3,0),"") -> 0 | M92: =IFERROR(VLOOKUP($J92,'COST_ITEM _BILL'!$B$4:$H$25000,4,0),"") -> 0 | O92: =IFERROR(VLOOKUP($K92,'COST_ITEM _BILL'!$C$3:$G$220000,5,0),"") -> 
K93: =IFERROR(VLOOKUP($J93,'COST_ITEM _BILL'!$B$4:$H$25000,2,0),"") -> 0 | L93: =IFERROR(VLOOKUP($J93,'COST_ITEM _BILL'!$B$4:$H$25000,3,0),"") -> 0 | M93: =IFERROR(VLOOKUP($J93,'COST_ITEM _BILL'!$B$4:$H$25000,4,0),"") -> 0 | O93: =IFERROR(VLOOKUP($K93,'COST_ITEM _BILL'!$C$3:$G$220000,5,0),"") -> 
K94: =IFERROR(VLOOKUP($J94,'COST_ITEM _BILL'!$B$4:$H$25000,2,0),"") -> 0 | L94: =IFERROR(VLOOKUP($J94,'COST_ITEM _BILL'!$B$4:$H$25000,3,0),"") -> 0 | M94: =IFERROR(VLOOKUP($J94,'COST_ITEM _BILL'!$B$4:$H$25000,4,0),"") -> 0 | O94: =IFERROR(VLOOKUP($K94,'COST_ITEM _BILL'!$C$3:$G$220000,5,0),"") -> 
K95: =IFERROR(VLOOKUP($J95,'COST_ITEM _BILL'!$B$4:$H$25000,2,0),"") -> 0 | L95: =IFERROR(VLOOKUP($J95,'COST_ITEM _BILL'!$B$4:$H$25000,3,0),"") -> 0 | M95: =IFERROR(VLOOKUP($J95,'COST_ITEM _BILL'!$B$4:$H$25000,4,0),"") -> 0 | O95: =IFERROR(VLOOKUP($K95,'COST_ITEM _BILL'!$C$3:$G$220000,5,0),"") -> 
K96: =IFERROR(VLOOKUP($J96,'COST_ITEM _BILL'!$B$4:$H$25000,2,0),"") -> 0 | L96: =IFERROR(VLOOKUP($J96,'COST_ITEM _BILL'!$B$4:$H$25000,3,0),"") -> 0 | M96: =IFERROR(VLOOKUP($J96,'COST_ITEM _BILL'!$B$4:$H$25000,4,0),"") -> 0 | O96: =IFERROR(VLOOKUP($K96,'COST_ITEM _BILL'!$C$3:$G$220000,5,0),"") -> 
K97: =IFERROR(VLOOKUP($J97,'COST_ITEM _BILL'!$B$4:$H$25000,2,0),"") -> 0 | L97: =IFERROR(VLOOKUP($J97,'COST_ITEM _BILL'!$B$4:$H$25000,3,0),"") -> 0 | M97: =IFERROR(VLOOKUP($J97,'COST_ITEM _BILL'!$B$4:$H$25000,4,0),"") -> 0 | O97: =IFERROR(VLOOKUP($K97,'COST_ITEM _BILL'!$C$3:$G$220000,5,0),"") -> 
K98: =IFERROR(VLOOKUP($J98,'COST_ITEM _BILL'!$B$4:$H$25000,2,0),"") -> 0 | L98: =IFERROR(VLOOKUP($J98,'COST_ITEM _BILL'!$B$4:$H$25000,3,0),"") -> 0 | M98: =IFERROR(VLOOKUP($J98,'COST_ITEM _BILL'!$B$4:$H$25000,4,0),"") -> 0 | O98: =IFERROR(VLOOKUP($K98,'COST_ITEM _BILL'!$C$3:$G$220000,5,0),"") -> 
K99: =IFERROR(VLOOKUP($J99,'COST_ITEM _BILL'!$B$4:$H$25000,2,0),"") -> 0 | L99: =IFERROR(VLOOKUP($J99,'COST_ITEM _BILL'!$B$4:$H$25000,3,0),"") -> 0 | M99: =IFERROR(VLOOKUP($J99,'COST_ITEM _BILL'!$B$4:$H$25000,4,0),"") -> 0 | O99: =IFERROR(VLOOKUP($K99,'COST_ITEM _BILL'!$C$3:$G$220000,5,0),"") -> 
K100: =IFERROR(VLOOKUP($J100,'COST_ITEM _BILL'!$B$4:$H$25000,2,0),"") -> 0 | L100: =IFERROR(VLOOKUP($J100,'COST_ITEM _BILL'!$B$4:$H$25000,3,0),"") -> 0 | M100: =IFERROR(VLOOKUP($J100,'COST_ITEM _BILL'!$B$4:$H$25000,4,0),"") -> 0 | O100: =IFERROR(VLOOKUP($K100,'COST_ITEM _BILL'!$C$3:$G$220000,5,0),"") -> 
K101: =IFERROR(VLOOKUP($J101,'COST_ITEM _BILL'!$B$4:$H$25000,2,0),"") -> 0 | L101: =IFERROR(VLOOKUP($J101,'COST_ITEM _BILL'!$B$4:$H$25000,3,0),"") -> 0 | M101: =IFERROR(VLOOKUP($J101,'COST_ITEM _BILL'!$B$4:$H$25000,4,0),"") -> 0 | O101: =IFERROR(VLOOKUP($K101,'COST_ITEM _BILL'!$C$3:$G$220000,5,0),"") -> 
K102: =IFERROR(VLOOKUP($J102,'COST_ITEM _BILL'!$B$4:$H$25000,2,0),"") -> 0 | L102: =IFERROR(VLOOKUP($J102,'COST_ITEM _BILL'!$B$4:$H$25000,3,0),"") -> 0 | M102: =IFERROR(VLOOKUP($J102,'COST_ITEM _BILL'!$B$4:$H$25000,4,0),"") -> 0 | O102: =IFERROR(VLOOKUP($K102,'COST_ITEM _BILL'!$C$3:$G$220000,5,0),"") -> 
K103: =IFERROR(VLOOKUP($J103,'COST_ITEM _BILL'!$B$4:$H$25000,2,0),"") -> 0 | L103: =IFERROR(VLOOKUP($J103,'COST_ITEM _BILL'!$B$4:$H$25000,3,0),"") -> 0 | M103: =IFERROR(VLOOKUP($J103,'COST_ITEM _BILL'!$B$4:$H$25000,4,0),"") -> 0 | O103: =IFERROR(VLOOKUP($K103,'COST_ITEM _BILL'!$C$3:$G$220000,5,0),"") -> 
K104: =IFERROR(VLOOKUP($J104,'COST_ITEM _BILL'!$B$4:$H$25000,2,0),"") -> 0 | L104: =IFERROR(VLOOKUP($J104,'COST_ITEM _BILL'!$B$4:$H$25000,3,0),"") -> 0 | M104: =IFERROR(VLOOKUP($J104,'COST_ITEM _BILL'!$B$4:$H$25000,4,0),"") -> 0 | O104: =IFERROR(VLOOKUP($K104,'COST_ITEM _BILL'!$C$3:$G$220000,5,0),"") -> 
K105: =IFERROR(VLOOKUP($J105,'COST_ITEM _BILL'!$B$4:$H$25000,2,0),"") -> 0 | L105: =IFERROR(VLOOKUP($J105,'COST_ITEM _BILL'!$B$4:$H$25000,3,0),"") -> 0 | M105: =IFERROR(VLOOKUP($J105,'COST_ITEM _BILL'!$B$4:$H$25000,4,0),"") -> 0 | O105: =IFERROR(VLOOKUP($K105,'COST_ITEM _BILL'!$C$3:$G$220000,5,0),"") -> 
K106: =IFERROR(VLOOKUP($J106,'COST_ITEM _BILL'!$B$4:$H$25000,2,0),"") -> 0 | L106: =IFERROR(VLOOKUP($J106,'COST_ITEM _BILL'!$B$4:$H$25000,3,0),"") -> 0 | M106: =IFERROR(VLOOKUP($J106,'COST_ITEM _BILL'!$B$4:$H$25000,4,0),"") -> 0 | O106: =IFERROR(VLOOKUP($K106,'COST_ITEM _BILL'!$C$3:$G$220000,5,0),"") -> 
K107: =IFERROR(VLOOKUP($J107,'COST_ITEM _BILL'!$B$4:$H$25000,2,0),"") -> 0 | L107: =IFERROR(VLOOKUP($J107,'COST_ITEM _BILL'!$B$4:$H$25000,3,0),"") -> 0 | M107: =IFERROR(VLOOKUP($J107,'COST_ITEM _BILL'!$B$4:$H$25000,4,0),"") -> 0 | O107: =IFERROR(VLOOKUP($K107,'COST_ITEM _BILL'!$C$3:$G$220000,5,0),"") -> 
K108: =IFERROR(VLOOKUP($J108,'COST_ITEM _BILL'!$B$4:$H$25000,2,0),"") -> 0 | L108: =IFERROR(VLOOKUP($J108,'COST_ITEM _BILL'!$B$4:$H$25000,3,0),"") -> 0 | M108: =IFERROR(VLOOKUP($J108,'COST_ITEM _BILL'!$B$4:$H$25000,4,0),"") -> 0 | O108: =IFERROR(VLOOKUP($K108,'COST_ITEM _BILL'!$C$3:$G$220000,5,0),"") -> 
K109: =IFERROR(VLOOKUP($J109,'COST_ITEM _BILL'!$B$4:$H$25000,2,0),"") -> 0 | L109: =IFERROR(VLOOKUP($J109,'COST_ITEM _BILL'!$B$4:$H$25000,3,0),"") -> 0 | M109: =IFERROR(VLOOKUP($J109,'COST_ITEM _BILL'!$B$4:$H$25000,4,0),"") -> 0 | O109: =IFERROR(VLOOKUP($K109,'COST_ITEM _BILL'!$C$3:$G$220000,5,0),"") -> 
K110: =IFERROR(VLOOKUP($J110,'COST_ITEM _BILL'!$B$4:$H$25000,2,0),"") -> 0 | L110: =IFERROR(VLOOKUP($J110,'COST_ITEM _BILL'!$B$4:$H$25000,3,0),"") -> 0 | M110: =IFERROR(VLOOKUP($J110,'COST_ITEM _BILL'!$B$4:$H$25000,4,0),"") -> 0 | O110: =IFERROR(VLOOKUP($K110,'COST_ITEM _BILL'!$C$3:$G$220000,5,0),"") -> 
K111: =IFERROR(VLOOKUP($J111,'COST_ITEM _BILL'!$B$4:$H$25000,2,0),"") -> 0 | L111: =IFERROR(VLOOKUP($J111,'COST_ITEM _BILL'!$B$4:$H$25000,3,0),"") -> 0 | M111: =IFERROR(VLOOKUP($J111,'COST_ITEM _BILL'!$B$4:$H$25000,4,0),"") -> 0 | O111: =IFERROR(VLOOKUP($K111,'COST_ITEM _BILL'!$C$3:$G$220000,5,0),"") -> 
K112: =IFERROR(VLOOKUP($J112,'COST_ITEM _BILL'!$B$4:$H$25000,2,0),"") -> 0 | L112: =IFERROR(VLOOKUP($J112,'COST_ITEM _BILL'!$B$4:$H$25000,3,0),"") -> 0 | M112: =IFERROR(VLOOKUP($J112,'COST_ITEM _BILL'!$B$4:$H$25000,4,0),"") -> 0 | O112: =IFERROR(VLOOKUP($K112,'COST_ITEM _BILL'!$C$3:$G$220000,5,0),"") -> 
K113: =IFERROR(VLOOKUP($J113,'COST_ITEM _BILL'!$B$4:$H$25000,2,0),"") -> 0 | L113: =IFERROR(VLOOKUP($J113,'COST_ITEM _BILL'!$B$4:$H$25000,3,0),"") -> 0 | M113: =IFERROR(VLOOKUP($J113,'COST_ITEM _BILL'!$B$4:$H$25000,4,0),"") -> 0 | O113: =IFERROR(VLOOKUP($K113,'COST_ITEM _BILL'!$C$3:$G$220000,5,0),"") -> 
K114: =IFERROR(VLOOKUP($J114,'COST_ITEM _BILL'!$B$4:$H$25000,2,0),"") -> 0 | L114: =IFERROR(VLOOKUP($J114,'COST_ITEM _BILL'!$B$4:$H$25000,3,0),"") -> 0 | M114: =IFERROR(VLOOKUP($J114,'COST_ITEM _BILL'!$B$4:$H$25000,4,0),"") -> 0 | O114: =IFERROR(VLOOKUP($K114,'COST_ITEM _BILL'!$C$3:$G$220000,5,0),"") -> 
K115: =IFERROR(VLOOKUP($J115,'COST_ITEM _BILL'!$B$4:$H$25000,2,0),"") -> 0 | L115: =IFERROR(VLOOKUP($J115,'COST_ITEM _BILL'!$B$4:$H$25000,3,0),"") -> 0 | M115: =IFERROR(VLOOKUP($J115,'COST_ITEM _BILL'!$B$4:$H$25000,4,0),"") -> 0 | O115: =IFERROR(VLOOKUP($K115,'COST_ITEM _BILL'!$C$3:$G$220000,5,0),"") -> 
K116: =IFERROR(VLOOKUP($J116,'COST_ITEM _BILL'!$B$4:$H$25000,2,0),"") -> 0 | L116: =IFERROR(VLOOKUP($J116,'COST_ITEM _BILL'!$B$4:$H$25000,3,0),"") -> 0 | M116: =IFERROR(VLOOKUP($J116,'COST_ITEM _BILL'!$B$4:$H$25000,4,0),"") -> 0 | O116: =IFERROR(VLOOKUP($K116,'COST_ITEM _BILL'!$C$3:$G$220000,5,0),"") -> 
K117: =IFERROR(VLOOKUP($J117,'COST_ITEM _BILL'!$B$4:$H$25000,2,0),"") -> 0 | L117: =IFERROR(VLOOKUP($J117,'COST_ITEM _BILL'!$B$4:$H$25000,3,0),"") -> 0 | M117: =IFERROR(VLOOKUP($J117,'COST_ITEM _BILL'!$B$4:$H$25000,4,0),"") -> 0 | O117: =IFERROR(VLOOKUP($K117,'COST_ITEM _BILL'!$C$3:$G$220000,5,0),"") -> 
K118: =IFERROR(VLOOKUP($J118,'COST_ITEM _BILL'!$B$4:$H$25000,2,0),"") -> 0 | L118: =IFERROR(VLOOKUP($J118,'COST_ITEM _BILL'!$B$4:$H$25000,3,0),"") -> 0 | M118: =IFERROR(VLOOKUP($J118,'COST_ITEM _BILL'!$B$4:$H$25000,4,0),"") -> 0 | O118: =IFERROR(VLOOKUP($K118,'COST_ITEM _BILL'!$C$3:$G$220000,5,0),"") -> 
K119: =IFERROR(VLOOKUP($J119,'COST_ITEM _BILL'!$B$4:$H$25000,2,0),"") -> 0 | L119: =IFERROR(VLOOKUP($J119,'COST_ITEM _BILL'!$B$4:$H$25000,3,0),"") -> 0 | M119: =IFERROR(VLOOKUP($J119,'COST_ITEM _BILL'!$B$4:$H$25000,4,0),"") -> 0 | O119: =IFERROR(VLOOKUP($K119,'COST_ITEM _BILL'!$C$3:$G$220000,5,0),"") -> 
K120: =IFERROR(VLOOKUP($J120,'COST_ITEM _BILL'!$B$4:$H$25000,2,0),"") -> 0 | L120: =IFERROR(VLOOKUP($J120,'COST_ITEM _BILL'!$B$4:$H$25000,3,0),"") -> 0 | M120: =IFERROR(VLOOKUP($J120,'COST_ITEM _BILL'!$B$4:$H$25000,4,0),"") -> 0 | O120: =IFERROR(VLOOKUP($K120,'COST_ITEM _BILL'!$C$3:$G$220000,5,0),"") -> 
K121: =IFERROR(VLOOKUP($J121,'COST_ITEM _BILL'!$B$4:$H$25000,2,0),"") -> 0 | L121: =IFERROR(VLOOKUP($J121,'COST_ITEM _BILL'!$B$4:$H$25000,3,0),"") -> 0 | M121: =IFERROR(VLOOKUP($J121,'COST_ITEM _BILL'!$B$4:$H$25000,4,0),"") -> 0 | O121: =IFERROR(VLOOKUP($K121,'COST_ITEM _BILL'!$C$3:$G$220000,5,0),"") -> 
K122: =IFERROR(VLOOKUP($J122,'COST_ITEM _BILL'!$B$4:$H$25000,2,0),"") -> 0 | L122: =IFERROR(VLOOKUP($J122,'COST_ITEM _BILL'!$B$4:$H$25000,3,0),"") -> 0 | M122: =IFERROR(VLOOKUP($J122,'COST_ITEM _BILL'!$B$4:$H$25000,4,0),"") -> 0 | O122: =IFERROR(VLOOKUP($K122,'COST_ITEM _BILL'!$C$3:$G$220000,5,0),"") -> 
K123: =IFERROR(VLOOKUP($J123,'COST_ITEM _BILL'!$B$4:$H$25000,2,0),"") -> 0 | L123: =IFERROR(VLOOKUP($J123,'COST_ITEM _BILL'!$B$4:$H$25000,3,0),"") -> 0 | M123: =IFERROR(VLOOKUP($J123,'COST_ITEM _BILL'!$B$4:$H$25000,4,0),"") -> 0 | O123: =IFERROR(VLOOKUP($K123,'COST_ITEM _BILL'!$C$3:$G$220000,5,0),"") -> 
K124: =IFERROR(VLOOKUP($J124,'COST_ITEM _BILL'!$B$4:$H$25000,2,0),"") -> 0 | L124: =IFERROR(VLOOKUP($J124,'COST_ITEM _BILL'!$B$4:$H$25000,3,0),"") -> 0 | M124: =IFERROR(VLOOKUP($J124,'COST_ITEM _BILL'!$B$4:$H$25000,4,0),"") -> 0 | O124: =IFERROR(VLOOKUP($K124,'COST_ITEM _BILL'!$C$3:$G$220000,5,0),"") -> 
K125: =IFERROR(VLOOKUP($J125,'COST_ITEM _BILL'!$B$4:$H$25000,2,0),"") -> 0 | L125: =IFERROR(VLOOKUP($J125,'COST_ITEM _BILL'!$B$4:$H$25000,3,0),"") -> 0 | M125: =IFERROR(VLOOKUP($J125,'COST_ITEM _BILL'!$B$4:$H$25000,4,0),"") -> 0 | O125: =IFERROR(VLOOKUP($K125,'COST_ITEM _BILL'!$C$3:$G$220000,5,0),"") -> 
K126: =IFERROR(VLOOKUP($J126,'COST_ITEM _BILL'!$B$4:$H$25000,2,0),"") -> 0 | L126: =IFERROR(VLOOKUP($J126,'COST_ITEM _BILL'!$B$4:$H$25000,3,0),"") -> 0 | M126: =IFERROR(VLOOKUP($J126,'COST_ITEM _BILL'!$B$4:$H$25000,4,0),"") -> 0 | O126: =IFERROR(VLOOKUP($K126,'COST_ITEM _BILL'!$C$3:$G$220000,5,0),"") -> 
K127: =IFERROR(VLOOKUP($J127,'COST_ITEM _BILL'!$B$4:$H$25000,2,0),"") -> 0 | L127: =IFERROR(VLOOKUP($J127,'COST_ITEM _BILL'!$B$4:$H$25000,3,0),"") -> 0 | M127: =IFERROR(VLOOKUP($J127,'COST_ITEM _BILL'!$B$4:$H$25000,4,0),"") -> 0 | O127: =IFERROR(VLOOKUP($K127,'COST_ITEM _BILL'!$C$3:$G$220000,5,0),"") -> 
K128: =IFERROR(VLOOKUP($J128,'COST_ITEM _BILL'!$B$4:$H$25000,2,0),"") -> 0 | L128: =IFERROR(VLOOKUP($J128,'COST_ITEM _BILL'!$B$4:$H$25000,3,0),"") -> 0 | M128: =IFERROR(VLOOKUP($J128,'COST_ITEM _BILL'!$B$4:$H$25000,4,0),"") -> 0 | O128: =IFERROR(VLOOKUP($K128,'COST_ITEM _BILL'!$C$3:$G$220000,5,0),"") -> 
K129: =IFERROR(VLOOKUP($J129,'COST_ITEM _BILL'!$B$4:$H$25000,2,0),"") -> 0 | L129: =IFERROR(VLOOKUP($J129,'COST_ITEM _BILL'!$B$4:$H$25000,3,0),"") -> 0 | M129: =IFERROR(VLOOKUP($J129,'COST_ITEM _BILL'!$B$4:$H$25000,4,0),"") -> 0 | O129: =IFERROR(VLOOKUP($K129,'COST_ITEM _BILL'!$C$3:$G$220000,5,0),"") -> 
K130: =IFERROR(VLOOKUP($J130,'COST_ITEM _BILL'!$B$4:$H$25000,2,0),"") -> 0 | L130: =IFERROR(VLOOKUP($J130,'COST_ITEM _BILL'!$B$4:$H$25000,3,0),"") -> 0 | M130: =IFERROR(VLOOKUP($J130,'COST_ITEM _BILL'!$B$4:$H$25000,4,0),"") -> 0 | O130: =IFERROR(VLOOKUP($K130,'COST_ITEM _BILL'!$C$3:$G$220000,5,0),"") -> 
K131: =IFERROR(VLOOKUP($J131,'COST_ITEM _BILL'!$B$4:$H$25000,2,0),"") -> 0 | L131: =IFERROR(VLOOKUP($J131,'COST_ITEM _BILL'!$B$4:$H$25000,3,0),"") -> 0 | M131: =IFERROR(VLOOKUP($J131,'COST_ITEM _BILL'!$B$4:$H$25000,4,0),"") -> 0 | O131: =IFERROR(VLOOKUP($K131,'COST_ITEM _BILL'!$C$3:$G$220000,5,0),"") -> 
K132: =IFERROR(VLOOKUP($J132,'COST_ITEM _BILL'!$B$4:$H$25000,2,0),"") -> 0 | L132: =IFERROR(VLOOKUP($J132,'COST_ITEM _BILL'!$B$4:$H$25000,3,0),"") -> 0 | M132: =IFERROR(VLOOKUP($J132,'COST_ITEM _BILL'!$B$4:$H$25000,4,0),"") -> 0 | O132: =IFERROR(VLOOKUP($K132,'COST_ITEM _BILL'!$C$3:$G$220000,5,0),"") -> 
K133: =IFERROR(VLOOKUP($J133,'COST_ITEM _BILL'!$B$4:$H$25000,2,0),"") -> 0 | L133: =IFERROR(VLOOKUP($J133,'COST_ITEM _BILL'!$B$4:$H$25000,3,0),"") -> 0 | M133: =IFERROR(VLOOKUP($J133,'COST_ITEM _BILL'!$B$4:$H$25000,4,0),"") -> 0 | O133: =IFERROR(VLOOKUP($K133,'COST_ITEM _BILL'!$C$3:$G$220000,5,0),"") -> 
B134: =IF($E134<>"",TEXT($E134,"DDDD"),"") ->  | C134: =IF(E134<>"",TEXT(E134,"MMMM"),"") ->  | K134: =IFERROR(VLOOKUP($J134,'COST_ITEM _BILL'!$B$4:$H$25000,2,0),"") -> 0 | L134: =IFERROR(VLOOKUP($J134,'COST_ITEM _BILL'!$B$4:$H$25000,3,0),"") -> 0 | M134: =IFERROR(VLOOKUP($J134,'COST_ITEM _BILL'!$B$4:$H$25000,4,0),"") -> 0 | O134: =IFERROR(VLOOKUP($K134,'COST_ITEM _BILL'!$C$3:$G$220000,5,0),"") ->  | P134: =IFERROR(+N134*O134,"") -> 
D135: =IF(E135<>"",1+D134,"") ->  | K135: =IFERROR(VLOOKUP($J135,'COST_ITEM _BILL'!$B$4:$H$25000,2,0),"") -> 0 | L135: =IFERROR(VLOOKUP($J135,'COST_ITEM _BILL'!$B$4:$H$25000,3,0),"") -> 0 | M135: =IFERROR(VLOOKUP($J135,'COST_ITEM _BILL'!$B$4:$H$25000,4,0),"") -> 0 | O135: =IFERROR(VLOOKUP($K135,'COST_ITEM _BILL'!$C$3:$G$220000,5,0),"") -> 
K136: =IFERROR(VLOOKUP($J136,'COST_ITEM _BILL'!$B$4:$H$25000,2,0),"") -> 0 | L136: =IFERROR(VLOOKUP($J136,'COST_ITEM _BILL'!$B$4:$H$25000,3,0),"") -> 0 | M136: =IFERROR(VLOOKUP($J136,'COST_ITEM _BILL'!$B$4:$H$25000,4,0),"") -> 0 | O136: =IFERROR(VLOOKUP($K136,'COST_ITEM _BILL'!$C$3:$G$220000,5,0),"") -> 
K137: =IFERROR(VLOOKUP($J137,'COST_ITEM _BILL'!$B$4:$H$25000,2,0),"") -> 0 | L137: =IFERROR(VLOOKUP($J137,'COST_ITEM _BILL'!$B$4:$H$25000,3,0),"") -> 0 | M137: =IFERROR(VLOOKUP($J137,'COST_ITEM _BILL'!$B$4:$H$25000,4,0),"") -> 0 | O137: =IFERROR(VLOOKUP($K137,'COST_ITEM _BILL'!$C$3:$G$220000,5,0),"") -> 
K138: =IFERROR(VLOOKUP($J138,'COST_ITEM _BILL'!$B$4:$H$25000,2,0),"") -> 0 | L138: =IFERROR(VLOOKUP($J138,'COST_ITEM _BILL'!$B$4:$H$25000,3,0),"") -> 0 | M138: =IFERROR(VLOOKUP($J138,'COST_ITEM _BILL'!$B$4:$H$25000,4,0),"") -> 0 | O138: =IFERROR(VLOOKUP($K138,'COST_ITEM _BILL'!$C$3:$G$220000,5,0),"") -> 
K139: =IFERROR(VLOOKUP($J139,'COST_ITEM _BILL'!$B$4:$H$25000,2,0),"") -> 0 | L139: =IFERROR(VLOOKUP($J139,'COST_ITEM _BILL'!$B$4:$H$25000,3,0),"") -> 0 | M139: =IFERROR(VLOOKUP($J139,'COST_ITEM _BILL'!$B$4:$H$25000,4,0),"") -> 0 | O139: =IFERROR(VLOOKUP($K139,'COST_ITEM _BILL'!$C$3:$G$220000,5,0),"") -> 
K140: =IFERROR(VLOOKUP($J140,'COST_ITEM _BILL'!$B$4:$H$25000,2,0),"") -> 0 | L140: =IFERROR(VLOOKUP($J140,'COST_ITEM _BILL'!$B$4:$H$25000,3,0),"") -> 0 | M140: =IFERROR(VLOOKUP($J140,'COST_ITEM _BILL'!$B$4:$H$25000,4,0),"") -> 0 | O140: =IFERROR(VLOOKUP($K140,'COST_ITEM _BILL'!$C$3:$G$220000,5,0),"") -> 
K141: =IFERROR(VLOOKUP($J141,'COST_ITEM _BILL'!$B$4:$H$25000,2,0),"") -> 0 | L141: =IFERROR(VLOOKUP($J141,'COST_ITEM _BILL'!$B$4:$H$25000,3,0),"") -> 0 | M141: =IFERROR(VLOOKUP($J141,'COST_ITEM _BILL'!$B$4:$H$25000,4,0),"") -> 0 | O141: =IFERROR(VLOOKUP($K141,'COST_ITEM _BILL'!$C$3:$G$220000,5,0),"") -> 
K142: =IFERROR(VLOOKUP($J142,'COST_ITEM _BILL'!$B$4:$H$25000,2,0),"") -> 0 | L142: =IFERROR(VLOOKUP($J142,'COST_ITEM _BILL'!$B$4:$H$25000,3,0),"") -> 0 | M142: =IFERROR(VLOOKUP($J142,'COST_ITEM _BILL'!$B$4:$H$25000,4,0),"") -> 0 | O142: =IFERROR(VLOOKUP($K142,'COST_ITEM _BILL'!$C$3:$G$220000,5,0),"") -> 
K143: =IFERROR(VLOOKUP($J143,'COST_ITEM _BILL'!$B$4:$H$25000,2,0),"") -> 0 | L143: =IFERROR(VLOOKUP($J143,'COST_ITEM _BILL'!$B$4:$H$25000,3,0),"") -> 0 | M143: =IFERROR(VLOOKUP($J143,'COST_ITEM _BILL'!$B$4:$H$25000,4,0),"") -> 0 | O143: =IFERROR(VLOOKUP($K143,'COST_ITEM _BILL'!$C$3:$G$220000,5,0),"") -> 
K144: =IFERROR(VLOOKUP($J144,'COST_ITEM _BILL'!$B$4:$H$25000,2,0),"") -> 0 | L144: =IFERROR(VLOOKUP($J144,'COST_ITEM _BILL'!$B$4:$H$25000,3,0),"") -> 0 | M144: =IFERROR(VLOOKUP($J144,'COST_ITEM _BILL'!$B$4:$H$25000,4,0),"") -> 0 | O144: =IFERROR(VLOOKUP($K144,'COST_ITEM _BILL'!$C$3:$G$220000,5,0),"") -> 
K145: =IFERROR(VLOOKUP($J145,'COST_ITEM _BILL'!$B$4:$H$25000,2,0),"") -> 0 | L145: =IFERROR(VLOOKUP($J145,'COST_ITEM _BILL'!$B$4:$H$25000,3,0),"") -> 0 | M145: =IFERROR(VLOOKUP($J145,'COST_ITEM _BILL'!$B$4:$H$25000,4,0),"") -> 0 | O145: =IFERROR(VLOOKUP($K145,'COST_ITEM _BILL'!$C$3:$G$220000,5,0),"") -> 
K146: =IFERROR(VLOOKUP($J146,'COST_ITEM _BILL'!$B$4:$H$25000,2,0),"") -> 0 | L146: =IFERROR(VLOOKUP($J146,'COST_ITEM _BILL'!$B$4:$H$25000,3,0),"") -> 0 | M146: =IFERROR(VLOOKUP($J146,'COST_ITEM _BILL'!$B$4:$H$25000,4,0),"") -> 0 | O146: =IFERROR(VLOOKUP($K146,'COST_ITEM _BILL'!$C$3:$G$220000,5,0),"") -> 
K147: =IFERROR(VLOOKUP($J147,'COST_ITEM _BILL'!$B$4:$H$25000,2,0),"") -> 0 | L147: =IFERROR(VLOOKUP($J147,'COST_ITEM _BILL'!$B$4:$H$25000,3,0),"") -> 0 | M147: =IFERROR(VLOOKUP($J147,'COST_ITEM _BILL'!$B$4:$H$25000,4,0),"") -> 0 | O147: =IFERROR(VLOOKUP($K147,'COST_ITEM _BILL'!$C$3:$G$220000,5,0),"") -> 
K148: =IFERROR(VLOOKUP($J148,'COST_ITEM _BILL'!$B$4:$H$25000,2,0),"") -> 0 | L148: =IFERROR(VLOOKUP($J148,'COST_ITEM _BILL'!$B$4:$H$25000,3,0),"") -> 0 | M148: =IFERROR(VLOOKUP($J148,'COST_ITEM _BILL'!$B$4:$H$25000,4,0),"") -> 0 | O148: =IFERROR(VLOOKUP($K148,'COST_ITEM _BILL'!$C$3:$G$220000,5,0),"") -> 
K149: =IFERROR(VLOOKUP($J149,'COST_ITEM _BILL'!$B$4:$H$25000,2,0),"") -> 0 | L149: =IFERROR(VLOOKUP($J149,'COST_ITEM _BILL'!$B$4:$H$25000,3,0),"") -> 0 | M149: =IFERROR(VLOOKUP($J149,'COST_ITEM _BILL'!$B$4:$H$25000,4,0),"") -> 0 | O149: =IFERROR(VLOOKUP($K149,'COST_ITEM _BILL'!$C$3:$G$220000,5,0),"") -> 
K150: =IFERROR(VLOOKUP($J150,'COST_ITEM _BILL'!$B$4:$H$25000,2,0),"") -> 0 | L150: =IFERROR(VLOOKUP($J150,'COST_ITEM _BILL'!$B$4:$H$25000,3,0),"") -> 0 | M150: =IFERROR(VLOOKUP($J150,'COST_ITEM _BILL'!$B$4:$H$25000,4,0),"") -> 0 | O150: =IFERROR(VLOOKUP($K150,'COST_ITEM _BILL'!$C$3:$G$220000,5,0),"") -> 
K151: =IFERROR(VLOOKUP($J151,'COST_ITEM _BILL'!$B$4:$H$25000,2,0),"") -> 0 | L151: =IFERROR(VLOOKUP($J151,'COST_ITEM _BILL'!$B$4:$H$25000,3,0),"") -> 0 | M151: =IFERROR(VLOOKUP($J151,'COST_ITEM _BILL'!$B$4:$H$25000,4,0),"") -> 0 | O151: =IFERROR(VLOOKUP($K151,'COST_ITEM _BILL'!$C$3:$G$220000,5,0),"") -> 
K152: =IFERROR(VLOOKUP($J152,'COST_ITEM _BILL'!$B$4:$H$25000,2,0),"") -> 0 | L152: =IFERROR(VLOOKUP($J152,'COST_ITEM _BILL'!$B$4:$H$25000,3,0),"") -> 0 | M152: =IFERROR(VLOOKUP($J152,'COST_ITEM _BILL'!$B$4:$H$25000,4,0),"") -> 0 | O152: =IFERROR(VLOOKUP($K152,'COST_ITEM _BILL'!$C$3:$G$220000,5,0),"") -> 
K153: =IFERROR(VLOOKUP($J153,'COST_ITEM _BILL'!$B$4:$H$25000,2,0),"") -> 0 | L153: =IFERROR(VLOOKUP($J153,'COST_ITEM _BILL'!$B$4:$H$25000,3,0),"") -> 0 | M153: =IFERROR(VLOOKUP($J153,'COST_ITEM _BILL'!$B$4:$H$25000,4,0),"") -> 0 | O153: =IFERROR(VLOOKUP($K153,'COST_ITEM _BILL'!$C$3:$G$220000,5,0),"") -> 
K154: =IFERROR(VLOOKUP($J154,'COST_ITEM _BILL'!$B$4:$H$25000,2,0),"") -> 0 | L154: =IFERROR(VLOOKUP($J154,'COST_ITEM _BILL'!$B$4:$H$25000,3,0),"") -> 0 | M154: =IFERROR(VLOOKUP($J154,'COST_ITEM _BILL'!$B$4:$H$25000,4,0),"") -> 0 | O154: =IFERROR(VLOOKUP($K154,'COST_ITEM _BILL'!$C$3:$G$220000,5,0),"") -> 
K155: =IFERROR(VLOOKUP($J155,'COST_ITEM _BILL'!$B$4:$H$25000,2,0),"") -> 0 | L155: =IFERROR(VLOOKUP($J155,'COST_ITEM _BILL'!$B$4:$H$25000,3,0),"") -> 0 | M155: =IFERROR(VLOOKUP($J155,'COST_ITEM _BILL'!$B$4:$H$25000,4,0),"") -> 0 | O155: =IFERROR(VLOOKUP($K155,'COST_ITEM _BILL'!$C$3:$G$220000,5,0),"") -> 
K156: =IFERROR(VLOOKUP($J156,'COST_ITEM _BILL'!$B$4:$H$25000,2,0),"") -> 0 | L156: =IFERROR(VLOOKUP($J156,'COST_ITEM _BILL'!$B$4:$H$25000,3,0),"") -> 0 | M156: =IFERROR(VLOOKUP($J156,'COST_ITEM _BILL'!$B$4:$H$25000,4,0),"") -> 0 | O156: =IFERROR(VLOOKUP($K156,'COST_ITEM _BILL'!$C$3:$G$220000,5,0),"") -> 
K157: =IFERROR(VLOOKUP($J157,'COST_ITEM _BILL'!$B$4:$H$25000,2,0),"") -> 0 | L157: =IFERROR(VLOOKUP($J157,'COST_ITEM _BILL'!$B$4:$H$25000,3,0),"") -> 0 | M157: =IFERROR(VLOOKUP($J157,'COST_ITEM _BILL'!$B$4:$H$25000,4,0),"") -> 0 | O157: =IFERROR(VLOOKUP($K157,'COST_ITEM _BILL'!$C$3:$G$220000,5,0),"") -> 
K158: =IFERROR(VLOOKUP($J158,'COST_ITEM _BILL'!$B$4:$H$25000,2,0),"") -> 0 | L158: =IFERROR(VLOOKUP($J158,'COST_ITEM _BILL'!$B$4:$H$25000,3,0),"") -> 0 | M158: =IFERROR(VLOOKUP($J158,'COST_ITEM _BILL'!$B$4:$H$25000,4,0),"") -> 0 | O158: =IFERROR(VLOOKUP($K158,'COST_ITEM _BILL'!$C$3:$G$220000,5,0),"") -> 
K159: =IFERROR(VLOOKUP($J159,'COST_ITEM _BILL'!$B$4:$H$25000,2,0),"") -> 0 | L159: =IFERROR(VLOOKUP($J159,'COST_ITEM _BILL'!$B$4:$H$25000,3,0),"") -> 0 | M159: =IFERROR(VLOOKUP($J159,'COST_ITEM _BILL'!$B$4:$H$25000,4,0),"") -> 0 | O159: =IFERROR(VLOOKUP($K159,'COST_ITEM _BILL'!$C$3:$G$220000,5,0),"") -> 
K160: =IFERROR(VLOOKUP($J160,'COST_ITEM _BILL'!$B$4:$H$25000,2,0),"") -> 0 | L160: =IFERROR(VLOOKUP($J160,'COST_ITEM _BILL'!$B$4:$H$25000,3,0),"") -> 0 | M160: =IFERROR(VLOOKUP($J160,'COST_ITEM _BILL'!$B$4:$H$25000,4,0),"") -> 0 | O160: =IFERROR(VLOOKUP($K160,'COST_ITEM _BILL'!$C$3:$G$220000,5,0),"") -> 
K161: =IFERROR(VLOOKUP($J161,'COST_ITEM _BILL'!$B$4:$H$25000,2,0),"") -> 0 | L161: =IFERROR(VLOOKUP($J161,'COST_ITEM _BILL'!$B$4:$H$25000,3,0),"") -> 0 | M161: =IFERROR(VLOOKUP($J161,'COST_ITEM _BILL'!$B$4:$H$25000,4,0),"") -> 0 | O161: =IFERROR(VLOOKUP($K161,'COST_ITEM _BILL'!$C$3:$G$220000,5,0),"") -> 
K162: =IFERROR(VLOOKUP($J162,'COST_ITEM _BILL'!$B$4:$H$25000,2,0),"") -> 0 | L162: =IFERROR(VLOOKUP($J162,'COST_ITEM _BILL'!$B$4:$H$25000,3,0),"") -> 0 | M162: =IFERROR(VLOOKUP($J162,'COST_ITEM _BILL'!$B$4:$H$25000,4,0),"") -> 0 | O162: =IFERROR(VLOOKUP($K162,'COST_ITEM _BILL'!$C$3:$G$220000,5,0),"") -> 
K163: =IFERROR(VLOOKUP($J163,'COST_ITEM _BILL'!$B$4:$H$25000,2,0),"") -> 0 | L163: =IFERROR(VLOOKUP($J163,'COST_ITEM _BILL'!$B$4:$H$25000,3,0),"") -> 0 | M163: =IFERROR(VLOOKUP($J163,'COST_ITEM _BILL'!$B$4:$H$25000,4,0),"") -> 0 | O163: =IFERROR(VLOOKUP($K163,'COST_ITEM _BILL'!$C$3:$G$220000,5,0),"") -> 
K164: =IFERROR(VLOOKUP($J164,'COST_ITEM _BILL'!$B$4:$H$25000,2,0),"") -> 0 | L164: =IFERROR(VLOOKUP($J164,'COST_ITEM _BILL'!$B$4:$H$25000,3,0),"") -> 0 | M164: =IFERROR(VLOOKUP($J164,'COST_ITEM _BILL'!$B$4:$H$25000,4,0),"") -> 0 | O164: =IFERROR(VLOOKUP($K164,'COST_ITEM _BILL'!$C$3:$G$220000,5,0),"") -> 
K165: =IFERROR(VLOOKUP($J165,'COST_ITEM _BILL'!$B$4:$H$25000,2,0),"") -> 0 | L165: =IFERROR(VLOOKUP($J165,'COST_ITEM _BILL'!$B$4:$H$25000,3,0),"") -> 0 | M165: =IFERROR(VLOOKUP($J165,'COST_ITEM _BILL'!$B$4:$H$25000,4,0),"") -> 0 | O165: =IFERROR(VLOOKUP($K165,'COST_ITEM _BILL'!$C$3:$G$220000,5,0),"") -> 
K166: =IFERROR(VLOOKUP($J166,'COST_ITEM _BILL'!$B$4:$H$25000,2,0),"") -> 0 | L166: =IFERROR(VLOOKUP($J166,'COST_ITEM _BILL'!$B$4:$H$25000,3,0),"") -> 0 | M166: =IFERROR(VLOOKUP($J166,'COST_ITEM _BILL'!$B$4:$H$25000,4,0),"") -> 0 | O166: =IFERROR(VLOOKUP($K166,'COST_ITEM _BILL'!$C$3:$G$220000,5,0),"") -> 
K167: =IFERROR(VLOOKUP($J167,'COST_ITEM _BILL'!$B$4:$H$25000,2,0),"") -> 0 | L167: =IFERROR(VLOOKUP($J167,'COST_ITEM _BILL'!$B$4:$H$25000,3,0),"") -> 0 | M167: =IFERROR(VLOOKUP($J167,'COST_ITEM _BILL'!$B$4:$H$25000,4,0),"") -> 0 | O167: =IFERROR(VLOOKUP($K167,'COST_ITEM _BILL'!$C$3:$G$220000,5,0),"") -> 
K168: =IFERROR(VLOOKUP($J168,'COST_ITEM _BILL'!$B$4:$H$25000,2,0),"") -> 0 | L168: =IFERROR(VLOOKUP($J168,'COST_ITEM _BILL'!$B$4:$H$25000,3,0),"") -> 0 | M168: =IFERROR(VLOOKUP($J168,'COST_ITEM _BILL'!$B$4:$H$25000,4,0),"") -> 0 | O168: =IFERROR(VLOOKUP($K168,'COST_ITEM _BILL'!$C$3:$G$220000,5,0),"") -> 
K169: =IFERROR(VLOOKUP($J169,'COST_ITEM _BILL'!$B$4:$H$25000,2,0),"") -> 0 | L169: =IFERROR(VLOOKUP($J169,'COST_ITEM _BILL'!$B$4:$H$25000,3,0),"") -> 0 | M169: =IFERROR(VLOOKUP($J169,'COST_ITEM _BILL'!$B$4:$H$25000,4,0),"") -> 0 | O169: =IFERROR(VLOOKUP($K169,'COST_ITEM _BILL'!$C$3:$G$220000,5,0),"") -> 
K170: =IFERROR(VLOOKUP($J170,'COST_ITEM _BILL'!$B$4:$H$25000,2,0),"") -> 0 | L170: =IFERROR(VLOOKUP($J170,'COST_ITEM _BILL'!$B$4:$H$25000,3,0),"") -> 0 | M170: =IFERROR(VLOOKUP($J170,'COST_ITEM _BILL'!$B$4:$H$25000,4,0),"") -> 0 | O170: =IFERROR(VLOOKUP($K170,'COST_ITEM _BILL'!$C$3:$G$220000,5,0),"") -> 
K171: =IFERROR(VLOOKUP($J171,'COST_ITEM _BILL'!$B$4:$H$25000,2,0),"") -> 0 | L171: =IFERROR(VLOOKUP($J171,'COST_ITEM _BILL'!$B$4:$H$25000,3,0),"") -> 0 | M171: =IFERROR(VLOOKUP($J171,'COST_ITEM _BILL'!$B$4:$H$25000,4,0),"") -> 0 | O171: =IFERROR(VLOOKUP($K171,'COST_ITEM _BILL'!$C$3:$G$220000,5,0),"") -> 
K172: =IFERROR(VLOOKUP($J172,'COST_ITEM _BILL'!$B$4:$H$25000,2,0),"") -> 0 | L172: =IFERROR(VLOOKUP($J172,'COST_ITEM _BILL'!$B$4:$H$25000,3,0),"") -> 0 | M172: =IFERROR(VLOOKUP($J172,'COST_ITEM _BILL'!$B$4:$H$25000,4,0),"") -> 0 | O172: =IFERROR(VLOOKUP($K172,'COST_ITEM _BILL'!$C$3:$G$220000,5,0),"") -> 
K173: =IFERROR(VLOOKUP($J173,'COST_ITEM _BILL'!$B$4:$H$25000,2,0),"") -> 0 | L173: =IFERROR(VLOOKUP($J173,'COST_ITEM _BILL'!$B$4:$H$25000,3,0),"") -> 0 | M173: =IFERROR(VLOOKUP($J173,'COST_ITEM _BILL'!$B$4:$H$25000,4,0),"") -> 0 | O173: =IFERROR(VLOOKUP($K173,'COST_ITEM _BILL'!$C$3:$G$220000,5,0),"") -> 
K174: =IFERROR(VLOOKUP($J174,'COST_ITEM _BILL'!$B$4:$H$25000,2,0),"") -> 0 | L174: =IFERROR(VLOOKUP($J174,'COST_ITEM _BILL'!$B$4:$H$25000,3,0),"") -> 0 | M174: =IFERROR(VLOOKUP($J174,'COST_ITEM _BILL'!$B$4:$H$25000,4,0),"") -> 0 | O174: =IFERROR(VLOOKUP($K174,'COST_ITEM _BILL'!$C$3:$G$220000,5,0),"") -> 
K175: =IFERROR(VLOOKUP($J175,'COST_ITEM _BILL'!$B$4:$H$25000,2,0),"") -> 0 | L175: =IFERROR(VLOOKUP($J175,'COST_ITEM _BILL'!$B$4:$H$25000,3,0),"") -> 0 | M175: =IFERROR(VLOOKUP($J175,'COST_ITEM _BILL'!$B$4:$H$25000,4,0),"") -> 0 | O175: =IFERROR(VLOOKUP($K175,'COST_ITEM _BILL'!$C$3:$G$220000,5,0),"") -> 
K176: =IFERROR(VLOOKUP($J176,'COST_ITEM _BILL'!$B$4:$H$25000,2,0),"") -> 0 | L176: =IFERROR(VLOOKUP($J176,'COST_ITEM _BILL'!$B$4:$H$25000,3,0),"") -> 0 | M176: =IFERROR(VLOOKUP($J176,'COST_ITEM _BILL'!$B$4:$H$25000,4,0),"") -> 0 | O176: =IFERROR(VLOOKUP($K176,'COST_ITEM _BILL'!$C$3:$G$220000,5,0),"") -> 
K177: =IFERROR(VLOOKUP($J177,'COST_ITEM _BILL'!$B$4:$H$25000,2,0),"") -> 0 | L177: =IFERROR(VLOOKUP($J177,'COST_ITEM _BILL'!$B$4:$H$25000,3,0),"") -> 0 | M177: =IFERROR(VLOOKUP($J177,'COST_ITEM _BILL'!$B$4:$H$25000,4,0),"") -> 0 | O177: =IFERROR(VLOOKUP($K177,'COST_ITEM _BILL'!$C$3:$G$220000,5,0),"") -> 
K178: =IFERROR(VLOOKUP($J178,'COST_ITEM _BILL'!$B$4:$H$25000,2,0),"") -> 0 | L178: =IFERROR(VLOOKUP($J178,'COST_ITEM _BILL'!$B$4:$H$25000,3,0),"") -> 0 | M178: =IFERROR(VLOOKUP($J178,'COST_ITEM _BILL'!$B$4:$H$25000,4,0),"") -> 0 | O178: =IFERROR(VLOOKUP($K178,'COST_ITEM _BILL'!$C$3:$G$220000,5,0),"") -> 
K179: =IFERROR(VLOOKUP($J179,'COST_ITEM _BILL'!$B$4:$H$25000,2,0),"") -> 0 | L179: =IFERROR(VLOOKUP($J179,'COST_ITEM _BILL'!$B$4:$H$25000,3,0),"") -> 0 | M179: =IFERROR(VLOOKUP($J179,'COST_ITEM _BILL'!$B$4:$H$25000,4,0),"") -> 0 | O179: =IFERROR(VLOOKUP($K179,'COST_ITEM _BILL'!$C$3:$G$220000,5,0),"") -> 
K180: =IFERROR(VLOOKUP($J180,'COST_ITEM _BILL'!$B$4:$H$25000,2,0),"") -> 0 | L180: =IFERROR(VLOOKUP($J180,'COST_ITEM _BILL'!$B$4:$H$25000,3,0),"") -> 0 | M180: =IFERROR(VLOOKUP($J180,'COST_ITEM _BILL'!$B$4:$H$25000,4,0),"") -> 0 | O180: =IFERROR(VLOOKUP($K180,'COST_ITEM _BILL'!$C$3:$G$220000,5,0),"") -> 
K181: =IFERROR(VLOOKUP($J181,'COST_ITEM _BILL'!$B$4:$H$25000,2,0),"") -> 0 | L181: =IFERROR(VLOOKUP($J181,'COST_ITEM _BILL'!$B$4:$H$25000,3,0),"") -> 0 | M181: =IFERROR(VLOOKUP($J181,'COST_ITEM _BILL'!$B$4:$H$25000,4,0),"") -> 0 | O181: =IFERROR(VLOOKUP($K181,'COST_ITEM _BILL'!$C$3:$G$220000,5,0),"") -> 
K182: =IFERROR(VLOOKUP($J182,'COST_ITEM _BILL'!$B$4:$H$25000,2,0),"") -> 0 | L182: =IFERROR(VLOOKUP($J182,'COST_ITEM _BILL'!$B$4:$H$25000,3,0),"") -> 0 | M182: =IFERROR(VLOOKUP($J182,'COST_ITEM _BILL'!$B$4:$H$25000,4,0),"") -> 0 | O182: =IFERROR(VLOOKUP($K182,'COST_ITEM _BILL'!$C$3:$G$220000,5,0),"") -> 
K183: =IFERROR(VLOOKUP($J183,'COST_ITEM _BILL'!$B$4:$H$25000,2,0),"") -> 0 | L183: =IFERROR(VLOOKUP($J183,'COST_ITEM _BILL'!$B$4:$H$25000,3,0),"") -> 0 | M183: =IFERROR(VLOOKUP($J183,'COST_ITEM _BILL'!$B$4:$H$25000,4,0),"") -> 0 | O183: =IFERROR(VLOOKUP($K183,'COST_ITEM _BILL'!$C$3:$G$220000,5,0),"") -> 
K184: =IFERROR(VLOOKUP($J184,'COST_ITEM _BILL'!$B$4:$H$25000,2,0),"") -> 0 | L184: =IFERROR(VLOOKUP($J184,'COST_ITEM _BILL'!$B$4:$H$25000,3,0),"") -> 0 | M184: =IFERROR(VLOOKUP($J184,'COST_ITEM _BILL'!$B$4:$H$25000,4,0),"") -> 0 | O184: =IFERROR(VLOOKUP($K184,'COST_ITEM _BILL'!$C$3:$G$220000,5,0),"") -> 
K185: =IFERROR(VLOOKUP($J185,'COST_ITEM _BILL'!$B$4:$H$25000,2,0),"") -> 0 | L185: =IFERROR(VLOOKUP($J185,'COST_ITEM _BILL'!$B$4:$H$25000,3,0),"") -> 0 | M185: =IFERROR(VLOOKUP($J185,'COST_ITEM _BILL'!$B$4:$H$25000,4,0),"") -> 0 | O185: =IFERROR(VLOOKUP($K185,'COST_ITEM _BILL'!$C$3:$G$220000,5,0),"") -> 
K186: =IFERROR(VLOOKUP($J186,'COST_ITEM _BILL'!$B$4:$H$25000,2,0),"") -> 0 | L186: =IFERROR(VLOOKUP($J186,'COST_ITEM _BILL'!$B$4:$H$25000,3,0),"") -> 0 | M186: =IFERROR(VLOOKUP($J186,'COST_ITEM _BILL'!$B$4:$H$25000,4,0),"") -> 0 | O186: =IFERROR(VLOOKUP($K186,'COST_ITEM _BILL'!$C$3:$G$220000,5,0),"") -> 
K187: =IFERROR(VLOOKUP($J187,'COST_ITEM _BILL'!$B$4:$H$25000,2,0),"") -> 0 | L187: =IFERROR(VLOOKUP($J187,'COST_ITEM _BILL'!$B$4:$H$25000,3,0),"") -> 0 | M187: =IFERROR(VLOOKUP($J187,'COST_ITEM _BILL'!$B$4:$H$25000,4,0),"") -> 0 | O187: =IFERROR(VLOOKUP($K187,'COST_ITEM _BILL'!$C$3:$G$220000,5,0),"") -> 
K188: =IFERROR(VLOOKUP($J188,'COST_ITEM _BILL'!$B$4:$H$25000,2,0),"") -> 0 | L188: =IFERROR(VLOOKUP($J188,'COST_ITEM _BILL'!$B$4:$H$25000,3,0),"") -> 0 | M188: =IFERROR(VLOOKUP($J188,'COST_ITEM _BILL'!$B$4:$H$25000,4,0),"") -> 0 | O188: =IFERROR(VLOOKUP($K188,'COST_ITEM _BILL'!$C$3:$G$220000,5,0),"") -> 
K189: =IFERROR(VLOOKUP($J189,'COST_ITEM _BILL'!$B$4:$H$25000,2,0),"") -> 0 | L189: =IFERROR(VLOOKUP($J189,'COST_ITEM _BILL'!$B$4:$H$25000,3,0),"") -> 0 | M189: =IFERROR(VLOOKUP($J189,'COST_ITEM _BILL'!$B$4:$H$25000,4,0),"") -> 0 | O189: =IFERROR(VLOOKUP($K189,'COST_ITEM _BILL'!$C$3:$G$220000,5,0),"") -> 
K190: =IFERROR(VLOOKUP($J190,'COST_ITEM _BILL'!$B$4:$H$25000,2,0),"") -> 0 | L190: =IFERROR(VLOOKUP($J190,'COST_ITEM _BILL'!$B$4:$H$25000,3,0),"") -> 0 | M190: =IFERROR(VLOOKUP($J190,'COST_ITEM _BILL'!$B$4:$H$25000,4,0),"") -> 0 | O190: =IFERROR(VLOOKUP($K190,'COST_ITEM _BILL'!$C$3:$G$220000,5,0),"") -> 
K191: =IFERROR(VLOOKUP($J191,'COST_ITEM _BILL'!$B$4:$H$25000,2,0),"") -> 0 | L191: =IFERROR(VLOOKUP($J191,'COST_ITEM _BILL'!$B$4:$H$25000,3,0),"") -> 0 | M191: =IFERROR(VLOOKUP($J191,'COST_ITEM _BILL'!$B$4:$H$25000,4,0),"") -> 0 | O191: =IFERROR(VLOOKUP($K191,'COST_ITEM _BILL'!$C$3:$G$220000,5,0),"") -> 
K192: =IFERROR(VLOOKUP($J192,'COST_ITEM _BILL'!$B$4:$H$25000,2,0),"") -> 0 | L192: =IFERROR(VLOOKUP($J192,'COST_ITEM _BILL'!$B$4:$H$25000,3,0),"") -> 0 | M192: =IFERROR(VLOOKUP($J192,'COST_ITEM _BILL'!$B$4:$H$25000,4,0),"") -> 0 | O192: =IFERROR(VLOOKUP($K192,'COST_ITEM _BILL'!$C$3:$G$220000,5,0),"") -> 
K193: =IFERROR(VLOOKUP($J193,'COST_ITEM _BILL'!$B$4:$H$25000,2,0),"") -> 0 | L193: =IFERROR(VLOOKUP($J193,'COST_ITEM _BILL'!$B$4:$H$25000,3,0),"") -> 0 | M193: =IFERROR(VLOOKUP($J193,'COST_ITEM _BILL'!$B$4:$H$25000,4,0),"") -> 0 | O193: =IFERROR(VLOOKUP($K193,'COST_ITEM _BILL'!$C$3:$G$220000,5,0),"") -> 
K194: =IFERROR(VLOOKUP($J194,'COST_ITEM _BILL'!$B$4:$H$25000,2,0),"") -> 0 | L194: =IFERROR(VLOOKUP($J194,'COST_ITEM _BILL'!$B$4:$H$25000,3,0),"") -> 0 | M194: =IFERROR(VLOOKUP($J194,'COST_ITEM _BILL'!$B$4:$H$25000,4,0),"") -> 0 | O194: =IFERROR(VLOOKUP($K194,'COST_ITEM _BILL'!$C$3:$G$220000,5,0),"") -> 
K195: =IFERROR(VLOOKUP($J195,'COST_ITEM _BILL'!$B$4:$H$25000,2,0),"") -> 0 | L195: =IFERROR(VLOOKUP($J195,'COST_ITEM _BILL'!$B$4:$H$25000,3,0),"") -> 0 | M195: =IFERROR(VLOOKUP($J195,'COST_ITEM _BILL'!$B$4:$H$25000,4,0),"") -> 0 | O195: =IFERROR(VLOOKUP($K195,'COST_ITEM _BILL'!$C$3:$G$220000,5,0),"") -> 
K196: =IFERROR(VLOOKUP($J196,'COST_ITEM _BILL'!$B$4:$H$25000,2,0),"") -> 0 | L196: =IFERROR(VLOOKUP($J196,'COST_ITEM _BILL'!$B$4:$H$25000,3,0),"") -> 0 | M196: =IFERROR(VLOOKUP($J196,'COST_ITEM _BILL'!$B$4:$H$25000,4,0),"") -> 0 | O196: =IFERROR(VLOOKUP($K196,'COST_ITEM _BILL'!$C$3:$G$220000,5,0),"") -> 
K197: =IFERROR(VLOOKUP($J197,'COST_ITEM _BILL'!$B$4:$H$25000,2,0),"") -> 0 | L197: =IFERROR(VLOOKUP($J197,'COST_ITEM _BILL'!$B$4:$H$25000,3,0),"") -> 0 | M197: =IFERROR(VLOOKUP($J197,'COST_ITEM _BILL'!$B$4:$H$25000,4,0),"") -> 0 | O197: =IFERROR(VLOOKUP($K197,'COST_ITEM _BILL'!$C$3:$G$220000,5,0),"") -> 
B198: =IF($E198<>"",TEXT($E198,"DDDD"),"") ->  | C198: =IF(E198<>"",TEXT(E198,"MMMM"),"") ->  | K198: =IFERROR(VLOOKUP($J198,'COST_ITEM _BILL'!$B$4:$H$25000,2,0),"") -> 0 | L198: =IFERROR(VLOOKUP($J198,'COST_ITEM _BILL'!$B$4:$H$25000,3,0),"") -> 0 | M198: =IFERROR(VLOOKUP($J198,'COST_ITEM _BILL'!$B$4:$H$25000,4,0),"") -> 0 | O198: =IFERROR(VLOOKUP($K198,'COST_ITEM _BILL'!$C$3:$G$220000,5,0),"") ->  | P198: =IFERROR(+N198*O198,"") -> 
D199: =IF(E199<>"",1+D198,"") ->  | K199: =IFERROR(VLOOKUP($J199,'COST_ITEM _BILL'!$B$4:$H$25000,2,0),"") -> 0 | L199: =IFERROR(VLOOKUP($J199,'COST_ITEM _BILL'!$B$4:$H$25000,3,0),"") -> 0 | M199: =IFERROR(VLOOKUP($J199,'COST_ITEM _BILL'!$B$4:$H$25000,4,0),"") -> 0 | O199: =IFERROR(VLOOKUP($K199,'COST_ITEM _BILL'!$C$3:$G$220000,5,0),"") -> 
K200: =IFERROR(VLOOKUP($J200,'COST_ITEM _BILL'!$B$4:$H$25000,2,0),"") -> 0 | L200: =IFERROR(VLOOKUP($J200,'COST_ITEM _BILL'!$B$4:$H$25000,3,0),"") -> 0 | M200: =IFERROR(VLOOKUP($J200,'COST_ITEM _BILL'!$B$4:$H$25000,4,0),"") -> 0 | O200: =IFERROR(VLOOKUP($K200,'COST_ITEM _BILL'!$C$3:$G$220000,5,0),"") -> 
K201: =IFERROR(VLOOKUP($J201,'COST_ITEM _BILL'!$B$4:$H$25000,2,0),"") -> 0 | L201: =IFERROR(VLOOKUP($J201,'COST_ITEM _BILL'!$B$4:$H$25000,3,0),"") -> 0 | M201: =IFERROR(VLOOKUP($J201,'COST_ITEM _BILL'!$B$4:$H$25000,4,0),"") -> 0 | O201: =IFERROR(VLOOKUP($K201,'COST_ITEM _BILL'!$C$3:$G$220000,5,0),"") -> 
K202: =IFERROR(VLOOKUP($J202,'COST_ITEM _BILL'!$B$4:$H$25000,2,0),"") -> 0 | L202: =IFERROR(VLOOKUP($J202,'COST_ITEM _BILL'!$B$4:$H$25000,3,0),"") -> 0 | M202: =IFERROR(VLOOKUP($J202,'COST_ITEM _BILL'!$B$4:$H$25000,4,0),"") -> 0 | O202: =IFERROR(VLOOKUP($K202,'COST_ITEM _BILL'!$C$3:$G$220000,5,0),"") -> 
... 154 more rows

Sheet rebort_vendor
B1: اذن الإضافة | C1: المورد | D1: الصنف | E1: المخزن | F1: التاريخ | G1: التاريخ
F2: =">="&C3 -> >=45658 | G2: ="<="&C4 -> <=45931
B3: التاريخ من | C3: 2025-01-01 | F3: تقرير مفصل للموردين
B4: التاريخ الى | C4: 2025-10-01
B9: التاريخ | C9: اذن الإضافة | D9: كود المورد | E9: المورد | F9: الكود | G9: الصنف | H9: المخزن | I9: الوحدة | J9: الكمية | K9: السعر | L9: القيمة
B10: 2025-01-01 | C10: 251 | D10: 2001 | E10: نقدا | F10: 10001 | G10: حديد _ 12مم | H10: مواد البناء | I10: طن | J10: 500 | K10: 50 | L10: 25000
B11: 2025-03-01 | C11: 252 | D11: 2001 | E11: نقدا | F11: 20001 | G11: ماسورة 4بوصة pvc | H11: السباكة والصرف | I11: بالمتر | J11: 600 | K11: 60 | L11: 36000
B12: 2025-02-01 | C12: 253 | D12: 2001 | E12: نقدا | F12: 30001 | G12: كابل 3*4 ترموبلاست | H12: كهرباء | I12: بالمتر | J12: 100 | K12: 120 | L12: 12000
B13: 2025-04-01 | C13: 254 | D13: 2001 | E13: نقدا | F13: 40001 | G13: بوية صفراء | H13: الدهانات | I13: 5لتر | J13: 300 | K13: 60 | L13: 18000

Sheet rebort_customer
B1: الاذن | C1: اسم المشروع | D1: الاعمال | E1: المكان | F1: الصنف | G1: المخزن | H1: التاريخ | I1: التاريخ
H2: =">="&C3 -> >=45658 | I2: ="<="&C4 -> <=45778
B3: التاريخ من | C3: 2025-01-01
B4: التاريخ الى | C4: 2025-05-01 | E4: تقرير
B7: التاريخ | C7: الاذن | D7: اسم المشروع | E7: الاعمال | F7: المكان | G7: الكود | H7: الصنف | I7: المخزن | J7: الوحدة | K7: الكمية | L7: السعر | M7: القيمة
B8: 2025-01-01 | C8: 0250 | D8: الثلاجات | E8: بلاطات | F8: B1 | G8: 10001 | H8: حديد _ 12مم | I8: مواد البناء | J8: طن | K8: 50 | L8: 50 | M8: 2500
B9: 2025-02-01 | C9: 0251 | D9: الثلاجات | E9: بلاطات | F9: B1 | G9: 20001 | H9: ماسورة 4بوصة pvc | I9: السباكة والصرف | J9: بالمتر | K9: 50 | L9: 60 | M9: 3000
B10: 2025-03-01 | C10: 0253 | D10: الثلاجات | E10: بلاطات | F10: B2 | G10: 30001 | H10: كابل 3*4 ترموبلاست | I10: كهرباء | J10: بالمتر | K10: 50 | L10: 120 | M10: 6000
B11: 2025-04-01 | C11: 0254 | D11: الثلاجات | E11: بلاطات | F11: B3 | G11: 10001 | H11: حديد _ 12مم | I11: مواد البناء | J11: طن | K11: 120 | L11: 50 | M11: 6000

Sheet card_item
J1: =+I6 -> كمية الاضافة | L1: =SUM($I$7:$I$100000)+E4 -> 950 | M1: =+J6 -> كمية الصرف | N1: =SUM($J$7:$J$1000) -> 50 | O1: الرصيد
C2: اسم الصنف | D2: ماسورة 4بوصة pvc | G2: تاريخ البداية | H2: 2025-01-01 | J2: =+M6 -> قيمة الاضافة | L2: =SUM(M7:M202) -> 36000 | M2: =+N6 -> قيمة الصرف | N2: =SUM(N7:N12000) -> 3000 | O2: =+L1-N1 -> 900
D3: الوحدة | E3: رصيد افتتاحى | J3: متوسط السعر | L3: =+L2/L1 -> 37.89473684 | M3: =+J3 -> متوسط السعر | N3: =IFERROR(+N2/N1,"") -> 60
D4: =VLOOKUP($D$2,'COST_ITEM _BILL'!$C$4:$I$190000,3,0) -> بالمتر | E4: =VLOOKUP($D$2,'COST_ITEM _BILL'!$C$4:$I$190000,7,0) -> 350 | G4: تاريخ النهاية | H4: 2025-04-01
B6: م | C6: التاريخ | D6: رقم الاذن | E6: المخازن | F6: المورد/والصرف | G6: الاعمال | H6: المكان | I6: كمية الاضافة | J6: كمية الصرف | K6: الرصيد | L6: السعر | M6: قيمة الاضافة | N6: قيمة الصرف | O6: الرصيد
B7: =IF(C7<>"",1,"") -> 1 | C7: 2025-02-01 | D7: 0251 | E7: السباكة والصرف | F7: الثلاجات | G7: بلاطات | H7: B1 | J7: 50 | L7: 60 | N7: 3000 | O7: =+E4+I7-J7 -> 300
B8: =IF(C8<>"",B7+1,"") -> 2 | C8: 2025-03-01 | D8: 252 | E8: السباكة والصرف | F8: نقدا | I8: 600 | L8: 60 | M8: 36000 | O8: =+O7+I8-J8 -> 900
B9: =IF(C9<>"",B8+1,"") ->  | O9: =+O8+I9-J9 -> 900
O10: 900
O11: 900
O12: 900
O13: 900
O14: 900
O15: 900
O16: 900
O17: 900
O18: 900
O19: 900
O20: 900

Sheet cost_by_stok
B1: الاذن | C1: اسم المشروع | D1: الاعمال | E1: المكان | F1: الصنف | G1: المخزن | H1: التاريخ | I1: التاريخ
H2: =">="&C4 -> >=45658 | I2: ="<="&C5 -> <=46023
C3: =SUBTOTAL(9,$M$10:$M$170000) -> 60600 | D3: =SUBTOTAL(9,$M$10:$M$170000) -> 60600 | E3: =SUBTOTAL(9,$M$10:$M$170000) -> 60600 | F3: 60600 | G3: 60600
B4: التاريخ | C4: 2025-01-01
B5: التاريخ | C5: 2026-01-01
E6: تقرير التكلفة كاملة
B9: التاريخ | C9: الاذن | D9: اسم المشروع | E9: الاعمال | F9: المكان | G9: الكود | H9: الصنف | I9: المخزن | J9: الوحدة | K9: الكمية | L9: السعر | M9: القيمة
B10: 2025-01-01 | C10: 0250 | D10: الثلاجات | E10: دهانات | F10: B1 | G10: 10001 | H10: حديد _ 12مم | I10: مواد البناء | J10: طن | K10: 50 | L10: 50 | M10: 2500
B11: 2025-02-01 | C11: 0251 | D11: مصنع لبطاطس | E11: سباكة | F11: B1 | G11: 20001 | H11: ماسورة 4بوصة pvc | I11: السباكة والصرف | J11: بالمتر | K11: 50 | L11: 60 | M11: 3000
B12: 2025-03-01 | C12: 0253 | D12: المبانى الادارية | E12: كهرباء | F12: B2 | G12: 30001 | H12: كابل 3*4 ترموبلاست | I12: كهرباء | J12: بالمتر | K12: 50 | L12: 120 | M12: 6000
B13: 2025-04-01 | C13: 0254 | D13: الثلاجات | E13: نجارة | F13: B3 | G13: 10001 | H13: حديد _ 12مم | I13: مواد البناء | J13: طن | K13: 120 | L13: 50 | M13: 6000
B14: 2025-05-01 | C14: 0250 | D14: مصنع لبطاطس | E14: بلاطات | F14: B1 | G14: 10001 | H14: حديد _ 12مم | I14: مواد البناء | J14: طن | K14: 100 | L14: 50 | M14: 5000
B15: 2025-06-01 | C15: 0251 | D15: المبانى الادارية | E15: دهانات | F15: B1 | G15: 20001 | H15: ماسورة 4بوصة pvc | I15: السباكة والصرف | J15: بالمتر | K15: 20 | L15: 60 | M15: 1200
B16: 2025-07-01 | C16: 0253 | D16: الثلاجات | E16: سباكة | F16: B2 | G16: 30001 | H16: كابل 3*4 ترموبلاست | I16: كهرباء | J16: بالمتر | K16: 30 | L16: 120 | M16: 3600
B17: 2025-08-01 | C17: 0254 | D17: مصنع لبطاطس | E17: كهرباء | F17: B3 | G17: 10001 | H17: حديد _ 12مم | I17: مواد البناء | J17: طن | K17: 50 | L17: 50 | M17: 2500
B18: 2025-09-01 | C18: 0250 | D18: المبانى الادارية | E18: نجارة | F18: B1 | G18: 10001 | H18: حديد _ 12مم | I18: مواد البناء | J18: طن | K18: 60 | L18: 50 | M18: 3000
B19: 2025-10-01 | C19: 0251 | D19: الثلاجات | E19: بلاطات | F19: B1 | G19: 20001 | H19: ماسورة 4بوصة pvc | I19: السباكة والصرف | J19: بالمتر | K19: 70 | L19: 60 | M19: 4200
B20: 2025-11-01 | C20: 0253 | D20: مصنع لبطاطس | E20: دهانات | F20: B2 | G20: 30001 | H20: كابل 3*4 ترموبلاست | I20: كهرباء | J20: بالمتر | K20: 90 | L20: 120 | M20: 10800
B21: 2025-12-01 | C21: 0254 | D21: المبانى الادارية | E21: سباكة | F21: B3 | G21: 10001 | H21: حديد _ 12مم | I21: مواد البناء | J21: طن | K21: 20 | L21: 50 | M21: 1000
B22: 2025-04-01 | C22: 0250 | D22: الثلاجات | E22: كهرباء | F22: B1 | G22: 10001 | H22: حديد _ 12مم | I22: مواد البناء | J22: طن | K22: 30 | L22: 50 | M22: 1500
B23: 2025-05-01 | C23: 0251 | D23: مصنع لبطاطس | E23: نجارة | F23: B1 | G23: 20001 | H23: ماسورة 4بوصة pvc | I23: السباكة والصرف | J23: بالمتر | K23: 50 | L23: 60 | M23: 3000
B24: 2025-06-01 | C24: 0253 | D24: المبانى الادارية | E24: بلاطات | F24: B2 | G24: 30001 | H24: كابل 3*4 ترموبلاست | I24: كهرباء | J24: بالمتر | K24: 40 | L24: 120 | M24: 4800
B25: 2025-07-01 | C25: 0254 | D25: الثلاجات | E25: بلاطات | F25: B3 | G25: 10001 | H25: حديد _ 12مم | I25: مواد البناء | J25: طن | K25: 50 | L25: 50 | M25: 2500

Sheet COST_ITEM _BILL
B2: بيان بالاصناف والتوريدات كمية وقيمة | J2: كميات وقيمة الورد خلال كل شهر | AH2: الاجماليات
B3: الكود | C3: الصنف | D3: مخزن | E3: الوحدة | F3: الكمية | G3: متوسط السعر | H3: القيمة | I3: رصيد افتتاحى | J3: يناير | L3: فبراير | N3: مارس | P3: أبريل | R3: مايو | T3: يونيو | V3: يوليو | X3: أغسطس | Z3: سبتمبر | AB3: أكتوبر | AD3: نوفمبر | AF3: ديسمبر | AH3: الاجمالى الكمية | AI3: متوسط السعر | AJ3: اجمالى القيمة
B4: 10001 | C4: حديد _ 12مم | D4: مواد البناء | E4: طن | F4: =IF($E4<>"",SUMIFS(bill!$K$5:$K$150000,bill!$H$5:$H$150000,$C4),"") -> 500 | G4: =IFERROR(IF($F$1<>"","",H4/F4),"") -> 50 | H4: =+SUMIFS(bill!$M$5:$M$250000,bill!$H$5:$H$250000,$C4) -> 25000 | I4: 100 | J4: =IFERROR(SUMIFS(bill!$K$5:$K$120000,bill!$A$5:$A$120000,J$3,bill!$H$5:$H$120000,$C4),"") -> 500 | K4: =IFERROR(IF($G$4<>"",$J4*$G4,""),"") -> 25000 | L4: =IFERROR(SUMIFS(bill!$K$5:$K$120000,bill!$A$5:$A$120000,L$3,bill!$H$5:$H$120000,$C4),"") -> 0 | M4: =IF($G4<>"",L4*$G4,"") -> 0 | N4: =IFERROR(SUMIFS(bill!$K$5:$K$120000,bill!$A$5:$A$120000,N$3,bill!$H$5:$H$120000,$C4),"") -> 0 | O4: =IF($G4<>"",N4*$G4,"") -> 0 | P4: =IFERROR(SUMIFS(bill!$K$5:$K$120000,bill!$A$5:$A$120000,P$3,bill!$H$5:$H$120000,$C4),"") -> 0 | Q4: =IF($G4<>"",P4*$G4,"") -> 0 | R4: =IFERROR(SUMIFS(bill!$K$5:$K$120000,bill!$A$5:$A$120000,R$3,bill!$H$5:$H$120000,$C4),"") -> 0 | S4: =IF($G4<>"",R4*$G4,"") -> 0 | T4: =IFERROR(SUMIFS(bill!$K$5:$K$120000,bill!$A$5:$A$120000,T$3,bill!$H$5:$H$120000,$C4),"") -> 0 | U4: =IF($G4<>"",T4*$G4,"") -> 0 | V4: =IFERROR(SUMIFS(bill!$K$5:$K$120000,bill!$A$5:$A$120000,V$3,bill!$H$5:$H$120000,$C4),"") -> 0 | W4: =IF($G4<>"",V4*$G4,"") -> 0 | X4: =IFERROR(SUMIFS(bill!$K$5:$K$120000,bill!$A$5:$A$120000,X$3,bill!$H$5:$H$120000,$C4),"") -> 0 | Y4: =IF($G4<>"",X4*$G4,"") -> 0 | Z4: =IFERROR(SUMIFS(bill!$K$5:$K$120000,bill!$A$5:$A$120000,Z$3,bill!$H$5:$H$120000,$C4),"") -> 0 | AA4: =IF($G4<>"",Z4*$G4,"") -> 0 | AB4: =IFERROR(SUMIFS(bill!$K$5:$K$120000,bill!$A$5:$A$120000,AB$3,bill!$H$5:$H$120000,$C4),"") -> 0 | AC4: =IF($G4<>"",AB4*$G4,"") -> 0 | AD4: =IFERROR(SUMIFS(bill!$K$5:$K$120000,bill!$A$5:$A$120000,AD$3,bill!$H$5:$H$120000,$C4),"") -> 0 | AE4: =IF($G4<>"",AD4*$G4,"") -> 0 | AF4: =IFERROR(SUMIFS(bill!$K$5:$K$120000,bill!$A$5:$A$120000,AF$3,bill!$H$5:$H$120000,$C4),"") -> 0 | AG4: =IF($G4<>"",AF4*$G4,"") -> 0 | AH4: =IFERROR(+AF4+AD4+AB4+Z4+X4+V4+T4+R4+P4+N4+L4+J4,"") -> 500 | AI4: =IFERROR(+AJ4/AH4,"") -> 50 | AJ4: =IFERROR(+AG4+AE4+AC4+AA4+Y4+W4+U4+S4+Q4+O4+M4+K4,"") -> 25000
B5: 20001 | C5: ماسورة 4بوصة pvc | D5: السباكة والصرف | E5: بالمتر | F5: =IF($E5<>"",SUMIFS(bill!$K$5:$K$150000,bill!$H$5:$H$150000,$C5),"") -> 600 | G5: =IFERROR(IF($F$1<>"","",H5/F5),"") -> 60 | H5: =+SUMIFS(bill!$M$5:$M$250000,bill!$H$5:$H$250000,$C5) -> 36000 | I5: 350 | J5: =IFERROR(SUMIFS(bill!$K$5:$K$120000,bill!$A$5:$A$120000,J$3,bill!$H$5:$H$120000,$C5),"") -> 0 | K5: =IFERROR(IF($G$4<>"",$J5*$G5,""),"") -> 0 | L5: =IFERROR(SUMIFS(bill!$K$5:$K$120000,bill!$A$5:$A$120000,L$3,bill!$H$5:$H$120000,$C5),"") -> 0 | M5: =IF($G5<>"",L5*$G5,"") -> 0 | N5: =IFERROR(SUMIFS(bill!$K$5:$K$120000,bill!$A$5:$A$120000,N$3,bill!$H$5:$H$120000,$C5),"") -> 600 | O5: =IF($G5<>"",N5*$G5,"") -> 36000 | P5: =IFERROR(SUMIFS(inv!$N$5:$N$120000,inv!$C$5:$C$120000,P$3,inv!$K$5:$K$120000,$C5),"") -> 0 | Q5: =IF($G5<>"",P5*$G5,"") -> 0 | R5: =IFERROR(SUMIFS(inv!$N$5:$N$120000,inv!$C$5:$C$120000,R$3,inv!$K$5:$K$120000,$C5),"") -> 50 | S5: =IF($G5<>"",R5*$G5,"") -> 3000 | T5: =IFERROR(SUMIFS(inv!$N$5:$N$120000,inv!$C$5:$C$120000,T$3,inv!$K$5:$K$120000,$C5),"") -> 20 | U5: =IF($G5<>"",T5*$G5,"") -> 1200 | V5: =IFERROR(SUMIFS(inv!$N$5:$N$120000,inv!$C$5:$C$120000,V$3,inv!$K$5:$K$120000,$C5),"") -> 0 | W5: =IF($G5<>"",V5*$G5,"") -> 0 | X5: =IFERROR(SUMIFS(inv!$N$5:$N$120000,inv!$C$5:$C$120000,X$3,inv!$K$5:$K$120000,$C5),"") -> 0 | Y5: =IF($G5<>"",X5*$G5,"") -> 0 | Z5: =IFERROR(SUMIFS(inv!$N$5:$N$120000,inv!$C$5:$C$120000,Z$3,inv!$K$5:$K$120000,$C5),"") -> 0 | AA5: =IF($G5<>"",Z5*$G5,"") -> 0 | AB5: =IFERROR(SUMIFS(inv!$N$5:$N$120000,inv!$C$5:$C$120000,AB$3,inv!$K$5:$K$120000,$C5),"") -> 70 | AC5: =IF($G5<>"",AB5*$G5,"") -> 4200 | AD5: =IFERROR(SUMIFS(inv!$N$5:$N$120000,inv!$C$5:$C$120000,AD$3,inv!$K$5:$K$120000,$C5),"") -> 0 | AE5: =IF($G5<>"",AD5*$G5,"") -> 0 | AF5: =IFERROR(SUMIFS(inv!$N$5:$N$120000,inv!$C$5:$C$120000,AF$3,inv!$K$5:$K$120000,$C5),"") -> 0 | AG5: =IF($G5<>"",AF5*$G5,"") -> 0 | AH5: =IFERROR(+AF5+AD5+AB5+Z5+X5+V5+T5+R5+P5+N5+L5+J5,"") -> 740 | AI5: =IFERROR(+AJ5/AH5,"") -> 60 | AJ5: =IFERROR(+AG5+AE5+AC5+AA5+Y5+W5+U5+S5+Q5+O5+M5+K5,"") -> 44400
B6: 30001 | C6: كابل 3*4 ترموبلاست | D6: كهرباء | E6: بالمتر | F6: =IF($E6<>"",SUMIFS(bill!$K$5:$K$150000,bill!$H$5:$H$150000,$C6),"") -> 100 | G6: 120 | H6: =+SUMIFS(bill!$M$5:$M$250000,bill!$H$5:$H$250000,$C6) -> 12000 | I6: 120 | J6: =IFERROR(SUMIFS(bill!$K$5:$K$120000,bill!$A$5:$A$120000,J$3,bill!$H$5:$H$120000,$C6),"") -> 0 | K6: 0 | L6: =IFERROR(SUMIFS(bill!$K$5:$K$120000,bill!$A$5:$A$120000,L$3,bill!$H$5:$H$120000,$C6),"") -> 100 | M6: 12000 | N6: =IFERROR(SUMIFS(bill!$K$5:$K$120000,bill!$A$5:$A$120000,N$3,bill!$H$5:$H$120000,$C6),"") -> 0 | O6: 0 | P6: =IFERROR(SUMIFS(inv!$N$5:$N$120000,inv!$C$5:$C$120000,P$3,inv!$K$5:$K$120000,$C6),"") -> 0 | Q6: 0 | R6: =IFERROR(SUMIFS(inv!$N$5:$N$120000,inv!$C$5:$C$120000,R$3,inv!$K$5:$K$120000,$C6),"") -> 0 | S6: 0 | T6: =IFERROR(SUMIFS(inv!$N$5:$N$120000,inv!$C$5:$C$120000,T$3,inv!$K$5:$K$120000,$C6),"") -> 40 | U6: 4800 | V6: =IFERROR(SUMIFS(inv!$N$5:$N$120000,inv!$C$5:$C$120000,V$3,inv!$K$5:$K$120000,$C6),"") -> 30 | W6: 3600 | X6: =IFERROR(SUMIFS(inv!$N$5:$N$120000,inv!$C$5:$C$120000,X$3,inv!$K$5:$K$120000,$C6),"") -> 0 | Y6: 0 | Z6: =IFERROR(SUMIFS(inv!$N$5:$N$120000,inv!$C$5:$C$120000,Z$3,inv!$K$5:$K$120000,$C6),"") -> 0 | AA6: 0 | AB6: =IFERROR(SUMIFS(inv!$N$5:$N$120000,inv!$C$5:$C$120000,AB$3,inv!$K$5:$K$120000,$C6),"") -> 0 | AC6: 0 | AD6: =IFERROR(SUMIFS(inv!$N$5:$N$120000,inv!$C$5:$C$120000,AD$3,inv!$K$5:$K$120000,$C6),"") -> 90 | AE6: 10800 | AF6: =IFERROR(SUMIFS(inv!$N$5:$N$120000,inv!$C$5:$C$120000,AF$3,inv!$K$5:$K$120000,$C6),"") -> 0 | AG6: 0 | AH6: 260 | AI6: 120 | AJ6: 31200
B7: 40001 | C7: بوية صفراء | D7: الدهانات | E7: 5لتر | F7: =IF($E7<>"",SUMIFS(bill!$K$5:$K$150000,bill!$H$5:$H$150000,$C7),"") -> 300 | G7: 60 | H7: =+SUMIFS(bill!$M$5:$M$250000,bill!$H$5:$H$250000,$C7) -> 18000 | J7: =IFERROR(SUMIFS(bill!$K$5:$K$120000,bill!$A$5:$A$120000,J$3,bill!$H$5:$H$120000,$C7),"") -> 0 | K7: 0 | L7: =IFERROR(SUMIFS(bill!$K$5:$K$120000,bill!$A$5:$A$120000,L$3,bill!$H$5:$H$120000,$C7),"") -> 0 | M7: 0 | N7: =IFERROR(SUMIFS(bill!$K$5:$K$120000,bill!$A$5:$A$120000,N$3,bill!$H$5:$H$120000,$C7),"") -> 0 | O7: 0 | P7: =IFERROR(SUMIFS(inv!$N$5:$N$120000,inv!$C$5:$C$120000,P$3,inv!$K$5:$K$120000,$C7),"") -> 0 | Q7: 0 | R7: =IFERROR(SUMIFS(inv!$N$5:$N$120000,inv!$C$5:$C$120000,R$3,inv!$K$5:$K$120000,$C7),"") -> 0 | S7: 0 | T7: =IFERROR(SUMIFS(inv!$N$5:$N$120000,inv!$C$5:$C$120000,T$3,inv!$K$5:$K$120000,$C7),"") -> 0 | U7: 0 | V7: =IFERROR(SUMIFS(inv!$N$5:$N$120000,inv!$C$5:$C$120000,V$3,inv!$K$5:$K$120000,$C7),"") -> 0 | W7: 0 | X7: =IFERROR(SUMIFS(inv!$N$5:$N$120000,inv!$C$5:$C$120000,X$3,inv!$K$5:$K$120000,$C7),"") -> 0 | Y7: 0 | Z7: =IFERROR(SUMIFS(inv!$N$5:$N$120000,inv!$C$5:$C$120000,Z$3,inv!$K$5:$K$120000,$C7),"") -> 0 | AA7: 0 | AB7: =IFERROR(SUMIFS(inv!$N$5:$N$120000,inv!$C$5:$C$120000,AB$3,inv!$K$5:$K$120000,$C7),"") -> 0 | AC7: 0 | AD7: =IFERROR(SUMIFS(inv!$N$5:$N$120000,inv!$C$5:$C$120000,AD$3,inv!$K$5:$K$120000,$C7),"") -> 0 | AE7: 0 | AF7: =IFERROR(SUMIFS(inv!$N$5:$N$120000,inv!$C$5:$C$120000,AF$3,inv!$K$5:$K$120000,$C7),"") -> 0 | AG7: 0 | AH7: 0 | AJ7: 0
B8: 50001 | C8: قوائم ستالنس | D8: جمالونات | E8: كيلو | F8: =IF($E8<>"",SUMIFS(bill!$K$5:$K$150000,bill!$H$5:$H$150000,$C8),"") -> 0 | H8: =+SUMIFS(bill!$M$5:$M$250000,bill!$H$5:$H$250000,$C8) -> 0 | J8: =IFERROR(SUMIFS(bill!$K$5:$K$120000,bill!$A$5:$A$120000,J$3,bill!$H$5:$H$120000,$C8),"") -> 0 | L8: =IFERROR(SUMIFS(bill!$K$5:$K$120000,bill!$A$5:$A$120000,L$3,bill!$H$5:$H$120000,$C8),"") -> 0 | N8: =IFERROR(SUMIFS(bill!$K$5:$K$120000,bill!$A$5:$A$120000,N$3,bill!$H$5:$H$120000,$C8),"") -> 0 | P8: =IFERROR(SUMIFS(inv!$N$5:$N$120000,inv!$C$5:$C$120000,P$3,inv!$K$5:$K$120000,$C8),"") -> 0 | R8: =IFERROR(SUMIFS(inv!$N$5:$N$120000,inv!$C$5:$C$120000,R$3,inv!$K$5:$K$120000,$C8),"") -> 0 | T8: =IFERROR(SUMIFS(inv!$N$5:$N$120000,inv!$C$5:$C$120000,T$3,inv!$K$5:$K$120000,$C8),"") -> 0 | V8: =IFERROR(SUMIFS(inv!$N$5:$N$120000,inv!$C$5:$C$120000,V$3,inv!$K$5:$K$120000,$C8),"") -> 0 | X8: =IFERROR(SUMIFS(inv!$N$5:$N$120000,inv!$C$5:$C$120000,X$3,inv!$K$5:$K$120000,$C8),"") -> 0 | Z8: =IFERROR(SUMIFS(inv!$N$5:$N$120000,inv!$C$5:$C$120000,Z$3,inv!$K$5:$K$120000,$C8),"") -> 0 | AB8: =IFERROR(SUMIFS(inv!$N$5:$N$120000,inv!$C$5:$C$120000,AB$3,inv!$K$5:$K$120000,$C8),"") -> 0 | AD8: =IFERROR(SUMIFS(inv!$N$5:$N$120000,inv!$C$5:$C$120000,AD$3,inv!$K$5:$K$120000,$C8),"") -> 0 | AF8: =IFERROR(SUMIFS(inv!$N$5:$N$120000,inv!$C$5:$C$120000,AF$3,inv!$K$5:$K$120000,$C8),"") -> 0 | AH8: 0
B9: 0 | F9: =IF($E9<>"",SUMIFS(bill!$K$5:$K$150000,bill!$H$5:$H$150000,$C9),"") ->  | H9: =+SUMIFS(bill!$M$5:$M$250000,bill!$H$5:$H$250000,$C9) -> 0 | J9: =IFERROR(SUMIFS(bill!$K$5:$K$120000,bill!$A$5:$A$120000,J$3,bill!$H$5:$H$120000,$C9),"") -> 0 | L9: =IFERROR(SUMIFS(bill!$K$5:$K$120000,bill!$A$5:$A$120000,L$3,bill!$H$5:$H$120000,$C9),"") -> 0 | N9: =IFERROR(SUMIFS(bill!$K$5:$K$120000,bill!$A$5:$A$120000,N$3,bill!$H$5:$H$120000,$C9),"") -> 0 | P9: =IFERROR(SUMIFS(inv!$N$5:$N$120000,inv!$C$5:$C$120000,P$3,inv!$K$5:$K$120000,$C9),"") -> 0 | R9: =IFERROR(SUMIFS(inv!$N$5:$N$120000,inv!$C$5:$C$120000,R$3,inv!$K$5:$K$120000,$C9),"") -> 0 | T9: =IFERROR(SUMIFS(inv!$N$5:$N$120000,inv!$C$5:$C$120000,T$3,inv!$K$5:$K$120000,$C9),"") -> 0 | V9: =IFERROR(SUMIFS(inv!$N$5:$N$120000,inv!$C$5:$C$120000,V$3,inv!$K$5:$K$120000,$C9),"") -> 0 | X9: =IFERROR(SUMIFS(inv!$N$5:$N$120000,inv!$C$5:$C$120000,X$3,inv!$K$5:$K$120000,$C9),"") -> 0 | Z9: =IFERROR(SUMIFS(inv!$N$5:$N$120000,inv!$C$5:$C$120000,Z$3,inv!$K$5:$K$120000,$C9),"") -> 0 | AB9: =IFERROR(SUMIFS(inv!$N$5:$N$120000,inv!$C$5:$C$120000,AB$3,inv!$K$5:$K$120000,$C9),"") -> 0 | AD9: =IFERROR(SUMIFS(inv!$N$5:$N$120000,inv!$C$5:$C$120000,AD$3,inv!$K$5:$K$120000,$C9),"") -> 0 | AF9: =IFERROR(SUMIFS(inv!$N$5:$N$120000,inv!$C$5:$C$120000,AF$3,inv!$K$5:$K$120000,$C9),"") -> 0 | AH9: 0
B10: 0 | F10: =IF($E10<>"",SUMIFS(bill!$K$5:$K$150000,bill!$H$5:$H$150000,$C10),"") ->  | H10: =+SUMIFS(bill!$M$5:$M$250000,bill!$H$5:$H$250000,$C10) -> 0 | J10: =IFERROR(SUMIFS(bill!$K$5:$K$120000,bill!$A$5:$A$120000,J$3,bill!$H$5:$H$120000,$C10),"") -> 0 | L10: =IFERROR(SUMIFS(bill!$K$5:$K$120000,bill!$A$5:$A$120000,L$3,bill!$H$5:$H$120000,$C10),"") -> 0 | N10: =IFERROR(SUMIFS(bill!$K$5:$K$120000,bill!$A$5:$A$120000,N$3,bill!$H$5:$H$120000,$C10),"") -> 0 | P10: =IFERROR(SUMIFS(inv!$N$5:$N$120000,inv!$C$5:$C$120000,P$3,inv!$K$5:$K$120000,$C10),"") -> 0 | R10: =IFERROR(SUMIFS(inv!$N$5:$N$120000,inv!$C$5:$C$120000,R$3,inv!$K$5:$K$120000,$C10),"") -> 0 | T10: =IFERROR(SUMIFS(inv!$N$5:$N$120000,inv!$C$5:$C$120000,T$3,inv!$K$5:$K$120000,$C10),"") -> 0 | V10: =IFERROR(SUMIFS(inv!$N$5:$N$120000,inv!$C$5:$C$120000,V$3,inv!$K$5:$K$120000,$C10),"") -> 0 | X10: =IFERROR(SUMIFS(inv!$N$5:$N$120000,inv!$C$5:$C$120000,X$3,inv!$K$5:$K$120000,$C10),"") -> 0 | Z10: =IFERROR(SUMIFS(inv!$N$5:$N$120000,inv!$C$5:$C$120000,Z$3,inv!$K$5:$K$120000,$C10),"") -> 0 | AB10: =IFERROR(SUMIFS(inv!$N$5:$N$120000,inv!$C$5:$C$120000,AB$3,inv!$K$5:$K$120000,$C10),"") -> 0 | AD10: =IFERROR(SUMIFS(inv!$N$5:$N$120000,inv!$C$5:$C$120000,AD$3,inv!$K$5:$K$120000,$C10),"") -> 0 | AF10: =IFERROR(SUMIFS(inv!$N$5:$N$120000,inv!$C$5:$C$120000,AF$3,inv!$K$5:$K$120000,$C10),"") -> 0 | AH10: 0
B11: 0 | F11: =IF($E11<>"",SUMIFS(bill!$K$5:$K$150000,bill!$H$5:$H$150000,$C11),"") ->  | H11: =+SUMIFS(bill!$M$5:$M$250000,bill!$H$5:$H$250000,$C11) -> 0 | J11: =IFERROR(SUMIFS(bill!$K$5:$K$120000,bill!$A$5:$A$120000,J$3,bill!$H$5:$H$120000,$C11),"") -> 0 | L11: =IFERROR(SUMIFS(bill!$K$5:$K$120000,bill!$A$5:$A$120000,L$3,bill!$H$5:$H$120000,$C11),"") -> 0 | N11: =IFERROR(SUMIFS(bill!$K$5:$K$120000,bill!$A$5:$A$120000,N$3,bill!$H$5:$H$120000,$C11),"") -> 0 | P11: =IFERROR(SUMIFS(inv!$N$5:$N$120000,inv!$C$5:$C$120000,P$3,inv!$K$5:$K$120000,$C11),"") -> 0 | R11: =IFERROR(SUMIFS(inv!$N$5:$N$120000,inv!$C$5:$C$120000,R$3,inv!$K$5:$K$120000,$C11),"") -> 0 | T11: =IFERROR(SUMIFS(inv!$N$5:$N$120000,inv!$C$5:$C$120000,T$3,inv!$K$5:$K$120000,$C11),"") -> 0 | V11: =IFERROR(SUMIFS(inv!$N$5:$N$120000,inv!$C$5:$C$120000,V$3,inv!$K$5:$K$120000,$C11),"") -> 0 | X11: =IFERROR(SUMIFS(inv!$N$5:$N$120000,inv!$C$5:$C$120000,X$3,inv!$K$5:$K$120000,$C11),"") -> 0 | Z11: =IFERROR(SUMIFS(inv!$N$5:$N$120000,inv!$C$5:$C$120000,Z$3,inv!$K$5:$K$120000,$C11),"") -> 0 | AB11: =IFERROR(SUMIFS(inv!$N$5:$N$120000,inv!$C$5:$C$120000,AB$3,inv!$K$5:$K$120000,$C11),"") -> 0 | AD11: =IFERROR(SUMIFS(inv!$N$5:$N$120000,inv!$C$5:$C$120000,AD$3,inv!$K$5:$K$120000,$C11),"") -> 0 | AF11: =IFERROR(SUMIFS(inv!$N$5:$N$120000,inv!$C$5:$C$120000,AF$3,inv!$K$5:$K$120000,$C11),"") -> 0 | AH11: 0
B12: 0 | F12: =IF($E12<>"",SUMIFS(bill!$K$5:$K$150000,bill!$H$5:$H$150000,$C12),"") ->  | H12: =+SUMIFS(bill!$M$5:$M$250000,bill!$H$5:$H$250000,$C12) -> 0 | J12: =IFERROR(SUMIFS(bill!$K$5:$K$120000,bill!$A$5:$A$120000,J$3,bill!$H$5:$H$120000,$C12),"") -> 0 | L12: =IFERROR(SUMIFS(bill!$K$5:$K$120000,bill!$A$5:$A$120000,L$3,bill!$H$5:$H$120000,$C12),"") -> 0 | N12: =IFERROR(SUMIFS(bill!$K$5:$K$120000,bill!$A$5:$A$120000,N$3,bill!$H$5:$H$120000,$C12),"") -> 0 | P12: =IFERROR(SUMIFS(inv!$N$5:$N$120000,inv!$C$5:$C$120000,P$3,inv!$K$5:$K$120000,$C12),"") -> 0 | R12: =IFERROR(SUMIFS(inv!$N$5:$N$120000,inv!$C$5:$C$120000,R$3,inv!$K$5:$K$120000,$C12),"") -> 0 | T12: =IFERROR(SUMIFS(inv!$N$5:$N$120000,inv!$C$5:$C$120000,T$3,inv!$K$5:$K$120000,$C12),"") -> 0 | V12: =IFERROR(SUMIFS(inv!$N$5:$N$120000,inv!$C$5:$C$120000,V$3,inv!$K$5:$K$120000,$C12),"") -> 0 | X12: =IFERROR(SUMIFS(inv!$N$5:$N$120000,inv!$C$5:$C$120000,X$3,inv!$K$5:$K$120000,$C12),"") -> 0 | Z12: =IFERROR(SUMIFS(inv!$N$5:$N$120000,inv!$C$5:$C$120000,Z$3,inv!$K$5:$K$120000,$C12),"") -> 0 | AB12: =IFERROR(SUMIFS(inv!$N$5:$N$120000,inv!$C$5:$C$120000,AB$3,inv!$K$5:$K$120000,$C12),"") -> 0 | AD12: =IFERROR(SUMIFS(inv!$N$5:$N$120000,inv!$C$5:$C$120000,AD$3,inv!$K$5:$K$120000,$C12),"") -> 0 | AF12: =IFERROR(SUMIFS(inv!$N$5:$N$120000,inv!$C$5:$C$120000,AF$3,inv!$K$5:$K$120000,$C12),"") -> 0 | AH12: 0
B13: 0 | F13: =IF($E13<>"",SUMIFS(bill!$K$5:$K$150000,bill!$H$5:$H$150000,$C13),"") ->  | H13: =+SUMIFS(bill!$M$5:$M$250000,bill!$H$5:$H$250000,$C13) -> 0 | J13: =IFERROR(SUMIFS(bill!$K$5:$K$120000,bill!$A$5:$A$120000,J$3,bill!$H$5:$H$120000,$C13),"") -> 0 | L13: =IFERROR(SUMIFS(bill!$K$5:$K$120000,bill!$A$5:$A$120000,L$3,bill!$H$5:$H$120000,$C13),"") -> 0 | N13: =IFERROR(SUMIFS(bill!$K$5:$K$120000,bill!$A$5:$A$120000,N$3,bill!$H$5:$H$120000,$C13),"") -> 0 | P13: =IFERROR(SUMIFS(inv!$N$5:$N$120000,inv!$C$5:$C$120000,P$3,inv!$K$5:$K$120000,$C13),"") -> 0 | R13: =IFERROR(SUMIFS(inv!$N$5:$N$120000,inv!$C$5:$C$120000,R$3,inv!$K$5:$K$120000,$C13),"") -> 0 | T13: =IFERROR(SUMIFS(inv!$N$5:$N$120000,inv!$C$5:$C$120000,T$3,inv!$K$5:$K$120000,$C13),"") -> 0 | V13: =IFERROR(SUMIFS(inv!$N$5:$N$120000,inv!$C$5:$C$120000,V$3,inv!$K$5:$K$120000,$C13),"") -> 0 | X13: =IFERROR(SUMIFS(inv!$N$5:$N$120000,inv!$C$5:$C$120000,X$3,inv!$K$5:$K$120000,$C13),"") -> 0 | Z13: =IFERROR(SUMIFS(inv!$N$5:$N$120000,inv!$C$5:$C$120000,Z$3,inv!$K$5:$K$120000,$C13),"") -> 0 | AB13: =IFERROR(SUMIFS(inv!$N$5:$N$120000,inv!$C$5:$C$120000,AB$3,inv!$K$5:$K$120000,$C13),"") -> 0 | AD13: =IFERROR(SUMIFS(inv!$N$5:$N$120000,inv!$C$5:$C$120000,AD$3,inv!$K$5:$K$120000,$C13),"") -> 0 | AF13: =IFERROR(SUMIFS(inv!$N$5:$N$120000,inv!$C$5:$C$120000,AF$3,inv!$K$5:$K$120000,$C13),"") -> 0 | AH13: 0
B14: 0 | F14: =IF($E14<>"",SUMIFS(bill!$K$5:$K$150000,bill!$H$5:$H$150000,$C14),"") ->  | H14: =+SUMIFS(bill!$M$5:$M$250000,bill!$H$5:$H$250000,$C14) -> 0 | J14: =IFERROR(SUMIFS(bill!$K$5:$K$120000,bill!$A$5:$A$120000,J$3,bill!$H$5:$H$120000,$C14),"") -> 0 | L14: =IFERROR(SUMIFS(bill!$K$5:$K$120000,bill!$A$5:$A$120000,L$3,bill!$H$5:$H$120000,$C14),"") -> 0 | N14: =IFERROR(SUMIFS(bill!$K$5:$K$120000,bill!$A$5:$A$120000,N$3,bill!$H$5:$H$120000,$C14),"") -> 0 | P14: =IFERROR(SUMIFS(inv!$N$5:$N$120000,inv!$C$5:$C$120000,P$3,inv!$K$5:$K$120000,$C14),"") -> 0 | R14: =IFERROR(SUMIFS(inv!$N$5:$N$120000,inv!$C$5:$C$120000,R$3,inv!$K$5:$K$120000,$C14),"") -> 0 | T14: =IFERROR(SUMIFS(inv!$N$5:$N$120000,inv!$C$5:$C$120000,T$3,inv!$K$5:$K$120000,$C14),"") -> 0 | V14: =IFERROR(SUMIFS(inv!$N$5:$N$120000,inv!$C$5:$C$120000,V$3,inv!$K$5:$K$120000,$C14),"") -> 0 | X14: =IFERROR(SUMIFS(inv!$N$5:$N$120000,inv!$C$5:$C$120000,X$3,inv!$K$5:$K$120000,$C14),"") -> 0 | Z14: =IFERROR(SUMIFS(inv!$N$5:$N$120000,inv!$C$5:$C$120000,Z$3,inv!$K$5:$K$120000,$C14),"") -> 0 | AB14: =IFERROR(SUMIFS(inv!$N$5:$N$120000,inv!$C$5:$C$120000,AB$3,inv!$K$5:$K$120000,$C14),"") -> 0 | AD14: =IFERROR(SUMIFS(inv!$N$5:$N$120000,inv!$C$5:$C$120000,AD$3,inv!$K$5:$K$120000,$C14),"") -> 0 | AF14: =IFERROR(SUMIFS(inv!$N$5:$N$120000,inv!$C$5:$C$120000,AF$3,inv!$K$5:$K$120000,$C14),"") -> 0 | AH14: 0
B15: 0 | F15: =IF($E15<>"",SUMIFS(bill!$K$5:$K$150000,bill!$H$5:$H$150000,$C15),"") ->  | H15: =+SUMIFS(bill!$M$5:$M$250000,bill!$H$5:$H$250000,$C15) -> 0 | J15: =IFERROR(SUMIFS(bill!$K$5:$K$120000,bill!$A$5:$A$120000,J$3,bill!$H$5:$H$120000,$C15),"") -> 0 | L15: =IFERROR(SUMIFS(bill!$K$5:$K$120000,bill!$A$5:$A$120000,L$3,bill!$H$5:$H$120000,$C15),"") -> 0 | N15: =IFERROR(SUMIFS(bill!$K$5:$K$120000,bill!$A$5:$A$120000,N$3,bill!$H$5:$H$120000,$C15),"") -> 0 | P15: =IFERROR(SUMIFS(inv!$N$5:$N$120000,inv!$C$5:$C$120000,P$3,inv!$K$5:$K$120000,$C15),"") -> 0 | R15: =IFERROR(SUMIFS(inv!$N$5:$N$120000,inv!$C$5:$C$120000,R$3,inv!$K$5:$K$120000,$C15),"") -> 0 | T15: =IFERROR(SUMIFS(inv!$N$5:$N$120000,inv!$C$5:$C$120000,T$3,inv!$K$5:$K$120000,$C15),"") -> 0 | V15: =IFERROR(SUMIFS(inv!$N$5:$N$120000,inv!$C$5:$C$120000,V$3,inv!$K$5:$K$120000,$C15),"") -> 0 | X15: =IFERROR(SUMIFS(inv!$N$5:$N$120000,inv!$C$5:$C$120000,X$3,inv!$K$5:$K$120000,$C15),"") -> 0 | Z15: =IFERROR(SUMIFS(inv!$N$5:$N$120000,inv!$C$5:$C$120000,Z$3,inv!$K$5:$K$120000,$C15),"") -> 0 | AB15: =IFERROR(SUMIFS(inv!$N$5:$N$120000,inv!$C$5:$C$120000,AB$3,inv!$K$5:$K$120000,$C15),"") -> 0 | AD15: =IFERROR(SUMIFS(inv!$N$5:$N$120000,inv!$C$5:$C$120000,AD$3,inv!$K$5:$K$120000,$C15),"") -> 0 | AF15: =IFERROR(SUMIFS(inv!$N$5:$N$120000,inv!$C$5:$C$120000,AF$3,inv!$K$5:$K$120000,$C15),"") -> 0 | AH15: 0
B16: 0 | F16: =IF($E16<>"",SUMIFS(bill!$K$5:$K$150000,bill!$H$5:$H$150000,$C16),"") ->  | H16: =+SUMIFS(bill!$M$5:$M$250000,bill!$H$5:$H$250000,$C16) -> 0 | J16: =IFERROR(SUMIFS(bill!$K$5:$K$120000,bill!$A$5:$A$120000,J$3,bill!$H$5:$H$120000,$C16),"") -> 0 | L16: =IFERROR(SUMIFS(bill!$K$5:$K$120000,bill!$A$5:$A$120000,L$3,bill!$H$5:$H$120000,$C16),"") -> 0 | N16: =IFERROR(SUMIFS(bill!$K$5:$K$120000,bill!$A$5:$A$120000,N$3,bill!$H$5:$H$120000,$C16),"") -> 0 | P16: =IFERROR(SUMIFS(inv!$N$5:$N$120000,inv!$C$5:$C$120000,P$3,inv!$K$5:$K$120000,$C16),"") -> 0 | R16: =IFERROR(SUMIFS(inv!$N$5:$N$120000,inv!$C$5:$C$120000,R$3,inv!$K$5:$K$120000,$C16),"") -> 0 | T16: =IFERROR(SUMIFS(inv!$N$5:$N$120000,inv!$C$5:$C$120000,T$3,inv!$K$5:$K$120000,$C16),"") -> 0 | V16: =IFERROR(SUMIFS(inv!$N$5:$N$120000,inv!$C$5:$C$120000,V$3,inv!$K$5:$K$120000,$C16),"") -> 0 | X16: =IFERROR(SUMIFS(inv!$N$5:$N$120000,inv!$C$5:$C$120000,X$3,inv!$K$5:$K$120000,$C16),"") -> 0 | Z16: =IFERROR(SUMIFS(inv!$N$5:$N$120000,inv!$C$5:$C$120000,Z$3,inv!$K$5:$K$120000,$C16),"") -> 0 | AB16: =IFERROR(SUMIFS(inv!$N$5:$N$120000,inv!$C$5:$C$120000,AB$3,inv!$K$5:$K$120000,$C16),"") -> 0 | AD16: =IFERROR(SUMIFS(inv!$N$5:$N$120000,inv!$C$5:$C$120000,AD$3,inv!$K$5:$K$120000,$C16),"") -> 0 | AF16: =IFERROR(SUMIFS(inv!$N$5:$N$120000,inv!$C$5:$C$120000,AF$3,inv!$K$5:$K$120000,$C16),"") -> 0 | AH16: 0
B17: 0 | F17: =IF($E17<>"",SUMIFS(bill!$K$5:$K$150000,bill!$H$5:$H$150000,$C17),"") ->  | H17: =+SUMIFS(bill!$M$5:$M$250000,bill!$H$5:$H$250000,$C17) -> 0 | J17: =IFERROR(SUMIFS(bill!$K$5:$K$120000,bill!$A$5:$A$120000,J$3,bill!$H$5:$H$120000,$C17),"") -> 0 | L17: =IFERROR(SUMIFS(bill!$K$5:$K$120000,bill!$A$5:$A$120000,L$3,bill!$H$5:$H$120000,$C17),"") -> 0 | N17: =IFERROR(SUMIFS(bill!$K$5:$K$120000,bill!$A$5:$A$120000,N$3,bill!$H$5:$H$120000,$C17),"") -> 0 | P17: =IFERROR(SUMIFS(inv!$N$5:$N$120000,inv!$C$5:$C$120000,P$3,inv!$K$5:$K$120000,$C17),"") -> 0 | R17: =IFERROR(SUMIFS(inv!$N$5:$N$120000,inv!$C$5:$C$120000,R$3,inv!$K$5:$K$120000,$C17),"") -> 0 | T17: =IFERROR(SUMIFS(inv!$N$5:$N$120000,inv!$C$5:$C$120000,T$3,inv!$K$5:$K$120000,$C17),"") -> 0 | V17: =IFERROR(SUMIFS(inv!$N$5:$N$120000,inv!$C$5:$C$120000,V$3,inv!$K$5:$K$120000,$C17),"") -> 0 | X17: =IFERROR(SUMIFS(inv!$N$5:$N$120000,inv!$C$5:$C$120000,X$3,inv!$K$5:$K$120000,$C17),"") -> 0 | Z17: =IFERROR(SUMIFS(inv!$N$5:$N$120000,inv!$C$5:$C$120000,Z$3,inv!$K$5:$K$120000,$C17),"") -> 0 | AB17: =IFERROR(SUMIFS(inv!$N$5:$N$120000,inv!$C$5:$C$120000,AB$3,inv!$K$5:$K$120000,$C17),"") -> 0 | AD17: =IFERROR(SUMIFS(inv!$N$5:$N$120000,inv!$C$5:$C$120000,AD$3,inv!$K$5:$K$120000,$C17),"") -> 0 | AF17: =IFERROR(SUMIFS(inv!$N$5:$N$120000,inv!$C$5:$C$120000,AF$3,inv!$K$5:$K$120000,$C17),"") -> 0 | AH17: 0
B18: 0 | F18: =IF($E18<>"",SUMIFS(bill!$K$5:$K$150000,bill!$H$5:$H$150000,$C18),"") ->  | H18: =+SUMIFS(bill!$M$5:$M$250000,bill!$H$5:$H$250000,$C18) -> 0 | J18: =IFERROR(SUMIFS(bill!$K$5:$K$120000,bill!$A$5:$A$120000,J$3,bill!$H$5:$H$120000,$C18),"") -> 0 | L18: =IFERROR(SUMIFS(bill!$K$5:$K$120000,bill!$A$5:$A$120000,L$3,bill!$H$5:$H$120000,$C18),"") -> 0 | N18: =IFERROR(SUMIFS(bill!$K$5:$K$120000,bill!$A$5:$A$120000,N$3,bill!$H$5:$H$120000,$C18),"") -> 0 | P18: =IFERROR(SUMIFS(inv!$N$5:$N$120000,inv!$C$5:$C$120000,P$3,inv!$K$5:$K$120000,$C18),"") -> 0 | R18: =IFERROR(SUMIFS(inv!$N$5:$N$120000,inv!$C$5:$C$120000,R$3,inv!$K$5:$K$120000,$C18),"") -> 0 | T18: =IFERROR(SUMIFS(inv!$N$5:$N$120000,inv!$C$5:$C$120000,T$3,inv!$K$5:$K$120000,$C18),"") -> 0 | V18: =IFERROR(SUMIFS(inv!$N$5:$N$120000,inv!$C$5:$C$120000,V$3,inv!$K$5:$K$120000,$C18),"") -> 0 | X18: =IFERROR(SUMIFS(inv!$N$5:$N$120000,inv!$C$5:$C$120000,X$3,inv!$K$5:$K$120000,$C18),"") -> 0 | Z18: =IFERROR(SUMIFS(inv!$N$5:$N$120000,inv!$C$5:$C$120000,Z$3,inv!$K$5:$K$120000,$C18),"") -> 0 | AB18: =IFERROR(SUMIFS(inv!$N$5:$N$120000,inv!$C$5:$C$120000,AB$3,inv!$K$5:$K$120000,$C18),"") -> 0 | AD18: =IFERROR(SUMIFS(inv!$N$5:$N$120000,inv!$C$5:$C$120000,AD$3,inv!$K$5:$K$120000,$C18),"") -> 0 | AF18: =IFERROR(SUMIFS(inv!$N$5:$N$120000,inv!$C$5:$C$120000,AF$3,inv!$K$5:$K$120000,$C18),"") -> 0 | AH18: 0
B19: 0 | F19: =IF($E19<>"",SUMIFS(bill!$K$5:$K$150000,bill!$H$5:$H$150000,$C19),"") ->  | H19: =+SUMIFS(bill!$M$5:$M$250000,bill!$H$5:$H$250000,$C19) -> 0 | J19: =IFERROR(SUMIFS(bill!$K$5:$K$120000,bill!$A$5:$A$120000,J$3,bill!$H$5:$H$120000,$C19),"") -> 0 | L19: =IFERROR(SUMIFS(bill!$K$5:$K$120000,bill!$A$5:$A$120000,L$3,bill!$H$5:$H$120000,$C19),"") -> 0 | N19: =IFERROR(SUMIFS(bill!$K$5:$K$120000,bill!$A$5:$A$120000,N$3,bill!$H$5:$H$120000,$C19),"") -> 0 | P19: =IFERROR(SUMIFS(inv!$N$5:$N$120000,inv!$C$5:$C$120000,P$3,inv!$K$5:$K$120000,$C19),"") -> 0 | R19: =IFERROR(SUMIFS(inv!$N$5:$N$120000,inv!$C$5:$C$120000,R$3,inv!$K$5:$K$120000,$C19),"") -> 0 | T19: =IFERROR(SUMIFS(inv!$N$5:$N$120000,inv!$C$5:$C$120000,T$3,inv!$K$5:$K$120000,$C19),"") -> 0 | V19: =IFERROR(SUMIFS(inv!$N$5:$N$120000,inv!$C$5:$C$120000,V$3,inv!$K$5:$K$120000,$C19),"") -> 0 | X19: =IFERROR(SUMIFS(inv!$N$5:$N$120000,inv!$C$5:$C$120000,X$3,inv!$K$5:$K$120000,$C19),"") -> 0 | Z19: =IFERROR(SUMIFS(inv!$N$5:$N$120000,inv!$C$5:$C$120000,Z$3,inv!$K$5:$K$120000,$C19),"") -> 0 | AB19: =IFERROR(SUMIFS(inv!$N$5:$N$120000,inv!$C$5:$C$120000,AB$3,inv!$K$5:$K$120000,$C19),"") -> 0 | AD19: =IFERROR(SUMIFS(inv!$N$5:$N$120000,inv!$C$5:$C$120000,AD$3,inv!$K$5:$K$120000,$C19),"") -> 0 | AF19: =IFERROR(SUMIFS(inv!$N$5:$N$120000,inv!$C$5:$C$120000,AF$3,inv!$K$5:$K$120000,$C19),"") -> 0 | AH19: 0
B20: 0 | F20: =IF($E20<>"",SUMIFS(bill!$K$5:$K$150000,bill!$H$5:$H$150000,$C20),"") ->  | H20: =+SUMIFS(bill!$M$5:$M$250000,bill!$H$5:$H$250000,$C20) -> 0 | J20: =IFERROR(SUMIFS(bill!$K$5:$K$120000,bill!$A$5:$A$120000,J$3,bill!$H$5:$H$120000,$C20),"") -> 0 | L20: =IFERROR(SUMIFS(bill!$K$5:$K$120000,bill!$A$5:$A$120000,L$3,bill!$H$5:$H$120000,$C20),"") -> 0 | N20: =IFERROR(SUMIFS(bill!$K$5:$K$120000,bill!$A$5:$A$120000,N$3,bill!$H$5:$H$120000,$C20),"") -> 0 | P20: =IFERROR(SUMIFS(inv!$N$5:$N$120000,inv!$C$5:$C$120000,P$3,inv!$K$5:$K$120000,$C20),"") -> 0 | R20: =IFERROR(SUMIFS(inv!$N$5:$N$120000,inv!$C$5:$C$120000,R$3,inv!$K$5:$K$120000,$C20),"") -> 0 | T20: =IFERROR(SUMIFS(inv!$N$5:$N$120000,inv!$C$5:$C$120000,T$3,inv!$K$5:$K$120000,$C20),"") -> 0 | V20: =IFERROR(SUMIFS(inv!$N$5:$N$120000,inv!$C$5:$C$120000,V$3,inv!$K$5:$K$120000,$C20),"") -> 0 | X20: =IFERROR(SUMIFS(inv!$N$5:$N$120000,inv!$C$5:$C$120000,X$3,inv!$K$5:$K$120000,$C20),"") -> 0 | Z20: =IFERROR(SUMIFS(inv!$N$5:$N$120000,inv!$C$5:$C$120000,Z$3,inv!$K$5:$K$120000,$C20),"") -> 0 | AB20: =IFERROR(SUMIFS(inv!$N$5:$N$120000,inv!$C$5:$C$120000,AB$3,inv!$K$5:$K$120000,$C20),"") -> 0 | AD20: =IFERROR(SUMIFS(inv!$N$5:$N$120000,inv!$C$5:$C$120000,AD$3,inv!$K$5:$K$120000,$C20),"") -> 0 | AF20: =IFERROR(SUMIFS(inv!$N$5:$N$120000,inv!$C$5:$C$120000,AF$3,inv!$K$5:$K$120000,$C20),"") -> 0 | AH20: 0
B21: 0 | F21: =IF($E21<>"",SUMIFS(bill!$K$5:$K$150000,bill!$H$5:$H$150000,$C21),"") ->  | H21: =+SUMIFS(bill!$M$5:$M$250000,bill!$H$5:$H$250000,$C21) -> 0 | J21: =IFERROR(SUMIFS(bill!$K$5:$K$120000,bill!$A$5:$A$120000,J$3,bill!$H$5:$H$120000,$C21),"") -> 0 | L21: =IFERROR(SUMIFS(bill!$K$5:$K$120000,bill!$A$5:$A$120000,L$3,bill!$H$5:$H$120000,$C21),"") -> 0 | N21: =IFERROR(SUMIFS(bill!$K$5:$K$120000,bill!$A$5:$A$120000,N$3,bill!$H$5:$H$120000,$C21),"") -> 0 | P21: =IFERROR(SUMIFS(inv!$N$5:$N$120000,inv!$C$5:$C$120000,P$3,inv!$K$5:$K$120000,$C21),"") -> 0 | R21: =IFERROR(SUMIFS(inv!$N$5:$N$120000,inv!$C$5:$C$120000,R$3,inv!$K$5:$K$120000,$C21),"") -> 0 | T21: =IFERROR(SUMIFS(inv!$N$5:$N$120000,inv!$C$5:$C$120000,T$3,inv!$K$5:$K$120000,$C21),"") -> 0 | V21: =IFERROR(SUMIFS(inv!$N$5:$N$120000,inv!$C$5:$C$120000,V$3,inv!$K$5:$K$120000,$C21),"") -> 0 | X21: =IFERROR(SUMIFS(inv!$N$5:$N$120000,inv!$C$5:$C$120000,X$3,inv!$K$5:$K$120000,$C21),"") -> 0 | Z21: =IFERROR(SUMIFS(inv!$N$5:$N$120000,inv!$C$5:$C$120000,Z$3,inv!$K$5:$K$120000,$C21),"") -> 0 | AB21: =IFERROR(SUMIFS(inv!$N$5:$N$120000,inv!$C$5:$C$120000,AB$3,inv!$K$5:$K$120000,$C21),"") -> 0 | AD21: =IFERROR(SUMIFS(inv!$N$5:$N$120000,inv!$C$5:$C$120000,AD$3,inv!$K$5:$K$120000,$C21),"") -> 0 | AF21: =IFERROR(SUMIFS(inv!$N$5:$N$120000,inv!$C$5:$C$120000,AF$3,inv!$K$5:$K$120000,$C21),"") -> 0 | AH21: 0
B22: 0 | F22: =IF($E22<>"",SUMIFS(bill!$K$5:$K$150000,bill!$H$5:$H$150000,$C22),"") ->  | H22: =+SUMIFS(bill!$M$5:$M$250000,bill!$H$5:$H$250000,$C22) -> 0 | J22: =IFERROR(SUMIFS(bill!$K$5:$K$120000,bill!$A$5:$A$120000,J$3,bill!$H$5:$H$120000,$C22),"") -> 0 | L22: =IFERROR(SUMIFS(bill!$K$5:$K$120000,bill!$A$5:$A$120000,L$3,bill!$H$5:$H$120000,$C22),"") -> 0 | N22: =IFERROR(SUMIFS(bill!$K$5:$K$120000,bill!$A$5:$A$120000,N$3,bill!$H$5:$H$120000,$C22),"") -> 0 | P22: =IFERROR(SUMIFS(inv!$N$5:$N$120000,inv!$C$5:$C$120000,P$3,inv!$K$5:$K$120000,$C22),"") -> 0 | R22: =IFERROR(SUMIFS(inv!$N$5:$N$120000,inv!$C$5:$C$120000,R$3,inv!$K$5:$K$120000,$C22),"") -> 0 | T22: =IFERROR(SUMIFS(inv!$N$5:$N$120000,inv!$C$5:$C$120000,T$3,inv!$K$5:$K$120000,$C22),"") -> 0 | V22: =IFERROR(SUMIFS(inv!$N$5:$N$120000,inv!$C$5:$C$120000,V$3,inv!$K$5:$K$120000,$C22),"") -> 0 | X22: =IFERROR(SUMIFS(inv!$N$5:$N$120000,inv!$C$5:$C$120000,X$3,inv!$K$5:$K$120000,$C22),"") -> 0 | Z22: =IFERROR(SUMIFS(inv!$N$5:$N$120000,inv!$C$5:$C$120000,Z$3,inv!$K$5:$K$120000,$C22),"") -> 0 | AB22: =IFERROR(SUMIFS(inv!$N$5:$N$120000,inv!$C$5:$C$120000,AB$3,inv!$K$5:$K$120000,$C22),"") -> 0 | AD22: =IFERROR(SUMIFS(inv!$N$5:$N$120000,inv!$C$5:$C$120000,AD$3,inv!$K$5:$K$120000,$C22),"") -> 0 | AF22: =IFERROR(SUMIFS(inv!$N$5:$N$120000,inv!$C$5:$C$120000,AF$3,inv!$K$5:$K$120000,$C22),"") -> 0 | AH22: 0
B23: 0 | F23: =IF($E23<>"",SUMIFS(bill!$K$5:$K$150000,bill!$H$5:$H$150000,$C23),"") ->  | H23: =+SUMIFS(bill!$M$5:$M$250000,bill!$H$5:$H$250000,$C23) -> 0 | J23: =IFERROR(SUMIFS(bill!$K$5:$K$120000,bill!$A$5:$A$120000,J$3,bill!$H$5:$H$120000,$C23),"") -> 0 | L23: =IFERROR(SUMIFS(bill!$K$5:$K$120000,bill!$A$5:$A$120000,L$3,bill!$H$5:$H$120000,$C23),"") -> 0 | N23: =IFERROR(SUMIFS(bill!$K$5:$K$120000,bill!$A$5:$A$120000,N$3,bill!$H$5:$H$120000,$C23),"") -> 0 | P23: =IFERROR(SUMIFS(inv!$N$5:$N$120000,inv!$C$5:$C$120000,P$3,inv!$K$5:$K$120000,$C23),"") -> 0 | R23: =IFERROR(SUMIFS(inv!$N$5:$N$120000,inv!$C$5:$C$120000,R$3,inv!$K$5:$K$120000,$C23),"") -> 0 | T23: =IFERROR(SUMIFS(inv!$N$5:$N$120000,inv!$C$5:$C$120000,T$3,inv!$K$5:$K$120000,$C23),"") -> 0 | V23: =IFERROR(SUMIFS(inv!$N$5:$N$120000,inv!$C$5:$C$120000,V$3,inv!$K$5:$K$120000,$C23),"") -> 0 | X23: =IFERROR(SUMIFS(inv!$N$5:$N$120000,inv!$C$5:$C$120000,X$3,inv!$K$5:$K$120000,$C23),"") -> 0 | Z23: =IFERROR(SUMIFS(inv!$N$5:$N$120000,inv!$C$5:$C$120000,Z$3,inv!$K$5:$K$120000,$C23),"") -> 0 | AB23: =IFERROR(SUMIFS(inv!$N$5:$N$120000,inv!$C$5:$C$120000,AB$3,inv!$K$5:$K$120000,$C23),"") -> 0 | AD23: =IFERROR(SUMIFS(inv!$N$5:$N$120000,inv!$C$5:$C$120000,AD$3,inv!$K$5:$K$120000,$C23),"") -> 0 | AF23: =IFERROR(SUMIFS(inv!$N$5:$N$120000,inv!$C$5:$C$120000,AF$3,inv!$K$5:$K$120000,$C23),"") -> 0 | AH23: 0
B24: 0 | F24: =IF($E24<>"",SUMIFS(bill!$K$5:$K$150000,bill!$H$5:$H$150000,$C24),"") ->  | H24: =+SUMIFS(bill!$M$5:$M$250000,bill!$H$5:$H$250000,$C24) -> 0 | J24: =IFERROR(SUMIFS(bill!$K$5:$K$120000,bill!$A$5:$A$120000,J$3,bill!$H$5:$H$120000,$C24),"") -> 0 | L24: =IFERROR(SUMIFS(bill!$K$5:$K$120000,bill!$A$5:$A$120000,L$3,bill!$H$5:$H$120000,$C24),"") -> 0 | N24: =IFERROR(SUMIFS(bill!$K$5:$K$120000,bill!$A$5:$A$120000,N$3,bill!$H$5:$H$120000,$C24),"") -> 0 | P24: =IFERROR(SUMIFS(inv!$N$5:$N$120000,inv!$C$5:$C$120000,P$3,inv!$K$5:$K$120000,$C24),"") -> 0 | R24: =IFERROR(SUMIFS(inv!$N$5:$N$120000,inv!$C$5:$C$120000,R$3,inv!$K$5:$K$120000,$C24),"") -> 0 | T24: =IFERROR(SUMIFS(inv!$N$5:$N$120000,inv!$C$5:$C$120000,T$3,inv!$K$5:$K$120000,$C24),"") -> 0 | V24: =IFERROR(SUMIFS(inv!$N$5:$N$120000,inv!$C$5:$C$120000,V$3,inv!$K$5:$K$120000,$C24),"") -> 0 | X24: =IFERROR(SUMIFS(inv!$N$5:$N$120000,inv!$C$5:$C$120000,X$3,inv!$K$5:$K$120000,$C24),"") -> 0 | Z24: =IFERROR(SUMIFS(inv!$N$5:$N$120000,inv!$C$5:$C$120000,Z$3,inv!$K$5:$K$120000,$C24),"") -> 0 | AB24: =IFERROR(SUMIFS(inv!$N$5:$N$120000,inv!$C$5:$C$120000,AB$3,inv!$K$5:$K$120000,$C24),"") -> 0 | AD24: =IFERROR(SUMIFS(inv!$N$5:$N$120000,inv!$C$5:$C$120000,AD$3,inv!$K$5:$K$120000,$C24),"") -> 0 | AF24: =IFERROR(SUMIFS(inv!$N$5:$N$120000,inv!$C$5:$C$120000,AF$3,inv!$K$5:$K$120000,$C24),"") -> 0 | AH24: 0
B25: 0 | F25: =IF($E25<>"",SUMIFS(bill!$K$5:$K$150000,bill!$H$5:$H$150000,$C25),"") ->  | H25: =+SUMIFS(bill!$M$5:$M$250000,bill!$H$5:$H$250000,$C25) -> 0 | J25: =IFERROR(SUMIFS(bill!$K$5:$K$120000,bill!$A$5:$A$120000,J$3,bill!$H$5:$H$120000,$C25),"") -> 0 | L25: =IFERROR(SUMIFS(bill!$K$5:$K$120000,bill!$A$5:$A$120000,L$3,bill!$H$5:$H$120000,$C25),"") -> 0 | N25: =IFERROR(SUMIFS(bill!$K$5:$K$120000,bill!$A$5:$A$120000,N$3,bill!$H$5:$H$120000,$C25),"") -> 0 | P25: =IFERROR(SUMIFS(inv!$N$5:$N$120000,inv!$C$5:$C$120000,P$3,inv!$K$5:$K$120000,$C25),"") -> 0 | R25: =IFERROR(SUMIFS(inv!$N$5:$N$120000,inv!$C$5:$C$120000,R$3,inv!$K$5:$K$120000,$C25),"") -> 0 | T25: =IFERROR(SUMIFS(inv!$N$5:$N$120000,inv!$C$5:$C$120000,T$3,inv!$K$5:$K$120000,$C25),"") -> 0 | V25: =IFERROR(SUMIFS(inv!$N$5:$N$120000,inv!$C$5:$C$120000,V$3,inv!$K$5:$K$120000,$C25),"") -> 0 | X25: =IFERROR(SUMIFS(inv!$N$5:$N$120000,inv!$C$5:$C$120000,X$3,inv!$K$5:$K$120000,$C25),"") -> 0 | Z25: =IFERROR(SUMIFS(inv!$N$5:$N$120000,inv!$C$5:$C$120000,Z$3,inv!$K$5:$K$120000,$C25),"") -> 0 | AB25: =IFERROR(SUMIFS(inv!$N$5:$N$120000,inv!$C$5:$C$120000,AB$3,inv!$K$5:$K$120000,$C25),"") -> 0 | AD25: =IFERROR(SUMIFS(inv!$N$5:$N$120000,inv!$C$5:$C$120000,AD$3,inv!$K$5:$K$120000,$C25),"") -> 0 | AF25: =IFERROR(SUMIFS(inv!$N$5:$N$120000,inv!$C$5:$C$120000,AF$3,inv!$K$5:$K$120000,$C25),"") -> 0 | AH25: 0
B26: 0 | F26: =IF($E26<>"",SUMIFS(bill!$K$5:$K$150000,bill!$H$5:$H$150000,$C26),"") ->  | H26: =+SUMIFS(bill!$M$5:$M$250000,bill!$H$5:$H$250000,$C26) -> 0 | J26: =IFERROR(SUMIFS(bill!$K$5:$K$120000,bill!$A$5:$A$120000,J$3,bill!$H$5:$H$120000,$C26),"") -> 0 | L26: =IFERROR(SUMIFS(bill!$K$5:$K$120000,bill!$A$5:$A$120000,L$3,bill!$H$5:$H$120000,$C26),"") -> 0 | N26: =IFERROR(SUMIFS(bill!$K$5:$K$120000,bill!$A$5:$A$120000,N$3,bill!$H$5:$H$120000,$C26),"") -> 0 | P26: =IFERROR(SUMIFS(inv!$N$5:$N$120000,inv!$C$5:$C$120000,P$3,inv!$K$5:$K$120000,$C26),"") -> 0 | R26: =IFERROR(SUMIFS(inv!$N$5:$N$120000,inv!$C$5:$C$120000,R$3,inv!$K$5:$K$120000,$C26),"") -> 0 | T26: =IFERROR(SUMIFS(inv!$N$5:$N$120000,inv!$C$5:$C$120000,T$3,inv!$K$5:$K$120000,$C26),"") -> 0 | V26: =IFERROR(SUMIFS(inv!$N$5:$N$120000,inv!$C$5:$C$120000,V$3,inv!$K$5:$K$120000,$C26),"") -> 0 | X26: =IFERROR(SUMIFS(inv!$N$5:$N$120000,inv!$C$5:$C$120000,X$3,inv!$K$5:$K$120000,$C26),"") -> 0 | Z26: =IFERROR(SUMIFS(inv!$N$5:$N$120000,inv!$C$5:$C$120000,Z$3,inv!$K$5:$K$120000,$C26),"") -> 0 | AB26: =IFERROR(SUMIFS(inv!$N$5:$N$120000,inv!$C$5:$C$120000,AB$3,inv!$K$5:$K$120000,$C26),"") -> 0 | AD26: =IFERROR(SUMIFS(inv!$N$5:$N$120000,inv!$C$5:$C$120000,AD$3,inv!$K$5:$K$120000,$C26),"") -> 0 | AF26: =IFERROR(SUMIFS(inv!$N$5:$N$120000,inv!$C$5:$C$120000,AF$3,inv!$K$5:$K$120000,$C26),"") -> 0 | AH26: 0
B27: 0 | F27: =IF($E27<>"",SUMIFS(bill!$K$5:$K$150000,bill!$H$5:$H$150000,$C27),"") ->  | H27: =+SUMIFS(bill!$M$5:$M$250000,bill!$H$5:$H$250000,$C27) -> 0 | J27: =IFERROR(SUMIFS(bill!$K$5:$K$120000,bill!$A$5:$A$120000,J$3,bill!$H$5:$H$120000,$C27),"") -> 0 | L27: =IFERROR(SUMIFS(bill!$K$5:$K$120000,bill!$A$5:$A$120000,L$3,bill!$H$5:$H$120000,$C27),"") -> 0 | N27: =IFERROR(SUMIFS(bill!$K$5:$K$120000,bill!$A$5:$A$120000,N$3,bill!$H$5:$H$120000,$C27),"") -> 0 | P27: =IFERROR(SUMIFS(inv!$N$5:$N$120000,inv!$C$5:$C$120000,P$3,inv!$K$5:$K$120000,$C27),"") -> 0 | R27: =IFERROR(SUMIFS(inv!$N$5:$N$120000,inv!$C$5:$C$120000,R$3,inv!$K$5:$K$120000,$C27),"") -> 0 | T27: =IFERROR(SUMIFS(inv!$N$5:$N$120000,inv!$C$5:$C$120000,T$3,inv!$K$5:$K$120000,$C27),"") -> 0 | V27: =IFERROR(SUMIFS(inv!$N$5:$N$120000,inv!$C$5:$C$120000,V$3,inv!$K$5:$K$120000,$C27),"") -> 0 | X27: =IFERROR(SUMIFS(inv!$N$5:$N$120000,inv!$C$5:$C$120000,X$3,inv!$K$5:$K$120000,$C27),"") -> 0 | Z27: =IFERROR(SUMIFS(inv!$N$5:$N$120000,inv!$C$5:$C$120000,Z$3,inv!$K$5:$K$120000,$C27),"") -> 0 | AB27: =IFERROR(SUMIFS(inv!$N$5:$N$120000,inv!$C$5:$C$120000,AB$3,inv!$K$5:$K$120000,$C27),"") -> 0 | AD27: =IFERROR(SUMIFS(inv!$N$5:$N$120000,inv!$C$5:$C$120000,AD$3,inv!$K$5:$K$120000,$C27),"") -> 0 | AF27: =IFERROR(SUMIFS(inv!$N$5:$N$120000,inv!$C$5:$C$120000,AF$3,inv!$K$5:$K$120000,$C27),"") -> 0 | AH27: 0
B28: 0 | F28: =IF($E28<>"",SUMIFS(bill!$K$5:$K$150000,bill!$H$5:$H$150000,$C28),"") ->  | H28: =+SUMIFS(bill!$M$5:$M$250000,bill!$H$5:$H$250000,$C28) -> 0 | J28: =IFERROR(SUMIFS(bill!$K$5:$K$120000,bill!$A$5:$A$120000,J$3,bill!$H$5:$H$120000,$C28),"") -> 0 | L28: =IFERROR(SUMIFS(bill!$K$5:$K$120000,bill!$A$5:$A$120000,L$3,bill!$H$5:$H$120000,$C28),"") -> 0 | N28: =IFERROR(SUMIFS(bill!$K$5:$K$120000,bill!$A$5:$A$120000,N$3,bill!$H$5:$H$120000,$C28),"") -> 0 | P28: =IFERROR(SUMIFS(inv!$N$5:$N$120000,inv!$C$5:$C$120000,P$3,inv!$K$5:$K$120000,$C28),"") -> 0 | R28: =IFERROR(SUMIFS(inv!$N$5:$N$120000,inv!$C$5:$C$120000,R$3,inv!$K$5:$K$120000,$C28),"") -> 0 | T28: =IFERROR(SUMIFS(inv!$N$5:$N$120000,inv!$C$5:$C$120000,T$3,inv!$K$5:$K$120000,$C28),"") -> 0 | V28: =IFERROR(SUMIFS(inv!$N$5:$N$120000,inv!$C$5:$C$120000,V$3,inv!$K$5:$K$120000,$C28),"") -> 0 | X28: =IFERROR(SUMIFS(inv!$N$5:$N$120000,inv!$C$5:$C$120000,X$3,inv!$K$5:$K$120000,$C28),"") -> 0 | Z28: =IFERROR(SUMIFS(inv!$N$5:$N$120000,inv!$C$5:$C$120000,Z$3,inv!$K$5:$K$120000,$C28),"") -> 0 | AB28: =IFERROR(SUMIFS(inv!$N$5:$N$120000,inv!$C$5:$C$120000,AB$3,inv!$K$5:$K$120000,$C28),"") -> 0 | AD28: =IFERROR(SUMIFS(inv!$N$5:$N$120000,inv!$C$5:$C$120000,AD$3,inv!$K$5:$K$120000,$C28),"") -> 0 | AF28: =IFERROR(SUMIFS(inv!$N$5:$N$120000,inv!$C$5:$C$120000,AF$3,inv!$K$5:$K$120000,$C28),"") -> 0 | AH28: 0
B29: 0 | F29: =IF($E29<>"",SUMIFS(bill!$K$5:$K$150000,bill!$H$5:$H$150000,$C29),"") ->  | H29: =+SUMIFS(bill!$M$5:$M$250000,bill!$H$5:$H$250000,$C29) -> 0 | J29: =IFERROR(SUMIFS(bill!$K$5:$K$120000,bill!$A$5:$A$120000,J$3,bill!$H$5:$H$120000,$C29),"") -> 0 | L29: =IFERROR(SUMIFS(bill!$K$5:$K$120000,bill!$A$5:$A$120000,L$3,bill!$H$5:$H$120000,$C29),"") -> 0 | N29: =IFERROR(SUMIFS(bill!$K$5:$K$120000,bill!$A$5:$A$120000,N$3,bill!$H$5:$H$120000,$C29),"") -> 0 | P29: =IFERROR(SUMIFS(inv!$N$5:$N$120000,inv!$C$5:$C$120000,P$3,inv!$K$5:$K$120000,$C29),"") -> 0 | R29: =IFERROR(SUMIFS(inv!$N$5:$N$120000,inv!$C$5:$C$120000,R$3,inv!$K$5:$K$120000,$C29),"") -> 0 | T29: =IFERROR(SUMIFS(inv!$N$5:$N$120000,inv!$C$5:$C$120000,T$3,inv!$K$5:$K$120000,$C29),"") -> 0 | V29: =IFERROR(SUMIFS(inv!$N$5:$N$120000,inv!$C$5:$C$120000,V$3,inv!$K$5:$K$120000,$C29),"") -> 0 | X29: =IFERROR(SUMIFS(inv!$N$5:$N$120000,inv!$C$5:$C$120000,X$3,inv!$K$5:$K$120000,$C29),"") -> 0 | Z29: =IFERROR(SUMIFS(inv!$N$5:$N$120000,inv!$C$5:$C$120000,Z$3,inv!$K$5:$K$120000,$C29),"") -> 0 | AB29: =IFERROR(SUMIFS(inv!$N$5:$N$120000,inv!$C$5:$C$120000,AB$3,inv!$K$5:$K$120000,$C29),"") -> 0 | AD29: =IFERROR(SUMIFS(inv!$N$5:$N$120000,inv!$C$5:$C$120000,AD$3,inv!$K$5:$K$120000,$C29),"") -> 0 | AF29: =IFERROR(SUMIFS(inv!$N$5:$N$120000,inv!$C$5:$C$120000,AF$3,inv!$K$5:$K$120000,$C29),"") -> 0 | AH29: 0
B30: 0 | F30: =IF($E30<>"",SUMIFS(bill!$K$5:$K$150000,bill!$H$5:$H$150000,$C30),"") ->  | H30: =+SUMIFS(bill!$M$5:$M$250000,bill!$H$5:$H$250000,$C30) -> 0 | J30: =IFERROR(SUMIFS(bill!$K$5:$K$120000,bill!$A$5:$A$120000,J$3,bill!$H$5:$H$120000,$C30),"") -> 0 | L30: =IFERROR(SUMIFS(bill!$K$5:$K$120000,bill!$A$5:$A$120000,L$3,bill!$H$5:$H$120000,$C30),"") -> 0 | N30: =IFERROR(SUMIFS(bill!$K$5:$K$120000,bill!$A$5:$A$120000,N$3,bill!$H$5:$H$120000,$C30),"") -> 0 | P30: =IFERROR(SUMIFS(inv!$N$5:$N$120000,inv!$C$5:$C$120000,P$3,inv!$K$5:$K$120000,$C30),"") -> 0 | R30: =IFERROR(SUMIFS(inv!$N$5:$N$120000,inv!$C$5:$C$120000,R$3,inv!$K$5:$K$120000,$C30),"") -> 0 | T30: =IFERROR(SUMIFS(inv!$N$5:$N$120000,inv!$C$5:$C$120000,T$3,inv!$K$5:$K$120000,$C30),"") -> 0 | V30: =IFERROR(SUMIFS(inv!$N$5:$N$120000,inv!$C$5:$C$120000,V$3,inv!$K$5:$K$120000,$C30),"") -> 0 | X30: =IFERROR(SUMIFS(inv!$N$5:$N$120000,inv!$C$5:$C$120000,X$3,inv!$K$5:$K$120000,$C30),"") -> 0 | Z30: =IFERROR(SUMIFS(inv!$N$5:$N$120000,inv!$C$5:$C$120000,Z$3,inv!$K$5:$K$120000,$C30),"") -> 0 | AB30: =IFERROR(SUMIFS(inv!$N$5:$N$120000,inv!$C$5:$C$120000,AB$3,inv!$K$5:$K$120000,$C30),"") -> 0 | AD30: =IFERROR(SUMIFS(inv!$N$5:$N$120000,inv!$C$5:$C$120000,AD$3,inv!$K$5:$K$120000,$C30),"") -> 0 | AF30: =IFERROR(SUMIFS(inv!$N$5:$N$120000,inv!$C$5:$C$120000,AF$3,inv!$K$5:$K$120000,$C30),"") -> 0 | AH30: 0
B31: 0 | F31: =IF($E31<>"",SUMIFS(bill!$K$5:$K$150000,bill!$H$5:$H$150000,$C31),"") ->  | H31: =+SUMIFS(bill!$M$5:$M$250000,bill!$H$5:$H$250000,$C31) -> 0 | J31: =IFERROR(SUMIFS(bill!$K$5:$K$120000,bill!$A$5:$A$120000,J$3,bill!$H$5:$H$120000,$C31),"") -> 0 | L31: =IFERROR(SUMIFS(bill!$K$5:$K$120000,bill!$A$5:$A$120000,L$3,bill!$H$5:$H$120000,$C31),"") -> 0 | N31: =IFERROR(SUMIFS(bill!$K$5:$K$120000,bill!$A$5:$A$120000,N$3,bill!$H$5:$H$120000,$C31),"") -> 0 | P31: =IFERROR(SUMIFS(inv!$N$5:$N$120000,inv!$C$5:$C$120000,P$3,inv!$K$5:$K$120000,$C31),"") -> 0 | R31: =IFERROR(SUMIFS(inv!$N$5:$N$120000,inv!$C$5:$C$120000,R$3,inv!$K$5:$K$120000,$C31),"") -> 0 | T31: =IFERROR(SUMIFS(inv!$N$5:$N$120000,inv!$C$5:$C$120000,T$3,inv!$K$5:$K$120000,$C31),"") -> 0 | V31: =IFERROR(SUMIFS(inv!$N$5:$N$120000,inv!$C$5:$C$120000,V$3,inv!$K$5:$K$120000,$C31),"") -> 0 | X31: =IFERROR(SUMIFS(inv!$N$5:$N$120000,inv!$C$5:$C$120000,X$3,inv!$K$5:$K$120000,$C31),"") -> 0 | Z31: =IFERROR(SUMIFS(inv!$N$5:$N$120000,inv!$C$5:$C$120000,Z$3,inv!$K$5:$K$120000,$C31),"") -> 0 | AB31: =IFERROR(SUMIFS(inv!$N$5:$N$120000,inv!$C$5:$C$120000,AB$3,inv!$K$5:$K$120000,$C31),"") -> 0 | AD31: =IFERROR(SUMIFS(inv!$N$5:$N$120000,inv!$C$5:$C$120000,AD$3,inv!$K$5:$K$120000,$C31),"") -> 0 | AF31: =IFERROR(SUMIFS(inv!$N$5:$N$120000,inv!$C$5:$C$120000,AF$3,inv!$K$5:$K$120000,$C31),"") -> 0 | AH31: 0
B32: 0 | F32: =IF($E32<>"",SUMIFS(bill!$K$5:$K$150000,bill!$H$5:$H$150000,$C32),"") ->  | H32: =+SUMIFS(bill!$M$5:$M$250000,bill!$H$5:$H$250000,$C32) -> 0 | J32: =IFERROR(SUMIFS(bill!$K$5:$K$120000,bill!$A$5:$A$120000,J$3,bill!$H$5:$H$120000,$C32),"") -> 0 | L32: =IFERROR(SUMIFS(bill!$K$5:$K$120000,bill!$A$5:$A$120000,L$3,bill!$H$5:$H$120000,$C32),"") -> 0 | N32: =IFERROR(SUMIFS(bill!$K$5:$K$120000,bill!$A$5:$A$120000,N$3,bill!$H$5:$H$120000,$C32),"") -> 0 | P32: =IFERROR(SUMIFS(inv!$N$5:$N$120000,inv!$C$5:$C$120000,P$3,inv!$K$5:$K$120000,$C32),"") -> 0 | R32: =IFERROR(SUMIFS(inv!$N$5:$N$120000,inv!$C$5:$C$120000,R$3,inv!$K$5:$K$120000,$C32),"") -> 0 | T32: =IFERROR(SUMIFS(inv!$N$5:$N$120000,inv!$C$5:$C$120000,T$3,inv!$K$5:$K$120000,$C32),"") -> 0 | V32: =IFERROR(SUMIFS(inv!$N$5:$N$120000,inv!$C$5:$C$120000,V$3,inv!$K$5:$K$120000,$C32),"") -> 0 | X32: =IFERROR(SUMIFS(inv!$N$5:$N$120000,inv!$C$5:$C$120000,X$3,inv!$K$5:$K$120000,$C32),"") -> 0 | Z32: =IFERROR(SUMIFS(inv!$N$5:$N$120000,inv!$C$5:$C$120000,Z$3,inv!$K$5:$K$120000,$C32),"") -> 0 | AB32: =IFERROR(SUMIFS(inv!$N$5:$N$120000,inv!$C$5:$C$120000,AB$3,inv!$K$5:$K$120000,$C32),"") -> 0 | AD32: =IFERROR(SUMIFS(inv!$N$5:$N$120000,inv!$C$5:$C$120000,AD$3,inv!$K$5:$K$120000,$C32),"") -> 0 | AF32: =IFERROR(SUMIFS(inv!$N$5:$N$120000,inv!$C$5:$C$120000,AF$3,inv!$K$5:$K$120000,$C32),"") -> 0 | AH32: 0
B33: 0 | F33: =IF($E33<>"",SUMIFS(bill!$K$5:$K$150000,bill!$H$5:$H$150000,$C33),"") ->  | H33: =+SUMIFS(bill!$M$5:$M$250000,bill!$H$5:$H$250000,$C33) -> 0 | J33: =IFERROR(SUMIFS(bill!$K$5:$K$120000,bill!$A$5:$A$120000,J$3,bill!$H$5:$H$120000,$C33),"") -> 0 | L33: =IFERROR(SUMIFS(bill!$K$5:$K$120000,bill!$A$5:$A$120000,L$3,bill!$H$5:$H$120000,$C33),"") -> 0 | N33: =IFERROR(SUMIFS(bill!$K$5:$K$120000,bill!$A$5:$A$120000,N$3,bill!$H$5:$H$120000,$C33),"") -> 0 | P33: =IFERROR(SUMIFS(inv!$N$5:$N$120000,inv!$C$5:$C$120000,P$3,inv!$K$5:$K$120000,$C33),"") -> 0 | R33: =IFERROR(SUMIFS(inv!$N$5:$N$120000,inv!$C$5:$C$120000,R$3,inv!$K$5:$K$120000,$C33),"") -> 0 | T33: =IFERROR(SUMIFS(inv!$N$5:$N$120000,inv!$C$5:$C$120000,T$3,inv!$K$5:$K$120000,$C33),"") -> 0 | V33: =IFERROR(SUMIFS(inv!$N$5:$N$120000,inv!$C$5:$C$120000,V$3,inv!$K$5:$K$120000,$C33),"") -> 0 | X33: =IFERROR(SUMIFS(inv!$N$5:$N$120000,inv!$C$5:$C$120000,X$3,inv!$K$5:$K$120000,$C33),"") -> 0 | Z33: =IFERROR(SUMIFS(inv!$N$5:$N$120000,inv!$C$5:$C$120000,Z$3,inv!$K$5:$K$120000,$C33),"") -> 0 | AB33: =IFERROR(SUMIFS(inv!$N$5:$N$120000,inv!$C$5:$C$120000,AB$3,inv!$K$5:$K$120000,$C33),"") -> 0 | AD33: =IFERROR(SUMIFS(inv!$N$5:$N$120000,inv!$C$5:$C$120000,AD$3,inv!$K$5:$K$120000,$C33),"") -> 0 | AF33: =IFERROR(SUMIFS(inv!$N$5:$N$120000,inv!$C$5:$C$120000,AF$3,inv!$K$5:$K$120000,$C33),"") -> 0 | AH33: 0
B34: 0 | F34: =IF($E34<>"",SUMIFS(bill!$K$5:$K$150000,bill!$H$5:$H$150000,$C34),"") ->  | H34: =+SUMIFS(bill!$M$5:$M$250000,bill!$H$5:$H$250000,$C34) -> 0 | J34: =IFERROR(SUMIFS(bill!$K$5:$K$120000,bill!$A$5:$A$120000,J$3,bill!$H$5:$H$120000,$C34),"") -> 0 | L34: =IFERROR(SUMIFS(bill!$K$5:$K$120000,bill!$A$5:$A$120000,L$3,bill!$H$5:$H$120000,$C34),"") -> 0 | N34: =IFERROR(SUMIFS(bill!$K$5:$K$120000,bill!$A$5:$A$120000,N$3,bill!$H$5:$H$120000,$C34),"") -> 0 | P34: =IFERROR(SUMIFS(inv!$N$5:$N$120000,inv!$C$5:$C$120000,P$3,inv!$K$5:$K$120000,$C34),"") -> 0 | R34: =IFERROR(SUMIFS(inv!$N$5:$N$120000,inv!$C$5:$C$120000,R$3,inv!$K$5:$K$120000,$C34),"") -> 0 | T34: =IFERROR(SUMIFS(inv!$N$5:$N$120000,inv!$C$5:$C$120000,T$3,inv!$K$5:$K$120000,$C34),"") -> 0 | V34: =IFERROR(SUMIFS(inv!$N$5:$N$120000,inv!$C$5:$C$120000,V$3,inv!$K$5:$K$120000,$C34),"") -> 0 | X34: =IFERROR(SUMIFS(inv!$N$5:$N$120000,inv!$C$5:$C$120000,X$3,inv!$K$5:$K$120000,$C34),"") -> 0 | Z34: =IFERROR(SUMIFS(inv!$N$5:$N$120000,inv!$C$5:$C$120000,Z$3,inv!$K$5:$K$120000,$C34),"") -> 0 | AB34: =IFERROR(SUMIFS(inv!$N$5:$N$120000,inv!$C$5:$C$120000,AB$3,inv!$K$5:$K$120000,$C34),"") -> 0 | AD34: =IFERROR(SUMIFS(inv!$N$5:$N$120000,inv!$C$5:$C$120000,AD$3,inv!$K$5:$K$120000,$C34),"") -> 0 | AF34: =IFERROR(SUMIFS(inv!$N$5:$N$120000,inv!$C$5:$C$120000,AF$3,inv!$K$5:$K$120000,$C34),"") -> 0 | AH34: 0
B35: 0 | F35: =IF($E35<>"",SUMIFS(bill!$K$5:$K$150000,bill!$H$5:$H$150000,$C35),"") ->  | H35: =+SUMIFS(bill!$M$5:$M$250000,bill!$H$5:$H$250000,$C35) -> 0 | J35: =IFERROR(SUMIFS(bill!$K$5:$K$120000,bill!$A$5:$A$120000,J$3,bill!$H$5:$H$120000,$C35),"") -> 0 | L35: =IFERROR(SUMIFS(bill!$K$5:$K$120000,bill!$A$5:$A$120000,L$3,bill!$H$5:$H$120000,$C35),"") -> 0 | N35: =IFERROR(SUMIFS(bill!$K$5:$K$120000,bill!$A$5:$A$120000,N$3,bill!$H$5:$H$120000,$C35),"") -> 0 | P35: =IFERROR(SUMIFS(inv!$N$5:$N$120000,inv!$C$5:$C$120000,P$3,inv!$K$5:$K$120000,$C35),"") -> 0 | R35: =IFERROR(SUMIFS(inv!$N$5:$N$120000,inv!$C$5:$C$120000,R$3,inv!$K$5:$K$120000,$C35),"") -> 0 | T35: =IFERROR(SUMIFS(inv!$N$5:$N$120000,inv!$C$5:$C$120000,T$3,inv!$K$5:$K$120000,$C35),"") -> 0 | V35: =IFERROR(SUMIFS(inv!$N$5:$N$120000,inv!$C$5:$C$120000,V$3,inv!$K$5:$K$120000,$C35),"") -> 0 | X35: =IFERROR(SUMIFS(inv!$N$5:$N$120000,inv!$C$5:$C$120000,X$3,inv!$K$5:$K$120000,$C35),"") -> 0 | Z35: =IFERROR(SUMIFS(inv!$N$5:$N$120000,inv!$C$5:$C$120000,Z$3,inv!$K$5:$K$120000,$C35),"") -> 0 | AB35: =IFERROR(SUMIFS(inv!$N$5:$N$120000,inv!$C$5:$C$120000,AB$3,inv!$K$5:$K$120000,$C35),"") -> 0 | AD35: =IFERROR(SUMIFS(inv!$N$5:$N$120000,inv!$C$5:$C$120000,AD$3,inv!$K$5:$K$120000,$C35),"") -> 0 | AF35: =IFERROR(SUMIFS(inv!$N$5:$N$120000,inv!$C$5:$C$120000,AF$3,inv!$K$5:$K$120000,$C35),"") -> 0 | AH35: 0
B36: 0 | F36: =IF($E36<>"",SUMIFS(bill!$K$5:$K$150000,bill!$H$5:$H$150000,$C36),"") ->  | H36: =+SUMIFS(bill!$M$5:$M$250000,bill!$H$5:$H$250000,$C36) -> 0 | J36: =IFERROR(SUMIFS(bill!$K$5:$K$120000,bill!$A$5:$A$120000,J$3,bill!$H$5:$H$120000,$C36),"") -> 0 | L36: =IFERROR(SUMIFS(bill!$K$5:$K$120000,bill!$A$5:$A$120000,L$3,bill!$H$5:$H$120000,$C36),"") -> 0 | N36: =IFERROR(SUMIFS(bill!$K$5:$K$120000,bill!$A$5:$A$120000,N$3,bill!$H$5:$H$120000,$C36),"") -> 0 | P36: =IFERROR(SUMIFS(inv!$N$5:$N$120000,inv!$C$5:$C$120000,P$3,inv!$K$5:$K$120000,$C36),"") -> 0 | R36: =IFERROR(SUMIFS(inv!$N$5:$N$120000,inv!$C$5:$C$120000,R$3,inv!$K$5:$K$120000,$C36),"") -> 0 | T36: =IFERROR(SUMIFS(inv!$N$5:$N$120000,inv!$C$5:$C$120000,T$3,inv!$K$5:$K$120000,$C36),"") -> 0 | V36: =IFERROR(SUMIFS(inv!$N$5:$N$120000,inv!$C$5:$C$120000,V$3,inv!$K$5:$K$120000,$C36),"") -> 0 | X36: =IFERROR(SUMIFS(inv!$N$5:$N$120000,inv!$C$5:$C$120000,X$3,inv!$K$5:$K$120000,$C36),"") -> 0 | Z36: =IFERROR(SUMIFS(inv!$N$5:$N$120000,inv!$C$5:$C$120000,Z$3,inv!$K$5:$K$120000,$C36),"") -> 0 | AB36: =IFERROR(SUMIFS(inv!$N$5:$N$120000,inv!$C$5:$C$120000,AB$3,inv!$K$5:$K$120000,$C36),"") -> 0 | AD36: =IFERROR(SUMIFS(inv!$N$5:$N$120000,inv!$C$5:$C$120000,AD$3,inv!$K$5:$K$120000,$C36),"") -> 0 | AF36: =IFERROR(SUMIFS(inv!$N$5:$N$120000,inv!$C$5:$C$120000,AF$3,inv!$K$5:$K$120000,$C36),"") -> 0 | AH36: 0
B37: 0 | F37: =IF($E37<>"",SUMIFS(bill!$K$5:$K$150000,bill!$H$5:$H$150000,$C37),"") ->  | H37: =+SUMIFS(bill!$M$5:$M$250000,bill!$H$5:$H$250000,$C37) -> 0 | J37: =IFERROR(SUMIFS(bill!$K$5:$K$120000,bill!$A$5:$A$120000,J$3,bill!$H$5:$H$120000,$C37),"") -> 0 | L37: =IFERROR(SUMIFS(bill!$K$5:$K$120000,bill!$A$5:$A$120000,L$3,bill!$H$5:$H$120000,$C37),"") -> 0 | N37: =IFERROR(SUMIFS(bill!$K$5:$K$120000,bill!$A$5:$A$120000,N$3,bill!$H$5:$H$120000,$C37),"") -> 0 | P37: =IFERROR(SUMIFS(inv!$N$5:$N$120000,inv!$C$5:$C$120000,P$3,inv!$K$5:$K$120000,$C37),"") -> 0 | R37: =IFERROR(SUMIFS(inv!$N$5:$N$120000,inv!$C$5:$C$120000,R$3,inv!$K$5:$K$120000,$C37),"") -> 0 | T37: =IFERROR(SUMIFS(inv!$N$5:$N$120000,inv!$C$5:$C$120000,T$3,inv!$K$5:$K$120000,$C37),"") -> 0 | V37: =IFERROR(SUMIFS(inv!$N$5:$N$120000,inv!$C$5:$C$120000,V$3,inv!$K$5:$K$120000,$C37),"") -> 0 | X37: =IFERROR(SUMIFS(inv!$N$5:$N$120000,inv!$C$5:$C$120000,X$3,inv!$K$5:$K$120000,$C37),"") -> 0 | Z37: =IFERROR(SUMIFS(inv!$N$5:$N$120000,inv!$C$5:$C$120000,Z$3,inv!$K$5:$K$120000,$C37),"") -> 0 | AB37: =IFERROR(SUMIFS(inv!$N$5:$N$120000,inv!$C$5:$C$120000,AB$3,inv!$K$5:$K$120000,$C37),"") -> 0 | AD37: =IFERROR(SUMIFS(inv!$N$5:$N$120000,inv!$C$5:$C$120000,AD$3,inv!$K$5:$K$120000,$C37),"") -> 0 | AF37: =IFERROR(SUMIFS(inv!$N$5:$N$120000,inv!$C$5:$C$120000,AF$3,inv!$K$5:$K$120000,$C37),"") -> 0 | AH37: 0
B38: 0 | F38: =IF($E38<>"",SUMIFS(bill!$K$5:$K$150000,bill!$H$5:$H$150000,$C38),"") ->  | H38: =+SUMIFS(bill!$M$5:$M$250000,bill!$H$5:$H$250000,$C38) -> 0 | J38: =IFERROR(SUMIFS(bill!$K$5:$K$120000,bill!$A$5:$A$120000,J$3,bill!$H$5:$H$120000,$C38),"") -> 0 | L38: =IFERROR(SUMIFS(bill!$K$5:$K$120000,bill!$A$5:$A$120000,L$3,bill!$H$5:$H$120000,$C38),"") -> 0 | N38: =IFERROR(SUMIFS(bill!$K$5:$K$120000,bill!$A$5:$A$120000,N$3,bill!$H$5:$H$120000,$C38),"") -> 0 | P38: =IFERROR(SUMIFS(inv!$N$5:$N$120000,inv!$C$5:$C$120000,P$3,inv!$K$5:$K$120000,$C38),"") -> 0 | R38: =IFERROR(SUMIFS(inv!$N$5:$N$120000,inv!$C$5:$C$120000,R$3,inv!$K$5:$K$120000,$C38),"") -> 0 | T38: =IFERROR(SUMIFS(inv!$N$5:$N$120000,inv!$C$5:$C$120000,T$3,inv!$K$5:$K$120000,$C38),"") -> 0 | V38: =IFERROR(SUMIFS(inv!$N$5:$N$120000,inv!$C$5:$C$120000,V$3,inv!$K$5:$K$120000,$C38),"") -> 0 | X38: =IFERROR(SUMIFS(inv!$N$5:$N$120000,inv!$C$5:$C$120000,X$3,inv!$K$5:$K$120000,$C38),"") -> 0 | Z38: =IFERROR(SUMIFS(inv!$N$5:$N$120000,inv!$C$5:$C$120000,Z$3,inv!$K$5:$K$120000,$C38),"") -> 0 | AB38: =IFERROR(SUMIFS(inv!$N$5:$N$120000,inv!$C$5:$C$120000,AB$3,inv!$K$5:$K$120000,$C38),"") -> 0 | AD38: =IFERROR(SUMIFS(inv!$N$5:$N$120000,inv!$C$5:$C$120000,AD$3,inv!$K$5:$K$120000,$C38),"") -> 0 | AF38: =IFERROR(SUMIFS(inv!$N$5:$N$120000,inv!$C$5:$C$120000,AF$3,inv!$K$5:$K$120000,$C38),"") -> 0 | AH38: 0
B39: 0 | F39: =IF($E39<>"",SUMIFS(bill!$K$5:$K$150000,bill!$H$5:$H$150000,$C39),"") ->  | H39: =+SUMIFS(bill!$M$5:$M$250000,bill!$H$5:$H$250000,$C39) -> 0 | J39: =IFERROR(SUMIFS(bill!$K$5:$K$120000,bill!$A$5:$A$120000,J$3,bill!$H$5:$H$120000,$C39),"") -> 0 | L39: =IFERROR(SUMIFS(bill!$K$5:$K$120000,bill!$A$5:$A$120000,L$3,bill!$H$5:$H$120000,$C39),"") -> 0 | N39: =IFERROR(SUMIFS(bill!$K$5:$K$120000,bill!$A$5:$A$120000,N$3,bill!$H$5:$H$120000,$C39),"") -> 0 | P39: =IFERROR(SUMIFS(inv!$N$5:$N$120000,inv!$C$5:$C$120000,P$3,inv!$K$5:$K$120000,$C39),"") -> 0 | R39: =IFERROR(SUMIFS(inv!$N$5:$N$120000,inv!$C$5:$C$120000,R$3,inv!$K$5:$K$120000,$C39),"") -> 0 | T39: =IFERROR(SUMIFS(inv!$N$5:$N$120000,inv!$C$5:$C$120000,T$3,inv!$K$5:$K$120000,$C39),"") -> 0 | V39: =IFERROR(SUMIFS(inv!$N$5:$N$120000,inv!$C$5:$C$120000,V$3,inv!$K$5:$K$120000,$C39),"") -> 0 | X39: =IFERROR(SUMIFS(inv!$N$5:$N$120000,inv!$C$5:$C$120000,X$3,inv!$K$5:$K$120000,$C39),"") -> 0 | Z39: =IFERROR(SUMIFS(inv!$N$5:$N$120000,inv!$C$5:$C$120000,Z$3,inv!$K$5:$K$120000,$C39),"") -> 0 | AB39: =IFERROR(SUMIFS(inv!$N$5:$N$120000,inv!$C$5:$C$120000,AB$3,inv!$K$5:$K$120000,$C39),"") -> 0 | AD39: =IFERROR(SUMIFS(inv!$N$5:$N$120000,inv!$C$5:$C$120000,AD$3,inv!$K$5:$K$120000,$C39),"") -> 0 | AF39: =IFERROR(SUMIFS(inv!$N$5:$N$120000,inv!$C$5:$C$120000,AF$3,inv!$K$5:$K$120000,$C39),"") -> 0 | AH39: 0
B40: 0 | F40: =IF($E40<>"",SUMIFS(bill!$K$5:$K$150000,bill!$H$5:$H$150000,$C40),"") ->  | H40: =+SUMIFS(bill!$M$5:$M$250000,bill!$H$5:$H$250000,$C40) -> 0 | J40: =IFERROR(SUMIFS(bill!$K$5:$K$120000,bill!$A$5:$A$120000,J$3,bill!$H$5:$H$120000,$C40),"") -> 0 | L40: =IFERROR(SUMIFS(bill!$K$5:$K$120000,bill!$A$5:$A$120000,L$3,bill!$H$5:$H$120000,$C40),"") -> 0 | N40: =IFERROR(SUMIFS(bill!$K$5:$K$120000,bill!$A$5:$A$120000,N$3,bill!$H$5:$H$120000,$C40),"") -> 0 | P40: =IFERROR(SUMIFS(inv!$N$5:$N$120000,inv!$C$5:$C$120000,P$3,inv!$K$5:$K$120000,$C40),"") -> 0 | R40: =IFERROR(SUMIFS(inv!$N$5:$N$120000,inv!$C$5:$C$120000,R$3,inv!$K$5:$K$120000,$C40),"") -> 0 | T40: =IFERROR(SUMIFS(inv!$N$5:$N$120000,inv!$C$5:$C$120000,T$3,inv!$K$5:$K$120000,$C40),"") -> 0 | V40: =IFERROR(SUMIFS(inv!$N$5:$N$120000,inv!$C$5:$C$120000,V$3,inv!$K$5:$K$120000,$C40),"") -> 0 | X40: =IFERROR(SUMIFS(inv!$N$5:$N$120000,inv!$C$5:$C$120000,X$3,inv!$K$5:$K$120000,$C40),"") -> 0 | Z40: =IFERROR(SUMIFS(inv!$N$5:$N$120000,inv!$C$5:$C$120000,Z$3,inv!$K$5:$K$120000,$C40),"") -> 0 | AB40: =IFERROR(SUMIFS(inv!$N$5:$N$120000,inv!$C$5:$C$120000,AB$3,inv!$K$5:$K$120000,$C40),"") -> 0 | AD40: =IFERROR(SUMIFS(inv!$N$5:$N$120000,inv!$C$5:$C$120000,AD$3,inv!$K$5:$K$120000,$C40),"") -> 0 | AF40: =IFERROR(SUMIFS(inv!$N$5:$N$120000,inv!$C$5:$C$120000,AF$3,inv!$K$5:$K$120000,$C40),"") -> 0 | AH40: 0
B41: 0 | F41: =IF($E41<>"",SUMIFS(bill!$K$5:$K$150000,bill!$H$5:$H$150000,$C41),"") ->  | H41: =+SUMIFS(bill!$M$5:$M$250000,bill!$H$5:$H$250000,$C41) -> 0 | J41: =IFERROR(SUMIFS(bill!$K$5:$K$120000,bill!$A$5:$A$120000,J$3,bill!$H$5:$H$120000,$C41),"") -> 0 | L41: =IFERROR(SUMIFS(bill!$K$5:$K$120000,bill!$A$5:$A$120000,L$3,bill!$H$5:$H$120000,$C41),"") -> 0 | N41: =IFERROR(SUMIFS(bill!$K$5:$K$120000,bill!$A$5:$A$120000,N$3,bill!$H$5:$H$120000,$C41),"") -> 0 | P41: =IFERROR(SUMIFS(inv!$N$5:$N$120000,inv!$C$5:$C$120000,P$3,inv!$K$5:$K$120000,$C41),"") -> 0 | R41: =IFERROR(SUMIFS(inv!$N$5:$N$120000,inv!$C$5:$C$120000,R$3,inv!$K$5:$K$120000,$C41),"") -> 0 | T41: =IFERROR(SUMIFS(inv!$N$5:$N$120000,inv!$C$5:$C$120000,T$3,inv!$K$5:$K$120000,$C41),"") -> 0 | V41: =IFERROR(SUMIFS(inv!$N$5:$N$120000,inv!$C$5:$C$120000,V$3,inv!$K$5:$K$120000,$C41),"") -> 0 | X41: =IFERROR(SUMIFS(inv!$N$5:$N$120000,inv!$C$5:$C$120000,X$3,inv!$K$5:$K$120000,$C41),"") -> 0 | Z41: =IFERROR(SUMIFS(inv!$N$5:$N$120000,inv!$C$5:$C$120000,Z$3,inv!$K$5:$K$120000,$C41),"") -> 0 | AB41: =IFERROR(SUMIFS(inv!$N$5:$N$120000,inv!$C$5:$C$120000,AB$3,inv!$K$5:$K$120000,$C41),"") -> 0 | AD41: =IFERROR(SUMIFS(inv!$N$5:$N$120000,inv!$C$5:$C$120000,AD$3,inv!$K$5:$K$120000,$C41),"") -> 0 | AF41: =IFERROR(SUMIFS(inv!$N$5:$N$120000,inv!$C$5:$C$120000,AF$3,inv!$K$5:$K$120000,$C41),"") -> 0 | AH41: 0
B42: 0 | F42: =IF($E42<>"",SUMIFS(bill!$K$5:$K$150000,bill!$H$5:$H$150000,$C42),"") ->  | H42: =+SUMIFS(bill!$M$5:$M$250000,bill!$H$5:$H$250000,$C42) -> 0 | J42: =IFERROR(SUMIFS(bill!$K$5:$K$120000,bill!$A$5:$A$120000,J$3,bill!$H$5:$H$120000,$C42),"") -> 0 | L42: =IFERROR(SUMIFS(bill!$K$5:$K$120000,bill!$A$5:$A$120000,L$3,bill!$H$5:$H$120000,$C42),"") -> 0 | N42: =IFERROR(SUMIFS(bill!$K$5:$K$120000,bill!$A$5:$A$120000,N$3,bill!$H$5:$H$120000,$C42),"") -> 0 | P42: =IFERROR(SUMIFS(inv!$N$5:$N$120000,inv!$C$5:$C$120000,P$3,inv!$K$5:$K$120000,$C42),"") -> 0 | R42: =IFERROR(SUMIFS(inv!$N$5:$N$120000,inv!$C$5:$C$120000,R$3,inv!$K$5:$K$120000,$C42),"") -> 0 | T42: =IFERROR(SUMIFS(inv!$N$5:$N$120000,inv!$C$5:$C$120000,T$3,inv!$K$5:$K$120000,$C42),"") -> 0 | V42: =IFERROR(SUMIFS(inv!$N$5:$N$120000,inv!$C$5:$C$120000,V$3,inv!$K$5:$K$120000,$C42),"") -> 0 | X42: =IFERROR(SUMIFS(inv!$N$5:$N$120000,inv!$C$5:$C$120000,X$3,inv!$K$5:$K$120000,$C42),"") -> 0 | Z42: =IFERROR(SUMIFS(inv!$N$5:$N$120000,inv!$C$5:$C$120000,Z$3,inv!$K$5:$K$120000,$C42),"") -> 0 | AB42: =IFERROR(SUMIFS(inv!$N$5:$N$120000,inv!$C$5:$C$120000,AB$3,inv!$K$5:$K$120000,$C42),"") -> 0 | AD42: =IFERROR(SUMIFS(inv!$N$5:$N$120000,inv!$C$5:$C$120000,AD$3,inv!$K$5:$K$120000,$C42),"") -> 0 | AF42: =IFERROR(SUMIFS(inv!$N$5:$N$120000,inv!$C$5:$C$120000,AF$3,inv!$K$5:$K$120000,$C42),"") -> 0 | AH42: 0
B43: 0 | F43: =IF($E43<>"",SUMIFS(bill!$K$5:$K$150000,bill!$H$5:$H$150000,$C43),"") ->  | H43: =+SUMIFS(bill!$M$5:$M$250000,bill!$H$5:$H$250000,$C43) -> 0 | J43: =IFERROR(SUMIFS(bill!$K$5:$K$120000,bill!$A$5:$A$120000,J$3,bill!$H$5:$H$120000,$C43),"") -> 0 | L43: =IFERROR(SUMIFS(bill!$K$5:$K$120000,bill!$A$5:$A$120000,L$3,bill!$H$5:$H$120000,$C43),"") -> 0 | N43: =IFERROR(SUMIFS(bill!$K$5:$K$120000,bill!$A$5:$A$120000,N$3,bill!$H$5:$H$120000,$C43),"") -> 0 | P43: =IFERROR(SUMIFS(inv!$N$5:$N$120000,inv!$C$5:$C$120000,P$3,inv!$K$5:$K$120000,$C43),"") -> 0 | R43: =IFERROR(SUMIFS(inv!$N$5:$N$120000,inv!$C$5:$C$120000,R$3,inv!$K$5:$K$120000,$C43),"") -> 0 | T43: =IFERROR(SUMIFS(inv!$N$5:$N$120000,inv!$C$5:$C$120000,T$3,inv!$K$5:$K$120000,$C43),"") -> 0 | V43: =IFERROR(SUMIFS(inv!$N$5:$N$120000,inv!$C$5:$C$120000,V$3,inv!$K$5:$K$120000,$C43),"") -> 0 | X43: =IFERROR(SUMIFS(inv!$N$5:$N$120000,inv!$C$5:$C$120000,X$3,inv!$K$5:$K$120000,$C43),"") -> 0 | Z43: =IFERROR(SUMIFS(inv!$N$5:$N$120000,inv!$C$5:$C$120000,Z$3,inv!$K$5:$K$120000,$C43),"") -> 0 | AB43: =IFERROR(SUMIFS(inv!$N$5:$N$120000,inv!$C$5:$C$120000,AB$3,inv!$K$5:$K$120000,$C43),"") -> 0 | AD43: =IFERROR(SUMIFS(inv!$N$5:$N$120000,inv!$C$5:$C$120000,AD$3,inv!$K$5:$K$120000,$C43),"") -> 0 | AF43: =IFERROR(SUMIFS(inv!$N$5:$N$120000,inv!$C$5:$C$120000,AF$3,inv!$K$5:$K$120000,$C43),"") -> 0 | AH43: 0
B44: 0 | F44: =IF($E44<>"",SUMIFS(bill!$K$5:$K$150000,bill!$H$5:$H$150000,$C44),"") ->  | H44: =+SUMIFS(bill!$M$5:$M$250000,bill!$H$5:$H$250000,$C44) -> 0 | J44: =IFERROR(SUMIFS(bill!$K$5:$K$120000,bill!$A$5:$A$120000,J$3,bill!$H$5:$H$120000,$C44),"") -> 0 | L44: =IFERROR(SUMIFS(bill!$K$5:$K$120000,bill!$A$5:$A$120000,L$3,bill!$H$5:$H$120000,$C44),"") -> 0 | N44: =IFERROR(SUMIFS(bill!$K$5:$K$120000,bill!$A$5:$A$120000,N$3,bill!$H$5:$H$120000,$C44),"") -> 0 | P44: =IFERROR(SUMIFS(inv!$N$5:$N$120000,inv!$C$5:$C$120000,P$3,inv!$K$5:$K$120000,$C44),"") -> 0 | R44: =IFERROR(SUMIFS(inv!$N$5:$N$120000,inv!$C$5:$C$120000,R$3,inv!$K$5:$K$120000,$C44),"") -> 0 | T44: =IFERROR(SUMIFS(inv!$N$5:$N$120000,inv!$C$5:$C$120000,T$3,inv!$K$5:$K$120000,$C44),"") -> 0 | V44: =IFERROR(SUMIFS(inv!$N$5:$N$120000,inv!$C$5:$C$120000,V$3,inv!$K$5:$K$120000,$C44),"") -> 0 | X44: =IFERROR(SUMIFS(inv!$N$5:$N$120000,inv!$C$5:$C$120000,X$3,inv!$K$5:$K$120000,$C44),"") -> 0 | Z44: =IFERROR(SUMIFS(inv!$N$5:$N$120000,inv!$C$5:$C$120000,Z$3,inv!$K$5:$K$120000,$C44),"") -> 0 | AB44: =IFERROR(SUMIFS(inv!$N$5:$N$120000,inv!$C$5:$C$120000,AB$3,inv!$K$5:$K$120000,$C44),"") -> 0 | AD44: =IFERROR(SUMIFS(inv!$N$5:$N$120000,inv!$C$5:$C$120000,AD$3,inv!$K$5:$K$120000,$C44),"") -> 0 | AF44: =IFERROR(SUMIFS(inv!$N$5:$N$120000,inv!$C$5:$C$120000,AF$3,inv!$K$5:$K$120000,$C44),"") -> 0 | AH44: 0
B45: 0 | F45: =IF($E45<>"",SUMIFS(bill!$K$5:$K$150000,bill!$H$5:$H$150000,$C45),"") ->  | H45: =+SUMIFS(bill!$M$5:$M$250000,bill!$H$5:$H$250000,$C45) -> 0 | J45: =IFERROR(SUMIFS(bill!$K$5:$K$120000,bill!$A$5:$A$120000,J$3,bill!$H$5:$H$120000,$C45),"") -> 0 | L45: =IFERROR(SUMIFS(bill!$K$5:$K$120000,bill!$A$5:$A$120000,L$3,bill!$H$5:$H$120000,$C45),"") -> 0 | N45: =IFERROR(SUMIFS(bill!$K$5:$K$120000,bill!$A$5:$A$120000,N$3,bill!$H$5:$H$120000,$C45),"") -> 0 | P45: =IFERROR(SUMIFS(inv!$N$5:$N$120000,inv!$C$5:$C$120000,P$3,inv!$K$5:$K$120000,$C45),"") -> 0 | R45: =IFERROR(SUMIFS(inv!$N$5:$N$120000,inv!$C$5:$C$120000,R$3,inv!$K$5:$K$120000,$C45),"") -> 0 | T45: =IFERROR(SUMIFS(inv!$N$5:$N$120000,inv!$C$5:$C$120000,T$3,inv!$K$5:$K$120000,$C45),"") -> 0 | V45: =IFERROR(SUMIFS(inv!$N$5:$N$120000,inv!$C$5:$C$120000,V$3,inv!$K$5:$K$120000,$C45),"") -> 0 | X45: =IFERROR(SUMIFS(inv!$N$5:$N$120000,inv!$C$5:$C$120000,X$3,inv!$K$5:$K$120000,$C45),"") -> 0 | Z45: =IFERROR(SUMIFS(inv!$N$5:$N$120000,inv!$C$5:$C$120000,Z$3,inv!$K$5:$K$120000,$C45),"") -> 0 | AB45: =IFERROR(SUMIFS(inv!$N$5:$N$120000,inv!$C$5:$C$120000,AB$3,inv!$K$5:$K$120000,$C45),"") -> 0 | AD45: =IFERROR(SUMIFS(inv!$N$5:$N$120000,inv!$C$5:$C$120000,AD$3,inv!$K$5:$K$120000,$C45),"") -> 0 | AF45: =IFERROR(SUMIFS(inv!$N$5:$N$120000,inv!$C$5:$C$120000,AF$3,inv!$K$5:$K$120000,$C45),"") -> 0 | AH45: 0
B46: 0 | F46: =IF($E46<>"",SUMIFS(bill!$K$5:$K$150000,bill!$H$5:$H$150000,$C46),"") ->  | H46: =+SUMIFS(bill!$M$5:$M$250000,bill!$H$5:$H$250000,$C46) -> 0 | J46: =IFERROR(SUMIFS(bill!$K$5:$K$120000,bill!$A$5:$A$120000,J$3,bill!$H$5:$H$120000,$C46),"") -> 0 | L46: =IFERROR(SUMIFS(bill!$K$5:$K$120000,bill!$A$5:$A$120000,L$3,bill!$H$5:$H$120000,$C46),"") -> 0 | N46: =IFERROR(SUMIFS(bill!$K$5:$K$120000,bill!$A$5:$A$120000,N$3,bill!$H$5:$H$120000,$C46),"") -> 0 | P46: =IFERROR(SUMIFS(inv!$N$5:$N$120000,inv!$C$5:$C$120000,P$3,inv!$K$5:$K$120000,$C46),"") -> 0 | R46: =IFERROR(SUMIFS(inv!$N$5:$N$120000,inv!$C$5:$C$120000,R$3,inv!$K$5:$K$120000,$C46),"") -> 0 | T46: =IFERROR(SUMIFS(inv!$N$5:$N$120000,inv!$C$5:$C$120000,T$3,inv!$K$5:$K$120000,$C46),"") -> 0 | V46: =IFERROR(SUMIFS(inv!$N$5:$N$120000,inv!$C$5:$C$120000,V$3,inv!$K$5:$K$120000,$C46),"") -> 0 | X46: =IFERROR(SUMIFS(inv!$N$5:$N$120000,inv!$C$5:$C$120000,X$3,inv!$K$5:$K$120000,$C46),"") -> 0 | Z46: =IFERROR(SUMIFS(inv!$N$5:$N$120000,inv!$C$5:$C$120000,Z$3,inv!$K$5:$K$120000,$C46),"") -> 0 | AB46: =IFERROR(SUMIFS(inv!$N$5:$N$120000,inv!$C$5:$C$120000,AB$3,inv!$K$5:$K$120000,$C46),"") -> 0 | AD46: =IFERROR(SUMIFS(inv!$N$5:$N$120000,inv!$C$5:$C$120000,AD$3,inv!$K$5:$K$120000,$C46),"") -> 0 | AF46: =IFERROR(SUMIFS(inv!$N$5:$N$120000,inv!$C$5:$C$120000,AF$3,inv!$K$5:$K$120000,$C46),"") -> 0 | AH46: 0
B47: 0 | F47: =IF($E47<>"",SUMIFS(bill!$K$5:$K$150000,bill!$H$5:$H$150000,$C47),"") ->  | H47: =+SUMIFS(bill!$M$5:$M$250000,bill!$H$5:$H$250000,$C47) -> 0 | J47: =IFERROR(SUMIFS(bill!$K$5:$K$120000,bill!$A$5:$A$120000,J$3,bill!$H$5:$H$120000,$C47),"") -> 0 | L47: =IFERROR(SUMIFS(bill!$K$5:$K$120000,bill!$A$5:$A$120000,L$3,bill!$H$5:$H$120000,$C47),"") -> 0 | N47: =IFERROR(SUMIFS(bill!$K$5:$K$120000,bill!$A$5:$A$120000,N$3,bill!$H$5:$H$120000,$C47),"") -> 0 | P47: =IFERROR(SUMIFS(inv!$N$5:$N$120000,inv!$C$5:$C$120000,P$3,inv!$K$5:$K$120000,$C47),"") -> 0 | R47: =IFERROR(SUMIFS(inv!$N$5:$N$120000,inv!$C$5:$C$120000,R$3,inv!$K$5:$K$120000,$C47),"") -> 0 | T47: =IFERROR(SUMIFS(inv!$N$5:$N$120000,inv!$C$5:$C$120000,T$3,inv!$K$5:$K$120000,$C47),"") -> 0 | V47: =IFERROR(SUMIFS(inv!$N$5:$N$120000,inv!$C$5:$C$120000,V$3,inv!$K$5:$K$120000,$C47),"") -> 0 | X47: =IFERROR(SUMIFS(inv!$N$5:$N$120000,inv!$C$5:$C$120000,X$3,inv!$K$5:$K$120000,$C47),"") -> 0 | Z47: =IFERROR(SUMIFS(inv!$N$5:$N$120000,inv!$C$5:$C$120000,Z$3,inv!$K$5:$K$120000,$C47),"") -> 0 | AB47: =IFERROR(SUMIFS(inv!$N$5:$N$120000,inv!$C$5:$C$120000,AB$3,inv!$K$5:$K$120000,$C47),"") -> 0 | AD47: =IFERROR(SUMIFS(inv!$N$5:$N$120000,inv!$C$5:$C$120000,AD$3,inv!$K$5:$K$120000,$C47),"") -> 0 | AF47: =IFERROR(SUMIFS(inv!$N$5:$N$120000,inv!$C$5:$C$120000,AF$3,inv!$K$5:$K$120000,$C47),"") -> 0 | AH47: 0
B48: 0 | F48: =IF($E48<>"",SUMIFS(bill!$K$5:$K$150000,bill!$H$5:$H$150000,$C48),"") ->  | H48: =+SUMIFS(bill!$M$5:$M$250000,bill!$H$5:$H$250000,$C48) -> 0 | J48: =IFERROR(SUMIFS(bill!$K$5:$K$120000,bill!$A$5:$A$120000,J$3,bill!$H$5:$H$120000,$C48),"") -> 0 | L48: =IFERROR(SUMIFS(bill!$K$5:$K$120000,bill!$A$5:$A$120000,L$3,bill!$H$5:$H$120000,$C48),"") -> 0 | N48: =IFERROR(SUMIFS(bill!$K$5:$K$120000,bill!$A$5:$A$120000,N$3,bill!$H$5:$H$120000,$C48),"") -> 0 | P48: =IFERROR(SUMIFS(inv!$N$5:$N$120000,inv!$C$5:$C$120000,P$3,inv!$K$5:$K$120000,$C48),"") -> 0 | R48: =IFERROR(SUMIFS(inv!$N$5:$N$120000,inv!$C$5:$C$120000,R$3,inv!$K$5:$K$120000,$C48),"") -> 0 | T48: =IFERROR(SUMIFS(inv!$N$5:$N$120000,inv!$C$5:$C$120000,T$3,inv!$K$5:$K$120000,$C48),"") -> 0 | V48: =IFERROR(SUMIFS(inv!$N$5:$N$120000,inv!$C$5:$C$120000,V$3,inv!$K$5:$K$120000,$C48),"") -> 0 | X48: =IFERROR(SUMIFS(inv!$N$5:$N$120000,inv!$C$5:$C$120000,X$3,inv!$K$5:$K$120000,$C48),"") -> 0 | Z48: =IFERROR(SUMIFS(inv!$N$5:$N$120000,inv!$C$5:$C$120000,Z$3,inv!$K$5:$K$120000,$C48),"") -> 0 | AB48: =IFERROR(SUMIFS(inv!$N$5:$N$120000,inv!$C$5:$C$120000,AB$3,inv!$K$5:$K$120000,$C48),"") -> 0 | AD48: =IFERROR(SUMIFS(inv!$N$5:$N$120000,inv!$C$5:$C$120000,AD$3,inv!$K$5:$K$120000,$C48),"") -> 0 | AF48: =IFERROR(SUMIFS(inv!$N$5:$N$120000,inv!$C$5:$C$120000,AF$3,inv!$K$5:$K$120000,$C48),"") -> 0 | AH48: 0
B49: 0 | F49: =IF($E49<>"",SUMIFS(bill!$K$5:$K$150000,bill!$H$5:$H$150000,$C49),"") ->  | H49: =+SUMIFS(bill!$M$5:$M$250000,bill!$H$5:$H$250000,$C49) -> 0 | J49: =IFERROR(SUMIFS(bill!$K$5:$K$120000,bill!$A$5:$A$120000,J$3,bill!$H$5:$H$120000,$C49),"") -> 0 | L49: =IFERROR(SUMIFS(bill!$K$5:$K$120000,bill!$A$5:$A$120000,L$3,bill!$H$5:$H$120000,$C49),"") -> 0 | N49: =IFERROR(SUMIFS(bill!$K$5:$K$120000,bill!$A$5:$A$120000,N$3,bill!$H$5:$H$120000,$C49),"") -> 0 | P49: =IFERROR(SUMIFS(inv!$N$5:$N$120000,inv!$C$5:$C$120000,P$3,inv!$K$5:$K$120000,$C49),"") -> 0 | R49: =IFERROR(SUMIFS(inv!$N$5:$N$120000,inv!$C$5:$C$120000,R$3,inv!$K$5:$K$120000,$C49),"") -> 0 | T49: =IFERROR(SUMIFS(inv!$N$5:$N$120000,inv!$C$5:$C$120000,T$3,inv!$K$5:$K$120000,$C49),"") -> 0 | V49: =IFERROR(SUMIFS(inv!$N$5:$N$120000,inv!$C$5:$C$120000,V$3,inv!$K$5:$K$120000,$C49),"") -> 0 | X49: =IFERROR(SUMIFS(inv!$N$5:$N$120000,inv!$C$5:$C$120000,X$3,inv!$K$5:$K$120000,$C49),"") -> 0 | Z49: =IFERROR(SUMIFS(inv!$N$5:$N$120000,inv!$C$5:$C$120000,Z$3,inv!$K$5:$K$120000,$C49),"") -> 0 | AB49: =IFERROR(SUMIFS(inv!$N$5:$N$120000,inv!$C$5:$C$120000,AB$3,inv!$K$5:$K$120000,$C49),"") -> 0 | AD49: =IFERROR(SUMIFS(inv!$N$5:$N$120000,inv!$C$5:$C$120000,AD$3,inv!$K$5:$K$120000,$C49),"") -> 0 | AF49: =IFERROR(SUMIFS(inv!$N$5:$N$120000,inv!$C$5:$C$120000,AF$3,inv!$K$5:$K$120000,$C49),"") -> 0 | AH49: 0
B50: 0 | F50: =IF($E50<>"",SUMIFS(bill!$K$5:$K$150000,bill!$H$5:$H$150000,$C50),"") ->  | H50: =+SUMIFS(bill!$M$5:$M$250000,bill!$H$5:$H$250000,$C50) -> 0 | J50: =IFERROR(SUMIFS(bill!$K$5:$K$120000,bill!$A$5:$A$120000,J$3,bill!$H$5:$H$120000,$C50),"") -> 0 | L50: =IFERROR(SUMIFS(bill!$K$5:$K$120000,bill!$A$5:$A$120000,L$3,bill!$H$5:$H$120000,$C50),"") -> 0 | N50: =IFERROR(SUMIFS(bill!$K$5:$K$120000,bill!$A$5:$A$120000,N$3,bill!$H$5:$H$120000,$C50),"") -> 0 | P50: =IFERROR(SUMIFS(inv!$N$5:$N$120000,inv!$C$5:$C$120000,P$3,inv!$K$5:$K$120000,$C50),"") -> 0 | R50: =IFERROR(SUMIFS(inv!$N$5:$N$120000,inv!$C$5:$C$120000,R$3,inv!$K$5:$K$120000,$C50),"") -> 0 | T50: =IFERROR(SUMIFS(inv!$N$5:$N$120000,inv!$C$5:$C$120000,T$3,inv!$K$5:$K$120000,$C50),"") -> 0 | V50: =IFERROR(SUMIFS(inv!$N$5:$N$120000,inv!$C$5:$C$120000,V$3,inv!$K$5:$K$120000,$C50),"") -> 0 | X50: =IFERROR(SUMIFS(inv!$N$5:$N$120000,inv!$C$5:$C$120000,X$3,inv!$K$5:$K$120000,$C50),"") -> 0 | Z50: =IFERROR(SUMIFS(inv!$N$5:$N$120000,inv!$C$5:$C$120000,Z$3,inv!$K$5:$K$120000,$C50),"") -> 0 | AB50: =IFERROR(SUMIFS(inv!$N$5:$N$120000,inv!$C$5:$C$120000,AB$3,inv!$K$5:$K$120000,$C50),"") -> 0 | AD50: =IFERROR(SUMIFS(inv!$N$5:$N$120000,inv!$C$5:$C$120000,AD$3,inv!$K$5:$K$120000,$C50),"") -> 0 | AF50: =IFERROR(SUMIFS(inv!$N$5:$N$120000,inv!$C$5:$C$120000,AF$3,inv!$K$5:$K$120000,$C50),"") -> 0 | AH50: 0
B51: 0 | F51: =IF($E51<>"",SUMIFS(bill!$K$5:$K$150000,bill!$H$5:$H$150000,$C51),"") ->  | H51: =+SUMIFS(bill!$M$5:$M$250000,bill!$H$5:$H$250000,$C51) -> 0 | J51: =IFERROR(SUMIFS(bill!$K$5:$K$120000,bill!$A$5:$A$120000,J$3,bill!$H$5:$H$120000,$C51),"") -> 0 | L51: =IFERROR(SUMIFS(bill!$K$5:$K$120000,bill!$A$5:$A$120000,L$3,bill!$H$5:$H$120000,$C51),"") -> 0 | N51: =IFERROR(SUMIFS(bill!$K$5:$K$120000,bill!$A$5:$A$120000,N$3,bill!$H$5:$H$120000,$C51),"") -> 0 | P51: =IFERROR(SUMIFS(inv!$N$5:$N$120000,inv!$C$5:$C$120000,P$3,inv!$K$5:$K$120000,$C51),"") -> 0 | R51: =IFERROR(SUMIFS(inv!$N$5:$N$120000,inv!$C$5:$C$120000,R$3,inv!$K$5:$K$120000,$C51),"") -> 0 | T51: =IFERROR(SUMIFS(inv!$N$5:$N$120000,inv!$C$5:$C$120000,T$3,inv!$K$5:$K$120000,$C51),"") -> 0 | V51: =IFERROR(SUMIFS(inv!$N$5:$N$120000,inv!$C$5:$C$120000,V$3,inv!$K$5:$K$120000,$C51),"") -> 0 | X51: =IFERROR(SUMIFS(inv!$N$5:$N$120000,inv!$C$5:$C$120000,X$3,inv!$K$5:$K$120000,$C51),"") -> 0 | Z51: =IFERROR(SUMIFS(inv!$N$5:$N$120000,inv!$C$5:$C$120000,Z$3,inv!$K$5:$K$120000,$C51),"") -> 0 | AB51: =IFERROR(SUMIFS(inv!$N$5:$N$120000,inv!$C$5:$C$120000,AB$3,inv!$K$5:$K$120000,$C51),"") -> 0 | AD51: =IFERROR(SUMIFS(inv!$N$5:$N$120000,inv!$C$5:$C$120000,AD$3,inv!$K$5:$K$120000,$C51),"") -> 0 | AF51: =IFERROR(SUMIFS(inv!$N$5:$N$120000,inv!$C$5:$C$120000,AF$3,inv!$K$5:$K$120000,$C51),"") -> 0 | AH51: 0
B52: 0 | F52: =IF($E52<>"",SUMIFS(bill!$K$5:$K$150000,bill!$H$5:$H$150000,$C52),"") ->  | H52: =+SUMIFS(bill!$M$5:$M$250000,bill!$H$5:$H$250000,$C52) -> 0 | J52: =IFERROR(SUMIFS(bill!$K$5:$K$120000,bill!$A$5:$A$120000,J$3,bill!$H$5:$H$120000,$C52),"") -> 0 | L52: =IFERROR(SUMIFS(bill!$K$5:$K$120000,bill!$A$5:$A$120000,L$3,bill!$H$5:$H$120000,$C52),"") -> 0 | N52: =IFERROR(SUMIFS(bill!$K$5:$K$120000,bill!$A$5:$A$120000,N$3,bill!$H$5:$H$120000,$C52),"") -> 0 | P52: =IFERROR(SUMIFS(inv!$N$5:$N$120000,inv!$C$5:$C$120000,P$3,inv!$K$5:$K$120000,$C52),"") -> 0 | R52: =IFERROR(SUMIFS(inv!$N$5:$N$120000,inv!$C$5:$C$120000,R$3,inv!$K$5:$K$120000,$C52),"") -> 0 | T52: =IFERROR(SUMIFS(inv!$N$5:$N$120000,inv!$C$5:$C$120000,T$3,inv!$K$5:$K$120000,$C52),"") -> 0 | V52: =IFERROR(SUMIFS(inv!$N$5:$N$120000,inv!$C$5:$C$120000,V$3,inv!$K$5:$K$120000,$C52),"") -> 0 | X52: =IFERROR(SUMIFS(inv!$N$5:$N$120000,inv!$C$5:$C$120000,X$3,inv!$K$5:$K$120000,$C52),"") -> 0 | Z52: =IFERROR(SUMIFS(inv!$N$5:$N$120000,inv!$C$5:$C$120000,Z$3,inv!$K$5:$K$120000,$C52),"") -> 0 | AB52: =IFERROR(SUMIFS(inv!$N$5:$N$120000,inv!$C$5:$C$120000,AB$3,inv!$K$5:$K$120000,$C52),"") -> 0 | AD52: =IFERROR(SUMIFS(inv!$N$5:$N$120000,inv!$C$5:$C$120000,AD$3,inv!$K$5:$K$120000,$C52),"") -> 0 | AF52: =IFERROR(SUMIFS(inv!$N$5:$N$120000,inv!$C$5:$C$120000,AF$3,inv!$K$5:$K$120000,$C52),"") -> 0 | AH52: 0
B53: 0 | F53: =IF($E53<>"",SUMIFS(bill!$K$5:$K$150000,bill!$H$5:$H$150000,$C53),"") ->  | H53: =+SUMIFS(bill!$M$5:$M$250000,bill!$H$5:$H$250000,$C53) -> 0 | J53: =IFERROR(SUMIFS(bill!$K$5:$K$120000,bill!$A$5:$A$120000,J$3,bill!$H$5:$H$120000,$C53),"") -> 0 | L53: =IFERROR(SUMIFS(bill!$K$5:$K$120000,bill!$A$5:$A$120000,L$3,bill!$H$5:$H$120000,$C53),"") -> 0 | N53: =IFERROR(SUMIFS(bill!$K$5:$K$120000,bill!$A$5:$A$120000,N$3,bill!$H$5:$H$120000,$C53),"") -> 0 | P53: =IFERROR(SUMIFS(inv!$N$5:$N$120000,inv!$C$5:$C$120000,P$3,inv!$K$5:$K$120000,$C53),"") -> 0 | R53: =IFERROR(SUMIFS(inv!$N$5:$N$120000,inv!$C$5:$C$120000,R$3,inv!$K$5:$K$120000,$C53),"") -> 0 | T53: =IFERROR(SUMIFS(inv!$N$5:$N$120000,inv!$C$5:$C$120000,T$3,inv!$K$5:$K$120000,$C53),"") -> 0 | V53: =IFERROR(SUMIFS(inv!$N$5:$N$120000,inv!$C$5:$C$120000,V$3,inv!$K$5:$K$120000,$C53),"") -> 0 | X53: =IFERROR(SUMIFS(inv!$N$5:$N$120000,inv!$C$5:$C$120000,X$3,inv!$K$5:$K$120000,$C53),"") -> 0 | Z53: =IFERROR(SUMIFS(inv!$N$5:$N$120000,inv!$C$5:$C$120000,Z$3,inv!$K$5:$K$120000,$C53),"") -> 0 | AB53: =IFERROR(SUMIFS(inv!$N$5:$N$120000,inv!$C$5:$C$120000,AB$3,inv!$K$5:$K$120000,$C53),"") -> 0 | AD53: =IFERROR(SUMIFS(inv!$N$5:$N$120000,inv!$C$5:$C$120000,AD$3,inv!$K$5:$K$120000,$C53),"") -> 0 | AF53: =IFERROR(SUMIFS(inv!$N$5:$N$120000,inv!$C$5:$C$120000,AF$3,inv!$K$5:$K$120000,$C53),"") -> 0 | AH53: 0
B54: 0 | F54: =IF($E54<>"",SUMIFS(bill!$K$5:$K$150000,bill!$H$5:$H$150000,$C54),"") ->  | H54: =+SUMIFS(bill!$M$5:$M$250000,bill!$H$5:$H$250000,$C54) -> 0 | J54: =IFERROR(SUMIFS(bill!$K$5:$K$120000,bill!$A$5:$A$120000,J$3,bill!$H$5:$H$120000,$C54),"") -> 0 | L54: =IFERROR(SUMIFS(bill!$K$5:$K$120000,bill!$A$5:$A$120000,L$3,bill!$H$5:$H$120000,$C54),"") -> 0 | N54: =IFERROR(SUMIFS(bill!$K$5:$K$120000,bill!$A$5:$A$120000,N$3,bill!$H$5:$H$120000,$C54),"") -> 0 | P54: =IFERROR(SUMIFS(inv!$N$5:$N$120000,inv!$C$5:$C$120000,P$3,inv!$K$5:$K$120000,$C54),"") -> 0 | R54: =IFERROR(SUMIFS(inv!$N$5:$N$120000,inv!$C$5:$C$120000,R$3,inv!$K$5:$K$120000,$C54),"") -> 0 | T54: =IFERROR(SUMIFS(inv!$N$5:$N$120000,inv!$C$5:$C$120000,T$3,inv!$K$5:$K$120000,$C54),"") -> 0 | V54: =IFERROR(SUMIFS(inv!$N$5:$N$120000,inv!$C$5:$C$120000,V$3,inv!$K$5:$K$120000,$C54),"") -> 0 | X54: =IFERROR(SUMIFS(inv!$N$5:$N$120000,inv!$C$5:$C$120000,X$3,inv!$K$5:$K$120000,$C54),"") -> 0 | Z54: =IFERROR(SUMIFS(inv!$N$5:$N$120000,inv!$C$5:$C$120000,Z$3,inv!$K$5:$K$120000,$C54),"") -> 0 | AB54: =IFERROR(SUMIFS(inv!$N$5:$N$120000,inv!$C$5:$C$120000,AB$3,inv!$K$5:$K$120000,$C54),"") -> 0 | AD54: =IFERROR(SUMIFS(inv!$N$5:$N$120000,inv!$C$5:$C$120000,AD$3,inv!$K$5:$K$120000,$C54),"") -> 0 | AF54: =IFERROR(SUMIFS(inv!$N$5:$N$120000,inv!$C$5:$C$120000,AF$3,inv!$K$5:$K$120000,$C54),"") -> 0 | AH54: 0
B55: 0 | F55: =IF($E55<>"",SUMIFS(bill!$K$5:$K$150000,bill!$H$5:$H$150000,$C55),"") ->  | H55: =+SUMIFS(bill!$M$5:$M$250000,bill!$H$5:$H$250000,$C55) -> 0 | J55: =IFERROR(SUMIFS(bill!$K$5:$K$120000,bill!$A$5:$A$120000,J$3,bill!$H$5:$H$120000,$C55),"") -> 0 | L55: =IFERROR(SUMIFS(bill!$K$5:$K$120000,bill!$A$5:$A$120000,L$3,bill!$H$5:$H$120000,$C55),"") -> 0 | N55: =IFERROR(SUMIFS(bill!$K$5:$K$120000,bill!$A$5:$A$120000,N$3,bill!$H$5:$H$120000,$C55),"") -> 0 | P55: =IFERROR(SUMIFS(inv!$N$5:$N$120000,inv!$C$5:$C$120000,P$3,inv!$K$5:$K$120000,$C55),"") -> 0 | R55: =IFERROR(SUMIFS(inv!$N$5:$N$120000,inv!$C$5:$C$120000,R$3,inv!$K$5:$K$120000,$C55),"") -> 0 | T55: =IFERROR(SUMIFS(inv!$N$5:$N$120000,inv!$C$5:$C$120000,T$3,inv!$K$5:$K$120000,$C55),"") -> 0 | V55: =IFERROR(SUMIFS(inv!$N$5:$N$120000,inv!$C$5:$C$120000,V$3,inv!$K$5:$K$120000,$C55),"") -> 0 | X55: =IFERROR(SUMIFS(inv!$N$5:$N$120000,inv!$C$5:$C$120000,X$3,inv!$K$5:$K$120000,$C55),"") -> 0 | Z55: =IFERROR(SUMIFS(inv!$N$5:$N$120000,inv!$C$5:$C$120000,Z$3,inv!$K$5:$K$120000,$C55),"") -> 0 | AB55: =IFERROR(SUMIFS(inv!$N$5:$N$120000,inv!$C$5:$C$120000,AB$3,inv!$K$5:$K$120000,$C55),"") -> 0 | AD55: =IFERROR(SUMIFS(inv!$N$5:$N$120000,inv!$C$5:$C$120000,AD$3,inv!$K$5:$K$120000,$C55),"") -> 0 | AF55: =IFERROR(SUMIFS(inv!$N$5:$N$120000,inv!$C$5:$C$120000,AF$3,inv!$K$5:$K$120000,$C55),"") -> 0 | AH55: 0
B56: 0 | F56: =IF($E56<>"",SUMIFS(bill!$K$5:$K$150000,bill!$H$5:$H$150000,$C56),"") ->  | H56: =+SUMIFS(bill!$M$5:$M$250000,bill!$H$5:$H$250000,$C56) -> 0 | J56: =IFERROR(SUMIFS(bill!$K$5:$K$120000,bill!$A$5:$A$120000,J$3,bill!$H$5:$H$120000,$C56),"") -> 0 | L56: =IFERROR(SUMIFS(bill!$K$5:$K$120000,bill!$A$5:$A$120000,L$3,bill!$H$5:$H$120000,$C56),"") -> 0 | N56: =IFERROR(SUMIFS(bill!$K$5:$K$120000,bill!$A$5:$A$120000,N$3,bill!$H$5:$H$120000,$C56),"") -> 0 | P56: =IFERROR(SUMIFS(inv!$N$5:$N$120000,inv!$C$5:$C$120000,P$3,inv!$K$5:$K$120000,$C56),"") -> 0 | R56: =IFERROR(SUMIFS(inv!$N$5:$N$120000,inv!$C$5:$C$120000,R$3,inv!$K$5:$K$120000,$C56),"") -> 0 | T56: =IFERROR(SUMIFS(inv!$N$5:$N$120000,inv!$C$5:$C$120000,T$3,inv!$K$5:$K$120000,$C56),"") -> 0 | V56: =IFERROR(SUMIFS(inv!$N$5:$N$120000,inv!$C$5:$C$120000,V$3,inv!$K$5:$K$120000,$C56),"") -> 0 | X56: =IFERROR(SUMIFS(inv!$N$5:$N$120000,inv!$C$5:$C$120000,X$3,inv!$K$5:$K$120000,$C56),"") -> 0 | Z56: =IFERROR(SUMIFS(inv!$N$5:$N$120000,inv!$C$5:$C$120000,Z$3,inv!$K$5:$K$120000,$C56),"") -> 0 | AB56: =IFERROR(SUMIFS(inv!$N$5:$N$120000,inv!$C$5:$C$120000,AB$3,inv!$K$5:$K$120000,$C56),"") -> 0 | AD56: =IFERROR(SUMIFS(inv!$N$5:$N$120000,inv!$C$5:$C$120000,AD$3,inv!$K$5:$K$120000,$C56),"") -> 0 | AF56: =IFERROR(SUMIFS(inv!$N$5:$N$120000,inv!$C$5:$C$120000,AF$3,inv!$K$5:$K$120000,$C56),"") -> 0 | AH56: 0
B57: 0 | F57: =IF($E57<>"",SUMIFS(bill!$K$5:$K$150000,bill!$H$5:$H$150000,$C57),"") ->  | H57: =+SUMIFS(bill!$M$5:$M$250000,bill!$H$5:$H$250000,$C57) -> 0 | J57: =IFERROR(SUMIFS(bill!$K$5:$K$120000,bill!$A$5:$A$120000,J$3,bill!$H$5:$H$120000,$C57),"") -> 0 | L57: =IFERROR(SUMIFS(bill!$K$5:$K$120000,bill!$A$5:$A$120000,L$3,bill!$H$5:$H$120000,$C57),"") -> 0 | N57: =IFERROR(SUMIFS(bill!$K$5:$K$120000,bill!$A$5:$A$120000,N$3,bill!$H$5:$H$120000,$C57),"") -> 0 | P57: =IFERROR(SUMIFS(inv!$N$5:$N$120000,inv!$C$5:$C$120000,P$3,inv!$K$5:$K$120000,$C57),"") -> 0 | R57: =IFERROR(SUMIFS(inv!$N$5:$N$120000,inv!$C$5:$C$120000,R$3,inv!$K$5:$K$120000,$C57),"") -> 0 | T57: =IFERROR(SUMIFS(inv!$N$5:$N$120000,inv!$C$5:$C$120000,T$3,inv!$K$5:$K$120000,$C57),"") -> 0 | V57: =IFERROR(SUMIFS(inv!$N$5:$N$120000,inv!$C$5:$C$120000,V$3,inv!$K$5:$K$120000,$C57),"") -> 0 | X57: =IFERROR(SUMIFS(inv!$N$5:$N$120000,inv!$C$5:$C$120000,X$3,inv!$K$5:$K$120000,$C57),"") -> 0 | Z57: =IFERROR(SUMIFS(inv!$N$5:$N$120000,inv!$C$5:$C$120000,Z$3,inv!$K$5:$K$120000,$C57),"") -> 0 | AB57: =IFERROR(SUMIFS(inv!$N$5:$N$120000,inv!$C$5:$C$120000,AB$3,inv!$K$5:$K$120000,$C57),"") -> 0 | AD57: =IFERROR(SUMIFS(inv!$N$5:$N$120000,inv!$C$5:$C$120000,AD$3,inv!$K$5:$K$120000,$C57),"") -> 0 | AF57: =IFERROR(SUMIFS(inv!$N$5:$N$120000,inv!$C$5:$C$120000,AF$3,inv!$K$5:$K$120000,$C57),"") -> 0 | AH57: 0
B58: 0 | F58: =IF($E58<>"",SUMIFS(bill!$K$5:$K$150000,bill!$H$5:$H$150000,$C58),"") ->  | H58: =+SUMIFS(bill!$M$5:$M$250000,bill!$H$5:$H$250000,$C58) -> 0 | J58: =IFERROR(SUMIFS(bill!$K$5:$K$120000,bill!$A$5:$A$120000,J$3,bill!$H$5:$H$120000,$C58),"") -> 0 | L58: =IFERROR(SUMIFS(bill!$K$5:$K$120000,bill!$A$5:$A$120000,L$3,bill!$H$5:$H$120000,$C58),"") -> 0 | N58: =IFERROR(SUMIFS(bill!$K$5:$K$120000,bill!$A$5:$A$120000,N$3,bill!$H$5:$H$120000,$C58),"") -> 0 | P58: =IFERROR(SUMIFS(inv!$N$5:$N$120000,inv!$C$5:$C$120000,P$3,inv!$K$5:$K$120000,$C58),"") -> 0 | R58: =IFERROR(SUMIFS(inv!$N$5:$N$120000,inv!$C$5:$C$120000,R$3,inv!$K$5:$K$120000,$C58),"") -> 0 | T58: =IFERROR(SUMIFS(inv!$N$5:$N$120000,inv!$C$5:$C$120000,T$3,inv!$K$5:$K$120000,$C58),"") -> 0 | V58: =IFERROR(SUMIFS(inv!$N$5:$N$120000,inv!$C$5:$C$120000,V$3,inv!$K$5:$K$120000,$C58),"") -> 0 | X58: =IFERROR(SUMIFS(inv!$N$5:$N$120000,inv!$C$5:$C$120000,X$3,inv!$K$5:$K$120000,$C58),"") -> 0 | Z58: =IFERROR(SUMIFS(inv!$N$5:$N$120000,inv!$C$5:$C$120000,Z$3,inv!$K$5:$K$120000,$C58),"") -> 0 | AB58: =IFERROR(SUMIFS(inv!$N$5:$N$120000,inv!$C$5:$C$120000,AB$3,inv!$K$5:$K$120000,$C58),"") -> 0 | AD58: =IFERROR(SUMIFS(inv!$N$5:$N$120000,inv!$C$5:$C$120000,AD$3,inv!$K$5:$K$120000,$C58),"") -> 0 | AF58: =IFERROR(SUMIFS(inv!$N$5:$N$120000,inv!$C$5:$C$120000,AF$3,inv!$K$5:$K$120000,$C58),"") -> 0 | AH58: 0
B59: 0 | F59: =IF($E59<>"",SUMIFS(bill!$K$5:$K$150000,bill!$H$5:$H$150000,$C59),"") ->  | H59: =+SUMIFS(bill!$M$5:$M$250000,bill!$H$5:$H$250000,$C59) -> 0 | J59: =IFERROR(SUMIFS(bill!$K$5:$K$120000,bill!$A$5:$A$120000,J$3,bill!$H$5:$H$120000,$C59),"") -> 0 | L59: =IFERROR(SUMIFS(bill!$K$5:$K$120000,bill!$A$5:$A$120000,L$3,bill!$H$5:$H$120000,$C59),"") -> 0 | N59: =IFERROR(SUMIFS(bill!$K$5:$K$120000,bill!$A$5:$A$120000,N$3,bill!$H$5:$H$120000,$C59),"") -> 0 | P59: =IFERROR(SUMIFS(inv!$N$5:$N$120000,inv!$C$5:$C$120000,P$3,inv!$K$5:$K$120000,$C59),"") -> 0 | R59: =IFERROR(SUMIFS(inv!$N$5:$N$120000,inv!$C$5:$C$120000,R$3,inv!$K$5:$K$120000,$C59),"") -> 0 | T59: =IFERROR(SUMIFS(inv!$N$5:$N$120000,inv!$C$5:$C$120000,T$3,inv!$K$5:$K$120000,$C59),"") -> 0 | V59: =IFERROR(SUMIFS(inv!$N$5:$N$120000,inv!$C$5:$C$120000,V$3,inv!$K$5:$K$120000,$C59),"") -> 0 | X59: =IFERROR(SUMIFS(inv!$N$5:$N$120000,inv!$C$5:$C$120000,X$3,inv!$K$5:$K$120000,$C59),"") -> 0 | Z59: =IFERROR(SUMIFS(inv!$N$5:$N$120000,inv!$C$5:$C$120000,Z$3,inv!$K$5:$K$120000,$C59),"") -> 0 | AB59: =IFERROR(SUMIFS(inv!$N$5:$N$120000,inv!$C$5:$C$120000,AB$3,inv!$K$5:$K$120000,$C59),"") -> 0 | AD59: =IFERROR(SUMIFS(inv!$N$5:$N$120000,inv!$C$5:$C$120000,AD$3,inv!$K$5:$K$120000,$C59),"") -> 0 | AF59: =IFERROR(SUMIFS(inv!$N$5:$N$120000,inv!$C$5:$C$120000,AF$3,inv!$K$5:$K$120000,$C59),"") -> 0 | AH59: 0
B60: 0 | F60: =IF($E60<>"",SUMIFS(bill!$K$5:$K$150000,bill!$H$5:$H$150000,$C60),"") ->  | H60: =+SUMIFS(bill!$M$5:$M$250000,bill!$H$5:$H$250000,$C60) -> 0 | J60: =IFERROR(SUMIFS(bill!$K$5:$K$120000,bill!$A$5:$A$120000,J$3,bill!$H$5:$H$120000,$C60),"") -> 0 | L60: =IFERROR(SUMIFS(bill!$K$5:$K$120000,bill!$A$5:$A$120000,L$3,bill!$H$5:$H$120000,$C60),"") -> 0 | N60: =IFERROR(SUMIFS(bill!$K$5:$K$120000,bill!$A$5:$A$120000,N$3,bill!$H$5:$H$120000,$C60),"") -> 0 | P60: =IFERROR(SUMIFS(inv!$N$5:$N$120000,inv!$C$5:$C$120000,P$3,inv!$K$5:$K$120000,$C60),"") -> 0 | R60: =IFERROR(SUMIFS(inv!$N$5:$N$120000,inv!$C$5:$C$120000,R$3,inv!$K$5:$K$120000,$C60),"") -> 0 | T60: =IFERROR(SUMIFS(inv!$N$5:$N$120000,inv!$C$5:$C$120000,T$3,inv!$K$5:$K$120000,$C60),"") -> 0 | V60: =IFERROR(SUMIFS(inv!$N$5:$N$120000,inv!$C$5:$C$120000,V$3,inv!$K$5:$K$120000,$C60),"") -> 0 | X60: =IFERROR(SUMIFS(inv!$N$5:$N$120000,inv!$C$5:$C$120000,X$3,inv!$K$5:$K$120000,$C60),"") -> 0 | Z60: =IFERROR(SUMIFS(inv!$N$5:$N$120000,inv!$C$5:$C$120000,Z$3,inv!$K$5:$K$120000,$C60),"") -> 0 | AB60: =IFERROR(SUMIFS(inv!$N$5:$N$120000,inv!$C$5:$C$120000,AB$3,inv!$K$5:$K$120000,$C60),"") -> 0 | AD60: =IFERROR(SUMIFS(inv!$N$5:$N$120000,inv!$C$5:$C$120000,AD$3,inv!$K$5:$K$120000,$C60),"") -> 0 | AF60: =IFERROR(SUMIFS(inv!$N$5:$N$120000,inv!$C$5:$C$120000,AF$3,inv!$K$5:$K$120000,$C60),"") -> 0 | AH60: 0
B61: 0 | F61: =IF($E61<>"",SUMIFS(bill!$K$5:$K$150000,bill!$H$5:$H$150000,$C61),"") ->  | H61: =+SUMIFS(bill!$M$5:$M$250000,bill!$H$5:$H$250000,$C61) -> 0 | J61: =IFERROR(SUMIFS(bill!$K$5:$K$120000,bill!$A$5:$A$120000,J$3,bill!$H$5:$H$120000,$C61),"") -> 0 | L61: =IFERROR(SUMIFS(bill!$K$5:$K$120000,bill!$A$5:$A$120000,L$3,bill!$H$5:$H$120000,$C61),"") -> 0 | N61: =IFERROR(SUMIFS(bill!$K$5:$K$120000,bill!$A$5:$A$120000,N$3,bill!$H$5:$H$120000,$C61),"") -> 0 | P61: =IFERROR(SUMIFS(inv!$N$5:$N$120000,inv!$C$5:$C$120000,P$3,inv!$K$5:$K$120000,$C61),"") -> 0 | R61: =IFERROR(SUMIFS(inv!$N$5:$N$120000,inv!$C$5:$C$120000,R$3,inv!$K$5:$K$120000,$C61),"") -> 0 | T61: =IFERROR(SUMIFS(inv!$N$5:$N$120000,inv!$C$5:$C$120000,T$3,inv!$K$5:$K$120000,$C61),"") -> 0 | V61: =IFERROR(SUMIFS(inv!$N$5:$N$120000,inv!$C$5:$C$120000,V$3,inv!$K$5:$K$120000,$C61),"") -> 0 | X61: =IFERROR(SUMIFS(inv!$N$5:$N$120000,inv!$C$5:$C$120000,X$3,inv!$K$5:$K$120000,$C61),"") -> 0 | Z61: =IFERROR(SUMIFS(inv!$N$5:$N$120000,inv!$C$5:$C$120000,Z$3,inv!$K$5:$K$120000,$C61),"") -> 0 | AB61: =IFERROR(SUMIFS(inv!$N$5:$N$120000,inv!$C$5:$C$120000,AB$3,inv!$K$5:$K$120000,$C61),"") -> 0 | AD61: =IFERROR(SUMIFS(inv!$N$5:$N$120000,inv!$C$5:$C$120000,AD$3,inv!$K$5:$K$120000,$C61),"") -> 0 | AF61: =IFERROR(SUMIFS(inv!$N$5:$N$120000,inv!$C$5:$C$120000,AF$3,inv!$K$5:$K$120000,$C61),"") -> 0 | AH61: 0
B62: 0 | F62: =IF($E62<>"",SUMIFS(bill!$K$5:$K$150000,bill!$H$5:$H$150000,$C62),"") ->  | H62: =+SUMIFS(bill!$M$5:$M$250000,bill!$H$5:$H$250000,$C62) -> 0 | J62: =IFERROR(SUMIFS(bill!$K$5:$K$120000,bill!$A$5:$A$120000,J$3,bill!$H$5:$H$120000,$C62),"") -> 0 | L62: =IFERROR(SUMIFS(bill!$K$5:$K$120000,bill!$A$5:$A$120000,L$3,bill!$H$5:$H$120000,$C62),"") -> 0 | N62: =IFERROR(SUMIFS(bill!$K$5:$K$120000,bill!$A$5:$A$120000,N$3,bill!$H$5:$H$120000,$C62),"") -> 0 | P62: =IFERROR(SUMIFS(inv!$N$5:$N$120000,inv!$C$5:$C$120000,P$3,inv!$K$5:$K$120000,$C62),"") -> 0 | R62: =IFERROR(SUMIFS(inv!$N$5:$N$120000,inv!$C$5:$C$120000,R$3,inv!$K$5:$K$120000,$C62),"") -> 0 | T62: =IFERROR(SUMIFS(inv!$N$5:$N$120000,inv!$C$5:$C$120000,T$3,inv!$K$5:$K$120000,$C62),"") -> 0 | V62: =IFERROR(SUMIFS(inv!$N$5:$N$120000,inv!$C$5:$C$120000,V$3,inv!$K$5:$K$120000,$C62),"") -> 0 | X62: =IFERROR(SUMIFS(inv!$N$5:$N$120000,inv!$C$5:$C$120000,X$3,inv!$K$5:$K$120000,$C62),"") -> 0 | Z62: =IFERROR(SUMIFS(inv!$N$5:$N$120000,inv!$C$5:$C$120000,Z$3,inv!$K$5:$K$120000,$C62),"") -> 0 | AB62: =IFERROR(SUMIFS(inv!$N$5:$N$120000,inv!$C$5:$C$120000,AB$3,inv!$K$5:$K$120000,$C62),"") -> 0 | AD62: =IFERROR(SUMIFS(inv!$N$5:$N$120000,inv!$C$5:$C$120000,AD$3,inv!$K$5:$K$120000,$C62),"") -> 0 | AF62: =IFERROR(SUMIFS(inv!$N$5:$N$120000,inv!$C$5:$C$120000,AF$3,inv!$K$5:$K$120000,$C62),"") -> 0 | AH62: 0
B63: 0 | F63: =IF($E63<>"",SUMIFS(bill!$K$5:$K$150000,bill!$H$5:$H$150000,$C63),"") ->  | H63: =+SUMIFS(bill!$M$5:$M$250000,bill!$H$5:$H$250000,$C63) -> 0 | J63: =IFERROR(SUMIFS(bill!$K$5:$K$120000,bill!$A$5:$A$120000,J$3,bill!$H$5:$H$120000,$C63),"") -> 0 | L63: =IFERROR(SUMIFS(bill!$K$5:$K$120000,bill!$A$5:$A$120000,L$3,bill!$H$5:$H$120000,$C63),"") -> 0 | N63: =IFERROR(SUMIFS(bill!$K$5:$K$120000,bill!$A$5:$A$120000,N$3,bill!$H$5:$H$120000,$C63),"") -> 0 | P63: =IFERROR(SUMIFS(inv!$N$5:$N$120000,inv!$C$5:$C$120000,P$3,inv!$K$5:$K$120000,$C63),"") -> 0 | R63: =IFERROR(SUMIFS(inv!$N$5:$N$120000,inv!$C$5:$C$120000,R$3,inv!$K$5:$K$120000,$C63),"") -> 0 | T63: =IFERROR(SUMIFS(inv!$N$5:$N$120000,inv!$C$5:$C$120000,T$3,inv!$K$5:$K$120000,$C63),"") -> 0 | V63: =IFERROR(SUMIFS(inv!$N$5:$N$120000,inv!$C$5:$C$120000,V$3,inv!$K$5:$K$120000,$C63),"") -> 0 | X63: =IFERROR(SUMIFS(inv!$N$5:$N$120000,inv!$C$5:$C$120000,X$3,inv!$K$5:$K$120000,$C63),"") -> 0 | Z63: =IFERROR(SUMIFS(inv!$N$5:$N$120000,inv!$C$5:$C$120000,Z$3,inv!$K$5:$K$120000,$C63),"") -> 0 | AB63: =IFERROR(SUMIFS(inv!$N$5:$N$120000,inv!$C$5:$C$120000,AB$3,inv!$K$5:$K$120000,$C63),"") -> 0 | AD63: =IFERROR(SUMIFS(inv!$N$5:$N$120000,inv!$C$5:$C$120000,AD$3,inv!$K$5:$K$120000,$C63),"") -> 0 | AF63: =IFERROR(SUMIFS(inv!$N$5:$N$120000,inv!$C$5:$C$120000,AF$3,inv!$K$5:$K$120000,$C63),"") -> 0 | AH63: 0
B64: 0 | F64: =IF($E64<>"",SUMIFS(bill!$K$5:$K$150000,bill!$H$5:$H$150000,$C64),"") ->  | H64: =+SUMIFS(bill!$M$5:$M$250000,bill!$H$5:$H$250000,$C64) -> 0 | J64: =IFERROR(SUMIFS(bill!$K$5:$K$120000,bill!$A$5:$A$120000,J$3,bill!$H$5:$H$120000,$C64),"") -> 0 | L64: =IFERROR(SUMIFS(bill!$K$5:$K$120000,bill!$A$5:$A$120000,L$3,bill!$H$5:$H$120000,$C64),"") -> 0 | N64: =IFERROR(SUMIFS(bill!$K$5:$K$120000,bill!$A$5:$A$120000,N$3,bill!$H$5:$H$120000,$C64),"") -> 0 | P64: =IFERROR(SUMIFS(inv!$N$5:$N$120000,inv!$C$5:$C$120000,P$3,inv!$K$5:$K$120000,$C64),"") -> 0 | R64: =IFERROR(SUMIFS(inv!$N$5:$N$120000,inv!$C$5:$C$120000,R$3,inv!$K$5:$K$120000,$C64),"") -> 0 | T64: =IFERROR(SUMIFS(inv!$N$5:$N$120000,inv!$C$5:$C$120000,T$3,inv!$K$5:$K$120000,$C64),"") -> 0 | V64: =IFERROR(SUMIFS(inv!$N$5:$N$120000,inv!$C$5:$C$120000,V$3,inv!$K$5:$K$120000,$C64),"") -> 0 | X64: =IFERROR(SUMIFS(inv!$N$5:$N$120000,inv!$C$5:$C$120000,X$3,inv!$K$5:$K$120000,$C64),"") -> 0 | Z64: =IFERROR(SUMIFS(inv!$N$5:$N$120000,inv!$C$5:$C$120000,Z$3,inv!$K$5:$K$120000,$C64),"") -> 0 | AB64: =IFERROR(SUMIFS(inv!$N$5:$N$120000,inv!$C$5:$C$120000,AB$3,inv!$K$5:$K$120000,$C64),"") -> 0 | AD64: =IFERROR(SUMIFS(inv!$N$5:$N$120000,inv!$C$5:$C$120000,AD$3,inv!$K$5:$K$120000,$C64),"") -> 0 | AF64: =IFERROR(SUMIFS(inv!$N$5:$N$120000,inv!$C$5:$C$120000,AF$3,inv!$K$5:$K$120000,$C64),"") -> 0 | AH64: 0
B65: 0 | F65: =IF($E65<>"",SUMIFS(bill!$K$5:$K$150000,bill!$H$5:$H$150000,$C65),"") ->  | H65: =+SUMIFS(bill!$M$5:$M$250000,bill!$H$5:$H$250000,$C65) -> 0 | J65: =IFERROR(SUMIFS(bill!$K$5:$K$120000,bill!$A$5:$A$120000,J$3,bill!$H$5:$H$120000,$C65),"") -> 0 | L65: =IFERROR(SUMIFS(bill!$K$5:$K$120000,bill!$A$5:$A$120000,L$3,bill!$H$5:$H$120000,$C65),"") -> 0 | N65: =IFERROR(SUMIFS(bill!$K$5:$K$120000,bill!$A$5:$A$120000,N$3,bill!$H$5:$H$120000,$C65),"") -> 0 | P65: =IFERROR(SUMIFS(inv!$N$5:$N$120000,inv!$C$5:$C$120000,P$3,inv!$K$5:$K$120000,$C65),"") -> 0 | R65: =IFERROR(SUMIFS(inv!$N$5:$N$120000,inv!$C$5:$C$120000,R$3,inv!$K$5:$K$120000,$C65),"") -> 0 | T65: =IFERROR(SUMIFS(inv!$N$5:$N$120000,inv!$C$5:$C$120000,T$3,inv!$K$5:$K$120000,$C65),"") -> 0 | V65: =IFERROR(SUMIFS(inv!$N$5:$N$120000,inv!$C$5:$C$120000,V$3,inv!$K$5:$K$120000,$C65),"") -> 0 | X65: =IFERROR(SUMIFS(inv!$N$5:$N$120000,inv!$C$5:$C$120000,X$3,inv!$K$5:$K$120000,$C65),"") -> 0 | Z65: =IFERROR(SUMIFS(inv!$N$5:$N$120000,inv!$C$5:$C$120000,Z$3,inv!$K$5:$K$120000,$C65),"") -> 0 | AB65: =IFERROR(SUMIFS(inv!$N$5:$N$120000,inv!$C$5:$C$120000,AB$3,inv!$K$5:$K$120000,$C65),"") -> 0 | AD65: =IFERROR(SUMIFS(inv!$N$5:$N$120000,inv!$C$5:$C$120000,AD$3,inv!$K$5:$K$120000,$C65),"") -> 0 | AF65: =IFERROR(SUMIFS(inv!$N$5:$N$120000,inv!$C$5:$C$120000,AF$3,inv!$K$5:$K$120000,$C65),"") -> 0 | AH65: 0
B66: 0 | F66: =IF($E66<>"",SUMIFS(bill!$K$5:$K$150000,bill!$H$5:$H$150000,$C66),"") ->  | H66: =+SUMIFS(bill!$M$5:$M$250000,bill!$H$5:$H$250000,$C66) -> 0 | J66: =IFERROR(SUMIFS(bill!$K$5:$K$120000,bill!$A$5:$A$120000,J$3,bill!$H$5:$H$120000,$C66),"") -> 0 | L66: =IFERROR(SUMIFS(bill!$K$5:$K$120000,bill!$A$5:$A$120000,L$3,bill!$H$5:$H$120000,$C66),"") -> 0 | N66: =IFERROR(SUMIFS(bill!$K$5:$K$120000,bill!$A$5:$A$120000,N$3,bill!$H$5:$H$120000,$C66),"") -> 0 | P66: =IFERROR(SUMIFS(inv!$N$5:$N$120000,inv!$C$5:$C$120000,P$3,inv!$K$5:$K$120000,$C66),"") -> 0 | R66: =IFERROR(SUMIFS(inv!$N$5:$N$120000,inv!$C$5:$C$120000,R$3,inv!$K$5:$K$120000,$C66),"") -> 0 | T66: =IFERROR(SUMIFS(inv!$N$5:$N$120000,inv!$C$5:$C$120000,T$3,inv!$K$5:$K$120000,$C66),"") -> 0 | V66: =IFERROR(SUMIFS(inv!$N$5:$N$120000,inv!$C$5:$C$120000,V$3,inv!$K$5:$K$120000,$C66),"") -> 0 | X66: =IFERROR(SUMIFS(inv!$N$5:$N$120000,inv!$C$5:$C$120000,X$3,inv!$K$5:$K$120000,$C66),"") -> 0 | Z66: =IFERROR(SUMIFS(inv!$N$5:$N$120000,inv!$C$5:$C$120000,Z$3,inv!$K$5:$K$120000,$C66),"") -> 0 | AB66: =IFERROR(SUMIFS(inv!$N$5:$N$120000,inv!$C$5:$C$120000,AB$3,inv!$K$5:$K$120000,$C66),"") -> 0 | AD66: =IFERROR(SUMIFS(inv!$N$5:$N$120000,inv!$C$5:$C$120000,AD$3,inv!$K$5:$K$120000,$C66),"") -> 0 | AF66: =IFERROR(SUMIFS(inv!$N$5:$N$120000,inv!$C$5:$C$120000,AF$3,inv!$K$5:$K$120000,$C66),"") -> 0 | AH66: 0
B67: 0 | F67: =IF($E67<>"",SUMIFS(bill!$K$5:$K$150000,bill!$H$5:$H$150000,$C67),"") ->  | H67: =+SUMIFS(bill!$M$5:$M$250000,bill!$H$5:$H$250000,$C67) -> 0 | J67: =IFERROR(SUMIFS(bill!$K$5:$K$120000,bill!$A$5:$A$120000,J$3,bill!$H$5:$H$120000,$C67),"") -> 0 | L67: =IFERROR(SUMIFS(bill!$K$5:$K$120000,bill!$A$5:$A$120000,L$3,bill!$H$5:$H$120000,$C67),"") -> 0 | N67: =IFERROR(SUMIFS(bill!$K$5:$K$120000,bill!$A$5:$A$120000,N$3,bill!$H$5:$H$120000,$C67),"") -> 0 | P67: =IFERROR(SUMIFS(inv!$N$5:$N$120000,inv!$C$5:$C$120000,P$3,inv!$K$5:$K$120000,$C67),"") -> 0 | R67: =IFERROR(SUMIFS(inv!$N$5:$N$120000,inv!$C$5:$C$120000,R$3,inv!$K$5:$K$120000,$C67),"") -> 0 | T67: =IFERROR(SUMIFS(inv!$N$5:$N$120000,inv!$C$5:$C$120000,T$3,inv!$K$5:$K$120000,$C67),"") -> 0 | V67: =IFERROR(SUMIFS(inv!$N$5:$N$120000,inv!$C$5:$C$120000,V$3,inv!$K$5:$K$120000,$C67),"") -> 0 | X67: =IFERROR(SUMIFS(inv!$N$5:$N$120000,inv!$C$5:$C$120000,X$3,inv!$K$5:$K$120000,$C67),"") -> 0 | Z67: =IFERROR(SUMIFS(inv!$N$5:$N$120000,inv!$C$5:$C$120000,Z$3,inv!$K$5:$K$120000,$C67),"") -> 0 | AB67: =IFERROR(SUMIFS(inv!$N$5:$N$120000,inv!$C$5:$C$120000,AB$3,inv!$K$5:$K$120000,$C67),"") -> 0 | AD67: =IFERROR(SUMIFS(inv!$N$5:$N$120000,inv!$C$5:$C$120000,AD$3,inv!$K$5:$K$120000,$C67),"") -> 0 | AF67: =IFERROR(SUMIFS(inv!$N$5:$N$120000,inv!$C$5:$C$120000,AF$3,inv!$K$5:$K$120000,$C67),"") -> 0 | AH67: 0
B68: 0 | F68: =IF($E68<>"",SUMIFS(bill!$K$5:$K$150000,bill!$H$5:$H$150000,$C68),"") ->  | H68: =+SUMIFS(bill!$M$5:$M$250000,bill!$H$5:$H$250000,$C68) -> 0 | J68: =IFERROR(SUMIFS(bill!$K$5:$K$120000,bill!$A$5:$A$120000,J$3,bill!$H$5:$H$120000,$C68),"") -> 0 | L68: =IFERROR(SUMIFS(bill!$K$5:$K$120000,bill!$A$5:$A$120000,L$3,bill!$H$5:$H$120000,$C68),"") -> 0 | N68: =IFERROR(SUMIFS(bill!$K$5:$K$120000,bill!$A$5:$A$120000,N$3,bill!$H$5:$H$120000,$C68),"") -> 0 | P68: =IFERROR(SUMIFS(inv!$N$5:$N$120000,inv!$C$5:$C$120000,P$3,inv!$K$5:$K$120000,$C68),"") -> 0 | R68: =IFERROR(SUMIFS(inv!$N$5:$N$120000,inv!$C$5:$C$120000,R$3,inv!$K$5:$K$120000,$C68),"") -> 0 | T68: =IFERROR(SUMIFS(inv!$N$5:$N$120000,inv!$C$5:$C$120000,T$3,inv!$K$5:$K$120000,$C68),"") -> 0 | V68: =IFERROR(SUMIFS(inv!$N$5:$N$120000,inv!$C$5:$C$120000,V$3,inv!$K$5:$K$120000,$C68),"") -> 0 | X68: =IFERROR(SUMIFS(inv!$N$5:$N$120000,inv!$C$5:$C$120000,X$3,inv!$K$5:$K$120000,$C68),"") -> 0 | Z68: =IFERROR(SUMIFS(inv!$N$5:$N$120000,inv!$C$5:$C$120000,Z$3,inv!$K$5:$K$120000,$C68),"") -> 0 | AB68: =IFERROR(SUMIFS(inv!$N$5:$N$120000,inv!$C$5:$C$120000,AB$3,inv!$K$5:$K$120000,$C68),"") -> 0 | AD68: =IFERROR(SUMIFS(inv!$N$5:$N$120000,inv!$C$5:$C$120000,AD$3,inv!$K$5:$K$120000,$C68),"") -> 0 | AF68: =IFERROR(SUMIFS(inv!$N$5:$N$120000,inv!$C$5:$C$120000,AF$3,inv!$K$5:$K$120000,$C68),"") -> 0 | AH68: 0
B69: 0 | F69: =IF($E69<>"",SUMIFS(bill!$K$5:$K$150000,bill!$H$5:$H$150000,$C69),"") ->  | G69: =IFERROR(IF($F$1<>"","",H69/F69),"") ->  | H69: =+SUMIFS(bill!$M$5:$M$250000,bill!$H$5:$H$250000,$C69) -> 0 | J69: =IFERROR(SUMIFS(bill!$K$5:$K$120000,bill!$A$5:$A$120000,J$3,bill!$H$5:$H$120000,$C69),"") -> 0 | K69: =IFERROR(IF($G$4<>"",$J69*$G69,""),"") ->  | L69: =IFERROR(SUMIFS(bill!$K$5:$K$120000,bill!$A$5:$A$120000,L$3,bill!$H$5:$H$120000,$C69),"") -> 0 | M69: =IF($G69<>"",L69*$G69,"") ->  | N69: =IFERROR(SUMIFS(bill!$K$5:$K$120000,bill!$A$5:$A$120000,N$3,bill!$H$5:$H$120000,$C69),"") -> 0 | O69: =IF($G69<>"",N69*$G69,"") ->  | P69: =IFERROR(SUMIFS(inv!$N$5:$N$120000,inv!$C$5:$C$120000,P$3,inv!$K$5:$K$120000,$C69),"") -> 0 | Q69: =IF($G69<>"",P69*$G69,"") ->  | R69: =IFERROR(SUMIFS(inv!$N$5:$N$120000,inv!$C$5:$C$120000,R$3,inv!$K$5:$K$120000,$C69),"") -> 0 | S69: =IF($G69<>"",R69*$G69,"") ->  | T69: =IFERROR(SUMIFS(inv!$N$5:$N$120000,inv!$C$5:$C$120000,T$3,inv!$K$5:$K$120000,$C69),"") -> 0 | U69: =IF($G69<>"",T69*$G69,"") ->  | V69: =IFERROR(SUMIFS(inv!$N$5:$N$120000,inv!$C$5:$C$120000,V$3,inv!$K$5:$K$120000,$C69),"") -> 0 | W69: =IF($G69<>"",V69*$G69,"") ->  | X69: =IFERROR(SUMIFS(inv!$N$5:$N$120000,inv!$C$5:$C$120000,X$3,inv!$K$5:$K$120000,$C69),"") -> 0 | Y69: =IF($G69<>"",X69*$G69,"") ->  | Z69: =IFERROR(SUMIFS(inv!$N$5:$N$120000,inv!$C$5:$C$120000,Z$3,inv!$K$5:$K$120000,$C69),"") -> 0 | AA69: =IF($G69<>"",Z69*$G69,"") ->  | AB69: =IFERROR(SUMIFS(inv!$N$5:$N$120000,inv!$C$5:$C$120000,AB$3,inv!$K$5:$K$120000,$C69),"") -> 0 | AC69: =IF($G69<>"",AB69*$G69,"") ->  | AD69: =IFERROR(SUMIFS(inv!$N$5:$N$120000,inv!$C$5:$C$120000,AD$3,inv!$K$5:$K$120000,$C69),"") -> 0 | AE69: =IF($G69<>"",AD69*$G69,"") ->  | AF69: =IFERROR(SUMIFS(inv!$N$5:$N$120000,inv!$C$5:$C$120000,AF$3,inv!$K$5:$K$120000,$C69),"") -> 0 | AG69: =IF($G69<>"",AF69*$G69,"") ->  | AH69: =IFERROR(+AF69+AD69+AB69+Z69+X69+V69+T69+R69+P69+N69+L69+J69,"") -> 0 | AI69: =IFERROR(+AJ69/AH69,"") ->  | AJ69: =IFERROR(+AG69+AE69+AC69+AA69+Y69+W69+U69+S69+Q69+O69+M69+K69,"") -> 
B70: 0 | F70: =IF($E70<>"",SUMIFS(bill!$K$5:$K$150000,bill!$H$5:$H$150000,$C70),"") ->  | H70: =+SUMIFS(bill!$M$5:$M$250000,bill!$H$5:$H$250000,$C70) -> 0 | J70: =IFERROR(SUMIFS(bill!$K$5:$K$120000,bill!$A$5:$A$120000,J$3,bill!$H$5:$H$120000,$C70),"") -> 0 | L70: =IFERROR(SUMIFS(bill!$K$5:$K$120000,bill!$A$5:$A$120000,L$3,bill!$H$5:$H$120000,$C70),"") -> 0 | N70: =IFERROR(SUMIFS(bill!$K$5:$K$120000,bill!$A$5:$A$120000,N$3,bill!$H$5:$H$120000,$C70),"") -> 0 | P70: =IFERROR(SUMIFS(inv!$N$5:$N$120000,inv!$C$5:$C$120000,P$3,inv!$K$5:$K$120000,$C70),"") -> 0 | R70: =IFERROR(SUMIFS(inv!$N$5:$N$120000,inv!$C$5:$C$120000,R$3,inv!$K$5:$K$120000,$C70),"") -> 0 | T70: =IFERROR(SUMIFS(inv!$N$5:$N$120000,inv!$C$5:$C$120000,T$3,inv!$K$5:$K$120000,$C70),"") -> 0 | V70: =IFERROR(SUMIFS(inv!$N$5:$N$120000,inv!$C$5:$C$120000,V$3,inv!$K$5:$K$120000,$C70),"") -> 0 | X70: =IFERROR(SUMIFS(inv!$N$5:$N$120000,inv!$C$5:$C$120000,X$3,inv!$K$5:$K$120000,$C70),"") -> 0 | Z70: =IFERROR(SUMIFS(inv!$N$5:$N$120000,inv!$C$5:$C$120000,Z$3,inv!$K$5:$K$120000,$C70),"") -> 0 | AB70: =IFERROR(SUMIFS(inv!$N$5:$N$120000,inv!$C$5:$C$120000,AB$3,inv!$K$5:$K$120000,$C70),"") -> 0 | AD70: =IFERROR(SUMIFS(inv!$N$5:$N$120000,inv!$C$5:$C$120000,AD$3,inv!$K$5:$K$120000,$C70),"") -> 0 | AF70: =IFERROR(SUMIFS(inv!$N$5:$N$120000,inv!$C$5:$C$120000,AF$3,inv!$K$5:$K$120000,$C70),"") -> 0 | AH70: 0
B71: 0 | F71: =IF($E71<>"",SUMIFS(bill!$K$5:$K$150000,bill!$H$5:$H$150000,$C71),"") ->  | H71: =+SUMIFS(bill!$M$5:$M$250000,bill!$H$5:$H$250000,$C71) -> 0 | J71: =IFERROR(SUMIFS(bill!$K$5:$K$120000,bill!$A$5:$A$120000,J$3,bill!$H$5:$H$120000,$C71),"") -> 0 | L71: =IFERROR(SUMIFS(bill!$K$5:$K$120000,bill!$A$5:$A$120000,L$3,bill!$H$5:$H$120000,$C71),"") -> 0 | N71: =IFERROR(SUMIFS(bill!$K$5:$K$120000,bill!$A$5:$A$120000,N$3,bill!$H$5:$H$120000,$C71),"") -> 0 | P71: =IFERROR(SUMIFS(inv!$N$5:$N$120000,inv!$C$5:$C$120000,P$3,inv!$K$5:$K$120000,$C71),"") -> 0 | R71: =IFERROR(SUMIFS(inv!$N$5:$N$120000,inv!$C$5:$C$120000,R$3,inv!$K$5:$K$120000,$C71),"") -> 0 | T71: =IFERROR(SUMIFS(inv!$N$5:$N$120000,inv!$C$5:$C$120000,T$3,inv!$K$5:$K$120000,$C71),"") -> 0 | V71: =IFERROR(SUMIFS(inv!$N$5:$N$120000,inv!$C$5:$C$120000,V$3,inv!$K$5:$K$120000,$C71),"") -> 0 | X71: =IFERROR(SUMIFS(inv!$N$5:$N$120000,inv!$C$5:$C$120000,X$3,inv!$K$5:$K$120000,$C71),"") -> 0 | Z71: =IFERROR(SUMIFS(inv!$N$5:$N$120000,inv!$C$5:$C$120000,Z$3,inv!$K$5:$K$120000,$C71),"") -> 0 | AB71: =IFERROR(SUMIFS(inv!$N$5:$N$120000,inv!$C$5:$C$120000,AB$3,inv!$K$5:$K$120000,$C71),"") -> 0 | AD71: =IFERROR(SUMIFS(inv!$N$5:$N$120000,inv!$C$5:$C$120000,AD$3,inv!$K$5:$K$120000,$C71),"") -> 0 | AF71: =IFERROR(SUMIFS(inv!$N$5:$N$120000,inv!$C$5:$C$120000,AF$3,inv!$K$5:$K$120000,$C71),"") -> 0 | AH71: 0
B72: 0 | F72: =IF($E72<>"",SUMIFS(bill!$K$5:$K$150000,bill!$H$5:$H$150000,$C72),"") ->  | H72: =+SUMIFS(bill!$M$5:$M$250000,bill!$H$5:$H$250000,$C72) -> 0 | J72: =IFERROR(SUMIFS(bill!$K$5:$K$120000,bill!$A$5:$A$120000,J$3,bill!$H$5:$H$120000,$C72),"") -> 0 | L72: =IFERROR(SUMIFS(bill!$K$5:$K$120000,bill!$A$5:$A$120000,L$3,bill!$H$5:$H$120000,$C72),"") -> 0 | N72: =IFERROR(SUMIFS(bill!$K$5:$K$120000,bill!$A$5:$A$120000,N$3,bill!$H$5:$H$120000,$C72),"") -> 0 | P72: =IFERROR(SUMIFS(inv!$N$5:$N$120000,inv!$C$5:$C$120000,P$3,inv!$K$5:$K$120000,$C72),"") -> 0 | R72: =IFERROR(SUMIFS(inv!$N$5:$N$120000,inv!$C$5:$C$120000,R$3,inv!$K$5:$K$120000,$C72),"") -> 0 | T72: =IFERROR(SUMIFS(inv!$N$5:$N$120000,inv!$C$5:$C$120000,T$3,inv!$K$5:$K$120000,$C72),"") -> 0 | V72: =IFERROR(SUMIFS(inv!$N$5:$N$120000,inv!$C$5:$C$120000,V$3,inv!$K$5:$K$120000,$C72),"") -> 0 | X72: =IFERROR(SUMIFS(inv!$N$5:$N$120000,inv!$C$5:$C$120000,X$3,inv!$K$5:$K$120000,$C72),"") -> 0 | Z72: =IFERROR(SUMIFS(inv!$N$5:$N$120000,inv!$C$5:$C$120000,Z$3,inv!$K$5:$K$120000,$C72),"") -> 0 | AB72: =IFERROR(SUMIFS(inv!$N$5:$N$120000,inv!$C$5:$C$120000,AB$3,inv!$K$5:$K$120000,$C72),"") -> 0 | AD72: =IFERROR(SUMIFS(inv!$N$5:$N$120000,inv!$C$5:$C$120000,AD$3,inv!$K$5:$K$120000,$C72),"") -> 0 | AF72: =IFERROR(SUMIFS(inv!$N$5:$N$120000,inv!$C$5:$C$120000,AF$3,inv!$K$5:$K$120000,$C72),"") -> 0 | AH72: 0
B73: 0 | F73: =IF($E73<>"",SUMIFS(bill!$K$5:$K$150000,bill!$H$5:$H$150000,$C73),"") ->  | H73: =+SUMIFS(bill!$M$5:$M$250000,bill!$H$5:$H$250000,$C73) -> 0 | J73: =IFERROR(SUMIFS(bill!$K$5:$K$120000,bill!$A$5:$A$120000,J$3,bill!$H$5:$H$120000,$C73),"") -> 0 | L73: =IFERROR(SUMIFS(bill!$K$5:$K$120000,bill!$A$5:$A$120000,L$3,bill!$H$5:$H$120000,$C73),"") -> 0 | N73: =IFERROR(SUMIFS(bill!$K$5:$K$120000,bill!$A$5:$A$120000,N$3,bill!$H$5:$H$120000,$C73),"") -> 0 | P73: =IFERROR(SUMIFS(inv!$N$5:$N$120000,inv!$C$5:$C$120000,P$3,inv!$K$5:$K$120000,$C73),"") -> 0 | R73: =IFERROR(SUMIFS(inv!$N$5:$N$120000,inv!$C$5:$C$120000,R$3,inv!$K$5:$K$120000,$C73),"") -> 0 | T73: =IFERROR(SUMIFS(inv!$N$5:$N$120000,inv!$C$5:$C$120000,T$3,inv!$K$5:$K$120000,$C73),"") -> 0 | V73: =IFERROR(SUMIFS(inv!$N$5:$N$120000,inv!$C$5:$C$120000,V$3,inv!$K$5:$K$120000,$C73),"") -> 0 | X73: =IFERROR(SUMIFS(inv!$N$5:$N$120000,inv!$C$5:$C$120000,X$3,inv!$K$5:$K$120000,$C73),"") -> 0 | Z73: =IFERROR(SUMIFS(inv!$N$5:$N$120000,inv!$C$5:$C$120000,Z$3,inv!$K$5:$K$120000,$C73),"") -> 0 | AB73: =IFERROR(SUMIFS(inv!$N$5:$N$120000,inv!$C$5:$C$120000,AB$3,inv!$K$5:$K$120000,$C73),"") -> 0 | AD73: =IFERROR(SUMIFS(inv!$N$5:$N$120000,inv!$C$5:$C$120000,AD$3,inv!$K$5:$K$120000,$C73),"") -> 0 | AF73: =IFERROR(SUMIFS(inv!$N$5:$N$120000,inv!$C$5:$C$120000,AF$3,inv!$K$5:$K$120000,$C73),"") -> 0 | AH73: 0
B74: 0 | F74: =IF($E74<>"",SUMIFS(bill!$K$5:$K$150000,bill!$H$5:$H$150000,$C74),"") ->  | H74: =+SUMIFS(bill!$M$5:$M$250000,bill!$H$5:$H$250000,$C74) -> 0 | J74: =IFERROR(SUMIFS(bill!$K$5:$K$120000,bill!$A$5:$A$120000,J$3,bill!$H$5:$H$120000,$C74),"") -> 0 | L74: =IFERROR(SUMIFS(bill!$K$5:$K$120000,bill!$A$5:$A$120000,L$3,bill!$H$5:$H$120000,$C74),"") -> 0 | N74: =IFERROR(SUMIFS(bill!$K$5:$K$120000,bill!$A$5:$A$120000,N$3,bill!$H$5:$H$120000,$C74),"") -> 0 | P74: =IFERROR(SUMIFS(inv!$N$5:$N$120000,inv!$C$5:$C$120000,P$3,inv!$K$5:$K$120000,$C74),"") -> 0 | R74: =IFERROR(SUMIFS(inv!$N$5:$N$120000,inv!$C$5:$C$120000,R$3,inv!$K$5:$K$120000,$C74),"") -> 0 | T74: =IFERROR(SUMIFS(inv!$N$5:$N$120000,inv!$C$5:$C$120000,T$3,inv!$K$5:$K$120000,$C74),"") -> 0 | V74: =IFERROR(SUMIFS(inv!$N$5:$N$120000,inv!$C$5:$C$120000,V$3,inv!$K$5:$K$120000,$C74),"") -> 0 | X74: =IFERROR(SUMIFS(inv!$N$5:$N$120000,inv!$C$5:$C$120000,X$3,inv!$K$5:$K$120000,$C74),"") -> 0 | Z74: =IFERROR(SUMIFS(inv!$N$5:$N$120000,inv!$C$5:$C$120000,Z$3,inv!$K$5:$K$120000,$C74),"") -> 0 | AB74: =IFERROR(SUMIFS(inv!$N$5:$N$120000,inv!$C$5:$C$120000,AB$3,inv!$K$5:$K$120000,$C74),"") -> 0 | AD74: =IFERROR(SUMIFS(inv!$N$5:$N$120000,inv!$C$5:$C$120000,AD$3,inv!$K$5:$K$120000,$C74),"") -> 0 | AF74: =IFERROR(SUMIFS(inv!$N$5:$N$120000,inv!$C$5:$C$120000,AF$3,inv!$K$5:$K$120000,$C74),"") -> 0 | AH74: 0
B75: 0 | F75: =IF($E75<>"",SUMIFS(bill!$K$5:$K$150000,bill!$H$5:$H$150000,$C75),"") ->  | H75: =+SUMIFS(bill!$M$5:$M$250000,bill!$H$5:$H$250000,$C75) -> 0 | J75: =IFERROR(SUMIFS(bill!$K$5:$K$120000,bill!$A$5:$A$120000,J$3,bill!$H$5:$H$120000,$C75),"") -> 0 | L75: =IFERROR(SUMIFS(bill!$K$5:$K$120000,bill!$A$5:$A$120000,L$3,bill!$H$5:$H$120000,$C75),"") -> 0 | N75: =IFERROR(SUMIFS(bill!$K$5:$K$120000,bill!$A$5:$A$120000,N$3,bill!$H$5:$H$120000,$C75),"") -> 0 | P75: =IFERROR(SUMIFS(inv!$N$5:$N$120000,inv!$C$5:$C$120000,P$3,inv!$K$5:$K$120000,$C75),"") -> 0 | R75: =IFERROR(SUMIFS(inv!$N$5:$N$120000,inv!$C$5:$C$120000,R$3,inv!$K$5:$K$120000,$C75),"") -> 0 | T75: =IFERROR(SUMIFS(inv!$N$5:$N$120000,inv!$C$5:$C$120000,T$3,inv!$K$5:$K$120000,$C75),"") -> 0 | V75: =IFERROR(SUMIFS(inv!$N$5:$N$120000,inv!$C$5:$C$120000,V$3,inv!$K$5:$K$120000,$C75),"") -> 0 | X75: =IFERROR(SUMIFS(inv!$N$5:$N$120000,inv!$C$5:$C$120000,X$3,inv!$K$5:$K$120000,$C75),"") -> 0 | Z75: =IFERROR(SUMIFS(inv!$N$5:$N$120000,inv!$C$5:$C$120000,Z$3,inv!$K$5:$K$120000,$C75),"") -> 0 | AB75: =IFERROR(SUMIFS(inv!$N$5:$N$120000,inv!$C$5:$C$120000,AB$3,inv!$K$5:$K$120000,$C75),"") -> 0 | AD75: =IFERROR(SUMIFS(inv!$N$5:$N$120000,inv!$C$5:$C$120000,AD$3,inv!$K$5:$K$120000,$C75),"") -> 0 | AF75: =IFERROR(SUMIFS(inv!$N$5:$N$120000,inv!$C$5:$C$120000,AF$3,inv!$K$5:$K$120000,$C75),"") -> 0 | AH75: 0
B76: 0 | F76: =IF($E76<>"",SUMIFS(bill!$K$5:$K$150000,bill!$H$5:$H$150000,$C76),"") ->  | H76: =+SUMIFS(bill!$M$5:$M$250000,bill!$H$5:$H$250000,$C76) -> 0 | J76: =IFERROR(SUMIFS(bill!$K$5:$K$120000,bill!$A$5:$A$120000,J$3,bill!$H$5:$H$120000,$C76),"") -> 0 | L76: =IFERROR(SUMIFS(bill!$K$5:$K$120000,bill!$A$5:$A$120000,L$3,bill!$H$5:$H$120000,$C76),"") -> 0 | N76: =IFERROR(SUMIFS(bill!$K$5:$K$120000,bill!$A$5:$A$120000,N$3,bill!$H$5:$H$120000,$C76),"") -> 0 | P76: =IFERROR(SUMIFS(inv!$N$5:$N$120000,inv!$C$5:$C$120000,P$3,inv!$K$5:$K$120000,$C76),"") -> 0 | R76: =IFERROR(SUMIFS(inv!$N$5:$N$120000,inv!$C$5:$C$120000,R$3,inv!$K$5:$K$120000,$C76),"") -> 0 | T76: =IFERROR(SUMIFS(inv!$N$5:$N$120000,inv!$C$5:$C$120000,T$3,inv!$K$5:$K$120000,$C76),"") -> 0 | V76: =IFERROR(SUMIFS(inv!$N$5:$N$120000,inv!$C$5:$C$120000,V$3,inv!$K$5:$K$120000,$C76),"") -> 0 | X76: =IFERROR(SUMIFS(inv!$N$5:$N$120000,inv!$C$5:$C$120000,X$3,inv!$K$5:$K$120000,$C76),"") -> 0 | Z76: =IFERROR(SUMIFS(inv!$N$5:$N$120000,inv!$C$5:$C$120000,Z$3,inv!$K$5:$K$120000,$C76),"") -> 0 | AB76: =IFERROR(SUMIFS(inv!$N$5:$N$120000,inv!$C$5:$C$120000,AB$3,inv!$K$5:$K$120000,$C76),"") -> 0 | AD76: =IFERROR(SUMIFS(inv!$N$5:$N$120000,inv!$C$5:$C$120000,AD$3,inv!$K$5:$K$120000,$C76),"") -> 0 | AF76: =IFERROR(SUMIFS(inv!$N$5:$N$120000,inv!$C$5:$C$120000,AF$3,inv!$K$5:$K$120000,$C76),"") -> 0 | AH76: 0
B77: 0 | F77: =IF($E77<>"",SUMIFS(bill!$K$5:$K$150000,bill!$H$5:$H$150000,$C77),"") ->  | H77: =+SUMIFS(bill!$M$5:$M$250000,bill!$H$5:$H$250000,$C77) -> 0 | J77: =IFERROR(SUMIFS(bill!$K$5:$K$120000,bill!$A$5:$A$120000,J$3,bill!$H$5:$H$120000,$C77),"") -> 0 | L77: =IFERROR(SUMIFS(bill!$K$5:$K$120000,bill!$A$5:$A$120000,L$3,bill!$H$5:$H$120000,$C77),"") -> 0 | N77: =IFERROR(SUMIFS(bill!$K$5:$K$120000,bill!$A$5:$A$120000,N$3,bill!$H$5:$H$120000,$C77),"") -> 0 | P77: =IFERROR(SUMIFS(inv!$N$5:$N$120000,inv!$C$5:$C$120000,P$3,inv!$K$5:$K$120000,$C77),"") -> 0 | R77: =IFERROR(SUMIFS(inv!$N$5:$N$120000,inv!$C$5:$C$120000,R$3,inv!$K$5:$K$120000,$C77),"") -> 0 | T77: =IFERROR(SUMIFS(inv!$N$5:$N$120000,inv!$C$5:$C$120000,T$3,inv!$K$5:$K$120000,$C77),"") -> 0 | V77: =IFERROR(SUMIFS(inv!$N$5:$N$120000,inv!$C$5:$C$120000,V$3,inv!$K$5:$K$120000,$C77),"") -> 0 | X77: =IFERROR(SUMIFS(inv!$N$5:$N$120000,inv!$C$5:$C$120000,X$3,inv!$K$5:$K$120000,$C77),"") -> 0 | Z77: =IFERROR(SUMIFS(inv!$N$5:$N$120000,inv!$C$5:$C$120000,Z$3,inv!$K$5:$K$120000,$C77),"") -> 0 | AB77: =IFERROR(SUMIFS(inv!$N$5:$N$120000,inv!$C$5:$C$120000,AB$3,inv!$K$5:$K$120000,$C77),"") -> 0 | AD77: =IFERROR(SUMIFS(inv!$N$5:$N$120000,inv!$C$5:$C$120000,AD$3,inv!$K$5:$K$120000,$C77),"") -> 0 | AF77: =IFERROR(SUMIFS(inv!$N$5:$N$120000,inv!$C$5:$C$120000,AF$3,inv!$K$5:$K$120000,$C77),"") -> 0 | AH77: 0
B78: 0 | F78: =IF($E78<>"",SUMIFS(bill!$K$5:$K$150000,bill!$H$5:$H$150000,$C78),"") ->  | H78: =+SUMIFS(bill!$M$5:$M$250000,bill!$H$5:$H$250000,$C78) -> 0 | J78: =IFERROR(SUMIFS(bill!$K$5:$K$120000,bill!$A$5:$A$120000,J$3,bill!$H$5:$H$120000,$C78),"") -> 0 | L78: =IFERROR(SUMIFS(bill!$K$5:$K$120000,bill!$A$5:$A$120000,L$3,bill!$H$5:$H$120000,$C78),"") -> 0 | N78: =IFERROR(SUMIFS(bill!$K$5:$K$120000,bill!$A$5:$A$120000,N$3,bill!$H$5:$H$120000,$C78),"") -> 0 | P78: =IFERROR(SUMIFS(inv!$N$5:$N$120000,inv!$C$5:$C$120000,P$3,inv!$K$5:$K$120000,$C78),"") -> 0 | R78: =IFERROR(SUMIFS(inv!$N$5:$N$120000,inv!$C$5:$C$120000,R$3,inv!$K$5:$K$120000,$C78),"") -> 0 | T78: =IFERROR(SUMIFS(inv!$N$5:$N$120000,inv!$C$5:$C$120000,T$3,inv!$K$5:$K$120000,$C78),"") -> 0 | V78: =IFERROR(SUMIFS(inv!$N$5:$N$120000,inv!$C$5:$C$120000,V$3,inv!$K$5:$K$120000,$C78),"") -> 0 | X78: =IFERROR(SUMIFS(inv!$N$5:$N$120000,inv!$C$5:$C$120000,X$3,inv!$K$5:$K$120000,$C78),"") -> 0 | Z78: =IFERROR(SUMIFS(inv!$N$5:$N$120000,inv!$C$5:$C$120000,Z$3,inv!$K$5:$K$120000,$C78),"") -> 0 | AB78: =IFERROR(SUMIFS(inv!$N$5:$N$120000,inv!$C$5:$C$120000,AB$3,inv!$K$5:$K$120000,$C78),"") -> 0 | AD78: =IFERROR(SUMIFS(inv!$N$5:$N$120000,inv!$C$5:$C$120000,AD$3,inv!$K$5:$K$120000,$C78),"") -> 0 | AF78: =IFERROR(SUMIFS(inv!$N$5:$N$120000,inv!$C$5:$C$120000,AF$3,inv!$K$5:$K$120000,$C78),"") -> 0 | AH78: 0
B79: 0 | F79: =IF($E79<>"",SUMIFS(bill!$K$5:$K$150000,bill!$H$5:$H$150000,$C79),"") ->  | H79: =+SUMIFS(bill!$M$5:$M$250000,bill!$H$5:$H$250000,$C79) -> 0 | J79: =IFERROR(SUMIFS(bill!$K$5:$K$120000,bill!$A$5:$A$120000,J$3,bill!$H$5:$H$120000,$C79),"") -> 0 | L79: =IFERROR(SUMIFS(bill!$K$5:$K$120000,bill!$A$5:$A$120000,L$3,bill!$H$5:$H$120000,$C79),"") -> 0 | N79: =IFERROR(SUMIFS(bill!$K$5:$K$120000,bill!$A$5:$A$120000,N$3,bill!$H$5:$H$120000,$C79),"") -> 0 | P79: =IFERROR(SUMIFS(inv!$N$5:$N$120000,inv!$C$5:$C$120000,P$3,inv!$K$5:$K$120000,$C79),"") -> 0 | R79: =IFERROR(SUMIFS(inv!$N$5:$N$120000,inv!$C$5:$C$120000,R$3,inv!$K$5:$K$120000,$C79),"") -> 0 | T79: =IFERROR(SUMIFS(inv!$N$5:$N$120000,inv!$C$5:$C$120000,T$3,inv!$K$5:$K$120000,$C79),"") -> 0 | V79: =IFERROR(SUMIFS(inv!$N$5:$N$120000,inv!$C$5:$C$120000,V$3,inv!$K$5:$K$120000,$C79),"") -> 0 | X79: =IFERROR(SUMIFS(inv!$N$5:$N$120000,inv!$C$5:$C$120000,X$3,inv!$K$5:$K$120000,$C79),"") -> 0 | Z79: =IFERROR(SUMIFS(inv!$N$5:$N$120000,inv!$C$5:$C$120000,Z$3,inv!$K$5:$K$120000,$C79),"") -> 0 | AB79: =IFERROR(SUMIFS(inv!$N$5:$N$120000,inv!$C$5:$C$120000,AB$3,inv!$K$5:$K$120000,$C79),"") -> 0 | AD79: =IFERROR(SUMIFS(inv!$N$5:$N$120000,inv!$C$5:$C$120000,AD$3,inv!$K$5:$K$120000,$C79),"") -> 0 | AF79: =IFERROR(SUMIFS(inv!$N$5:$N$120000,inv!$C$5:$C$120000,AF$3,inv!$K$5:$K$120000,$C79),"") -> 0 | AH79: 0
B80: 0 | F80: =IF($E80<>"",SUMIFS(bill!$K$5:$K$150000,bill!$H$5:$H$150000,$C80),"") ->  | H80: =+SUMIFS(bill!$M$5:$M$250000,bill!$H$5:$H$250000,$C80) -> 0 | J80: =IFERROR(SUMIFS(bill!$K$5:$K$120000,bill!$A$5:$A$120000,J$3,bill!$H$5:$H$120000,$C80),"") -> 0 | L80: =IFERROR(SUMIFS(bill!$K$5:$K$120000,bill!$A$5:$A$120000,L$3,bill!$H$5:$H$120000,$C80),"") -> 0 | N80: =IFERROR(SUMIFS(bill!$K$5:$K$120000,bill!$A$5:$A$120000,N$3,bill!$H$5:$H$120000,$C80),"") -> 0 | P80: =IFERROR(SUMIFS(inv!$N$5:$N$120000,inv!$C$5:$C$120000,P$3,inv!$K$5:$K$120000,$C80),"") -> 0 | R80: =IFERROR(SUMIFS(inv!$N$5:$N$120000,inv!$C$5:$C$120000,R$3,inv!$K$5:$K$120000,$C80),"") -> 0 | T80: =IFERROR(SUMIFS(inv!$N$5:$N$120000,inv!$C$5:$C$120000,T$3,inv!$K$5:$K$120000,$C80),"") -> 0 | V80: =IFERROR(SUMIFS(inv!$N$5:$N$120000,inv!$C$5:$C$120000,V$3,inv!$K$5:$K$120000,$C80),"") -> 0 | X80: =IFERROR(SUMIFS(inv!$N$5:$N$120000,inv!$C$5:$C$120000,X$3,inv!$K$5:$K$120000,$C80),"") -> 0 | Z80: =IFERROR(SUMIFS(inv!$N$5:$N$120000,inv!$C$5:$C$120000,Z$3,inv!$K$5:$K$120000,$C80),"") -> 0 | AB80: =IFERROR(SUMIFS(inv!$N$5:$N$120000,inv!$C$5:$C$120000,AB$3,inv!$K$5:$K$120000,$C80),"") -> 0 | AD80: =IFERROR(SUMIFS(inv!$N$5:$N$120000,inv!$C$5:$C$120000,AD$3,inv!$K$5:$K$120000,$C80),"") -> 0 | AF80: =IFERROR(SUMIFS(inv!$N$5:$N$120000,inv!$C$5:$C$120000,AF$3,inv!$K$5:$K$120000,$C80),"") -> 0 | AH80: 0
B81: 0 | F81: =IF($E81<>"",SUMIFS(bill!$K$5:$K$150000,bill!$H$5:$H$150000,$C81),"") ->  | H81: =+SUMIFS(bill!$M$5:$M$250000,bill!$H$5:$H$250000,$C81) -> 0 | J81: =IFERROR(SUMIFS(bill!$K$5:$K$120000,bill!$A$5:$A$120000,J$3,bill!$H$5:$H$120000,$C81),"") -> 0 | L81: =IFERROR(SUMIFS(bill!$K$5:$K$120000,bill!$A$5:$A$120000,L$3,bill!$H$5:$H$120000,$C81),"") -> 0 | N81: =IFERROR(SUMIFS(bill!$K$5:$K$120000,bill!$A$5:$A$120000,N$3,bill!$H$5:$H$120000,$C81),"") -> 0 | P81: =IFERROR(SUMIFS(inv!$N$5:$N$120000,inv!$C$5:$C$120000,P$3,inv!$K$5:$K$120000,$C81),"") -> 0 | R81: =IFERROR(SUMIFS(inv!$N$5:$N$120000,inv!$C$5:$C$120000,R$3,inv!$K$5:$K$120000,$C81),"") -> 0 | T81: =IFERROR(SUMIFS(inv!$N$5:$N$120000,inv!$C$5:$C$120000,T$3,inv!$K$5:$K$120000,$C81),"") -> 0 | V81: =IFERROR(SUMIFS(inv!$N$5:$N$120000,inv!$C$5:$C$120000,V$3,inv!$K$5:$K$120000,$C81),"") -> 0 | X81: =IFERROR(SUMIFS(inv!$N$5:$N$120000,inv!$C$5:$C$120000,X$3,inv!$K$5:$K$120000,$C81),"") -> 0 | Z81: =IFERROR(SUMIFS(inv!$N$5:$N$120000,inv!$C$5:$C$120000,Z$3,inv!$K$5:$K$120000,$C81),"") -> 0 | AB81: =IFERROR(SUMIFS(inv!$N$5:$N$120000,inv!$C$5:$C$120000,AB$3,inv!$K$5:$K$120000,$C81),"") -> 0 | AD81: =IFERROR(SUMIFS(inv!$N$5:$N$120000,inv!$C$5:$C$120000,AD$3,inv!$K$5:$K$120000,$C81),"") -> 0 | AF81: =IFERROR(SUMIFS(inv!$N$5:$N$120000,inv!$C$5:$C$120000,AF$3,inv!$K$5:$K$120000,$C81),"") -> 0 | AH81: 0
B82: 0 | F82: =IF($E82<>"",SUMIFS(bill!$K$5:$K$150000,bill!$H$5:$H$150000,$C82),"") ->  | H82: =+SUMIFS(bill!$M$5:$M$250000,bill!$H$5:$H$250000,$C82) -> 0 | J82: =IFERROR(SUMIFS(bill!$K$5:$K$120000,bill!$A$5:$A$120000,J$3,bill!$H$5:$H$120000,$C82),"") -> 0 | L82: =IFERROR(SUMIFS(bill!$K$5:$K$120000,bill!$A$5:$A$120000,L$3,bill!$H$5:$H$120000,$C82),"") -> 0 | N82: =IFERROR(SUMIFS(bill!$K$5:$K$120000,bill!$A$5:$A$120000,N$3,bill!$H$5:$H$120000,$C82),"") -> 0 | P82: =IFERROR(SUMIFS(inv!$N$5:$N$120000,inv!$C$5:$C$120000,P$3,inv!$K$5:$K$120000,$C82),"") -> 0 | R82: =IFERROR(SUMIFS(inv!$N$5:$N$120000,inv!$C$5:$C$120000,R$3,inv!$K$5:$K$120000,$C82),"") -> 0 | T82: =IFERROR(SUMIFS(inv!$N$5:$N$120000,inv!$C$5:$C$120000,T$3,inv!$K$5:$K$120000,$C82),"") -> 0 | V82: =IFERROR(SUMIFS(inv!$N$5:$N$120000,inv!$C$5:$C$120000,V$3,inv!$K$5:$K$120000,$C82),"") -> 0 | X82: =IFERROR(SUMIFS(inv!$N$5:$N$120000,inv!$C$5:$C$120000,X$3,inv!$K$5:$K$120000,$C82),"") -> 0 | Z82: =IFERROR(SUMIFS(inv!$N$5:$N$120000,inv!$C$5:$C$120000,Z$3,inv!$K$5:$K$120000,$C82),"") -> 0 | AB82: =IFERROR(SUMIFS(inv!$N$5:$N$120000,inv!$C$5:$C$120000,AB$3,inv!$K$5:$K$120000,$C82),"") -> 0 | AD82: =IFERROR(SUMIFS(inv!$N$5:$N$120000,inv!$C$5:$C$120000,AD$3,inv!$K$5:$K$120000,$C82),"") -> 0 | AF82: =IFERROR(SUMIFS(inv!$N$5:$N$120000,inv!$C$5:$C$120000,AF$3,inv!$K$5:$K$120000,$C82),"") -> 0 | AH82: 0
B83: 0 | F83: =IF($E83<>"",SUMIFS(bill!$K$5:$K$150000,bill!$H$5:$H$150000,$C83),"") ->  | H83: =+SUMIFS(bill!$M$5:$M$250000,bill!$H$5:$H$250000,$C83) -> 0 | J83: =IFERROR(SUMIFS(bill!$K$5:$K$120000,bill!$A$5:$A$120000,J$3,bill!$H$5:$H$120000,$C83),"") -> 0 | L83: =IFERROR(SUMIFS(bill!$K$5:$K$120000,bill!$A$5:$A$120000,L$3,bill!$H$5:$H$120000,$C83),"") -> 0 | N83: =IFERROR(SUMIFS(bill!$K$5:$K$120000,bill!$A$5:$A$120000,N$3,bill!$H$5:$H$120000,$C83),"") -> 0 | P83: =IFERROR(SUMIFS(inv!$N$5:$N$120000,inv!$C$5:$C$120000,P$3,inv!$K$5:$K$120000,$C83),"") -> 0 | R83: =IFERROR(SUMIFS(inv!$N$5:$N$120000,inv!$C$5:$C$120000,R$3,inv!$K$5:$K$120000,$C83),"") -> 0 | T83: =IFERROR(SUMIFS(inv!$N$5:$N$120000,inv!$C$5:$C$120000,T$3,inv!$K$5:$K$120000,$C83),"") -> 0 | V83: =IFERROR(SUMIFS(inv!$N$5:$N$120000,inv!$C$5:$C$120000,V$3,inv!$K$5:$K$120000,$C83),"") -> 0 | X83: =IFERROR(SUMIFS(inv!$N$5:$N$120000,inv!$C$5:$C$120000,X$3,inv!$K$5:$K$120000,$C83),"") -> 0 | Z83: =IFERROR(SUMIFS(inv!$N$5:$N$120000,inv!$C$5:$C$120000,Z$3,inv!$K$5:$K$120000,$C83),"") -> 0 | AB83: =IFERROR(SUMIFS(inv!$N$5:$N$120000,inv!$C$5:$C$120000,AB$3,inv!$K$5:$K$120000,$C83),"") -> 0 | AD83: =IFERROR(SUMIFS(inv!$N$5:$N$120000,inv!$C$5:$C$120000,AD$3,inv!$K$5:$K$120000,$C83),"") -> 0 | AF83: =IFERROR(SUMIFS(inv!$N$5:$N$120000,inv!$C$5:$C$120000,AF$3,inv!$K$5:$K$120000,$C83),"") -> 0 | AH83: 0
B84: 0 | F84: =IF($E84<>"",SUMIFS(bill!$K$5:$K$150000,bill!$H$5:$H$150000,$C84),"") ->  | H84: =+SUMIFS(bill!$M$5:$M$250000,bill!$H$5:$H$250000,$C84) -> 0 | J84: =IFERROR(SUMIFS(bill!$K$5:$K$120000,bill!$A$5:$A$120000,J$3,bill!$H$5:$H$120000,$C84),"") -> 0 | L84: =IFERROR(SUMIFS(bill!$K$5:$K$120000,bill!$A$5:$A$120000,L$3,bill!$H$5:$H$120000,$C84),"") -> 0 | N84: =IFERROR(SUMIFS(bill!$K$5:$K$120000,bill!$A$5:$A$120000,N$3,bill!$H$5:$H$120000,$C84),"") -> 0 | P84: =IFERROR(SUMIFS(inv!$N$5:$N$120000,inv!$C$5:$C$120000,P$3,inv!$K$5:$K$120000,$C84),"") -> 0 | R84: =IFERROR(SUMIFS(inv!$N$5:$N$120000,inv!$C$5:$C$120000,R$3,inv!$K$5:$K$120000,$C84),"") -> 0 | T84: =IFERROR(SUMIFS(inv!$N$5:$N$120000,inv!$C$5:$C$120000,T$3,inv!$K$5:$K$120000,$C84),"") -> 0 | V84: =IFERROR(SUMIFS(inv!$N$5:$N$120000,inv!$C$5:$C$120000,V$3,inv!$K$5:$K$120000,$C84),"") -> 0 | X84: =IFERROR(SUMIFS(inv!$N$5:$N$120000,inv!$C$5:$C$120000,X$3,inv!$K$5:$K$120000,$C84),"") -> 0 | Z84: =IFERROR(SUMIFS(inv!$N$5:$N$120000,inv!$C$5:$C$120000,Z$3,inv!$K$5:$K$120000,$C84),"") -> 0 | AB84: =IFERROR(SUMIFS(inv!$N$5:$N$120000,inv!$C$5:$C$120000,AB$3,inv!$K$5:$K$120000,$C84),"") -> 0 | AD84: =IFERROR(SUMIFS(inv!$N$5:$N$120000,inv!$C$5:$C$120000,AD$3,inv!$K$5:$K$120000,$C84),"") -> 0 | AF84: =IFERROR(SUMIFS(inv!$N$5:$N$120000,inv!$C$5:$C$120000,AF$3,inv!$K$5:$K$120000,$C84),"") -> 0 | AH84: 0
B85: 0 | F85: =IF($E85<>"",SUMIFS(bill!$K$5:$K$150000,bill!$H$5:$H$150000,$C85),"") ->  | H85: =+SUMIFS(bill!$M$5:$M$250000,bill!$H$5:$H$250000,$C85) -> 0 | J85: =IFERROR(SUMIFS(bill!$K$5:$K$120000,bill!$A$5:$A$120000,J$3,bill!$H$5:$H$120000,$C85),"") -> 0 | L85: =IFERROR(SUMIFS(bill!$K$5:$K$120000,bill!$A$5:$A$120000,L$3,bill!$H$5:$H$120000,$C85),"") -> 0 | N85: =IFERROR(SUMIFS(bill!$K$5:$K$120000,bill!$A$5:$A$120000,N$3,bill!$H$5:$H$120000,$C85),"") -> 0 | P85: =IFERROR(SUMIFS(inv!$N$5:$N$120000,inv!$C$5:$C$120000,P$3,inv!$K$5:$K$120000,$C85),"") -> 0 | R85: =IFERROR(SUMIFS(inv!$N$5:$N$120000,inv!$C$5:$C$120000,R$3,inv!$K$5:$K$120000,$C85),"") -> 0 | T85: =IFERROR(SUMIFS(inv!$N$5:$N$120000,inv!$C$5:$C$120000,T$3,inv!$K$5:$K$120000,$C85),"") -> 0 | V85: =IFERROR(SUMIFS(inv!$N$5:$N$120000,inv!$C$5:$C$120000,V$3,inv!$K$5:$K$120000,$C85),"") -> 0 | X85: =IFERROR(SUMIFS(inv!$N$5:$N$120000,inv!$C$5:$C$120000,X$3,inv!$K$5:$K$120000,$C85),"") -> 0 | Z85: =IFERROR(SUMIFS(inv!$N$5:$N$120000,inv!$C$5:$C$120000,Z$3,inv!$K$5:$K$120000,$C85),"") -> 0 | AB85: =IFERROR(SUMIFS(inv!$N$5:$N$120000,inv!$C$5:$C$120000,AB$3,inv!$K$5:$K$120000,$C85),"") -> 0 | AD85: =IFERROR(SUMIFS(inv!$N$5:$N$120000,inv!$C$5:$C$120000,AD$3,inv!$K$5:$K$120000,$C85),"") -> 0 | AF85: =IFERROR(SUMIFS(inv!$N$5:$N$120000,inv!$C$5:$C$120000,AF$3,inv!$K$5:$K$120000,$C85),"") -> 0 | AH85: 0
B86: 0 | F86: =IF($E86<>"",SUMIFS(bill!$K$5:$K$150000,bill!$H$5:$H$150000,$C86),"") ->  | H86: =+SUMIFS(bill!$M$5:$M$250000,bill!$H$5:$H$250000,$C86) -> 0 | J86: =IFERROR(SUMIFS(bill!$K$5:$K$120000,bill!$A$5:$A$120000,J$3,bill!$H$5:$H$120000,$C86),"") -> 0 | L86: =IFERROR(SUMIFS(bill!$K$5:$K$120000,bill!$A$5:$A$120000,L$3,bill!$H$5:$H$120000,$C86),"") -> 0 | N86: =IFERROR(SUMIFS(bill!$K$5:$K$120000,bill!$A$5:$A$120000,N$3,bill!$H$5:$H$120000,$C86),"") -> 0 | P86: =IFERROR(SUMIFS(inv!$N$5:$N$120000,inv!$C$5:$C$120000,P$3,inv!$K$5:$K$120000,$C86),"") -> 0 | R86: =IFERROR(SUMIFS(inv!$N$5:$N$120000,inv!$C$5:$C$120000,R$3,inv!$K$5:$K$120000,$C86),"") -> 0 | T86: =IFERROR(SUMIFS(inv!$N$5:$N$120000,inv!$C$5:$C$120000,T$3,inv!$K$5:$K$120000,$C86),"") -> 0 | V86: =IFERROR(SUMIFS(inv!$N$5:$N$120000,inv!$C$5:$C$120000,V$3,inv!$K$5:$K$120000,$C86),"") -> 0 | X86: =IFERROR(SUMIFS(inv!$N$5:$N$120000,inv!$C$5:$C$120000,X$3,inv!$K$5:$K$120000,$C86),"") -> 0 | Z86: =IFERROR(SUMIFS(inv!$N$5:$N$120000,inv!$C$5:$C$120000,Z$3,inv!$K$5:$K$120000,$C86),"") -> 0 | AB86: =IFERROR(SUMIFS(inv!$N$5:$N$120000,inv!$C$5:$C$120000,AB$3,inv!$K$5:$K$120000,$C86),"") -> 0 | AD86: =IFERROR(SUMIFS(inv!$N$5:$N$120000,inv!$C$5:$C$120000,AD$3,inv!$K$5:$K$120000,$C86),"") -> 0 | AF86: =IFERROR(SUMIFS(inv!$N$5:$N$120000,inv!$C$5:$C$120000,AF$3,inv!$K$5:$K$120000,$C86),"") -> 0 | AH86: 0
B87: 0 | F87: =IF($E87<>"",SUMIFS(bill!$K$5:$K$150000,bill!$H$5:$H$150000,$C87),"") ->  | H87: =+SUMIFS(bill!$M$5:$M$250000,bill!$H$5:$H$250000,$C87) -> 0 | J87: =IFERROR(SUMIFS(bill!$K$5:$K$120000,bill!$A$5:$A$120000,J$3,bill!$H$5:$H$120000,$C87),"") -> 0 | L87: =IFERROR(SUMIFS(bill!$K$5:$K$120000,bill!$A$5:$A$120000,L$3,bill!$H$5:$H$120000,$C87),"") -> 0 | N87: =IFERROR(SUMIFS(bill!$K$5:$K$120000,bill!$A$5:$A$120000,N$3,bill!$H$5:$H$120000,$C87),"") -> 0 | P87: =IFERROR(SUMIFS(inv!$N$5:$N$120000,inv!$C$5:$C$120000,P$3,inv!$K$5:$K$120000,$C87),"") -> 0 | R87: =IFERROR(SUMIFS(inv!$N$5:$N$120000,inv!$C$5:$C$120000,R$3,inv!$K$5:$K$120000,$C87),"") -> 0 | T87: =IFERROR(SUMIFS(inv!$N$5:$N$120000,inv!$C$5:$C$120000,T$3,inv!$K$5:$K$120000,$C87),"") -> 0 | V87: =IFERROR(SUMIFS(inv!$N$5:$N$120000,inv!$C$5:$C$120000,V$3,inv!$K$5:$K$120000,$C87),"") -> 0 | X87: =IFERROR(SUMIFS(inv!$N$5:$N$120000,inv!$C$5:$C$120000,X$3,inv!$K$5:$K$120000,$C87),"") -> 0 | Z87: =IFERROR(SUMIFS(inv!$N$5:$N$120000,inv!$C$5:$C$120000,Z$3,inv!$K$5:$K$120000,$C87),"") -> 0 | AB87: =IFERROR(SUMIFS(inv!$N$5:$N$120000,inv!$C$5:$C$120000,AB$3,inv!$K$5:$K$120000,$C87),"") -> 0 | AD87: =IFERROR(SUMIFS(inv!$N$5:$N$120000,inv!$C$5:$C$120000,AD$3,inv!$K$5:$K$120000,$C87),"") -> 0 | AF87: =IFERROR(SUMIFS(inv!$N$5:$N$120000,inv!$C$5:$C$120000,AF$3,inv!$K$5:$K$120000,$C87),"") -> 0 | AH87: 0
B88: 0 | F88: =IF($E88<>"",SUMIFS(bill!$K$5:$K$150000,bill!$H$5:$H$150000,$C88),"") ->  | H88: =+SUMIFS(bill!$M$5:$M$250000,bill!$H$5:$H$250000,$C88) -> 0 | J88: =IFERROR(SUMIFS(bill!$K$5:$K$120000,bill!$A$5:$A$120000,J$3,bill!$H$5:$H$120000,$C88),"") -> 0 | L88: =IFERROR(SUMIFS(bill!$K$5:$K$120000,bill!$A$5:$A$120000,L$3,bill!$H$5:$H$120000,$C88),"") -> 0 | N88: =IFERROR(SUMIFS(bill!$K$5:$K$120000,bill!$A$5:$A$120000,N$3,bill!$H$5:$H$120000,$C88),"") -> 0 | P88: =IFERROR(SUMIFS(inv!$N$5:$N$120000,inv!$C$5:$C$120000,P$3,inv!$K$5:$K$120000,$C88),"") -> 0 | R88: =IFERROR(SUMIFS(inv!$N$5:$N$120000,inv!$C$5:$C$120000,R$3,inv!$K$5:$K$120000,$C88),"") -> 0 | T88: =IFERROR(SUMIFS(inv!$N$5:$N$120000,inv!$C$5:$C$120000,T$3,inv!$K$5:$K$120000,$C88),"") -> 0 | V88: =IFERROR(SUMIFS(inv!$N$5:$N$120000,inv!$C$5:$C$120000,V$3,inv!$K$5:$K$120000,$C88),"") -> 0 | X88: =IFERROR(SUMIFS(inv!$N$5:$N$120000,inv!$C$5:$C$120000,X$3,inv!$K$5:$K$120000,$C88),"") -> 0 | Z88: =IFERROR(SUMIFS(inv!$N$5:$N$120000,inv!$C$5:$C$120000,Z$3,inv!$K$5:$K$120000,$C88),"") -> 0 | AB88: =IFERROR(SUMIFS(inv!$N$5:$N$120000,inv!$C$5:$C$120000,AB$3,inv!$K$5:$K$120000,$C88),"") -> 0 | AD88: =IFERROR(SUMIFS(inv!$N$5:$N$120000,inv!$C$5:$C$120000,AD$3,inv!$K$5:$K$120000,$C88),"") -> 0 | AF88: =IFERROR(SUMIFS(inv!$N$5:$N$120000,inv!$C$5:$C$120000,AF$3,inv!$K$5:$K$120000,$C88),"") -> 0 | AH88: 0
B89: 0 | F89: =IF($E89<>"",SUMIFS(bill!$K$5:$K$150000,bill!$H$5:$H$150000,$C89),"") ->  | H89: =+SUMIFS(bill!$M$5:$M$250000,bill!$H$5:$H$250000,$C89) -> 0 | J89: =IFERROR(SUMIFS(bill!$K$5:$K$120000,bill!$A$5:$A$120000,J$3,bill!$H$5:$H$120000,$C89),"") -> 0 | L89: =IFERROR(SUMIFS(bill!$K$5:$K$120000,bill!$A$5:$A$120000,L$3,bill!$H$5:$H$120000,$C89),"") -> 0 | N89: =IFERROR(SUMIFS(bill!$K$5:$K$120000,bill!$A$5:$A$120000,N$3,bill!$H$5:$H$120000,$C89),"") -> 0 | P89: =IFERROR(SUMIFS(inv!$N$5:$N$120000,inv!$C$5:$C$120000,P$3,inv!$K$5:$K$120000,$C89),"") -> 0 | R89: =IFERROR(SUMIFS(inv!$N$5:$N$120000,inv!$C$5:$C$120000,R$3,inv!$K$5:$K$120000,$C89),"") -> 0 | T89: =IFERROR(SUMIFS(inv!$N$5:$N$120000,inv!$C$5:$C$120000,T$3,inv!$K$5:$K$120000,$C89),"") -> 0 | V89: =IFERROR(SUMIFS(inv!$N$5:$N$120000,inv!$C$5:$C$120000,V$3,inv!$K$5:$K$120000,$C89),"") -> 0 | X89: =IFERROR(SUMIFS(inv!$N$5:$N$120000,inv!$C$5:$C$120000,X$3,inv!$K$5:$K$120000,$C89),"") -> 0 | Z89: =IFERROR(SUMIFS(inv!$N$5:$N$120000,inv!$C$5:$C$120000,Z$3,inv!$K$5:$K$120000,$C89),"") -> 0 | AB89: =IFERROR(SUMIFS(inv!$N$5:$N$120000,inv!$C$5:$C$120000,AB$3,inv!$K$5:$K$120000,$C89),"") -> 0 | AD89: =IFERROR(SUMIFS(inv!$N$5:$N$120000,inv!$C$5:$C$120000,AD$3,inv!$K$5:$K$120000,$C89),"") -> 0 | AF89: =IFERROR(SUMIFS(inv!$N$5:$N$120000,inv!$C$5:$C$120000,AF$3,inv!$K$5:$K$120000,$C89),"") -> 0 | AH89: 0
B90: 0 | F90: =IF($E90<>"",SUMIFS(bill!$K$5:$K$150000,bill!$H$5:$H$150000,$C90),"") ->  | H90: =+SUMIFS(bill!$M$5:$M$250000,bill!$H$5:$H$250000,$C90) -> 0 | J90: =IFERROR(SUMIFS(bill!$K$5:$K$120000,bill!$A$5:$A$120000,J$3,bill!$H$5:$H$120000,$C90),"") -> 0 | L90: =IFERROR(SUMIFS(bill!$K$5:$K$120000,bill!$A$5:$A$120000,L$3,bill!$H$5:$H$120000,$C90),"") -> 0 | N90: =IFERROR(SUMIFS(bill!$K$5:$K$120000,bill!$A$5:$A$120000,N$3,bill!$H$5:$H$120000,$C90),"") -> 0 | P90: =IFERROR(SUMIFS(inv!$N$5:$N$120000,inv!$C$5:$C$120000,P$3,inv!$K$5:$K$120000,$C90),"") -> 0 | R90: =IFERROR(SUMIFS(inv!$N$5:$N$120000,inv!$C$5:$C$120000,R$3,inv!$K$5:$K$120000,$C90),"") -> 0 | T90: =IFERROR(SUMIFS(inv!$N$5:$N$120000,inv!$C$5:$C$120000,T$3,inv!$K$5:$K$120000,$C90),"") -> 0 | V90: =IFERROR(SUMIFS(inv!$N$5:$N$120000,inv!$C$5:$C$120000,V$3,inv!$K$5:$K$120000,$C90),"") -> 0 | X90: =IFERROR(SUMIFS(inv!$N$5:$N$120000,inv!$C$5:$C$120000,X$3,inv!$K$5:$K$120000,$C90),"") -> 0 | Z90: =IFERROR(SUMIFS(inv!$N$5:$N$120000,inv!$C$5:$C$120000,Z$3,inv!$K$5:$K$120000,$C90),"") -> 0 | AB90: =IFERROR(SUMIFS(inv!$N$5:$N$120000,inv!$C$5:$C$120000,AB$3,inv!$K$5:$K$120000,$C90),"") -> 0 | AD90: =IFERROR(SUMIFS(inv!$N$5:$N$120000,inv!$C$5:$C$120000,AD$3,inv!$K$5:$K$120000,$C90),"") -> 0 | AF90: =IFERROR(SUMIFS(inv!$N$5:$N$120000,inv!$C$5:$C$120000,AF$3,inv!$K$5:$K$120000,$C90),"") -> 0 | AH90: 0
B91: 0 | F91: =IF($E91<>"",SUMIFS(bill!$K$5:$K$150000,bill!$H$5:$H$150000,$C91),"") ->  | H91: =+SUMIFS(bill!$M$5:$M$250000,bill!$H$5:$H$250000,$C91) -> 0 | J91: =IFERROR(SUMIFS(bill!$K$5:$K$120000,bill!$A$5:$A$120000,J$3,bill!$H$5:$H$120000,$C91),"") -> 0 | L91: =IFERROR(SUMIFS(bill!$K$5:$K$120000,bill!$A$5:$A$120000,L$3,bill!$H$5:$H$120000,$C91),"") -> 0 | N91: =IFERROR(SUMIFS(bill!$K$5:$K$120000,bill!$A$5:$A$120000,N$3,bill!$H$5:$H$120000,$C91),"") -> 0 | P91: =IFERROR(SUMIFS(inv!$N$5:$N$120000,inv!$C$5:$C$120000,P$3,inv!$K$5:$K$120000,$C91),"") -> 0 | R91: =IFERROR(SUMIFS(inv!$N$5:$N$120000,inv!$C$5:$C$120000,R$3,inv!$K$5:$K$120000,$C91),"") -> 0 | T91: =IFERROR(SUMIFS(inv!$N$5:$N$120000,inv!$C$5:$C$120000,T$3,inv!$K$5:$K$120000,$C91),"") -> 0 | V91: =IFERROR(SUMIFS(inv!$N$5:$N$120000,inv!$C$5:$C$120000,V$3,inv!$K$5:$K$120000,$C91),"") -> 0 | X91: =IFERROR(SUMIFS(inv!$N$5:$N$120000,inv!$C$5:$C$120000,X$3,inv!$K$5:$K$120000,$C91),"") -> 0 | Z91: =IFERROR(SUMIFS(inv!$N$5:$N$120000,inv!$C$5:$C$120000,Z$3,inv!$K$5:$K$120000,$C91),"") -> 0 | AB91: =IFERROR(SUMIFS(inv!$N$5:$N$120000,inv!$C$5:$C$120000,AB$3,inv!$K$5:$K$120000,$C91),"") -> 0 | AD91: =IFERROR(SUMIFS(inv!$N$5:$N$120000,inv!$C$5:$C$120000,AD$3,inv!$K$5:$K$120000,$C91),"") -> 0 | AF91: =IFERROR(SUMIFS(inv!$N$5:$N$120000,inv!$C$5:$C$120000,AF$3,inv!$K$5:$K$120000,$C91),"") -> 0 | AH91: 0
B92: 0 | F92: =IF($E92<>"",SUMIFS(bill!$K$5:$K$150000,bill!$H$5:$H$150000,$C92),"") ->  | H92: =+SUMIFS(bill!$M$5:$M$250000,bill!$H$5:$H$250000,$C92) -> 0 | J92: =IFERROR(SUMIFS(bill!$K$5:$K$120000,bill!$A$5:$A$120000,J$3,bill!$H$5:$H$120000,$C92),"") -> 0 | L92: =IFERROR(SUMIFS(bill!$K$5:$K$120000,bill!$A$5:$A$120000,L$3,bill!$H$5:$H$120000,$C92),"") -> 0 | N92: =IFERROR(SUMIFS(bill!$K$5:$K$120000,bill!$A$5:$A$120000,N$3,bill!$H$5:$H$120000,$C92),"") -> 0 | P92: =IFERROR(SUMIFS(inv!$N$5:$N$120000,inv!$C$5:$C$120000,P$3,inv!$K$5:$K$120000,$C92),"") -> 0 | R92: =IFERROR(SUMIFS(inv!$N$5:$N$120000,inv!$C$5:$C$120000,R$3,inv!$K$5:$K$120000,$C92),"") -> 0 | T92: =IFERROR(SUMIFS(inv!$N$5:$N$120000,inv!$C$5:$C$120000,T$3,inv!$K$5:$K$120000,$C92),"") -> 0 | V92: =IFERROR(SUMIFS(inv!$N$5:$N$120000,inv!$C$5:$C$120000,V$3,inv!$K$5:$K$120000,$C92),"") -> 0 | X92: =IFERROR(SUMIFS(inv!$N$5:$N$120000,inv!$C$5:$C$120000,X$3,inv!$K$5:$K$120000,$C92),"") -> 0 | Z92: =IFERROR(SUMIFS(inv!$N$5:$N$120000,inv!$C$5:$C$120000,Z$3,inv!$K$5:$K$120000,$C92),"") -> 0 | AB92: =IFERROR(SUMIFS(inv!$N$5:$N$120000,inv!$C$5:$C$120000,AB$3,inv!$K$5:$K$120000,$C92),"") -> 0 | AD92: =IFERROR(SUMIFS(inv!$N$5:$N$120000,inv!$C$5:$C$120000,AD$3,inv!$K$5:$K$120000,$C92),"") -> 0 | AF92: =IFERROR(SUMIFS(inv!$N$5:$N$120000,inv!$C$5:$C$120000,AF$3,inv!$K$5:$K$120000,$C92),"") -> 0 | AH92: 0
B93: 0 | F93: =IF($E93<>"",SUMIFS(bill!$K$5:$K$150000,bill!$H$5:$H$150000,$C93),"") ->  | H93: =+SUMIFS(bill!$M$5:$M$250000,bill!$H$5:$H$250000,$C93) -> 0 | J93: =IFERROR(SUMIFS(bill!$K$5:$K$120000,bill!$A$5:$A$120000,J$3,bill!$H$5:$H$120000,$C93),"") -> 0 | L93: =IFERROR(SUMIFS(bill!$K$5:$K$120000,bill!$A$5:$A$120000,L$3,bill!$H$5:$H$120000,$C93),"") -> 0 | N93: =IFERROR(SUMIFS(bill!$K$5:$K$120000,bill!$A$5:$A$120000,N$3,bill!$H$5:$H$120000,$C93),"") -> 0 | P93: =IFERROR(SUMIFS(inv!$N$5:$N$120000,inv!$C$5:$C$120000,P$3,inv!$K$5:$K$120000,$C93),"") -> 0 | R93: =IFERROR(SUMIFS(inv!$N$5:$N$120000,inv!$C$5:$C$120000,R$3,inv!$K$5:$K$120000,$C93),"") -> 0 | T93: =IFERROR(SUMIFS(inv!$N$5:$N$120000,inv!$C$5:$C$120000,T$3,inv!$K$5:$K$120000,$C93),"") -> 0 | V93: =IFERROR(SUMIFS(inv!$N$5:$N$120000,inv!$C$5:$C$120000,V$3,inv!$K$5:$K$120000,$C93),"") -> 0 | X93: =IFERROR(SUMIFS(inv!$N$5:$N$120000,inv!$C$5:$C$120000,X$3,inv!$K$5:$K$120000,$C93),"") -> 0 | Z93: =IFERROR(SUMIFS(inv!$N$5:$N$120000,inv!$C$5:$C$120000,Z$3,inv!$K$5:$K$120000,$C93),"") -> 0 | AB93: =IFERROR(SUMIFS(inv!$N$5:$N$120000,inv!$C$5:$C$120000,AB$3,inv!$K$5:$K$120000,$C93),"") -> 0 | AD93: =IFERROR(SUMIFS(inv!$N$5:$N$120000,inv!$C$5:$C$120000,AD$3,inv!$K$5:$K$120000,$C93),"") -> 0 | AF93: =IFERROR(SUMIFS(inv!$N$5:$N$120000,inv!$C$5:$C$120000,AF$3,inv!$K$5:$K$120000,$C93),"") -> 0 | AH93: 0
B94: 0 | F94: =IF($E94<>"",SUMIFS(bill!$K$5:$K$150000,bill!$H$5:$H$150000,$C94),"") ->  | H94: =+SUMIFS(bill!$M$5:$M$250000,bill!$H$5:$H$250000,$C94) -> 0 | J94: =IFERROR(SUMIFS(bill!$K$5:$K$120000,bill!$A$5:$A$120000,J$3,bill!$H$5:$H$120000,$C94),"") -> 0 | L94: =IFERROR(SUMIFS(bill!$K$5:$K$120000,bill!$A$5:$A$120000,L$3,bill!$H$5:$H$120000,$C94),"") -> 0 | N94: =IFERROR(SUMIFS(bill!$K$5:$K$120000,bill!$A$5:$A$120000,N$3,bill!$H$5:$H$120000,$C94),"") -> 0 | P94: =IFERROR(SUMIFS(inv!$N$5:$N$120000,inv!$C$5:$C$120000,P$3,inv!$K$5:$K$120000,$C94),"") -> 0 | R94: =IFERROR(SUMIFS(inv!$N$5:$N$120000,inv!$C$5:$C$120000,R$3,inv!$K$5:$K$120000,$C94),"") -> 0 | T94: =IFERROR(SUMIFS(inv!$N$5:$N$120000,inv!$C$5:$C$120000,T$3,inv!$K$5:$K$120000,$C94),"") -> 0 | V94: =IFERROR(SUMIFS(inv!$N$5:$N$120000,inv!$C$5:$C$120000,V$3,inv!$K$5:$K$120000,$C94),"") -> 0 | X94: =IFERROR(SUMIFS(inv!$N$5:$N$120000,inv!$C$5:$C$120000,X$3,inv!$K$5:$K$120000,$C94),"") -> 0 | Z94: =IFERROR(SUMIFS(inv!$N$5:$N$120000,inv!$C$5:$C$120000,Z$3,inv!$K$5:$K$120000,$C94),"") -> 0 | AB94: =IFERROR(SUMIFS(inv!$N$5:$N$120000,inv!$C$5:$C$120000,AB$3,inv!$K$5:$K$120000,$C94),"") -> 0 | AD94: =IFERROR(SUMIFS(inv!$N$5:$N$120000,inv!$C$5:$C$120000,AD$3,inv!$K$5:$K$120000,$C94),"") -> 0 | AF94: =IFERROR(SUMIFS(inv!$N$5:$N$120000,inv!$C$5:$C$120000,AF$3,inv!$K$5:$K$120000,$C94),"") -> 0 | AH94: 0
B95: 0 | F95: =IF($E95<>"",SUMIFS(bill!$K$5:$K$150000,bill!$H$5:$H$150000,$C95),"") ->  | H95: =+SUMIFS(bill!$M$5:$M$250000,bill!$H$5:$H$250000,$C95) -> 0 | J95: =IFERROR(SUMIFS(bill!$K$5:$K$120000,bill!$A$5:$A$120000,J$3,bill!$H$5:$H$120000,$C95),"") -> 0 | L95: =IFERROR(SUMIFS(bill!$K$5:$K$120000,bill!$A$5:$A$120000,L$3,bill!$H$5:$H$120000,$C95),"") -> 0 | N95: =IFERROR(SUMIFS(bill!$K$5:$K$120000,bill!$A$5:$A$120000,N$3,bill!$H$5:$H$120000,$C95),"") -> 0 | P95: =IFERROR(SUMIFS(inv!$N$5:$N$120000,inv!$C$5:$C$120000,P$3,inv!$K$5:$K$120000,$C95),"") -> 0 | R95: =IFERROR(SUMIFS(inv!$N$5:$N$120000,inv!$C$5:$C$120000,R$3,inv!$K$5:$K$120000,$C95),"") -> 0 | T95: =IFERROR(SUMIFS(inv!$N$5:$N$120000,inv!$C$5:$C$120000,T$3,inv!$K$5:$K$120000,$C95),"") -> 0 | V95: =IFERROR(SUMIFS(inv!$N$5:$N$120000,inv!$C$5:$C$120000,V$3,inv!$K$5:$K$120000,$C95),"") -> 0 | X95: =IFERROR(SUMIFS(inv!$N$5:$N$120000,inv!$C$5:$C$120000,X$3,inv!$K$5:$K$120000,$C95),"") -> 0 | Z95: =IFERROR(SUMIFS(inv!$N$5:$N$120000,inv!$C$5:$C$120000,Z$3,inv!$K$5:$K$120000,$C95),"") -> 0 | AB95: =IFERROR(SUMIFS(inv!$N$5:$N$120000,inv!$C$5:$C$120000,AB$3,inv!$K$5:$K$120000,$C95),"") -> 0 | AD95: =IFERROR(SUMIFS(inv!$N$5:$N$120000,inv!$C$5:$C$120000,AD$3,inv!$K$5:$K$120000,$C95),"") -> 0 | AF95: =IFERROR(SUMIFS(inv!$N$5:$N$120000,inv!$C$5:$C$120000,AF$3,inv!$K$5:$K$120000,$C95),"") -> 0 | AH95: 0
B96: 0 | F96: =IF($E96<>"",SUMIFS(bill!$K$5:$K$150000,bill!$H$5:$H$150000,$C96),"") ->  | H96: =+SUMIFS(bill!$M$5:$M$250000,bill!$H$5:$H$250000,$C96) -> 0 | J96: =IFERROR(SUMIFS(bill!$K$5:$K$120000,bill!$A$5:$A$120000,J$3,bill!$H$5:$H$120000,$C96),"") -> 0 | L96: =IFERROR(SUMIFS(bill!$K$5:$K$120000,bill!$A$5:$A$120000,L$3,bill!$H$5:$H$120000,$C96),"") -> 0 | N96: =IFERROR(SUMIFS(bill!$K$5:$K$120000,bill!$A$5:$A$120000,N$3,bill!$H$5:$H$120000,$C96),"") -> 0 | P96: =IFERROR(SUMIFS(inv!$N$5:$N$120000,inv!$C$5:$C$120000,P$3,inv!$K$5:$K$120000,$C96),"") -> 0 | R96: =IFERROR(SUMIFS(inv!$N$5:$N$120000,inv!$C$5:$C$120000,R$3,inv!$K$5:$K$120000,$C96),"") -> 0 | T96: =IFERROR(SUMIFS(inv!$N$5:$N$120000,inv!$C$5:$C$120000,T$3,inv!$K$5:$K$120000,$C96),"") -> 0 | V96: =IFERROR(SUMIFS(inv!$N$5:$N$120000,inv!$C$5:$C$120000,V$3,inv!$K$5:$K$120000,$C96),"") -> 0 | X96: =IFERROR(SUMIFS(inv!$N$5:$N$120000,inv!$C$5:$C$120000,X$3,inv!$K$5:$K$120000,$C96),"") -> 0 | Z96: =IFERROR(SUMIFS(inv!$N$5:$N$120000,inv!$C$5:$C$120000,Z$3,inv!$K$5:$K$120000,$C96),"") -> 0 | AB96: =IFERROR(SUMIFS(inv!$N$5:$N$120000,inv!$C$5:$C$120000,AB$3,inv!$K$5:$K$120000,$C96),"") -> 0 | AD96: =IFERROR(SUMIFS(inv!$N$5:$N$120000,inv!$C$5:$C$120000,AD$3,inv!$K$5:$K$120000,$C96),"") -> 0 | AF96: =IFERROR(SUMIFS(inv!$N$5:$N$120000,inv!$C$5:$C$120000,AF$3,inv!$K$5:$K$120000,$C96),"") -> 0 | AH96: 0
B97: 0 | F97: =IF($E97<>"",SUMIFS(bill!$K$5:$K$150000,bill!$H$5:$H$150000,$C97),"") ->  | H97: =+SUMIFS(bill!$M$5:$M$250000,bill!$H$5:$H$250000,$C97) -> 0 | J97: =IFERROR(SUMIFS(bill!$K$5:$K$120000,bill!$A$5:$A$120000,J$3,bill!$H$5:$H$120000,$C97),"") -> 0 | L97: =IFERROR(SUMIFS(bill!$K$5:$K$120000,bill!$A$5:$A$120000,L$3,bill!$H$5:$H$120000,$C97),"") -> 0 | N97: =IFERROR(SUMIFS(bill!$K$5:$K$120000,bill!$A$5:$A$120000,N$3,bill!$H$5:$H$120000,$C97),"") -> 0 | P97: =IFERROR(SUMIFS(inv!$N$5:$N$120000,inv!$C$5:$C$120000,P$3,inv!$K$5:$K$120000,$C97),"") -> 0 | R97: =IFERROR(SUMIFS(inv!$N$5:$N$120000,inv!$C$5:$C$120000,R$3,inv!$K$5:$K$120000,$C97),"") -> 0 | T97: =IFERROR(SUMIFS(inv!$N$5:$N$120000,inv!$C$5:$C$120000,T$3,inv!$K$5:$K$120000,$C97),"") -> 0 | V97: =IFERROR(SUMIFS(inv!$N$5:$N$120000,inv!$C$5:$C$120000,V$3,inv!$K$5:$K$120000,$C97),"") -> 0 | X97: =IFERROR(SUMIFS(inv!$N$5:$N$120000,inv!$C$5:$C$120000,X$3,inv!$K$5:$K$120000,$C97),"") -> 0 | Z97: =IFERROR(SUMIFS(inv!$N$5:$N$120000,inv!$C$5:$C$120000,Z$3,inv!$K$5:$K$120000,$C97),"") -> 0 | AB97: =IFERROR(SUMIFS(inv!$N$5:$N$120000,inv!$C$5:$C$120000,AB$3,inv!$K$5:$K$120000,$C97),"") -> 0 | AD97: =IFERROR(SUMIFS(inv!$N$5:$N$120000,inv!$C$5:$C$120000,AD$3,inv!$K$5:$K$120000,$C97),"") -> 0 | AF97: =IFERROR(SUMIFS(inv!$N$5:$N$120000,inv!$C$5:$C$120000,AF$3,inv!$K$5:$K$120000,$C97),"") -> 0 | AH97: 0
B98: 0 | F98: =IF($E98<>"",SUMIFS(bill!$K$5:$K$150000,bill!$H$5:$H$150000,$C98),"") ->  | H98: =+SUMIFS(bill!$M$5:$M$250000,bill!$H$5:$H$250000,$C98) -> 0 | J98: =IFERROR(SUMIFS(bill!$K$5:$K$120000,bill!$A$5:$A$120000,J$3,bill!$H$5:$H$120000,$C98),"") -> 0 | L98: =IFERROR(SUMIFS(bill!$K$5:$K$120000,bill!$A$5:$A$120000,L$3,bill!$H$5:$H$120000,$C98),"") -> 0 | N98: =IFERROR(SUMIFS(bill!$K$5:$K$120000,bill!$A$5:$A$120000,N$3,bill!$H$5:$H$120000,$C98),"") -> 0 | P98: =IFERROR(SUMIFS(inv!$N$5:$N$120000,inv!$C$5:$C$120000,P$3,inv!$K$5:$K$120000,$C98),"") -> 0 | R98: =IFERROR(SUMIFS(inv!$N$5:$N$120000,inv!$C$5:$C$120000,R$3,inv!$K$5:$K$120000,$C98),"") -> 0 | T98: =IFERROR(SUMIFS(inv!$N$5:$N$120000,inv!$C$5:$C$120000,T$3,inv!$K$5:$K$120000,$C98),"") -> 0 | V98: =IFERROR(SUMIFS(inv!$N$5:$N$120000,inv!$C$5:$C$120000,V$3,inv!$K$5:$K$120000,$C98),"") -> 0 | X98: =IFERROR(SUMIFS(inv!$N$5:$N$120000,inv!$C$5:$C$120000,X$3,inv!$K$5:$K$120000,$C98),"") -> 0 | Z98: =IFERROR(SUMIFS(inv!$N$5:$N$120000,inv!$C$5:$C$120000,Z$3,inv!$K$5:$K$120000,$C98),"") -> 0 | AB98: =IFERROR(SUMIFS(inv!$N$5:$N$120000,inv!$C$5:$C$120000,AB$3,inv!$K$5:$K$120000,$C98),"") -> 0 | AD98: =IFERROR(SUMIFS(inv!$N$5:$N$120000,inv!$C$5:$C$120000,AD$3,inv!$K$5:$K$120000,$C98),"") -> 0 | AF98: =IFERROR(SUMIFS(inv!$N$5:$N$120000,inv!$C$5:$C$120000,AF$3,inv!$K$5:$K$120000,$C98),"") -> 0 | AH98: 0
B99: 0 | F99: =IF($E99<>"",SUMIFS(bill!$K$5:$K$150000,bill!$H$5:$H$150000,$C99),"") ->  | H99: =+SUMIFS(bill!$M$5:$M$250000,bill!$H$5:$H$250000,$C99) -> 0 | J99: =IFERROR(SUMIFS(bill!$K$5:$K$120000,bill!$A$5:$A$120000,J$3,bill!$H$5:$H$120000,$C99),"") -> 0 | L99: =IFERROR(SUMIFS(bill!$K$5:$K$120000,bill!$A$5:$A$120000,L$3,bill!$H$5:$H$120000,$C99),"") -> 0 | N99: =IFERROR(SUMIFS(bill!$K$5:$K$120000,bill!$A$5:$A$120000,N$3,bill!$H$5:$H$120000,$C99),"") -> 0 | P99: =IFERROR(SUMIFS(inv!$N$5:$N$120000,inv!$C$5:$C$120000,P$3,inv!$K$5:$K$120000,$C99),"") -> 0 | R99: =IFERROR(SUMIFS(inv!$N$5:$N$120000,inv!$C$5:$C$120000,R$3,inv!$K$5:$K$120000,$C99),"") -> 0 | T99: =IFERROR(SUMIFS(inv!$N$5:$N$120000,inv!$C$5:$C$120000,T$3,inv!$K$5:$K$120000,$C99),"") -> 0 | V99: =IFERROR(SUMIFS(inv!$N$5:$N$120000,inv!$C$5:$C$120000,V$3,inv!$K$5:$K$120000,$C99),"") -> 0 | X99: =IFERROR(SUMIFS(inv!$N$5:$N$120000,inv!$C$5:$C$120000,X$3,inv!$K$5:$K$120000,$C99),"") -> 0 | Z99: =IFERROR(SUMIFS(inv!$N$5:$N$120000,inv!$C$5:$C$120000,Z$3,inv!$K$5:$K$120000,$C99),"") -> 0 | AB99: =IFERROR(SUMIFS(inv!$N$5:$N$120000,inv!$C$5:$C$120000,AB$3,inv!$K$5:$K$120000,$C99),"") -> 0 | AD99: =IFERROR(SUMIFS(inv!$N$5:$N$120000,inv!$C$5:$C$120000,AD$3,inv!$K$5:$K$120000,$C99),"") -> 0 | AF99: =IFERROR(SUMIFS(inv!$N$5:$N$120000,inv!$C$5:$C$120000,AF$3,inv!$K$5:$K$120000,$C99),"") -> 0 | AH99: 0
B100: 0 | F100: =IF($E100<>"",SUMIFS(bill!$K$5:$K$150000,bill!$H$5:$H$150000,$C100),"") ->  | H100: =+SUMIFS(bill!$M$5:$M$250000,bill!$H$5:$H$250000,$C100) -> 0 | J100: =IFERROR(SUMIFS(bill!$K$5:$K$120000,bill!$A$5:$A$120000,J$3,bill!$H$5:$H$120000,$C100),"") -> 0 | L100: =IFERROR(SUMIFS(bill!$K$5:$K$120000,bill!$A$5:$A$120000,L$3,bill!$H$5:$H$120000,$C100),"") -> 0 | N100: =IFERROR(SUMIFS(bill!$K$5:$K$120000,bill!$A$5:$A$120000,N$3,bill!$H$5:$H$120000,$C100),"") -> 0 | P100: =IFERROR(SUMIFS(inv!$N$5:$N$120000,inv!$C$5:$C$120000,P$3,inv!$K$5:$K$120000,$C100),"") -> 0 | R100: =IFERROR(SUMIFS(inv!$N$5:$N$120000,inv!$C$5:$C$120000,R$3,inv!$K$5:$K$120000,$C100),"") -> 0 | T100: =IFERROR(SUMIFS(inv!$N$5:$N$120000,inv!$C$5:$C$120000,T$3,inv!$K$5:$K$120000,$C100),"") -> 0 | V100: =IFERROR(SUMIFS(inv!$N$5:$N$120000,inv!$C$5:$C$120000,V$3,inv!$K$5:$K$120000,$C100),"") -> 0 | X100: =IFERROR(SUMIFS(inv!$N$5:$N$120000,inv!$C$5:$C$120000,X$3,inv!$K$5:$K$120000,$C100),"") -> 0 | Z100: =IFERROR(SUMIFS(inv!$N$5:$N$120000,inv!$C$5:$C$120000,Z$3,inv!$K$5:$K$120000,$C100),"") -> 0 | AB100: =IFERROR(SUMIFS(inv!$N$5:$N$120000,inv!$C$5:$C$120000,AB$3,inv!$K$5:$K$120000,$C100),"") -> 0 | AD100: =IFERROR(SUMIFS(inv!$N$5:$N$120000,inv!$C$5:$C$120000,AD$3,inv!$K$5:$K$120000,$C100),"") -> 0 | AF100: =IFERROR(SUMIFS(inv!$N$5:$N$120000,inv!$C$5:$C$120000,AF$3,inv!$K$5:$K$120000,$C100),"") -> 0 | AH100: 0
B101: 0 | F101: =IF($E101<>"",SUMIFS(bill!$K$5:$K$150000,bill!$H$5:$H$150000,$C101),"") ->  | H101: =+SUMIFS(bill!$M$5:$M$250000,bill!$H$5:$H$250000,$C101) -> 0 | J101: =IFERROR(SUMIFS(bill!$K$5:$K$120000,bill!$A$5:$A$120000,J$3,bill!$H$5:$H$120000,$C101),"") -> 0 | L101: =IFERROR(SUMIFS(bill!$K$5:$K$120000,bill!$A$5:$A$120000,L$3,bill!$H$5:$H$120000,$C101),"") -> 0 | N101: =IFERROR(SUMIFS(bill!$K$5:$K$120000,bill!$A$5:$A$120000,N$3,bill!$H$5:$H$120000,$C101),"") -> 0 | P101: =IFERROR(SUMIFS(inv!$N$5:$N$120000,inv!$C$5:$C$120000,P$3,inv!$K$5:$K$120000,$C101),"") -> 0 | R101: =IFERROR(SUMIFS(inv!$N$5:$N$120000,inv!$C$5:$C$120000,R$3,inv!$K$5:$K$120000,$C101),"") -> 0 | T101: =IFERROR(SUMIFS(inv!$N$5:$N$120000,inv!$C$5:$C$120000,T$3,inv!$K$5:$K$120000,$C101),"") -> 0 | V101: =IFERROR(SUMIFS(inv!$N$5:$N$120000,inv!$C$5:$C$120000,V$3,inv!$K$5:$K$120000,$C101),"") -> 0 | X101: =IFERROR(SUMIFS(inv!$N$5:$N$120000,inv!$C$5:$C$120000,X$3,inv!$K$5:$K$120000,$C101),"") -> 0 | Z101: =IFERROR(SUMIFS(inv!$N$5:$N$120000,inv!$C$5:$C$120000,Z$3,inv!$K$5:$K$120000,$C101),"") -> 0 | AB101: =IFERROR(SUMIFS(inv!$N$5:$N$120000,inv!$C$5:$C$120000,AB$3,inv!$K$5:$K$120000,$C101),"") -> 0 | AD101: =IFERROR(SUMIFS(inv!$N$5:$N$120000,inv!$C$5:$C$120000,AD$3,inv!$K$5:$K$120000,$C101),"") -> 0 | AF101: =IFERROR(SUMIFS(inv!$N$5:$N$120000,inv!$C$5:$C$120000,AF$3,inv!$K$5:$K$120000,$C101),"") -> 0 | AH101: 0
B102: 0 | F102: =IF($E102<>"",SUMIFS(bill!$K$5:$K$150000,bill!$H$5:$H$150000,$C102),"") ->  | H102: =+SUMIFS(bill!$M$5:$M$250000,bill!$H$5:$H$250000,$C102) -> 0 | J102: =IFERROR(SUMIFS(bill!$K$5:$K$120000,bill!$A$5:$A$120000,J$3,bill!$H$5:$H$120000,$C102),"") -> 0 | L102: =IFERROR(SUMIFS(bill!$K$5:$K$120000,bill!$A$5:$A$120000,L$3,bill!$H$5:$H$120000,$C102),"") -> 0 | N102: =IFERROR(SUMIFS(bill!$K$5:$K$120000,bill!$A$5:$A$120000,N$3,bill!$H$5:$H$120000,$C102),"") -> 0 | P102: =IFERROR(SUMIFS(inv!$N$5:$N$120000,inv!$C$5:$C$120000,P$3,inv!$K$5:$K$120000,$C102),"") -> 0 | R102: =IFERROR(SUMIFS(inv!$N$5:$N$120000,inv!$C$5:$C$120000,R$3,inv!$K$5:$K$120000,$C102),"") -> 0 | T102: =IFERROR(SUMIFS(inv!$N$5:$N$120000,inv!$C$5:$C$120000,T$3,inv!$K$5:$K$120000,$C102),"") -> 0 | V102: =IFERROR(SUMIFS(inv!$N$5:$N$120000,inv!$C$5:$C$120000,V$3,inv!$K$5:$K$120000,$C102),"") -> 0 | X102: =IFERROR(SUMIFS(inv!$N$5:$N$120000,inv!$C$5:$C$120000,X$3,inv!$K$5:$K$120000,$C102),"") -> 0 | Z102: =IFERROR(SUMIFS(inv!$N$5:$N$120000,inv!$C$5:$C$120000,Z$3,inv!$K$5:$K$120000,$C102),"") -> 0 | AB102: =IFERROR(SUMIFS(inv!$N$5:$N$120000,inv!$C$5:$C$120000,AB$3,inv!$K$5:$K$120000,$C102),"") -> 0 | AD102: =IFERROR(SUMIFS(inv!$N$5:$N$120000,inv!$C$5:$C$120000,AD$3,inv!$K$5:$K$120000,$C102),"") -> 0 | AF102: =IFERROR(SUMIFS(inv!$N$5:$N$120000,inv!$C$5:$C$120000,AF$3,inv!$K$5:$K$120000,$C102),"") -> 0 | AH102: 0
B103: 0 | F103: =IF($E103<>"",SUMIFS(bill!$K$5:$K$150000,bill!$H$5:$H$150000,$C103),"") ->  | H103: =+SUMIFS(bill!$M$5:$M$250000,bill!$H$5:$H$250000,$C103) -> 0 | J103: =IFERROR(SUMIFS(bill!$K$5:$K$120000,bill!$A$5:$A$120000,J$3,bill!$H$5:$H$120000,$C103),"") -> 0 | L103: =IFERROR(SUMIFS(bill!$K$5:$K$120000,bill!$A$5:$A$120000,L$3,bill!$H$5:$H$120000,$C103),"") -> 0 | N103: =IFERROR(SUMIFS(bill!$K$5:$K$120000,bill!$A$5:$A$120000,N$3,bill!$H$5:$H$120000,$C103),"") -> 0 | P103: =IFERROR(SUMIFS(inv!$N$5:$N$120000,inv!$C$5:$C$120000,P$3,inv!$K$5:$K$120000,$C103),"") -> 0 | R103: =IFERROR(SUMIFS(inv!$N$5:$N$120000,inv!$C$5:$C$120000,R$3,inv!$K$5:$K$120000,$C103),"") -> 0 | T103: =IFERROR(SUMIFS(inv!$N$5:$N$120000,inv!$C$5:$C$120000,T$3,inv!$K$5:$K$120000,$C103),"") -> 0 | V103: =IFERROR(SUMIFS(inv!$N$5:$N$120000,inv!$C$5:$C$120000,V$3,inv!$K$5:$K$120000,$C103),"") -> 0 | X103: =IFERROR(SUMIFS(inv!$N$5:$N$120000,inv!$C$5:$C$120000,X$3,inv!$K$5:$K$120000,$C103),"") -> 0 | Z103: =IFERROR(SUMIFS(inv!$N$5:$N$120000,inv!$C$5:$C$120000,Z$3,inv!$K$5:$K$120000,$C103),"") -> 0 | AB103: =IFERROR(SUMIFS(inv!$N$5:$N$120000,inv!$C$5:$C$120000,AB$3,inv!$K$5:$K$120000,$C103),"") -> 0 | AD103: =IFERROR(SUMIFS(inv!$N$5:$N$120000,inv!$C$5:$C$120000,AD$3,inv!$K$5:$K$120000,$C103),"") -> 0 | AF103: =IFERROR(SUMIFS(inv!$N$5:$N$120000,inv!$C$5:$C$120000,AF$3,inv!$K$5:$K$120000,$C103),"") -> 0 | AH103: 0
B104: 0 | F104: =IF($E104<>"",SUMIFS(bill!$K$5:$K$150000,bill!$H$5:$H$150000,$C104),"") ->  | H104: =+SUMIFS(bill!$M$5:$M$250000,bill!$H$5:$H$250000,$C104) -> 0 | J104: =IFERROR(SUMIFS(bill!$K$5:$K$120000,bill!$A$5:$A$120000,J$3,bill!$H$5:$H$120000,$C104),"") -> 0 | L104: =IFERROR(SUMIFS(bill!$K$5:$K$120000,bill!$A$5:$A$120000,L$3,bill!$H$5:$H$120000,$C104),"") -> 0 | N104: =IFERROR(SUMIFS(bill!$K$5:$K$120000,bill!$A$5:$A$120000,N$3,bill!$H$5:$H$120000,$C104),"") -> 0 | P104: =IFERROR(SUMIFS(inv!$N$5:$N$120000,inv!$C$5:$C$120000,P$3,inv!$K$5:$K$120000,$C104),"") -> 0 | R104: =IFERROR(SUMIFS(inv!$N$5:$N$120000,inv!$C$5:$C$120000,R$3,inv!$K$5:$K$120000,$C104),"") -> 0 | T104: =IFERROR(SUMIFS(inv!$N$5:$N$120000,inv!$C$5:$C$120000,T$3,inv!$K$5:$K$120000,$C104),"") -> 0 | V104: =IFERROR(SUMIFS(inv!$N$5:$N$120000,inv!$C$5:$C$120000,V$3,inv!$K$5:$K$120000,$C104),"") -> 0 | X104: =IFERROR(SUMIFS(inv!$N$5:$N$120000,inv!$C$5:$C$120000,X$3,inv!$K$5:$K$120000,$C104),"") -> 0 | Z104: =IFERROR(SUMIFS(inv!$N$5:$N$120000,inv!$C$5:$C$120000,Z$3,inv!$K$5:$K$120000,$C104),"") -> 0 | AB104: =IFERROR(SUMIFS(inv!$N$5:$N$120000,inv!$C$5:$C$120000,AB$3,inv!$K$5:$K$120000,$C104),"") -> 0 | AD104: =IFERROR(SUMIFS(inv!$N$5:$N$120000,inv!$C$5:$C$120000,AD$3,inv!$K$5:$K$120000,$C104),"") -> 0 | AF104: =IFERROR(SUMIFS(inv!$N$5:$N$120000,inv!$C$5:$C$120000,AF$3,inv!$K$5:$K$120000,$C104),"") -> 0 | AH104: 0
B105: 0 | F105: =IF($E105<>"",SUMIFS(bill!$K$5:$K$150000,bill!$H$5:$H$150000,$C105),"") ->  | H105: =+SUMIFS(bill!$M$5:$M$250000,bill!$H$5:$H$250000,$C105) -> 0 | J105: =IFERROR(SUMIFS(bill!$K$5:$K$120000,bill!$A$5:$A$120000,J$3,bill!$H$5:$H$120000,$C105),"") -> 0 | L105: =IFERROR(SUMIFS(bill!$K$5:$K$120000,bill!$A$5:$A$120000,L$3,bill!$H$5:$H$120000,$C105),"") -> 0 | N105: =IFERROR(SUMIFS(bill!$K$5:$K$120000,bill!$A$5:$A$120000,N$3,bill!$H$5:$H$120000,$C105),"") -> 0 | P105: =IFERROR(SUMIFS(inv!$N$5:$N$120000,inv!$C$5:$C$120000,P$3,inv!$K$5:$K$120000,$C105),"") -> 0 | R105: =IFERROR(SUMIFS(inv!$N$5:$N$120000,inv!$C$5:$C$120000,R$3,inv!$K$5:$K$120000,$C105),"") -> 0 | T105: =IFERROR(SUMIFS(inv!$N$5:$N$120000,inv!$C$5:$C$120000,T$3,inv!$K$5:$K$120000,$C105),"") -> 0 | V105: =IFERROR(SUMIFS(inv!$N$5:$N$120000,inv!$C$5:$C$120000,V$3,inv!$K$5:$K$120000,$C105),"") -> 0 | X105: =IFERROR(SUMIFS(inv!$N$5:$N$120000,inv!$C$5:$C$120000,X$3,inv!$K$5:$K$120000,$C105),"") -> 0 | Z105: =IFERROR(SUMIFS(inv!$N$5:$N$120000,inv!$C$5:$C$120000,Z$3,inv!$K$5:$K$120000,$C105),"") -> 0 | AB105: =IFERROR(SUMIFS(inv!$N$5:$N$120000,inv!$C$5:$C$120000,AB$3,inv!$K$5:$K$120000,$C105),"") -> 0 | AD105: =IFERROR(SUMIFS(inv!$N$5:$N$120000,inv!$C$5:$C$120000,AD$3,inv!$K$5:$K$120000,$C105),"") -> 0 | AF105: =IFERROR(SUMIFS(inv!$N$5:$N$120000,inv!$C$5:$C$120000,AF$3,inv!$K$5:$K$120000,$C105),"") -> 0 | AH105: 0
B106: 0 | F106: =IF($E106<>"",SUMIFS(bill!$K$5:$K$150000,bill!$H$5:$H$150000,$C106),"") ->  | H106: =+SUMIFS(bill!$M$5:$M$250000,bill!$H$5:$H$250000,$C106) -> 0 | J106: =IFERROR(SUMIFS(bill!$K$5:$K$120000,bill!$A$5:$A$120000,J$3,bill!$H$5:$H$120000,$C106),"") -> 0 | L106: =IFERROR(SUMIFS(bill!$K$5:$K$120000,bill!$A$5:$A$120000,L$3,bill!$H$5:$H$120000,$C106),"") -> 0 | N106: =IFERROR(SUMIFS(bill!$K$5:$K$120000,bill!$A$5:$A$120000,N$3,bill!$H$5:$H$120000,$C106),"") -> 0 | P106: =IFERROR(SUMIFS(inv!$N$5:$N$120000,inv!$C$5:$C$120000,P$3,inv!$K$5:$K$120000,$C106),"") -> 0 | R106: =IFERROR(SUMIFS(inv!$N$5:$N$120000,inv!$C$5:$C$120000,R$3,inv!$K$5:$K$120000,$C106),"") -> 0 | T106: =IFERROR(SUMIFS(inv!$N$5:$N$120000,inv!$C$5:$C$120000,T$3,inv!$K$5:$K$120000,$C106),"") -> 0 | V106: =IFERROR(SUMIFS(inv!$N$5:$N$120000,inv!$C$5:$C$120000,V$3,inv!$K$5:$K$120000,$C106),"") -> 0 | X106: =IFERROR(SUMIFS(inv!$N$5:$N$120000,inv!$C$5:$C$120000,X$3,inv!$K$5:$K$120000,$C106),"") -> 0 | Z106: =IFERROR(SUMIFS(inv!$N$5:$N$120000,inv!$C$5:$C$120000,Z$3,inv!$K$5:$K$120000,$C106),"") -> 0 | AB106: =IFERROR(SUMIFS(inv!$N$5:$N$120000,inv!$C$5:$C$120000,AB$3,inv!$K$5:$K$120000,$C106),"") -> 0 | AD106: =IFERROR(SUMIFS(inv!$N$5:$N$120000,inv!$C$5:$C$120000,AD$3,inv!$K$5:$K$120000,$C106),"") -> 0 | AF106: =IFERROR(SUMIFS(inv!$N$5:$N$120000,inv!$C$5:$C$120000,AF$3,inv!$K$5:$K$120000,$C106),"") -> 0 | AH106: 0
B107: 0 | F107: =IF($E107<>"",SUMIFS(bill!$K$5:$K$150000,bill!$H$5:$H$150000,$C107),"") ->  | H107: =+SUMIFS(bill!$M$5:$M$250000,bill!$H$5:$H$250000,$C107) -> 0 | J107: =IFERROR(SUMIFS(bill!$K$5:$K$120000,bill!$A$5:$A$120000,J$3,bill!$H$5:$H$120000,$C107),"") -> 0 | L107: =IFERROR(SUMIFS(bill!$K$5:$K$120000,bill!$A$5:$A$120000,L$3,bill!$H$5:$H$120000,$C107),"") -> 0 | N107: =IFERROR(SUMIFS(bill!$K$5:$K$120000,bill!$A$5:$A$120000,N$3,bill!$H$5:$H$120000,$C107),"") -> 0 | P107: =IFERROR(SUMIFS(inv!$N$5:$N$120000,inv!$C$5:$C$120000,P$3,inv!$K$5:$K$120000,$C107),"") -> 0 | R107: =IFERROR(SUMIFS(inv!$N$5:$N$120000,inv!$C$5:$C$120000,R$3,inv!$K$5:$K$120000,$C107),"") -> 0 | T107: =IFERROR(SUMIFS(inv!$N$5:$N$120000,inv!$C$5:$C$120000,T$3,inv!$K$5:$K$120000,$C107),"") -> 0 | V107: =IFERROR(SUMIFS(inv!$N$5:$N$120000,inv!$C$5:$C$120000,V$3,inv!$K$5:$K$120000,$C107),"") -> 0 | X107: =IFERROR(SUMIFS(inv!$N$5:$N$120000,inv!$C$5:$C$120000,X$3,inv!$K$5:$K$120000,$C107),"") -> 0 | Z107: =IFERROR(SUMIFS(inv!$N$5:$N$120000,inv!$C$5:$C$120000,Z$3,inv!$K$5:$K$120000,$C107),"") -> 0 | AB107: =IFERROR(SUMIFS(inv!$N$5:$N$120000,inv!$C$5:$C$120000,AB$3,inv!$K$5:$K$120000,$C107),"") -> 0 | AD107: =IFERROR(SUMIFS(inv!$N$5:$N$120000,inv!$C$5:$C$120000,AD$3,inv!$K$5:$K$120000,$C107),"") -> 0 | AF107: =IFERROR(SUMIFS(inv!$N$5:$N$120000,inv!$C$5:$C$120000,AF$3,inv!$K$5:$K$120000,$C107),"") -> 0 | AH107: 0
B108: 0 | F108: =IF($E108<>"",SUMIFS(bill!$K$5:$K$150000,bill!$H$5:$H$150000,$C108),"") ->  | H108: =+SUMIFS(bill!$M$5:$M$250000,bill!$H$5:$H$250000,$C108) -> 0 | J108: =IFERROR(SUMIFS(bill!$K$5:$K$120000,bill!$A$5:$A$120000,J$3,bill!$H$5:$H$120000,$C108),"") -> 0 | L108: =IFERROR(SUMIFS(bill!$K$5:$K$120000,bill!$A$5:$A$120000,L$3,bill!$H$5:$H$120000,$C108),"") -> 0 | N108: =IFERROR(SUMIFS(bill!$K$5:$K$120000,bill!$A$5:$A$120000,N$3,bill!$H$5:$H$120000,$C108),"") -> 0 | P108: =IFERROR(SUMIFS(inv!$N$5:$N$120000,inv!$C$5:$C$120000,P$3,inv!$K$5:$K$120000,$C108),"") -> 0 | R108: =IFERROR(SUMIFS(inv!$N$5:$N$120000,inv!$C$5:$C$120000,R$3,inv!$K$5:$K$120000,$C108),"") -> 0 | T108: =IFERROR(SUMIFS(inv!$N$5:$N$120000,inv!$C$5:$C$120000,T$3,inv!$K$5:$K$120000,$C108),"") -> 0 | V108: =IFERROR(SUMIFS(inv!$N$5:$N$120000,inv!$C$5:$C$120000,V$3,inv!$K$5:$K$120000,$C108),"") -> 0 | X108: =IFERROR(SUMIFS(inv!$N$5:$N$120000,inv!$C$5:$C$120000,X$3,inv!$K$5:$K$120000,$C108),"") -> 0 | Z108: =IFERROR(SUMIFS(inv!$N$5:$N$120000,inv!$C$5:$C$120000,Z$3,inv!$K$5:$K$120000,$C108),"") -> 0 | AB108: =IFERROR(SUMIFS(inv!$N$5:$N$120000,inv!$C$5:$C$120000,AB$3,inv!$K$5:$K$120000,$C108),"") -> 0 | AD108: =IFERROR(SUMIFS(inv!$N$5:$N$120000,inv!$C$5:$C$120000,AD$3,inv!$K$5:$K$120000,$C108),"") -> 0 | AF108: =IFERROR(SUMIFS(inv!$N$5:$N$120000,inv!$C$5:$C$120000,AF$3,inv!$K$5:$K$120000,$C108),"") -> 0 | AH108: 0
B109: 0 | F109: =IF($E109<>"",SUMIFS(bill!$K$5:$K$150000,bill!$H$5:$H$150000,$C109),"") ->  | H109: =+SUMIFS(bill!$M$5:$M$250000,bill!$H$5:$H$250000,$C109) -> 0 | J109: =IFERROR(SUMIFS(bill!$K$5:$K$120000,bill!$A$5:$A$120000,J$3,bill!$H$5:$H$120000,$C109),"") -> 0 | L109: =IFERROR(SUMIFS(bill!$K$5:$K$120000,bill!$A$5:$A$120000,L$3,bill!$H$5:$H$120000,$C109),"") -> 0 | N109: =IFERROR(SUMIFS(bill!$K$5:$K$120000,bill!$A$5:$A$120000,N$3,bill!$H$5:$H$120000,$C109),"") -> 0 | P109: =IFERROR(SUMIFS(inv!$N$5:$N$120000,inv!$C$5:$C$120000,P$3,inv!$K$5:$K$120000,$C109),"") -> 0 | R109: =IFERROR(SUMIFS(inv!$N$5:$N$120000,inv!$C$5:$C$120000,R$3,inv!$K$5:$K$120000,$C109),"") -> 0 | T109: =IFERROR(SUMIFS(inv!$N$5:$N$120000,inv!$C$5:$C$120000,T$3,inv!$K$5:$K$120000,$C109),"") -> 0 | V109: =IFERROR(SUMIFS(inv!$N$5:$N$120000,inv!$C$5:$C$120000,V$3,inv!$K$5:$K$120000,$C109),"") -> 0 | X109: =IFERROR(SUMIFS(inv!$N$5:$N$120000,inv!$C$5:$C$120000,X$3,inv!$K$5:$K$120000,$C109),"") -> 0 | Z109: =IFERROR(SUMIFS(inv!$N$5:$N$120000,inv!$C$5:$C$120000,Z$3,inv!$K$5:$K$120000,$C109),"") -> 0 | AB109: =IFERROR(SUMIFS(inv!$N$5:$N$120000,inv!$C$5:$C$120000,AB$3,inv!$K$5:$K$120000,$C109),"") -> 0 | AD109: =IFERROR(SUMIFS(inv!$N$5:$N$120000,inv!$C$5:$C$120000,AD$3,inv!$K$5:$K$120000,$C109),"") -> 0 | AF109: =IFERROR(SUMIFS(inv!$N$5:$N$120000,inv!$C$5:$C$120000,AF$3,inv!$K$5:$K$120000,$C109),"") -> 0 | AH109: 0
